Workbook

Sheet Cover Page
B2: Better Buildings Residential Energy Efficiency Program Cost-Effectiveness Tool (version 2.0)
B15: Description: | C15: This spreadsheet is designed to calculate the cost effectiveness of residential energy efficiency programs.
B18: Prepared by | C18: Energy and Environmental Economics, Inc.
C19: 101 Montgomery St. Suite 1600
C20: San Francisco, CA
C21: 94104
C23: and
C25: Lawrence Berkeley National Laboratory
C26: 1 Cyclotron Road
C27: Berkeley, CA
C28: 94720
B30: For email enquiries: BetterBuildings@ee.doe.gov
C32: Features of current version
C33: Five typical program types can be specified
C34: 10 measures per program type can be specified
C35: Up to a 30-year analysis can be conducted
C36: Benefit categories: electricity, natural gas, fuel oil, water
C37: Performs sensitivity analysis on key inputs
C38: Portfolio planning up to a three-year horizon
C39: Reports program and portfolio level cost effectiveness (not measure level)
C40: Avoided costs can be defined on a TOU, summer/winter, or average basis
C41: Preloaded or user-defined load shapes
C43: Limitations of current version
C44: No "double baseline" accounting for early replacement
C45: Some types of benefits were beyond the scope of the tool, e.g., demand reduction in price effects (DRIPE), numerous societal benefits
C46: Simplified bill impact calculation
C49: Color scheme:
C50: yellow: | D50: User Input
C51: blue: | D51: Calculated Input
C52: orange: | D52: Dropdown Menu Input
C53: gray: | D53: Intermediate Calculations
C54: green: | D54: Final Outputs
C55: green text boxes: | D55: Instructions

Sheet Background
A1: Better Buildings Residential Program Energy Efficiency Cost Effectiveness Tool:
A2: Cost-effectiveness analysis is a fundamental step in the design and evaluation of public utility commission-approved energy efficiency programs. In many cases, utilities must show cost effectiveness to obtain approval. However, the estimation of cost effectiveness can be complicated, and there are few publicly available, transparent and user-friendly tools available for conducting this type of analysis. Furthermore, they are not designed around a comprehensive portfolio of residential efficiency programs. This tool reflects an effort to fill this void. The tool, developed in Excel, supports the development and analysis of residential energy efficiency programs using standard cost-effectiveness analysis methods. Policy makers, utilities, energy efficiency program managers, architects and engineers may find the tool useful for designing, assessing and scaling up residential energy efficiency programs. The tool estimates cost effectiveness, using industry standard approaches, of multiple program types, including whole-home retrofits and individual measures. The user can build up a portfolio based on up to 5 different ‘program types’ (or measures implemented) and identify the number of units or homes to be targeted over the portfolio cycle. The tool reports cost-effectiveness metrics of the portfolio, including program budgets, and allows the user to conduct sensitivity analyses against key inputs.

Sheet Glossary
A1: Glossary of key terms
A5: Initial inputs
A6: Cost test types. Each cost test compares the benefits and costs of energy efficiency by ratio or net present value form.
A7: TRC | B7: Total resource cost - system perspective (typically the primary cost test used in most states)
A8: PCT | B8: Participant cost test - participant perspective
A9: PACT | B9: Program administrator (or utility) - program administrator or utility perspective
A10: RIM | B10: Ratepayer impact - non participant perspective
A11: SCT | B11: Societal cost, societal perspective; based on the TRC but includes non-monetized benefits
A13: Inflation rate | B13: Sources for inflation are U.S. Energy Information Administration and the Bureau of Economic Analysis (GDP price deflator)
A14: Utility discount rate | B14: Applies to the PAC, RIM and TRC tests; typically, the utility after-tax weighted cost of capital.
A15: Societal discount rate | B15: Applies to the SCT; usually equivalent to the Utility discount rate or may be lower
A16: Participant discount rate | B16: Applies to the PCT; reflects participants cost of borrowing
A17: Marginal electric rate | B17: The rate that is applied against energy savings to calculate monetary savings to the customer
A19: TOU definition | B19: Defines peak and off peak periods for the electric utility
A20: Avoided cost inputs
A21: Generation energy ($/MWh) | B21: Reflects avoided electricity purchases
A22: Generation capacity ($/kW-yr) | B22: Reflects avoided new generation capacity; should reflect short term and long term views
A23: T&D capacity ($/kW-yr) | B23: Reflects avoided transmission and distribution investments
B24: In some jurisdictons, gen, T&D capacity values may be present in $/MWh units; if so, lump these into the
B25: "Generation energy ($/MWh)" avoided cost values.
A26: Natural gas ($/therm) | B26: Reflects commodity and delivery costs; should be consistent with basis for generation avoided costs
A27: Fuel oil ($/gallon) | B27: Reflects commodity costs; pertinent only for homes with fuel oil heating.
A28: Water ($/1000 gallons) | B28: Relevant only for states that consider avoided water costs as part of the TRC or SCT.
A30: Program Builder
A31: Net-to-gross | B31: Reflects fraction of customers that adopt energy efficiency due to the existence of the program.
B32: Default values are 1, which reflects zero 'free-ridership' (those that would adopt EE independently).
A33: Preloaded electric load shape | B33: Pertains to how annual electricity savings are spread over the year on an hourly basis;
B34: Sum of the 8760 hourly factors equals 1.
A35: Summer/winter capacity savings | B35: Pertains to the maximum capacity savings achieved in summer and winter, respectively. Includes any net to gross multiplier (i.e. Gross kW savings * NTG = Net kW Savings)
A37: Further reading:
A38: National Action Plan for Energy Efficiency (2008). "Understanding cost-effectiveness of energy efficiency programs:
A39: Best practices, technical methods, and emerging issues for policy-makers" Prepared by Energy and Environmental Economics, Inc
A40: and Regulatory Assistance Project.
A42: Potential sources of information:
A43: Utility demand side management, energy efficiency, program filings; energy efficiency potential studies
A44: Utility regulatory commission proceedings
A45: Utility energy efficiency groups

Sheet Initial Inputs
B2: Start Date | C2: 2017-01-01
B5: Financial Assumptions
C6: Input
B7: Inflation Rate | C7: 0.03
B8: Utility Discount Rate (Nominal) | C8: 0.0609
B9: Societal Discount Rate (Nominal) | C9: 0.03
B10: Participant Discount Rate (Nominal) | C10: 0.07
B11: Real Escalation Rate - Electricity | C11: 0.02
B12: Real Escalation Rate - NG | C12: 0.02
B13: Real Escalation Rate - Fuel oil | C13: 0.02
B14: Real Escalation Rate - Water | C14: 0.02
B17: SPM Cost Test Selection
C18: PCT | D18: PACT | E18: RIM | F18: TRC | G18: SCT
B19: Calculate? | C19: TRUE | D19: TRUE | E19: TRUE | F19: TRUE | G19: TRUE
B22: Benefits Selection
C23: Electricity | D23: Natural Gas | E23: Fuel Oil | F23: Water
B24: Utility's calculations | C24: TRUE | D24: TRUE | E24: FALSE | F24: FALSE
B25: Participants perspective | C25: TRUE | D25: TRUE | E25: FALSE | F25: TRUE
B26: Total Resource Calculations | C26: TRUE | D26: TRUE | E26: TRUE | F26: FALSE
B27: Societal Cost Test Calculations | C27: TRUE | D27: TRUE | E27: TRUE | F27: TRUE
B30: Retail Inputs, Electric
B31: Customer Class 1 | C31: Residential
B32: TOU | C32: =IF($B$32='DropDown Lists'!$E$4,"Flat Rate Value",IF('Initial Inputs'!$B$32='DropDown Lists'!$F$4,"Summer Rate","Summer On Peak Rate")) -> Summer On Peak Rate | D32: =IF($B$32='DropDown Lists'!$E$4,"",IF('Initial Inputs'!$B$32='DropDown Lists'!$F$4,"Winter Rate","Summer Off Peak Rate")) -> Summer Off Peak Rate | E32: =IF($B$32='DropDown Lists'!$E$4,"",IF('Initial Inputs'!$B$32='DropDown Lists'!$F$4,"","Winter On Peak Rate")) -> Winter On Peak Rate | F32: =IF($B$32='DropDown Lists'!$E$4,"",IF('Initial Inputs'!$B$32='DropDown Lists'!$F$4,"","Winter Off Peak Rate")) -> Winter Off Peak Rate
B33: Rate ($/kWh) | C33: 0.15 | D33: 0.15 | E33: 0.15 | F33: 0.15
B35: Customer Class 2 | C35: Commercial
B36: TOU | C36: =IF($B$36='DropDown Lists'!$E$4,"Flat Rate Value",IF('Initial Inputs'!$B$36='DropDown Lists'!$F$4,"Summer Rate","Summer On Peak Rate")) -> Summer On Peak Rate | D36: =IF($B$36='DropDown Lists'!$E$4,"",IF('Initial Inputs'!$B$36='DropDown Lists'!$F$4,"Winter Rate","Summer On Peak Rate")) -> Summer On Peak Rate | E36: =IF($B$36='DropDown Lists'!$E$4,"",IF('Initial Inputs'!$B$36='DropDown Lists'!$F$4,"","Winter On Peak Rate")) -> Winter On Peak Rate | F36: =IF($B$36='DropDown Lists'!$E$4,"",IF('Initial Inputs'!$B$36='DropDown Lists'!$F$4,"","Winter Off Peak Rate")) -> Winter Off Peak Rate
B37: Rate ($/kWh) | C37: 0.15 | D37: 0.15 | E37: 0.15 | F37: 0.15
B39: Customer Class 3 | C39: Customer type 3
B40: Annual | C40: =IF($B$40='DropDown Lists'!$E$4,"Flat Rate Value",IF('Initial Inputs'!$B$40='DropDown Lists'!$F$4,"Summer Rate","Summer On Peak Rate")) -> Flat Rate Value | D40: =IF($B$40='DropDown Lists'!$E$4,"",IF('Initial Inputs'!$B$40='DropDown Lists'!$F$4,"Winter Rate","Summer On Peak Rate")) ->  | E40: =IF($B$40='DropDown Lists'!$E$4,"",IF('Initial Inputs'!$B$40='DropDown Lists'!$F$4,"","Winter On Peak Rate")) ->  | F40: =IF($B$40='DropDown Lists'!$E$4,"",IF('Initial Inputs'!$B$40='DropDown Lists'!$F$4,"","Winter Off Peak Rate")) -> 
B41: Rate ($/kWh) | C41: 0.15 | D41: 0.08 | E41: 0.08 | F41: 0.08
B43: Customer Class 4 | C43: Customer type 4
B44: Annual | C44: =IF($B$44='DropDown Lists'!$E$4,"Flat Rate Value",IF('Initial Inputs'!$B$44='DropDown Lists'!$F$4,"Summer Rate","Summer On Peak Rate")) -> Flat Rate Value | D44: =IF($B$44='DropDown Lists'!$E$4,"",IF('Initial Inputs'!$B$44='DropDown Lists'!$F$4,"Winter Rate","Summer On Peak Rate")) ->  | E44: =IF($B$44='DropDown Lists'!$E$4,"",IF('Initial Inputs'!$B$44='DropDown Lists'!$F$4,"","Winter On Peak Rate")) ->  | F44: =IF($B$44='DropDown Lists'!$E$4,"",IF('Initial Inputs'!$B$44='DropDown Lists'!$F$4,"","Winter Off Peak Rate")) -> 
B45: Rate ($/kWh) | C45: 0.15 | D45: 0.08 | E45: 0.08 | F45: 0.08
B47: Customer Class 5 | C47: Customer type 5
B48: Summer/Winter | C48: =IF($B$48='DropDown Lists'!$E$4,"Flat Rate Value",IF('Initial Inputs'!$B$48='DropDown Lists'!$F$4,"Summer Rate","Summer On Peak Rate")) -> Summer Rate | D48: =IF($B$48='DropDown Lists'!$E$4,"",IF('Initial Inputs'!$B$48='DropDown Lists'!$F$4,"Winter Rate","Summer On Peak Rate")) -> Winter Rate | E48: =IF($B$48='DropDown Lists'!$E$4,"",IF('Initial Inputs'!$B$48='DropDown Lists'!$F$4,"","Winter On Peak Rate")) ->  | F48: =IF($B$48='DropDown Lists'!$E$4,"",IF('Initial Inputs'!$B$48='DropDown Lists'!$F$4,"","Winter Off Peak Rate")) -> 
B49: Rate ($/kWh) | C49: 0.15 | D49: 0.08 | E49: 0.08 | F49: 0.08
B51: Retail Rate Projections, Non Electric
B52: Index | C52: Customer Type | D52: Marginal Natural Gas Rate ($Therms) | E52: Marginal Fuel Oil Rate ($/gallon) | F52: Marginal Water Rate ($/thousand gallons)
B53: 1 | C53: Residential | D53: 0.8 | E53: 2.8 | F53: 2.2
B54: 2 | C54: Commercial | D54: 0.9 | E54: 2.81 | F54: 2.21
B55: 3 | C55: Customer Type 3 | D55: 1 | E55: 2.82 | F55: 2.22
B56: 4 | C56: Customer Type 4 | D56: 1.1 | E56: 2.83 | F56: 2.23
B57: 5 | C57: Customer Type 5 | D57: 1.2 | E57: 2.84 | F57: 2.24
B60: Seasonal Definition
E61: TOU Hourly Definition | F61: Winter | H61: Summer
E62: Hour | F62: Weekday | G62: Weekend | H62: Weekday | I62: Weekend
B63: Month Number | C63: Month | D63: Season | E63: 1 | F63: Winter Off-Peak | G63: Winter Off-Peak | H63: Summer Off-Peak | I63: Summer Off-Peak
B64: 1 | C64: January | D64: Winter | E64: =E63+1 -> 2 | F64: Winter Off-Peak | G64: Winter Off-Peak | H64: Summer Off-Peak | I64: Summer Off-Peak
B65: 2 | C65: February | D65: Winter | E65: =E64+1 -> 3 | F65: Winter Off-Peak | G65: Winter Off-Peak | H65: Summer Off-Peak | I65: Summer Off-Peak
B66: 3 | C66: March | D66: Winter | E66: 4 | F66: Winter Off-Peak | G66: Winter Off-Peak | H66: Summer Off-Peak | I66: Summer Off-Peak
B67: 4 | C67: April | D67: Winter | E67: 5 | F67: Winter Off-Peak | G67: Winter Off-Peak | H67: Summer Off-Peak | I67: Summer Off-Peak
B68: 5 | C68: May | D68: Summer | E68: 6 | F68: Winter Off-Peak | G68: Winter Off-Peak | H68: Summer Off-Peak | I68: Summer Off-Peak
B69: 6 | C69: June | D69: Summer | E69: 7 | F69: Winter On-Peak | G69: Winter Off-Peak | H69: Summer On-Peak | I69: Summer Off-Peak
B70: 7 | C70: July | D70: Summer | E70: 8 | F70: Winter On-Peak | G70: Winter Off-Peak | H70: Summer On-Peak | I70: Summer Off-Peak
B71: 8 | C71: August | D71: Summer | E71: 9 | F71: Winter On-Peak | G71: Winter Off-Peak | H71: Summer On-Peak | I71: Summer Off-Peak
B72: 9 | C72: September | D72: Summer | E72: 10 | F72: Winter On-Peak | G72: Winter Off-Peak | H72: Summer On-Peak | I72: Summer Off-Peak
B73: 10 | C73: October | D73: Winter | E73: 11 | F73: Winter On-Peak | G73: Winter Off-Peak | H73: Summer On-Peak | I73: Summer Off-Peak
B74: 11 | C74: November | D74: Winter | E74: 12 | F74: Winter On-Peak | G74: Winter Off-Peak | H74: Summer On-Peak | I74: Summer Off-Peak
B75: 12 | C75: December | D75: Winter | E75: 13 | F75: Winter On-Peak | G75: Winter Off-Peak | H75: Summer On-Peak | I75: Summer Off-Peak
E76: =E75+1 -> 14 | F76: Winter On-Peak | G76: Winter Off-Peak | H76: Summer On-Peak | I76: Summer Off-Peak
E77: 15 | F77: Winter On-Peak | G77: Winter Off-Peak | H77: Summer On-Peak | I77: Summer Off-Peak
E78: 16 | F78: Winter On-Peak | G78: Winter Off-Peak | H78: Summer On-Peak | I78: Summer Off-Peak
E79: 17 | F79: Winter On-Peak | G79: Winter Off-Peak | H79: Summer On-Peak | I79: Summer Off-Peak
E80: 18 | F80: Winter On-Peak | G80: Winter Off-Peak | H80: Summer On-Peak | I80: Summer Off-Peak
E81: 19 | F81: Winter On-Peak | G81: Winter Off-Peak | H81: Summer On-Peak | I81: Summer Off-Peak
E82: 20 | F82: Winter On-Peak | G82: Winter Off-Peak | H82: Summer On-Peak | I82: Summer Off-Peak
E83: 21 | F83: Winter On-Peak | G83: Winter Off-Peak | H83: Summer On-Peak | I83: Summer Off-Peak
E84: 22 | F84: Winter On-Peak | G84: Winter Off-Peak | H84: Summer On-Peak | I84: Summer Off-Peak
E85: 23 | F85: Winter Off-Peak | G85: Winter Off-Peak | H85: Summer Off-Peak | I85: Summer Off-Peak
E86: 24 | F86: Winter Off-Peak | G86: Winter Off-Peak | H86: Summer Off-Peak | I86: Summer Off-Peak
C89: Wholesale Inputs
C90: Annual Input | D90: All Inputs are in Nominal Dollars
D91: Monetized Electricity Benefits
C92: Avoided Cost Time Period Definition | D92: Generation Energy Avoided Cost | E92: Generation Energy Avoided Cost | F92: Generation Energy Avoided Cost | G92: Generation Energy Avoided Cost | H92: Additional Monetized Avoided Costs | I92: Generation Capacity Avoided Cost | J92: T&D Capacity Avoided Cost | K92: Natural Gas Avoided Cost | L92: Fuel Oil Avoided Cost | M92: Water Avoided Cost | N92: Electricity-Societal Cost | O92: Natural Gas-Societal Cost | P92: Fuel Oil-Societal Cost | Q92: Water-Societal Cost
C93: TOU | D93: =IF(C93='DropDown Lists'!E5,"Generation Avoided Cost, Annual, $/MWh",IF('Initial Inputs'!C93='DropDown Lists'!F4,"Generation Avoided Cost, Summer, $/MWh","Generation Avoided Cost, Summer On Peak, $/MWh")) -> Generation Avoided Cost, Summer On Peak, $/MWh | E93: =IF(C93='DropDown Lists'!E5,"Generation Avoided Cost, Annual, $/MWh",IF('Initial Inputs'!C93='DropDown Lists'!F4,"Generation Avoided Cost, Winter, $/MWh","Generation Avoided Cost, Summer Off Peak, $/MWh")) -> Generation Avoided Cost, Summer Off Peak, $/MWh | F93: =IF(C93='DropDown Lists'!E5,"Generation Avoided Cost, Annual, $/MWh",IF('Initial Inputs'!C93='DropDown Lists'!F4,"N/A","Generation Avoided Cost, Winter On Peak, $/MWh")) -> Generation Avoided Cost, Winter On Peak, $/MWh | G93: =IF(C93='DropDown Lists'!E5,"Generation Avoided Cost, Annual, $/MWh",IF('Initial Inputs'!C93='DropDown Lists'!F4,"N/A","Generation Avoided Cost, Winter Off Peak, $/MWh")) -> Generation Avoided Cost, Winter Off Peak, $/MWh | H93: Additional Avoided Cost ($/MWh) | I93: Annual Capacity Value ($/kW-year) | J93: Annual T&D Value ($/kW-year) | K93: Annual $/Therms | L93: Annual $/Gallon | M93: Annual $/Thousand Gallons | N93: Annual $/MWh | O93: Annual $/Therms | P93: Annual $/Gallon | Q93: Annual $/Thousand Gallons
C94: Present | D94: 90 | E94: 75 | F94: 83 | G94: 70 | H94: 10 | I94: 30 | J94: 1 | K94: 0.8631009383 | L94: 1.2 | M94: 0.8 | N94: 0.5 | O94: 0.8 | P94: 1 | Q94: 1
C95: Average Annual Escalation, Real | D95: 0 | H95: 0 | I95: 0 | J95: 0 | K95: 0 | L95: 0 | M95: 0 | N95: 0 | O95: 0 | P95: 0 | Q95: 0

Sheet Program Builder
B1: Name each program type, costs, incentives, NTG
B3: Summary of Programs
B4: Program Type | C4: Customer Type | D4: Additional Program level Incentive | E4: Estimated Total Cost | F4: Fed Tax, Other Incentives | G4: Other Utility Incentive | H4: Total Incentive
B5: Residential Lighting (POS) | C5: Residential | D5: 0 | E5: =M30 -> 90.27950046 | F5: =O30 -> 0 | G5: =P30 -> 29.57748545 | H5: =SUM(Report!N43,F5:G5) -> 29.57748545
B6: Residential Appliance Rebates/(POS) Discounts | C6: Residential | D6: 0 | E6: =M45 -> 1366.04 | F6: =O45 -> 0 | G6: =P45 -> 413.5 | H6: =SUM(Report!N44,F6:G6) -> 413.5
B7: Whole-Home Retrofit | C7: Residential | D7: 0 | E7: =M60 -> 7482.879913 | F7: =O60 -> 0 | G7: =P60 -> 1200 | H7: =SUM(Report!N45,F7:G7) -> 1200
B8: Residential HVAC/Water Heating Rebates | C8: Residential | D8: 0 | E8: =M75 -> 9508.703013 | F8: =O75 -> 0 | G8: =P75 -> 2545.547945 | H8: =SUM(Report!N46,F8:G8) -> 2545.547945
B9: New Home Construction | C9: Residential | D9: 0 | E9: =M90 -> 2456.423047 | F9: =O90 -> 0 | G9: =P90 -> 384.6096725 | H9: =SUM(Report!N47,F9:G9) -> 384.6096725
B16: Below, define the characteristics of each type of program, including savings, lifetime, costs.
A17: 1 | B17: =B5 -> Residential Lighting (POS)
D18: Measure Life | E18: Annual Gross Savings Estimate/unit | F18: Net to Gross | G18: Annual Net Savings Estimate/unit | H18: Annual Gross Savings Estimate/unit | I18: Net to Gross | J18: Annual Net Savings Estimate | K18: Annual Savings Estimate | L18: Annual Savings Estimate | M18: Incremental Measure Cost | N18: O&M Costs | O18: Federal Tax or Other Incentives | P18: Utility Incentives | R18: Net Capacity Savings in Peak Season (overrides shape selection for capacity calculation)
B19: Name | C19: Number of Units | D19: Years | E19: Electric; kWh | G19: Electric; kWh | H19: NG; Therms | J19: NG; Therms | K19: Oil; Gallons | L19: Water; Thousand Gallons | M19: $/Unit | N19: $/Unit-Year | O19: $/Unit | P19: $/Unit | Q19: Pre-Loaded Electric Shape Selection | R19: kW | X19: Load Shape Check
B20: CFL 15 WATT INT BARE SPIRAL 1PK | C20: 1 | D20: 3.29 | E20: 124.22352 | F20: 0.54 | G20: =E20*F20 -> 67.0807008 | H20: -0.7149679487 | I20: 0.54 | J20: =H20*I20 -> -0.3860826923 | M20: 5.03 | P20: 1.333333333 | Q20: Res:Indoor_CFL_Ltg | R20: 0.02509528205 | X20: =IF(AND(NOT(ISBLANK(B20)),OR(Q20='DropDown Lists'!$C$4,ISBLANK(Q20))),1,0) -> 0
B21: CFL 20 WATT INT COVERED MULTI-PK | C21: 1 | D21: 9.24 | E21: 27.259908 | F21: 0.54 | G21: =E21*F21 -> 14.72035032 | H21: -0.6681000296 | I21: 0.54 | J21: =H21*I21 -> -0.360774016 | M21: 5.41 | P21: 1.75 | Q21: Res:Indoor_CFL_Ltg | R21: 0.002897460003 | X21: =IF(AND(NOT(ISBLANK(B21)),OR(Q21='DropDown Lists'!$C$4,ISBLANK(Q21))),1,0) -> 0
B22: CFL 14 WATT INT COVERED MULTI-PK | C22: 1 | D22: 3.29 | E22: 115.941952 | F22: 0.54 | G22: 62.60865408 | H22: -0.6672072513 | I22: 0.54 | J22: -0.3602919157 | M22: 5.56 | P22: 1.781887963 | Q22: Res:Indoor_CFL_Ltg | R22: 0.02342225849 | X22: =IF(AND(NOT(ISBLANK(B22)),OR(Q22='DropDown Lists'!$C$4,ISBLANK(Q22))),1,0) -> 0
B23: CFL 18 WATT INT REFLECTOR AND/OR DIMMABLE MULTI-PK | C23: 1 | D23: 9.24 | E23: 30.6922284 | F23: 0.54 | G23: 16.57380334 | H23: -0.7522991519 | I23: 0.54 | J23: -0.4062415421 | M23: 0.22 | P23: 1.712264151 | Q23: Res:Indoor_CFL_Ltg | R23: 0.003262280046 | X23: =IF(AND(NOT(ISBLANK(B23)),OR(Q23='DropDown Lists'!$C$4,ISBLANK(Q23))),1,0) -> 0
B24: LED R-BR - 11 TO <14 WATTS | C24: 1 | D24: 8.22 | E24: 120.51776 | F24: 0.85 | G24: 102.440096 | H24: -0.6935106383 | I24: 0.85 | J24: -0.5894840426 | M24: 19.01950046 | P24: 5 | Q24: Res:Indoor_CFL_Ltg | R24: 0.0243466494 | X24: =IF(AND(NOT(ISBLANK(B24)),OR(Q24='DropDown Lists'!$C$4,ISBLANK(Q24))),1,0) -> 0
B25: LED A-Lamp 9 to < 10 watts | C25: 1 | D25: 16 | E25: 9.7341048 | F25: 0.85 | G25: 8.27398908 | H25: -0.2385999765 | I25: 0.85 | J25: -0.20280998 | M25: 22.04 | P25: 10 | Q25: Res:Indoor_CFL_Ltg | R25: 0.001034640002 | X25: =IF(AND(NOT(ISBLANK(B25)),OR(Q25='DropDown Lists'!$C$4,ISBLANK(Q25))),1,0) -> 0
B26: CFL 23 WATT INT 3-WAY, SINGLE | C26: 1 | D26: 9.24 | E26: 19.81250113 | F26: 0.7 | G26: 13.86875079 | H26: -0.4856001773 | I26: 0.7 | J26: -0.3399201241 | M26: 9.79 | P26: 3 | Q26: Res:Indoor_CFL_Ltg | R26: 0.002665660018 | X26: =IF(AND(NOT(ISBLANK(B26)),OR(Q26='DropDown Lists'!$C$4,ISBLANK(Q26))),1,0) -> 0
B27: LED A-Lamp 10 to < 11 watts | C27: 1 | D27: 6.58 | E27: 63.15904 | F27: 0.85 | G27: 53.685184 | H27: -0.3635106383 | I27: 0.85 | J27: -0.3089840426 | M27: 23.21 | P27: 5 | Q27: Res:Indoor_CFL_Ltg | R27: 0.01275921158 | X27: =IF(AND(NOT(ISBLANK(B27)),OR(Q27='DropDown Lists'!$C$4,ISBLANK(Q27))),1,0) -> 0
Q28: None | X28: =IF(AND(NOT(ISBLANK(B28)),OR(Q28='DropDown Lists'!$C$4,ISBLANK(Q28))),1,0) -> 0
Q29: None | X29: =IF(AND(NOT(ISBLANK(B29)),OR(Q29='DropDown Lists'!$C$4,ISBLANK(Q29))),1,0) -> 0
B30: Total | E30: =SUMPRODUCT(E20:E29,$C20:$C29) -> 511.3410143 | G30: =SUMPRODUCT(G20:G29,$C20:$C29) -> 339.2515284 | H30: =SUMPRODUCT(H20:H29,$C20:$C29) -> -4.583795812 | J30: -2.954588355 | K30: 0 | L30: 0 | M30: 90.27950046 | N30: 0 | O30: =SUMPRODUCT(O20:O29,$C20:$C29) -> 0 | P30: 29.57748545
A32: 2 | B32: =B6 -> Residential Appliance Rebates/(POS) Discounts
D33: Measure Life | E33: Annual Gross Savings Estimate | F33: Net to Gross | G33: Annual Net Savings Estimate | H33: Annual Gross Savings Estimate | I33: Net to Gross | J33: Annual Net Savings Estimate | K33: Annual Savings Estimate | L33: Annual Savings Estimate | M33: Incremental Measure Cost | N33: O&M Costs | O33: Federal Tax or Other Incentives | P33: Utility Incentives | R33: Net Capacity Savings in Peak Season (overrides shape selection for capacity calculation)
B34: Name | C34: Number of Units | D34: Years | E34: Electric; kWh | G34: Electric; kWh | H34: NG; Therms | J34: NG; Therms | K34: Oil; Gallons | L34: Water; Thousand Gallons | M34: $/Unit | N34: $/Unit-Year | O34: $/Unit | P34: $/Unit | Q34: Pre-Loaded Electric Shape Selection | R34: kW
B35: ENERGY EFFICIENT TELEVISIONS ENERGY STAR V5.1+20% - 36"- 39" | C35: 1 | D35: 7 | E35: 67.791971 | F35: 0.1 | G35: =E35*F35 -> 6.7791971 | H35: -1.6615 | I35: 0.1 | J35: =H35*I35 -> -0.16615 | M35: 30 | P35: 9.5 | Q35: None | R35: 0.001456 | X35: =IF(AND(NOT(ISBLANK(B35)),OR(Q35='DropDown Lists'!$C$4,ISBLANK(Q35))),1,0) -> 1
B36: REFRIGERATOR: BOTTOM FREEZER WITHOUT ICE >= 16.5 CU. FT. | C36: 1 | D36: 14 | E36: 72.5 | F36: 0.7 | G36: =E36*F36 -> 50.75 | H36: -2 | I36: 0.7 | J36: =H36*I36 -> -1.4 | M36: 145.29 | P36: 75 | Q36: Res:RefgFrzr_Recyc-Conditioned | R36: 0.015 | X36: =IF(AND(NOT(ISBLANK(B36)),OR(Q36='DropDown Lists'!$C$4,ISBLANK(Q36))),1,0) -> 0
B37: EFFICIENT VARIABLE SPEED POOL PUMP AND MOTOR - CUSTOMER | C37: 1 | D37: 10 | E37: 1169 | F37: 0.55 | G37: 642.95 | I37: 0.55 | J37: 0 | M37: 600 | P37: 100 | Q37: Res:RefgFrzr_HighEff | R37: 0.166 | X37: =IF(AND(NOT(ISBLANK(B37)),OR(Q37='DropDown Lists'!$C$4,ISBLANK(Q37))),1,0) -> 0
B38: REFRIGERATOR: SIDE FREEZER WITH ICE >= 23 CU. FT. | C38: 1 | D38: 14 | E38: 178.6 | F38: 0.7 | G38: 125.02 | H38: -5.38 | I38: 0.7 | J38: -3.766 | M38: 101.87 | P38: 75 | Q38: Res:RefgFrzr_Recyc-Conditioned | R38: 0.0388 | X38: =IF(AND(NOT(ISBLANK(B38)),OR(Q38='DropDown Lists'!$C$4,ISBLANK(Q38))),1,0) -> 0
B39: HI EFF CLOTHES WASHER - LEVEL 3 - MEF >= 2.4 WF <= 4.0 | C39: 1 | D39: 11 | E39: 144.401 | F39: 0.7 | G39: 101.0807 | H39: 9.618 | I39: 0.7 | J39: 6.7326 | M39: 283.59 | P39: 50 | Q39: Residential_Clothes_Washer/Dryer | R39: 0.0822 | X39: =IF(AND(NOT(ISBLANK(B39)),OR(Q39='DropDown Lists'!$C$4,ISBLANK(Q39))),1,0) -> 0
B40: ENERGY EFFICIENT TELEVISIONS ENERGY STAR +35%- >50" | C40: 1 | D40: 7 | E40: 137.1495534 | F40: 0.1 | G40: 13.71495534 | H40: -3.3615 | I40: 0.1 | J40: -0.33615 | M40: 60 | P40: 29 | Q40: Res:Indoor_CFL_Ltg | R40: 0.0029457 | X40: =IF(AND(NOT(ISBLANK(B40)),OR(Q40='DropDown Lists'!$C$4,ISBLANK(Q40))),1,0) -> 0
B41: REFRIGERATOR: BOTTOM FREEZER WITH ICE >= 16.5 CU. FT. | C41: 1 | D41: 14 | E41: 132.8 | F41: 0.7 | G41: 92.96 | H41: -4.92 | I41: 0.7 | J41: -3.444 | M41: 145.29 | P41: 75 | Q41: Res:RefgFrzr_Recyc-Conditioned | R41: 0.0316 | X41: =IF(AND(NOT(ISBLANK(B41)),OR(Q41='DropDown Lists'!$C$4,ISBLANK(Q41))),1,0) -> 0
G42: 0 | J42: 0 | Q42: None | X42: =IF(AND(NOT(ISBLANK(B42)),OR(Q42='DropDown Lists'!$C$4,ISBLANK(Q42))),1,0) -> 0
G43: 0 | J43: 0 | Q43: None | X43: =IF(AND(NOT(ISBLANK(B43)),OR(Q43='DropDown Lists'!$C$4,ISBLANK(Q43))),1,0) -> 0
G44: 0 | J44: 0 | Q44: None | X44: =IF(AND(NOT(ISBLANK(B44)),OR(Q44='DropDown Lists'!$C$4,ISBLANK(Q44))),1,0) -> 0
B45: Total | E45: =SUMPRODUCT(E35:E44,$C35:$C44) -> 1902.242524 | G45: =SUMPRODUCT(G35:G44,$C35:$C44) -> 1033.254852 | H45: =SUMPRODUCT(H35:H44,$C35:$C44) -> -7.705 | J45: =SUMPRODUCT(J35:J44,$C35:$C44) -> -2.3797 | K45: 0 | L45: 0 | M45: 1366.04 | N45: 0 | O45: =SUMPRODUCT(O35:O44,$C35:$C44) -> 0 | P45: =SUMPRODUCT(P35:P44,$C35:$C44) -> 413.5
A47: 3 | B47: =B7 -> Whole-Home Retrofit
D48: Measure Life | E48: Annual Gross Savings Estimate | F48: Net to Gross | G48: Annual Net Savings Estimate | H48: Annual Gross Savings Estimate | I48: Net to Gross | J48: Annual Net Savings Estimate | K48: Annual Savings Estimate | L48: Annual Savings Estimate | M48: Incremental Measure Cost | N48: O&M Costs | O48: Federal Tax or Other Incentives | P48: Utility Incentives | R48: Net Capacity Savings in Peak Season (overrides shape selection for capacity calculation)
B49: Name | C49: Number of Units | D49: Years | E49: Electric; kWh | G49: Electric; kWh | H49: NG; Therms | J49: NG; Therms | K49: Oil; Gallons | L49: Water; Thousand Gallons | M49: $/Unit | N49: $/Unit-Year | O49: $/Unit | P49: $/Unit | Q49: Pre-Loaded Electric Shape Selection | R49: (kW)
B50: Wall Insulation | C50: 1 | D50: 19 | E50: 105.4 | F50: 1 | G50: =E50*F50 -> 105.4 | H50: 214.2 | I50: 1 | J50: =H50*I50 -> 214.2 | M50: 2500 | P50: 300 | Q50: Res:HVAC_Eff_AC | R50: 0.001852603407 | X50: =IF(AND(NOT(ISBLANK(B50)),OR(Q50='DropDown Lists'!$C$4,ISBLANK(Q50))),1,0) -> 0
B51: HVAC Duct Sealing | C51: 1 | D51: 20 | E51: 95.3 | F51: 1 | G51: =E51*F51 -> 95.3 | H51: 56.9 | I51: 1 | J51: 56.9 | M51: 642.7736127 | P51: 400 | Q51: Res:HVAC_Duct_Sealing | R51: 0.13 | X51: =IF(AND(NOT(ISBLANK(B51)),OR(Q51='DropDown Lists'!$C$4,ISBLANK(Q51))),1,0) -> 0
B52: Attic Insulation | C52: 1 | D52: 20 | E52: 123.25 | F52: 1 | G52: =E52*F52 -> 123.25 | H52: 49.13 | I52: 1 | J52: 49.13 | M52: 3500 | P52: 300 | Q52: Res:HVAC_Eff_AC | X52: =IF(AND(NOT(ISBLANK(B52)),OR(Q52='DropDown Lists'!$C$4,ISBLANK(Q52))),1,0) -> 0
B53: AFUE >= 94% < 96% GAS FURNACE WITH BUILT-IN VSM | C53: 1 | D53: 15 | E53: 285.2 | F53: 0.6 | G53: =E53*F53 -> 171.12 | H53: 40.7277 | I53: 1 | J53: 40.7277 | M53: 840.1063 | P53: 200 | Q53: Res:HVAC_Eff_AC | R53: 0.06 | X53: =IF(AND(NOT(ISBLANK(B53)),OR(Q53='DropDown Lists'!$C$4,ISBLANK(Q53))),1,0) -> 0
Q54: None | X54: =IF(AND(NOT(ISBLANK(B54)),OR(Q54='DropDown Lists'!$C$4,ISBLANK(Q54))),1,0) -> 0
Q55: None | X55: =IF(AND(NOT(ISBLANK(B55)),OR(Q55='DropDown Lists'!$C$4,ISBLANK(Q55))),1,0) -> 0
Q56: None | X56: =IF(AND(NOT(ISBLANK(B56)),OR(Q56='DropDown Lists'!$C$4,ISBLANK(Q56))),1,0) -> 0
Q57: None | X57: =IF(AND(NOT(ISBLANK(B57)),OR(Q57='DropDown Lists'!$C$4,ISBLANK(Q57))),1,0) -> 0
Q58: None | X58: =IF(AND(NOT(ISBLANK(B58)),OR(Q58='DropDown Lists'!$C$4,ISBLANK(Q58))),1,0) -> 0
Q59: None | X59: =IF(AND(NOT(ISBLANK(B59)),OR(Q59='DropDown Lists'!$C$4,ISBLANK(Q59))),1,0) -> 0
B60: Total | E60: =SUMPRODUCT(E50:E59,$C50:$C59) -> 609.15 | G60: =SUMPRODUCT(G50:G59,$C50:$C59) -> 495.07 | H60: 360.9577 | J60: =SUMPRODUCT(J50:J59,$C50:$C59) -> 360.9577 | K60: 0 | L60: 0 | M60: 7482.879913 | N60: 0 | O60: 0 | P60: 1200
A62: 4 | B62: =B8 -> Residential HVAC/Water Heating Rebates
D63: Measure Life | E63: Annual Gross Savings Estimate | F63: Net to Gross | G63: Annual Net Savings Estimate | H63: Annual Gross Savings Estimate | I63: Net to Gross | J63: Annual Net Savings Estimate | K63: Annual Savings Estimate | L63: Annual Savings Estimate | M63: Incremental Measure Cost | N63: O&M Costs | O63: Federal Tax or Other Incentives | P63: Utility Incentives | R63: Net Capacity Savings in Peak Season (overrides shape selection for capacity calculation)
B64: Name | C64: Number of Units | D64: Years | E64: Electric; kWh | G64: Electric; kWh | H64: NG; Therms | J64: NG; Therms | K64: Oil; Gallons | L64: Water; Thousand Gallons | M64: $/Unit | N64: $/Unit-Year | O64: $/Unit | P64: $/Unit | Q64: Pre-Loaded Electric Shape Selection | R64: kW
B65: Water Heating Tankless Water Heater (Gas) | C65: 1 | D65: 20 | F65: 1 | G65: =E65*F65 -> 0 | H65: 0.936 | I65: 1 | J65: =H65*I65 -> 0.936 | M65: 836 | Q65: Residential_Water_Heating | X65: =IF(AND(NOT(ISBLANK(B65)),OR(Q65='DropDown Lists'!$C$4,ISBLANK(Q65))),1,0) -> 0
B66: RESIDENTIAL HEAT PUMP STORAGE WATER HEATER EF > 2.0 | C66: 1 | D66: 10 | E66: 2320.638314 | F66: 0.7 | G66: =E66*F66 -> 1624.446819 | I66: 1 | J66: =H66*I66 -> 0 | M66: 1263.8653 | P66: 500 | Q66: Residential_Water_Heating | R66: 0.51054042 | X66: =IF(AND(NOT(ISBLANK(B66)),OR(Q66='DropDown Lists'!$C$4,ISBLANK(Q66))),1,0) -> 0
B67: AFUE >= 94% < 96% GAS FURNACE WITH BUILT-IN VSM | C67: 1 | D67: 15 | E67: 285.2 | F67: 0.6 | G67: 171.12 | H67: 40.7277 | I67: 1 | J67: 40.7277 | M67: 840.1063 | P67: 200 | Q67: Residential_Water_Heating | R67: 0.06 | X67: =IF(AND(NOT(ISBLANK(B67)),OR(Q67='DropDown Lists'!$C$4,ISBLANK(Q67))),1,0) -> 0
B68: ENERGY STAR ROOM A/C- | C68: 1 | D68: 9 | F68: 0.7 | G68: 0 | I68: 1 | J68: 0 | M68: 39.1486 | P68: 50 | Q68: Res:HVAC_Eff_AC | X68: =IF(AND(NOT(ISBLANK(B68)),OR(Q68='DropDown Lists'!$C$4,ISBLANK(Q68))),1,0) -> 0
B69: dxAC-Res-Split-SEER-17.0 | C69: 1 | D69: 15 | E69: 280 | F69: 1 | G69: 280 | H69: 0.0876 | I69: 1 | J69: 0.0876 | M69: 791.36 | Q69: Res:HVAC_Eff_AC | R69: 0.247 | X69: =IF(AND(NOT(ISBLANK(B69)),OR(Q69='DropDown Lists'!$C$4,ISBLANK(Q69))),1,0) -> 0
B70: HVAC Duct Sealing | C70: 1 | D70: 20 | E70: 95.3 | F70: 1 | G70: 95.3 | H70: 0 | I70: 1 | J70: 0 | M70: 642.7736127 | P70: 400 | Q70: Res:HVAC_Duct_Sealing | R70: 0 | X70: =IF(AND(NOT(ISBLANK(B70)),OR(Q70='DropDown Lists'!$C$4,ISBLANK(Q70))),1,0) -> 0
B71: Ductless Heat Pump | C71: 1 | D71: 20 | E71: 4582 | F71: 1 | G71: 4582 | I71: 1 | J71: 0 | M71: 4713.81 | P71: 1200 | Q71: Res_Heat_Pump | R71: 3.46 | X71: =IF(AND(NOT(ISBLANK(B71)),OR(Q71='DropDown Lists'!$C$4,ISBLANK(Q71))),1,0) -> 0
B72: AIR FLOW CORRECTION | C72: 1 | D72: 9.13 | E72: 110.5953088 | F72: 0.85 | G72: 94.00601246 | H72: 2.98890411 | I72: 1 | J72: 2.98890411 | M72: 200.2132 | P72: 120.5479452 | Q72: Res:HVAC_Refrig_Charge | R72: 0.05985101041 | X72: =IF(AND(NOT(ISBLANK(B72)),OR(Q72='DropDown Lists'!$C$4,ISBLANK(Q72))),1,0) -> 0
B73: BLOWER MOTOR RETROFIT | C73: 1 | D73: 9.13 | E73: 180.9159836 | F73: 0.85 | G73: 153.7785861 | H73: -1.713 | I73: 1 | J73: -1.713 | M73: 82.426 | P73: 75 | Q73: Res:HVAC_Eff_AC | R73: 0.14877879 | X73: =IF(AND(NOT(ISBLANK(B73)),OR(Q73='DropDown Lists'!$C$4,ISBLANK(Q73))),1,0) -> 0
B74: ENHANCED TIME DELAY RELAY | C74: 1 | D74: 10 | E74: 135.1021635 | F74: 0.7 | G74: 94.57151447 | H74: 0.3054995935 | I74: 1 | J74: 0.3054995935 | M74: 99 | O74: 0 | P74: 0 | Q74: Res:HVAC_Eff_AC | R74: 0.318569785 | X74: =IF(AND(NOT(ISBLANK(B74)),OR(Q74='DropDown Lists'!$C$4,ISBLANK(Q74))),1,0) -> 0
B75: Total | E75: =SUMPRODUCT(E65:E74,$C65:$C74) -> 7989.751769 | G75: =SUMPRODUCT(G65:G74,$C65:$C74) -> 7095.222933 | H75: 43.3327037 | J75: =SUMPRODUCT(J65:J74,$C65:$C74) -> 43.3327037 | K75: 0 | L75: 0 | M75: 9508.703013 | N75: 0 | O75: 0 | P75: =SUMPRODUCT(P65:P74,$C65:$C74) -> 2545.547945
A77: 5 | B77: =B9 -> New Home Construction
D78: Measure Life | E78: Annual Gross Savings Estimate | F78: Net to Gross | G78: Annual Net Savings Estimate | H78: Annual Gross Savings Estimate | I78: Net to Gross | J78: Annual Net Savings Estimate | K78: Annual Savings Estimate | L78: Annual Savings Estimate | M78: Incremental Measure Cost | N78: O&M Costs | O78: Federal Tax or Other Incentives | P78: Utility Incentives | R78: Net Capacity Savings in Peak Season (overrides shape selection for capacity calculation)
B79: Name | C79: Number of Units | D79: Years | E79: Electric; kWh | G79: Electric; kWh | H79: NG; Therms | J79: NG; Therms | K79: Oil; Gallons | L79: Water; Thousand Gallons | M79: $/Unit | N79: $/Unit-Year | O79: $/Unit | P79: $/Unit | Q79: Pre-Loaded Electric Shape Selection | R79: kW
B80: HI EFF CLOTHES WASHER - LEVEL 3 - MEF >= 2.4 WF <= 4.0 | C80: 1 | D80: 11 | E80: 144.401 | F80: 0.7 | G80: =E80*F80 -> 101.0807 | H80: 9.618 | I80: 0.7 | J80: =H80*I80 -> 6.7326 | M80: 283.59 | P80: 50 | Q80: Residential_Clothes_Washer/Dryer | R80: 0.0822 | X80: =IF(AND(NOT(ISBLANK(B80)),OR(Q80='DropDown Lists'!$C$4,ISBLANK(Q80))),1,0) -> 0
B81: Appliance Dishwasher | C81: 1 | D81: 11 | E81: 55 | F81: 0.7 | G81: =E81*F81 -> 38.5 | H81: 3.85 | I81: 0.7 | J81: =H81*I81 -> 2.695 | M81: 350 | P81: 75 | Q81: Residential_Clothes_Washer/Dryer | R81: -0.000325 | X81: =IF(AND(NOT(ISBLANK(B81)),OR(Q81='DropDown Lists'!$C$4,ISBLANK(Q81))),1,0) -> 0
B82: REFRIGERATOR: BOTTOM FREEZER 18-23 CU. FT. | C82: 1 | D82: 14 | E82: 72.5 | F82: 0.7 | G82: 50.75 | I82: 0.7 | J82: 0 | M82: 972.12 | P82: 250 | Q82: Res:RefgFrzr_HighEff | X82: =IF(AND(NOT(ISBLANK(B82)),OR(Q82='DropDown Lists'!$C$4,ISBLANK(Q82))),1,0) -> 0
B83: Water Heating Tankless Water Heater (Gas) | C83: 1 | D83: 20 | G83: 0 | H83: 0.936 | J83: 0 | M83: 836 | Q83: Residential_Water_Heating | X83: =IF(AND(NOT(ISBLANK(B83)),OR(Q83='DropDown Lists'!$C$4,ISBLANK(Q83))),1,0) -> 0
B84: INTEGRATED BUILDING-RES-SINGLE FAMILY - WHOLE HOUSE | C84: 1 | D84: 19 | E84: 0.9926837721 | F84: 0.48 | G84: 0.4764882106 | H84: 0.1217491804 | I84: 0.48 | J84: 0.0584396066 | M84: 0.8720379768 | P84: 1.445560656 | Q84: Res:HVAC_Eff_AC | R84: 0.001441171065 | X84: =IF(AND(NOT(ISBLANK(B84)),OR(Q84='DropDown Lists'!$C$4,ISBLANK(Q84))),1,0) -> 0
B85: INTEGRATED BUILDING-RES-SINGLE FAMILY - WHOLE HOUSE 31-40% | C85: 1 | D85: 19 | E85: 0.9768447394 | F85: 0.48 | G85: 0.4688854749 | H85: 0.1251453126 | I85: 0.48 | J85: 0.06006975002 | M85: 2.935190746 | P85: 1.783993429 | Q85: Res:HVAC_Eff_AC | R85: 0.001425129333 | X85: =IF(AND(NOT(ISBLANK(B85)),OR(Q85='DropDown Lists'!$C$4,ISBLANK(Q85))),1,0) -> 0
B86: INTEGRATED BUILDING-RES-SINGLE FAMILY - WHOLE HOUSE 21-30% | C86: 1 | D86: 19 | E86: 285.2 | F86: 0.48 | G86: 136.896 | H86: 38 | I86: 0.48 | J86: 18.24 | M86: 2.226188983 | P86: 1.436622468 | Q86: Res:HVAC_Eff_AC | R86: 0.001852603407 | X86: =IF(AND(NOT(ISBLANK(B86)),OR(Q86='DropDown Lists'!$C$4,ISBLANK(Q86))),1,0) -> 0
B87: INTEGRATED BUILDING-RES-SINGLE FAMILY - WHOLE HOUSE >41% | C87: 1 | D87: 19 | E87: 1 | F87: 0.48 | G87: 0.48 | H87: 0.1446123216 | I87: 0.48 | J87: 0.06941391435 | M87: 4.420848986 | P87: 2.640589782 | Q87: Res:HVAC_Eff_AC | R87: 0.001785875282 | X87: =IF(AND(NOT(ISBLANK(B87)),OR(Q87='DropDown Lists'!$C$4,ISBLANK(Q87))),1,0) -> 0
B88: INTEGRATED BUILDING-RES-SINGLE FAMILY - WHOLE HOUSE 15-20% | C88: 1 | D88: 19 | E88: 0.9540813813 | F88: 0.48 | G88: 0.457959063 | H88: 0.2117480818 | I88: 0.48 | J88: 0.1016390793 | M88: 2.223349846 | P88: 1.173366349 | Q88: Res:HVAC_Eff_AC | R88: 0.003176775078 | X88: =IF(AND(NOT(ISBLANK(B88)),OR(Q88='DropDown Lists'!$C$4,ISBLANK(Q88))),1,0) -> 0
B89: WHOLE HOUSE (35%) - NSHPPM - SF | C89: 1 | D89: 19 | E89: 1 | F89: 0.48 | G89: 0.48 | H89: 0.1263816692 | I89: 0.48 | J89: 0.06066320121 | M89: 2.035430666 | P89: 1.12953977 | Q89: Res:HVAC_Eff_AC | R89: 0.00093 | X89: =IF(AND(NOT(ISBLANK(B89)),OR(Q89='DropDown Lists'!$C$4,ISBLANK(Q89))),1,0) -> 0
B90: Total | E90: =SUMPRODUCT(E80:E89,$C80:$C89) -> 562.0246099 | G90: =SUMPRODUCT(G80:G89,$C80:$C89) -> 329.5900327 | H90: 53.13363657 | J90: =SUMPRODUCT(J80:J89,$C80:$C89) -> 28.01782555 | K90: 0 | L90: 0 | M90: 2456.423047 | N90: 0 | O90: 0 | P90: =SUMPRODUCT(P80:P89,$C80:$C89) -> 384.6096725

Sheet Portfolio Builder
B2: Installation Schedule and Incentive Budget by Program Type
C3: Year 1 | D3: Year 2 | E3: Year 3
B4: ='Program Builder'!B5 -> Residential Lighting (POS) | C4: 6
B5: ='Program Builder'!B6 -> Residential Appliance Rebates/(POS) Discounts | C5: 1
B6: ='Program Builder'!B7 -> Whole-Home Retrofit | C6: 1
B7: ='Program Builder'!B8 -> Residential HVAC/Water Heating Rebates | C7: 4
B8: ='Program Builder'!B9 -> New Home Construction | C8: 1
B9: Incentive Budget | C9: =SUMPRODUCT(C4:C8,'Program Builder'!$H$5:$H$9) -> 12357.76637 | D9: =SUMPRODUCT(D4:D8,'Program Builder'!$H$5:$H$9) -> 0 | E9: =SUMPRODUCT(E4:E8,'Program Builder'!$H$5:$H$9) -> 0
B12: Per Install Overhead Costs
C13: Year 1 | D13: Year 2 | E13: Year 3
B14: =B4 -> Residential Lighting (POS) | C14: 6.844410305
B15: =B5 -> Residential Appliance Rebates/(POS) Discounts | C15: 70.58515626
B16: Whole-Home Retrofit | C16: 73.65093357
B17: Residential HVAC/Water Heating Rebates | C17: 260.5894487
B18: New Home Construction | C18: 11.8129427
B20: Non-Incentive Portfolio Budget ($)
C21: Year 1 | D21: Year 2 | E21: Year 3
B22: a. Administrative Costs
B23: b. Marketing/Outreach | D23: 0 | E23: 0
B24: c. Direct Implementation (non incentive)
B25: d. EM&V | D25: 0 | E25: 0
B26: Total Administration Budget | C26: =SUM(C22:C25) -> 0 | D26: =SUM(D22:D25) -> 0 | E26: =SUM(E22:E25) -> 0
B27: Total Variable Overhead Budget | C27: =SUMPRODUCT(C4:C8,C14:C18) -> 1239.473289 | D27: =SUMPRODUCT(D4:D8,D14:D18) -> 0 | E27: 0
B28: Total Budget | C28: =C26+C9+C27 -> 13597.23966 | D28: =D26+D9+D27 -> 0 | E28: 0

Sheet Report
C2: Program Cost Effetiveness
D3: PCT | E3: PAC | F3: RIM | G3: TRC | H3: SCT
C4: ='Program Builder'!B5 -> Residential Lighting (POS) | D4: =IF(SUM('Portfolio Builder'!$C4:$E4)=0,"N/A",IFERROR(((Calculations!N16*$C$89)+(Calculations!O16*$D$89)+(Calculations!P16*$E$89)+(Calculations!Q16*Report!$F$89)+SUM(Calculations!T16:U16))/(SUM(Calculations!R16:S16)),"N/A")) -> 3.38598877 | E4: =IF(SUM('Portfolio Builder'!$C4:$E4)=0,"N/A",IFERROR(((Calculations!$F$14*Report!$C$88)+(Calculations!$G$14*Report!$D$88)+(Calculations!$H$14*Report!$E$88)+(Calculations!$I$14*Report!$F$88))/(Calculations!$U$14+Calculations!$V$14),"N/A")) -> 5.643989885 | F4: =IF(SUM('Portfolio Builder'!$C4:$E4)=0,"N/A",IFERROR(((Calculations!$F$14*Report!$C$88)+(Calculations!$G$14*Report!$D$88)+(Calculations!$H$14*Report!$E$88)+(Calculations!$I$14*Report!$F$88))/(Calculations!$U$14+Calculations!$V$14+(Calculations!N14*Report!$C$88)+(Calculations!O14*Report!$D$88)+(Calculations!P14*Report!$E$88)+(Calculations!Q14*Report!$F$88)),"N/A")) -> 0.5332738987 | G4: =IF(SUM('Portfolio Builder'!$C4:$E4)=0,"N/A",IFERROR(((Calculations!$F$14*Report!$C$90)+(Calculations!$G$14*Report!$D$90)+(Calculations!$H$14*Report!$E$90)+(Calculations!$I$14*Report!$F$90)+(Calculations!$T$14))/(SUM(Calculations!$R$14:$S$14)+Calculations!$V$14),"N/A")) -> 1.849091187 | H4: =IF(SUM('Portfolio Builder'!$C4:$E4)=0,"N/A",IFERROR((((Calculations!$F$15+Calculations!$J$15)*$C$91)+((Calculations!$G$15+Calculations!$K$15)*$D$91)+((Calculations!$H$15+Calculations!$L$15)*$E$91)+((Calculations!$I$15+Calculations!$M$15)*$F$91)+(Calculations!$T$15))/(SUM(Calculations!$R$15:$S$15)+Calculations!$V$15),"N/A")) -> 1.837757735
C5: ='Program Builder'!B6 -> Residential Appliance Rebates/(POS) Discounts | D5: =IF(SUM('Portfolio Builder'!$C5:$E5)=0,"N/A",IFERROR(((Calculations!N24*$C$89)+(Calculations!O24*$D$89)+(Calculations!P24*$E$89)+(Calculations!Q24*Report!$F$89)+SUM(Calculations!T24:U24))/(SUM(Calculations!R24:S24)),"N/A")) -> 1.414905243 | E5: =IF(SUM('Portfolio Builder'!$C5:$E5)=0,"N/A",IFERROR(((Calculations!$F$22*Report!$C$88)+(Calculations!$G$22*Report!$D$88)+(Calculations!$H$22*Report!$E$88)+(Calculations!$I$22*Report!$F$88))/(Calculations!$U$22+Calculations!$V$22),"N/A")) -> 2.287578063 | F5: =IF(SUM('Portfolio Builder'!$C5:$E5)=0,"N/A",IFERROR(((Calculations!$F$22*Report!$C$88)+(Calculations!$G$22*Report!$D$88)+(Calculations!$H$22*Report!$E$88)+(Calculations!$I$22*Report!$F$88))/(Calculations!$U$22+Calculations!$V$22+(Calculations!N22*Report!$C$88)+(Calculations!O22*Report!$D$88)+(Calculations!P22*Report!$E$88)+(Calculations!Q22*Report!$F$88)),"N/A")) -> 0.4733252122 | G5: =IF(SUM('Portfolio Builder'!$C5:$E5)=0,"N/A",IFERROR(((Calculations!$F$22*Report!$C$90)+(Calculations!$G$22*Report!$D$90)+(Calculations!$H$22*Report!$E$90)+(Calculations!$I$22*Report!$F$90)+(Calculations!$T$22))/(SUM(Calculations!$R$22:$S$22)+Calculations!$V$22),"N/A")) -> 0.6924493638 | H5: =IF(SUM('Portfolio Builder'!$C5:$E5)=0,"N/A",IFERROR((((Calculations!$F$23+Calculations!$J$23)*$C$91)+((Calculations!$G$23+Calculations!$K$23)*$D$91)+((Calculations!$H$23+Calculations!$L$23)*$E$91)+((Calculations!$I$23+Calculations!$M$23)*$F$91)+(Calculations!$T$23))/(SUM(Calculations!$R$23:$S$23)+Calculations!$V$23),"N/A")) -> 0.7754171449
C6: ='Program Builder'!B7 -> Whole-Home Retrofit | D6: =IF(SUM('Portfolio Builder'!$C6:$E6)=0,"N/A",IFERROR(((Calculations!N32*$C$89)+(Calculations!O32*$D$89)+(Calculations!P32*$E$89)+(Calculations!Q32*Report!$F$89)+SUM(Calculations!T32:U32))/(SUM(Calculations!R32:S32)),"N/A")) -> 0.9305045407 | E6: =IF(SUM('Portfolio Builder'!$C6:$E6)=0,"N/A",IFERROR(((Calculations!$F$30*Report!$C$88)+(Calculations!$G$30*Report!$D$88)+(Calculations!$H$30*Report!$E$88)+(Calculations!$I$30*Report!$F$88))/(Calculations!$U$30+Calculations!$V$30),"N/A")) -> 4.405472812 | F6: =IF(SUM('Portfolio Builder'!$C6:$E6)=0,"N/A",IFERROR(((Calculations!$F$30*Report!$C$88)+(Calculations!$G$30*Report!$D$88)+(Calculations!$H$30*Report!$E$88)+(Calculations!$I$30*Report!$F$88))/(Calculations!$U$30+Calculations!$V$30+(Calculations!N30*Report!$C$88)+(Calculations!O30*Report!$D$88)+(Calculations!P30*Report!$E$88)+(Calculations!Q30*Report!$F$88)),"N/A")) -> 0.7148356017 | G6: =IF(SUM('Portfolio Builder'!$C6:$E6)=0,"N/A",IFERROR(((Calculations!$F$30*Report!$C$90)+(Calculations!$G$30*Report!$D$90)+(Calculations!$H$30*Report!$E$90)+(Calculations!$I$30*Report!$F$90)+(Calculations!$T$30))/(SUM(Calculations!$R$30:$S$30)+Calculations!$V$30),"N/A")) -> 0.7064883355 | H6: =IF(SUM('Portfolio Builder'!$C6:$E6)=0,"N/A",IFERROR((((Calculations!$F$31+Calculations!$J$31)*$C$91)+((Calculations!$G$31+Calculations!$K$31)*$D$91)+((Calculations!$H$31+Calculations!$L$31)*$E$91)+((Calculations!$I$31+Calculations!$M$31)*$F$91)+(Calculations!$T$31))/(SUM(Calculations!$R$31:$S$31)+Calculations!$V$31),"N/A")) -> 1.635798465
C7: ='Program Builder'!B8 -> Residential HVAC/Water Heating Rebates | D7: =IF(SUM('Portfolio Builder'!$C7:$E7)=0,"N/A",IFERROR(((Calculations!N40*$C$89)+(Calculations!O40*$D$89)+(Calculations!P40*$E$89)+(Calculations!Q40*Report!$F$89)+SUM(Calculations!T40:U40))/(SUM(Calculations!R40:S40)),"N/A")) -> 1.932266411 | E7: =IF(SUM('Portfolio Builder'!$C7:$E7)=0,"N/A",IFERROR(((Calculations!$F$38*Report!$C$88)+(Calculations!$G$38*Report!$D$88)+(Calculations!$H$38*Report!$E$88)+(Calculations!$I$38*Report!$F$88))/(Calculations!$U$38+Calculations!$V$38),"N/A")) -> 4.290155379 | F7: =IF(SUM('Portfolio Builder'!$C7:$E7)=0,"N/A",IFERROR(((Calculations!$F$38*Report!$C$88)+(Calculations!$G$38*Report!$D$88)+(Calculations!$H$38*Report!$E$88)+(Calculations!$I$38*Report!$F$88))/(Calculations!$U$38+Calculations!$V$38+(Calculations!N38*Report!$C$88)+(Calculations!O38*Report!$D$88)+(Calculations!P38*Report!$E$88)+(Calculations!Q38*Report!$F$88)),"N/A")) -> 0.5600889812 | G7: =IF(SUM('Portfolio Builder'!$C7:$E7)=0,"N/A",IFERROR(((Calculations!$F$38*Report!$C$90)+(Calculations!$G$38*Report!$D$90)+(Calculations!$H$38*Report!$E$90)+(Calculations!$I$38*Report!$F$90)+(Calculations!$T$38))/(SUM(Calculations!$R$38:$S$38)+Calculations!$V$38),"N/A")) -> 1.148505342 | H7: =IF(SUM('Portfolio Builder'!$C7:$E7)=0,"N/A",IFERROR((((Calculations!$F$39+Calculations!$J$39)*$C$91)+((Calculations!$G$39+Calculations!$K$39)*$D$91)+((Calculations!$H$39+Calculations!$L$39)*$E$91)+((Calculations!$I$39+Calculations!$M$39)*$F$91)+(Calculations!$T$39))/(SUM(Calculations!$R$39:$S$39)+Calculations!$V$39),"N/A")) -> 1.516502432
C8: ='Program Builder'!B9 -> New Home Construction | D8: =IF(SUM('Portfolio Builder'!$C8:$E8)=0,"N/A",IFERROR(((Calculations!N48*$C$89)+(Calculations!O48*$D$89)+(Calculations!P48*$E$89)+(Calculations!Q48*Report!$F$89)+SUM(Calculations!T48:U48))/(SUM(Calculations!R48:S48)),"N/A")) -> 0.5459730132 | E8: =IF(SUM('Portfolio Builder'!$C8:$E8)=0,"N/A",IFERROR(((Calculations!$F$46*Report!$C$88)+(Calculations!$G$46*Report!$D$88)+(Calculations!$H$46*Report!$E$88)+(Calculations!$I$46*Report!$F$88))/(Calculations!$U$46+Calculations!$V$46),"N/A")) -> 1.825769717 | F8: =IF(SUM('Portfolio Builder'!$C8:$E8)=0,"N/A",IFERROR(((Calculations!$F$46*Report!$C$88)+(Calculations!$G$46*Report!$D$88)+(Calculations!$H$46*Report!$E$88)+(Calculations!$I$46*Report!$F$88))/(Calculations!$U$46+Calculations!$V$46+(Calculations!N46*Report!$C$88)+(Calculations!O46*Report!$D$88)+(Calculations!P46*Report!$E$88)+(Calculations!Q46*Report!$F$88)),"N/A")) -> 0.5008051846 | G8: =IF(SUM('Portfolio Builder'!$C8:$E8)=0,"N/A",IFERROR(((Calculations!$F$46*Report!$C$90)+(Calculations!$G$46*Report!$D$90)+(Calculations!$H$46*Report!$E$90)+(Calculations!$I$46*Report!$F$90)+(Calculations!$T$46))/(SUM(Calculations!$R$46:$S$46)+Calculations!$V$46),"N/A")) -> 0.2858663509 | H8: =IF(SUM('Portfolio Builder'!$C8:$E8)=0,"N/A",IFERROR((((Calculations!$F$47+Calculations!$J$47)*$C$91)+((Calculations!$G$47+Calculations!$K$47)*$D$91)+((Calculations!$H$47+Calculations!$L$47)*$E$91)+((Calculations!$I$47+Calculations!$M$47)*$F$91)+(Calculations!$T$47))/(SUM(Calculations!$R$47:$S$47)+Calculations!$V$47),"N/A")) -> 0.5041128074
C10: Portfolio Cost Effetiveness
D11: PCT | E11: PAC | F11: RIM | G11: TRC | H11: SCT
C12: B/C Ratio | D12: =IFERROR(SUM(E71:AH71)/SUM(E72:AH72),"-") -> 1.715340239 | E12: =IFERROR(SUM(E74:AH74)/SUM(E75:AH75),"-") -> 4.177088567 | F12: =IFERROR(SUM(E77:AH77)/SUM(E78:AH78),"-") -> 0.5693265247 | G12: =IFERROR(SUM(E80:AH80)/SUM(E81:AH81),"-") -> 1.03483538 | H12: =IFERROR(SUM(E83:AH83)/SUM(E84:AH84),"-") -> 1.467736885
C13: Total Costs | D13: =-SUM(E72:AH72) -> -49881.83201 | E13: =-SUM(E75:AH75) -> -12357.76637 | F13: =-SUM(E78:AH78) -> -90667.62633 | G13: =-SUM(E81:AH81) -> -49881.83201 | H13: =-SUM(E84:AH84) -> -49881.83201
C14: Total Benefits | D14: =SUM(E71:AH71) -> 85564.31362 | E14: =SUM(E74:AH74) -> 51619.4846 | F14: =SUM(E77:AH77) -> 51619.4846 | G14: =SUM(E80:AH80) -> 51619.4846 | H14: =SUM(E83:AH83) -> 73213.40471
C15: Net Benefits | D15: =SUM(E71:AH71)-SUM(E72:AH72) -> 35682.48161 | E15: =SUM(E74:AH74)-SUM(E75:AH75) -> 39261.71824 | F15: =SUM(E77:AH77)-SUM(E78:AH78) -> -39048.14173 | G15: =SUM(E80:AH80)-SUM(E81:AH81) -> 1737.652588 | H15: =SUM(E83:AH83)-SUM(E84:AH84) -> 23331.5727
C17: Physical Savings
D18: Total
C19: Electricity (MWh) | D19: =SUM(Calculations!F$18,Calculations!F$26,Calculations!F$34,Calculations!F$42,Calculations!F$50)/1000 -> 517.3703475
C20: Natural Gas (Therms) | D20: =SUM(Calculations!G$18,Calculations!G$26,Calculations!G$34,Calculations!G$42,Calculations!G$50) -> 9654.006137
C21: Fuel Oil (Gallons) | D21: =SUM(Calculations!H$18,Calculations!H$26,Calculations!H$34,Calculations!H$42,Calculations!H$50) -> 0
C22: Water (Thousand Gallons) | D22: =SUM(Calculations!I$18,Calculations!I$26,Calculations!I$34,Calculations!I$42,Calculations!I$50) -> 0
C24: Monetary Savings $s (avoided costs)
D25: NPV
C26: Electricity ($'s) | D26: =E$80 -> 45051.98139
C27: Natural Gas ($'s) | D27: =F$80 -> 6567.503212
C28: Fuel Oil ($'s) | D28: =G$80 -> 0
C29: Water ($'s) | D29: =H$80 -> 0
C30: Monetary savings shown are from TRC perspective.
K31: Cost-effectiveness Sensitivity Analysis
K32: Discount Rates | N32: Current Input | O32: Default Input
K33: Utility Discount Rate | M33: 60.9 | N33: =M33/1000 -> 0.0609 | O33: 0.0609
K34: Societal Discount Rate | M34: 30 | N34: =M34/1000 -> 0.03 | O34: 0.03
K35: Participant Discount Rate | M35: 70 | N35: 0.07 | O35: 0.07
K36: Escalation Rates
K37: Retail Electricity Rate Escalator | M37: 20 | N37: =M37/1000 -> 0.02 | O37: 0.02
K38: Natural Gas Rate Escalator | M38: 20 | N38: 0.02 | O38: 0.02
K39: Fuel Oil Rate Escalator | M39: 20 | N39: 0.02 | O39: 0.02
K40: Water Rate Escalator | M40: 20 | N40: 0.02 | O40: 0.02
K41: Administration Costs and Incentives
K42: Administration Costs | N42: =M42 -> 0 | O42: 0
K43: =CONCATENATE('Program Builder'!B5," ", "'Additional Project Level Incentive'") -> Residential Lighting (POS) 'Additional Project Level Incentive' | M43: 0 | N43: =M43 -> 0 | O43: 0
K44: =CONCATENATE('Program Builder'!B6," ", "'Additional Project Level Incentive'") -> Residential Appliance Rebates/(POS) Discounts 'Additional Project Level Incentive' | M44: 0 | N44: =M44 -> 0 | O44: 0
K45: =CONCATENATE('Program Builder'!B7," ", "'Additional Project Level Incentive'") -> Whole-Home Retrofit 'Additional Project Level Incentive' | M45: 0 | N45: 0 | O45: 0
K46: =CONCATENATE('Program Builder'!B8," ", "'Additional Project Level Incentive'") -> Residential HVAC/Water Heating Rebates 'Additional Project Level Incentive' | M46: 0 | N46: 0 | O46: 0
K47: =CONCATENATE('Program Builder'!B9," ", "'Additional Project Level Incentive'") -> New Home Construction 'Additional Project Level Incentive' | M47: 0 | N47: 0 | O47: 0
C65: Data for Chart
E67: Wholesale Impact | I67: Societal Impact | M67: Retail Impacts | Q67: Retail Impacts | V67: Net Measure Cost | Y67: Gross Measure Cost | AA67: Incentives | AD67: Free-Rider Incentives | AH67: Admin
E68: Avoided Costs | F68: Avoided Costs | G68: Avoided Costs | H68: Avoided Costs | I68: Societal Avoided Costs | J68: Societal Avoided Costs | K68: Societal Avoided Costs | L68: Societal Avoided Costs | M68: Revenue Reduction | N68: Revenue Reduction | O68: Revenue Reduction | P68: Revenue Reduction | Q68: Bill Savings | R68: Bill Savings | S68: Bill Savings | T68: Bill Savings
E69: ='Initial Inputs'!C23 -> Electricity | F69: ='Initial Inputs'!D23 -> Natural Gas | G69: ='Initial Inputs'!E23 -> Fuel Oil | H69: ='Initial Inputs'!F23 -> Water | I69: ='Initial Inputs'!C23 -> Electricity | J69: ='Initial Inputs'!D23 -> Natural Gas | K69: ='Initial Inputs'!E23 -> Fuel Oil | L69: ='Initial Inputs'!F23 -> Water | M69: Electricity | N69: Natural Gas | O69: Oil | P69: Water | Q69: ='Initial Inputs'!C23 -> Electricity | R69: ='Initial Inputs'!D23 -> Natural Gas | S69: ='Initial Inputs'!E23 -> Fuel Oil | T69: ='Initial Inputs'!F23 -> Water | V69: Net IMC | X69: Net O&M | Y69: Gross IMC | Z69: Gross O&M | AA69: Federal Tax or Other Incentives | AB69: Utility Incentives | AC69: Project Incentives | AD69: Federal Tax and Other Free-Rider Incentives | AE69: Other Utility Free-Rider Incentives | AF69: Project Free-Rider Incentives | AH69: Program
E70: =CONCATENATE(E69," ",E68) -> Electricity Avoided Costs | F70: Natural Gas Avoided Costs | G70: Fuel Oil Avoided Costs | H70: Water Avoided Costs | I70: =CONCATENATE(I68," ",I69) -> Societal Avoided Costs Electricity | J70: =CONCATENATE(J68," ",J69) -> Societal Avoided Costs Natural Gas | K70: Societal Avoided Costs Fuel Oil | L70: Societal Avoided Costs Water | M70: Electricity Revenue Reduction | N70: Natural Gas Revenue Reduction | O70: Oil Revenue Reduction | P70: Water Revenue Reduction | Q70: Electricity Bill Savings | R70: Natural Gas Bill Savings | S70: Fuel Oil Bill Savings | T70: Water Bill Savings | U70: Incremental Measure Cost | V70: Net Incremental Measure Cost | W70: O&M | X70: Net O&M | Y70: Gross Incremental Measure Cost | Z70: =Z69 -> Gross O&M | AA70: Federal Tax or Other Incentives | AB70: Utility Incentives | AC70: Project Incentives | AD70: Federal Tax and Other Free-Rider Incentives | AE70: Other Utility Free-Rider Incentives | AF70: Project Free-Rider Incentives | AG70: Incentives | AH70: Program Administration
B71: =IF(OFFSET('Initial Inputs'!$B$19,0,MATCH(Report!$C$71,'Initial Inputs'!$C$18:$G$18,0))='DropDown Lists'!$J$4,1,0) -> 1 | C71: ='Initial Inputs'!C$18 -> PCT | D71: Benefit | E71: 0 | F71: 0 | G71: 0 | H71: 0 | I71: 0 | J71: 0 | K71: 0 | L71: 0 | M71: 0 | N71: 0 | O71: 0 | P71: 0 | Q71: =IF(OFFSET('Initial Inputs'!$B$25,0,MATCH(Report!Q$69,'Initial Inputs'!$C$23:$F$23,0))='DropDown Lists'!$J$4,Calculations!N$7,0)*$B$71 -> 66589.48585 | R71: =IF(OFFSET('Initial Inputs'!$B$25,0,MATCH(Report!R$69,'Initial Inputs'!$C$23:$F$23,0))='DropDown Lists'!$J$4,Calculations!O$7,0)*$B$71 -> 6617.061414 | S71: =IF(OFFSET('Initial Inputs'!$B$25,0,MATCH(Report!S$69,'Initial Inputs'!$C$23:$F$23,0))='DropDown Lists'!$J$4,Calculations!P$7,0)*$B$71 -> 0 | T71: =IF(OFFSET('Initial Inputs'!$B$25,0,MATCH(Report!T$69,'Initial Inputs'!$C$23:$F$23,0))='DropDown Lists'!$J$4,Calculations!Q$7,0)*$B$71 -> 0 | U71: 0 | V71: 0 | W71: 0 | X71: 0 | Y71: 0 | Z71: 0 | AA71: 0 | AB71: 0 | AC71: 0 | AD71: 0 | AE71: 0 | AF71: 0 | AG71: =SUM(Calculations!$T$7:$U$7)*$B$71 -> 12357.76637 | AH71: 0
B72: =IF(OFFSET('Initial Inputs'!$B$19,0,MATCH(Report!$C$71,'Initial Inputs'!$C$18:$G$18,0))='DropDown Lists'!$J$4,1,0) -> 1 | C72: ='Initial Inputs'!C$18 -> PCT | D72: Cost | E72: 0 | F72: 0 | G72: 0 | H72: 0 | I72: 0 | J72: 0 | K72: 0 | L72: 0 | M72: 0 | N72: 0 | O72: 0 | P72: 0 | Q72: 0 | R72: 0 | S72: 0 | T72: 0 | U72: =Calculations!R$7*$B$71 -> 49881.83201 | V72: 0 | W72: =Calculations!S$7*$B$71 -> 0 | X72: 0 | Y72: 0 | Z72: 0 | AA72: 0 | AB72: 0 | AC72: 0 | AD72: 0 | AE72: 0 | AF72: 0 | AG72: 0 | AH72: 0
U73: =(SUM(V73,Y73))*0 -> 0 | W73: =(SUM(X73,Z73))*0 -> 0 | AG73: =(SUM(AA73:AF73))*0 -> 0
B74: =IF(OFFSET('Initial Inputs'!$B$19,0,MATCH(Report!$C$74,'Initial Inputs'!$C$18:$G$18,0))='DropDown Lists'!$J$4,1,0) -> 1 | C74: ='Initial Inputs'!D$18 -> PACT | D74: Benefit | E74: =IF(OFFSET('Initial Inputs'!$B$24,0,MATCH(E$69,'Initial Inputs'!$C$23:$F$23,0))='DropDown Lists'!$J$4,Calculations!F$5,0)*$B$74 -> 45051.98139 | F74: =IF(OFFSET('Initial Inputs'!$B$24,0,MATCH(F$69,'Initial Inputs'!$C$23:$F$23,0))='DropDown Lists'!$J$4,Calculations!G$5,0)*$B$74 -> 6567.503212 | G74: =IF(OFFSET('Initial Inputs'!$B$24,0,MATCH(G$69,'Initial Inputs'!$C$23:$F$23,0))='DropDown Lists'!$J$4,Calculations!H$5,0)*$B$74 -> 0 | H74: =IF(OFFSET('Initial Inputs'!$B$24,0,MATCH(H$69,'Initial Inputs'!$C$23:$F$23,0))='DropDown Lists'!$J$4,Calculations!I$5,0)*$B$74 -> 0 | I74: 0 | J74: 0 | K74: 0 | L74: 0 | M74: 0 | N74: 0 | O74: 0 | P74: 0 | Q74: 0 | R74: 0 | S74: 0 | T74: 0 | U74: 0 | V74: 0 | W74: 0 | X74: 0 | Y74: 0 | Z74: 0 | AA74: 0 | AB74: 0 | AC74: 0 | AD74: 0 | AE74: 0 | AF74: 0 | AG74: 0 | AH74: 0
B75: =IF(OFFSET('Initial Inputs'!$B$19,0,MATCH(Report!$C$74,'Initial Inputs'!$C$18:$G$18,0))='DropDown Lists'!$J$4,1,0) -> 1 | C75: ='Initial Inputs'!D$18 -> PACT | D75: Cost | E75: 0 | F75: 0 | G75: 0 | H75: 0 | I75: 0 | J75: 0 | K75: 0 | L75: 0 | M75: 0 | N75: 0 | O75: 0 | P75: 0 | Q75: 0 | R75: 0 | S75: 0 | T75: 0 | U75: 0 | V75: 0 | W75: 0 | X75: 0 | Y75: 0 | Z75: 0 | AA75: 0 | AB75: 0 | AC75: 0 | AD75: 0 | AE75: 0 | AF75: 0 | AG75: =Calculations!$U$5*$B$74 -> 12357.76637 | AH75: =Calculations!V$5*$B$74 -> 0
U76: =(SUM(V76,Y76))*0 -> 0 | W76: =(SUM(X76,Z76))*0 -> 0
B77: =IF(OFFSET('Initial Inputs'!$B$19,0,MATCH(Report!$C$77,'Initial Inputs'!$C$18:$G$18,0))='DropDown Lists'!$J$4,1,0) -> 1 | C77: ='Initial Inputs'!E$18 -> RIM | D77: Benefit | E77: =IF(OFFSET('Initial Inputs'!$B$24,0,MATCH(E$69,'Initial Inputs'!$C$23:$F$23,0))='DropDown Lists'!$J$4,Calculations!F$5,0)*$B$77 -> 45051.98139 | F77: =IF(OFFSET('Initial Inputs'!$B$24,0,MATCH(F$69,'Initial Inputs'!$C$23:$F$23,0))='DropDown Lists'!$J$4,Calculations!G$5,0)*$B$77 -> 6567.503212 | G77: =IF(OFFSET('Initial Inputs'!$B$24,0,MATCH(G$69,'Initial Inputs'!$C$23:$F$23,0))='DropDown Lists'!$J$4,Calculations!H$5,0)*$B$77 -> 0 | H77: =IF(OFFSET('Initial Inputs'!$B$24,0,MATCH(H$69,'Initial Inputs'!$C$23:$F$23,0))='DropDown Lists'!$J$4,Calculations!I$5,0)*$B$77 -> 0 | I77: 0 | J77: 0 | K77: 0 | L77: 0 | M77: 0 | N77: 0 | O77: 0 | P77: 0 | Q77: 0 | R77: 0 | S77: 0 | T77: 0 | U77: 0 | V77: 0 | W77: 0 | X77: 0 | Y77: 0 | Z77: 0 | AA77: 0 | AB77: 0 | AC77: 0 | AD77: 0 | AE77: 0 | AF77: 0 | AG77: 0 | AH77: 0
B78: =IF(OFFSET('Initial Inputs'!$B$19,0,MATCH(Report!$C$77,'Initial Inputs'!$C$18:$G$18,0))='DropDown Lists'!$J$4,1,0) -> 1 | C78: ='Initial Inputs'!E$18 -> RIM | D78: Cost | E78: 0 | F78: 0 | G78: 0 | H78: 0 | I78: 0 | J78: 0 | K78: 0 | L78: 0 | M78: 0 | N78: 0 | O78: 0 | P78: 0 | Q78: =IF(OFFSET('Initial Inputs'!$B$24,0,MATCH(Report!Q$69,'Initial Inputs'!$C$23:$F$23,0))='DropDown Lists'!$J$4,Calculations!N$5,0)*$B$77 -> 71220.58659 | R78: =IF(OFFSET('Initial Inputs'!$B$24,0,MATCH(Report!R$69,'Initial Inputs'!$C$23:$F$23,0))='DropDown Lists'!$J$4,Calculations!O$5,0)*$B$77 -> 7089.273374 | S78: =IF(OFFSET('Initial Inputs'!$B$24,0,MATCH(Report!S$69,'Initial Inputs'!$C$23:$F$23,0))='DropDown Lists'!$J$4,Calculations!P$5,0)*$B$77 -> 0 | T78: =IF(OFFSET('Initial Inputs'!$B$24,0,MATCH(Report!T$69,'Initial Inputs'!$C$23:$F$23,0))='DropDown Lists'!$J$4,Calculations!Q$5,0)*$B$77 -> 0 | U78: 0 | V78: 0 | W78: 0 | X78: 0 | Y78: 0 | Z78: 0 | AA78: 0 | AB78: 0 | AC78: 0 | AD78: 0 | AE78: 0 | AF78: 0 | AG78: =Calculations!$U$5*$B$77 -> 12357.76637 | AH78: =Calculations!V$5*$B$77 -> 0
U79: =(SUM(V79,Y79))*0 -> 0 | W79: =(SUM(X79,Z79))*0 -> 0 | AG79: =(SUM(AA79:AF79))*0 -> 0
B80: =IF(OFFSET('Initial Inputs'!$B$19,0,MATCH(Report!$C$80,'Initial Inputs'!$C$18:$G$18,0))='DropDown Lists'!$J$4,1,0) -> 1 | C80: ='Initial Inputs'!F$18 -> TRC | D80: Benefit | E80: =IF(OFFSET('Initial Inputs'!$B$26,0,MATCH(E$69,'Initial Inputs'!$C$23:$F$23,0))='DropDown Lists'!$J$4,SUM(Calculations!B$5:E$5),0)*$B$80 -> 45051.98139 | F80: =IF(OFFSET('Initial Inputs'!$B$26,0,MATCH(F$69,'Initial Inputs'!$C$23:$F$23,0))='DropDown Lists'!$J$4,Calculations!G$5,0)*$B$80 -> 6567.503212 | G80: =IF(OFFSET('Initial Inputs'!$B$26,0,MATCH(G$69,'Initial Inputs'!$C$23:$F$23,0))='DropDown Lists'!$J$4,Calculations!H$5,0)*$B$80 -> 0 | H80: =IF(OFFSET('Initial Inputs'!$B$26,0,MATCH(H$69,'Initial Inputs'!$C$23:$F$23,0))='DropDown Lists'!$J$4,Calculations!I$5,0)*$B$80 -> 0 | I80: 0 | J80: 0 | K80: 0 | L80: 0 | M80: 0 | N80: 0 | O80: 0 | P80: 0 | Q80: 0 | R80: 0 | S80: 0 | T80: 0 | U80: 0 | V80: 0 | W80: 0 | X80: 0 | Y80: 0 | Z80: 0 | AA80: 0 | AB80: 0 | AC80: 0 | AD80: 0 | AE80: 0 | AF80: 0 | AG80: =Calculations!T5*$B$80 -> 0 | AH80: 0
B81: =IF(OFFSET('Initial Inputs'!$B$19,0,MATCH(Report!$C$80,'Initial Inputs'!$C$18:$G$18,0))='DropDown Lists'!$J$4,1,0) -> 1 | C81: ='Initial Inputs'!F$18 -> TRC | D81: Cost | E81: 0 | F81: 0 | G81: 0 | H81: 0 | I81: 0 | J81: 0 | K81: 0 | L81: 0 | M81: 0 | N81: 0 | O81: 0 | P81: 0 | Q81: 0 | R81: 0 | S81: 0 | T81: 0 | U81: =Calculations!R5*$B$80 -> 49881.83201 | V81: 0 | W81: =Calculations!S$7*$B$80 -> 0 | X81: 0 | Y81: 0 | Z81: 0 | AA81: 0 | AB81: 0 | AC81: 0 | AD81: 0 | AE81: 0 | AF81: 0 | AG81: 0 | AH81: =Calculations!V$5*$B$80 -> 0
U82: =(SUM(V82,Y82))*0 -> 0 | W82: =(SUM(X82,Z82))*0 -> 0 | AG82: =(SUM(AA82:AF82))*0 -> 0
B83: =IF(OFFSET('Initial Inputs'!$B$19,0,MATCH(Report!$C$83,'Initial Inputs'!$C$18:$G$18,0))='DropDown Lists'!$J$4,1,0) -> 1 | C83: ='Initial Inputs'!G$18 -> SCT | D83: Benefit | E83: =IF(OFFSET('Initial Inputs'!$B$27,0,MATCH(E$69,'Initial Inputs'!$C$23:$F$23,0))='DropDown Lists'!$J$4,SUM(Calculations!B$6:E$6),0)*$B$83 -> 56892.7139 | F83: =IF(OFFSET('Initial Inputs'!$B$27,0,MATCH(F$69,'Initial Inputs'!$C$23:$F$23,0))='DropDown Lists'!$J$4,Calculations!G$6,0)*$B$83 -> 8335.905445 | G83: =IF(OFFSET('Initial Inputs'!$B$27,0,MATCH(G$69,'Initial Inputs'!$C$23:$F$23,0))='DropDown Lists'!$J$4,Calculations!H$6,0)*$B$83 -> 0 | H83: =IF(OFFSET('Initial Inputs'!$B$27,0,MATCH(H$69,'Initial Inputs'!$C$23:$F$23,0))='DropDown Lists'!$J$4,Calculations!I$6,0)*$B$83 -> 0 | I83: =IF(OFFSET('Initial Inputs'!$B$27,0,MATCH(I$69,'Initial Inputs'!$C$23:$F$23,0))='DropDown Lists'!$J$4,Calculations!J6,0)*$B$83 -> 258.3143801 | J83: =IF(OFFSET('Initial Inputs'!$B$27,0,MATCH(J$69,'Initial Inputs'!$C$23:$F$23,0))='DropDown Lists'!$J$4,Calculations!K6,0)*$B$83 -> 7726.470984 | K83: =IF(OFFSET('Initial Inputs'!$B$27,0,MATCH(K$69,'Initial Inputs'!$C$23:$F$23,0))='DropDown Lists'!$J$4,Calculations!L6,0)*$B$83 -> 0 | L83: =IF(OFFSET('Initial Inputs'!$B$27,0,MATCH(L$69,'Initial Inputs'!$C$23:$F$23,0))='DropDown Lists'!$J$4,Calculations!M6,0)*$B$83 -> 0 | M83: 0 | N83: 0 | O83: 0 | P83: 0 | Q83: 0 | R83: 0 | S83: 0 | T83: 0 | U83: 0 | V83: 0 | W83: 0 | X83: 0 | Y83: 0 | Z83: 0 | AA83: 0 | AB83: 0 | AC83: 0 | AD83: 0 | AE83: 0 | AF83: 0 | AG83: =Calculations!T6*$B$83 -> 0 | AH83: 0
B84: =IF(OFFSET('Initial Inputs'!$B$19,0,MATCH(Report!$C$83,'Initial Inputs'!$C$18:$G$18,0))='DropDown Lists'!$J$4,1,0) -> 1 | C84: ='Initial Inputs'!G$18 -> SCT | D84: Cost | E84: 0 | F84: 0 | G84: 0 | H84: 0 | I84: 0 | J84: 0 | K84: 0 | L84: 0 | M84: 0 | N84: 0 | O84: 0 | P84: 0 | Q84: 0 | R84: 0 | S84: 0 | T84: 0 | U84: =Calculations!R6*$B$83 -> 49881.83201 | V84: 0 | W84: =Calculations!S6*$B$83 -> 0 | X84: 0 | Y84: 0 | Z84: 0 | AA84: 0 | AB84: 0 | AC84: 0 | AD84: 0 | AE84: 0 | AF84: 0 | AG84: 0 | AH84: =Calculations!V6*$B$83 -> 0
B86: Benefits Selection
C87: Electricity | D87: Natural Gas | E87: Fuel Oil | F87: Water
B88: Utility's calculations | C88: =IF('Initial Inputs'!C24='DropDown Lists'!$J$4,1,0) -> 1 | D88: =IF('Initial Inputs'!D24='DropDown Lists'!$J$4,1,0) -> 1 | E88: =IF('Initial Inputs'!E24='DropDown Lists'!$J$4,1,0) -> 0 | F88: =IF('Initial Inputs'!F24='DropDown Lists'!$J$4,1,0) -> 0
B89: Participants perspective | C89: =IF('Initial Inputs'!C25='DropDown Lists'!$J$4,1,0) -> 1 | D89: =IF('Initial Inputs'!D25='DropDown Lists'!$J$4,1,0) -> 1 | E89: =IF('Initial Inputs'!E25='DropDown Lists'!$J$4,1,0) -> 0 | F89: =IF('Initial Inputs'!F25='DropDown Lists'!$J$4,1,0) -> 1
B90: Total Resource Calculations | C90: =IF('Initial Inputs'!C26='DropDown Lists'!$J$4,1,0) -> 1 | D90: =IF('Initial Inputs'!D26='DropDown Lists'!$J$4,1,0) -> 1 | E90: =IF('Initial Inputs'!E26='DropDown Lists'!$J$4,1,0) -> 1 | F90: =IF('Initial Inputs'!F26='DropDown Lists'!$J$4,1,0) -> 0
B91: Societal Cost Test Calculations | C91: =IF('Initial Inputs'!C27='DropDown Lists'!$J$4,1,0) -> 1 | D91: =IF('Initial Inputs'!D27='DropDown Lists'!$J$4,1,0) -> 1 | E91: =IF('Initial Inputs'!E27='DropDown Lists'!$J$4,1,0) -> 1 | F91: =IF('Initial Inputs'!F27='DropDown Lists'!$J$4,1,0) -> 1

Sheet Load Shape Library
D5: Summary of Load Shapes by TOU, for base year 2013
D6: TOU Period | E6: TOU Code | F6: Number of hours | G6: =G25 -> None | H6: =H25 -> Flat | I6: Example | J6: Res:Indoor_CFL_Ltg | K6: Res:RefgFrzr_HighEff | L6: Res:RefgFrzr_Recyc-Conditioned | M6: Res:RefgFrzr_Recyc-UnConditioned | N6: Res:HVAC_Eff_AC | O6: Res:HVAC_Duct_Sealing | P6: Res:HVAC_Refrig_Charge | Q6: Res:Refg_Chrg_Duct_Seal | R6: Res:RefgFrzr_Recycling | S6: Non_Res:Indoor_CFL_Ltg | T6: Non_Res:Indoor_Non-CFL_Ltg | U6: Non_Res:HVAC_Chillers | V6: Non_Res:HVAC_Refrig_Charge | W6: Non_Res:HVAC_Split-Package_AC | X6: Non_Res:HVAC_Duct_Sealing | Y6: Residential_Clothes_Washer/Dryer | Z6: Residential_Water_Heating | AA6: Res_Heat_Pump | AB6: User_Defined: Load_4 | AC6: User_Defined: Load_5 | AD6: User_Defined: Load_6 | AE6: User_Defined: Load_7 | AF6: User_Defined: Load_8 | AG6: User_Defined: Load_9 | AH6: User_Defined: Load_10 | AI6: User_Defined: Load_11 | AJ6: User_Defined: Load_12 | AK6: User_Defined: Load_13 | AL6: User_Defined: Load_14 | AM6: User_Defined: Load_15 | AN6: User_Defined: Load_16 | AO6: User_Defined: Load_17 | AP6: User_Defined: Load_18 | AQ6: User_Defined: Load_19 | AR6: User_Defined: Load_20
D7: Summer On-Peak | E7: S1 | F7: =COUNTIF($C$26:$C$8785,"S1") -> 1696 | G7: =SUMIFS(G$26:G$8785,$C$26:$C$8785,"S1") -> 0 | H7: 0.1936073059 | I7: 0.2574020841 | J7: 0.2387491224 | K7: 0.2452281205 | L7: 0.2452281205 | M7: 0.2674496869 | N7: 0.4053264354 | O7: 0.4648874731 | P7: 0.5496846728 | Q7: 0.4945088618 | R7: 0.2563389037 | S7: 0.3033085886 | T7: 0.3300811487 | U7: 0.4876212267 | V7: 0.6484241594 | W7: 0.5291729862 | X7: 0.6351886293 | Y7: 0.2071151853 | Z7: 0.5839727173 | AA7: 0.1525653306
D8: Summer Off-Peak | E8: S3 | F8: =COUNTIF($C$26:$C$8785,"S3") -> 1976 | G8: =SUMIFS(G$26:G$8785,$C$26:$C$8785,"S3") -> 0 | H8: =SUMIFS(H$26:H$8785,$C$26:$C$8785,"S3") -> 0.2255707763 | I8: 0.1954573196 | J8: 0.1910829318 | K8: 0.2465246773 | L8: 0.2465246773 | M8: 0.2666169773 | N8: 0.253515509 | O8: 0.282394722 | P8: 0.3411582964 | Q8: 0.3136831215 | R8: 0.2565708273 | S8: 0.1374840772 | T8: 0.1110282513 | U8: 0.167445611 | V8: 0.1792316143 | W8: 0.1533987568 | X8: 0.1163435804 | Y8: 0.1551911071 | Z8: 0.3867455709 | AA8: 0.1037246643
D9: Winter On-Peak | E9: W1 | F9: =COUNTIF($C$26:$C$8785,"W1") -> 2352 | G9: =SUMIFS(G$26:G$8785,$C$26:$C$8785,"W1") -> 0 | H9: =SUMIFS(H$26:H$8785,$C$26:$C$8785,"W1") -> 0.2684931507 | I9: 0.2198755844 | J9: 0.3059989978 | K9: 0.2442124925 | L9: 0.2442124925 | M9: 0.238377687 | N9: 0.1143456323 | O9: 0.09482163149 | P9: 0.07571147669 | Q9: 0.08949560147 | R9: 0.2412950897 | S9: 0.3873796773 | T9: 0.4224505729 | U9: 0.2621381793 | V9: 0.1460597801 | W9: 0.2650253601 | X9: 0.1959128512 | Y9: 0.3667627931 | Z9: 0.01728789658 | AA9: 0.3420569457
D10: Winter Off-Peak | E10: W3 | F10: =COUNTIF($C$26:$C$8785,"W3") -> 2736 | G10: =SUMIFS(G$26:G$8785,$C$26:$C$8785,"W3") -> 0 | H10: =SUMIFS(H$26:H$8785,$C$26:$C$8785,"W3") -> 0.3123287671 | I10: 0.3272650119 | J10: 0.2641689626 | K10: 0.2640346928 | L10: 0.2640346928 | M10: 0.2275556632 | N10: 0.2268124233 | O10: 0.1578961734 | P10: 0.03344555414 | Q10: 0.1023124064 | R10: 0.245795178 | S10: 0.1718276322 | T10: 0.1364400107 | U10: 0.08279497655 | V10: 0.02628444622 | W10: 0.05240293615 | X10: 0.05255493576 | Y10: 0.2709309146 | Z10: 0.01199381527 | AA10: 0.4016530594
G23: Load Shape Name
A24: Base Year Day | B24: Base Year Date | C24: Base Year TOU Period | D24: Input year day | E24: Input year date | F24: Input Year TOU | G24: Samples | J24: Residential | S24: Non Residential | Z24: User defined load shapes
A25: Day | B25: Date | D25: Day | E25: Date | G25: None | H25: Flat | I25: Example | J25: Res:Indoor_CFL_Ltg | K25: Res:RefgFrzr_HighEff | L25: Res:RefgFrzr_Recyc-Conditioned | M25: Res:RefgFrzr_Recyc-UnConditioned | N25: Res:HVAC_Eff_AC | O25: Res:HVAC_Duct_Sealing | P25: Res:HVAC_Refrig_Charge | Q25: Res:Refg_Chrg_Duct_Seal | R25: Res:RefgFrzr_Recycling | S25: Non_Res:Indoor_CFL_Ltg | T25: Non_Res:Indoor_Non-CFL_Ltg | U25: Non_Res:HVAC_Chillers | V25: Non_Res:HVAC_Refrig_Charge | W25: Non_Res:HVAC_Split-Package_AC | X25: Non_Res:HVAC_Duct_Sealing | Y25: Residential_Clothes_Washer/Dryer | Z25: Residential_Water_Heating | AA25: Res_Heat_Pump | AB25: User_Defined: Load_4 | AC25: User_Defined: Load_5 | AD25: User_Defined: Load_6 | AE25: User_Defined: Load_7 | AF25: User_Defined: Load_8 | AG25: User_Defined: Load_9 | AH25: User_Defined: Load_10 | AI25: User_Defined: Load_11 | AJ25: User_Defined: Load_12 | AK25: User_Defined: Load_13 | AL25: User_Defined: Load_14 | AM25: User_Defined: Load_15 | AN25: User_Defined: Load_16 | AO25: User_Defined: Load_17 | AP25: User_Defined: Load_18 | AQ25: User_Defined: Load_19 | AR25: User_Defined: Load_20
A26: =WEEKDAY(B26,2) -> 2 | B26: 2013-01-01 | C26: W3 | D26: =WEEKDAY(E26,2) -> 7 | E26: ='Initial Inputs'!C2 -> 2017-01-01 | F26: ='TOU Rates'!H3 -> W3 | G26: 0 | H26: 0.0001141552511 | I26: 0.0002304409374 | J26: 7.66255e-05 | K26: 8.65584e-05 | L26: 8.65584e-05 | M26: 5.14046e-05 | N26: 0.0001618250015 | O26: 0.0001206990337 | P26: 0 | Q26: 6.30368e-05 | R26: 6.89815e-05 | S26: 3.78567e-05 | T26: 2.11222e-05 | U26: 5.51156e-06 | V26: -4.543322077e-09 | W26: 2.96862e-07 | X26: -8.50896e-07 | Y26: 3.453419046e-05 | Z26: 5.604520986e-07 | AA26: 0.0002062543218 | AB26: =OFFSET(AB$6,MATCH($C26,$E$7:$E$10,0),0)/OFFSET($F$6,MATCH($C26,$E$7:$E$10,0),0) -> 0 | AC26: 0 | AD26: 0 | AE26: 0 | AF26: 0 | AG26: 0 | AH26: 0
A27: =WEEKDAY(B27,2) -> 2 | B27: =B26+1/24 -> 2013-01-01T01:00:00 | C27: W3 | D27: 7 | E27: =E26+1/24 -> 2017-01-01T01:00:00 | F27: ='TOU Rates'!H4 -> W3 | G27: 0 | H27: 0.0001141552511 | I27: 0.0002260897085 | J27: 5.11079e-05 | K27: 8.57679e-05 | L27: 8.57679e-05 | M27: 4.96764e-05 | N27: 0.0001817020017 | O27: 0.0001407173505 | P27: 0 | Q27: 7.26969e-05 | R27: 6.772215e-05 | S27: 3.23184e-05 | T27: 1.75108e-05 | U27: 4.12868e-06 | V27: -4.296770151e-09 | W27: 1.89619e-07 | X27: 4.58374e-06 | Y27: 1.610301029e-05 | Z27: 6.164975411e-07 | AA27: 7.805260348e-05 | AB27: 0 | AC27: 0 | AD27: 0 | AE27: 0 | AF27: 0 | AG27: 0 | AH27: 0
A28: 2 | B28: =B27+1/24 -> 2013-01-01T02:00:00 | C28: W3 | D28: =WEEKDAY(E28,2) -> 7 | E28: =E27+1/24 -> 2017-01-01T02:00:00 | F28: ='TOU Rates'!H5 -> W3 | G28: 0 | H28: 0.0001141552511 | I28: 0.0002343886013 | J28: 3.71175e-05 | K28: 8.55477e-05 | L28: 8.55477e-05 | M28: 4.77088e-05 | N28: 0.0001961260018 | O28: 0.0001550762091 | P28: 0 | Q28: 8.00869e-05 | R28: 6.662825e-05 | S28: 3.18777e-05 | T28: 1.71307e-05 | U28: 3.08338e-06 | V28: -4.174042219e-09 | W28: 1.9995e-07 | X28: 9.59629e-06 | Y28: 2.812455712e-06 | Z28: 6.164975411e-07 | AA28: 9.251726062e-05 | AB28: 0 | AC28: 0 | AD28: 0 | AE28: 0 | AF28: 0 | AG28: 0 | AH28: 0
A29: 2 | B29: =B28+1/24 -> 2013-01-01T03:00:00 | C29: W3 | D29: 7 | E29: 2017-01-01T03:00:00 | F29: ='TOU Rates'!H6 -> W3 | G29: 0 | H29: 0.0001141552511 | I29: 0.0002379258342 | J29: 3.34287e-05 | K29: 8.54802e-05 | L29: 8.54802e-05 | M29: 4.60159e-05 | N29: 0.0002066450019 | O29: 0.0001643752028 | P29: 0 | Q29: 8.47336e-05 | R29: 6.574805e-05 | S29: 3.15315e-05 | T29: 1.68663e-05 | U29: 2.67602e-06 | V29: -3.882282902e-09 | W29: 1.92998e-07 | X29: 1.02562e-05 | Y29: 2.742541125e-06 | Z29: 5.604520986e-07 | AA29: 0.0001171609019 | AB29: 0 | AC29: 0 | AD29: 0 | AE29: 0 | AF29: 0 | AG29: 0 | AH29: 0
A30: 2 | B30: =B29+1/24 -> 2013-01-01T04:00:00 | C30: W3 | D30: 7 | E30: 2017-01-01T04:00:00 | F30: ='TOU Rates'!H7 -> W3 | G30: 0 | H30: 0.0001141552511 | I30: 0.0002359881121 | J30: 3.18476e-05 | K30: 8.55216e-05 | L30: 8.55216e-05 | M30: 4.47027e-05 | N30: 0.0002099530019 | O30: 0.0001672035237 | P30: 0 | Q30: 8.58726e-05 | R30: 6.511215e-05 | S30: 3.15545e-05 | T30: 1.68298e-05 | U30: 2.29484e-06 | V30: -3.373017304e-09 | W30: 1.92292e-07 | X30: 4.18368e-06 | Y30: 3.089593048e-06 | Z30: 6.164975411e-07 | AA30: 0.0001660269164 | AB30: 0 | AC30: 0 | AD30: 0 | AE30: 0 | AF30: 0 | AG30: 0 | AH30: 0
A31: 2 | B31: 2013-01-01T05:00:00 | C31: W3 | D31: 7 | E31: 2017-01-01T05:00:00 | F31: ='TOU Rates'!H8 -> W3 | G31: 0 | H31: 0.0001141552511 | I31: 0.0002279854721 | J31: 3.92364e-05 | K31: 8.56909e-05 | L31: 8.56909e-05 | M31: 4.40336e-05 | N31: 0.0002039790019 | O31: 0.0001617815694 | P31: 0 | Q31: 8.25353e-05 | R31: 6.486225e-05 | S31: 3.26675e-05 | T31: 1.76015e-05 | U31: 3.4702e-06 | V31: -2.770958676e-09 | W31: 1.96872e-07 | X31: 9.29231e-06 | Y31: 9.789652581e-06 | Z31: 5.604520986e-07 | AA31: 0.0003976469432 | AB31: 0 | AC31: 0 | AD31: 0 | AE31: 0 | AF31: 0 | AG31: 0 | AH31: 0
A32: 2 | B32: 2013-01-01T06:00:00 | C32: W3 | D32: 7 | E32: 2017-01-01T06:00:00 | F32: ='TOU Rates'!H9 -> W3 | G32: 0 | H32: 0.0001141552511 | I32: 0.0002738296389 | J32: 5.33854e-05 | K32: 8.60379e-05 | L32: 8.60379e-05 | M32: 4.41248e-05 | N32: 0.0001889410017 | O32: 0.0001471625428 | P32: 0 | Q32: 7.42285e-05 | R32: 6.508135e-05 | S32: 3.62671e-05 | T32: 2.08356e-05 | U32: 6.05713e-06 | V32: -2.376521091e-09 | W32: 2.1182e-07 | X32: 1.61411e-05 | Y32: 3.544527142e-05 | Z32: 6.164975411e-07 | AA32: 0.000296251291 | AB32: 0 | AC32: 0 | AD32: 0 | AE32: 0 | AF32: 0 | AG32: 0 | AH32: 0
A33: 2 | B33: 2013-01-01T07:00:00 | C33: W3 | D33: =WEEKDAY(E33,2) -> 7 | E33: 2017-01-01T07:00:00 | F33: ='TOU Rates'!H10 -> W3 | G33: 0 | H33: 0.0001141552511 | I33: 0.0001816225452 | J33: 7.25741e-05 | K33: 8.66046e-05 | L33: 8.66046e-05 | M33: 4.51307e-05 | N33: 0.0001622060015 | O33: 0.0001247052183 | P33: 0 | Q33: 6.17521e-05 | R33: 6.586765e-05 | S33: 4.41384e-05 | T33: 3.05016e-05 | U33: 8.49204e-06 | V33: -2.64506664e-09 | W33: 3.90086e-07 | X33: -5.73756e-06 | Y33: 6.927171111e-05 | Z33: 1.40244572e-06 | AA33: 0.0003292910322 | AB33: 0 | AC33: 0 | AD33: 0 | AE33: 0 | AF33: 0 | AG33: 0 | AH33: 0
A34: 2 | B34: 2013-01-01T08:00:00 | C34: W3 | D34: 7 | E34: 2017-01-01T08:00:00 | F34: ='TOU Rates'!H11 -> W3 | G34: 0 | H34: 0.0001141552511 | I34: 7.754601322e-05 | J34: 9.00755e-05 | K34: 8.76369e-05 | L34: 8.76369e-05 | M34: 4.76955e-05 | N34: 0.0001279320012 | O34: 9.819530806e-05 | P34: 0 | Q34: 4.73068e-05 | R34: 6.76662e-05 | S34: 5.4555e-05 | T34: 4.63154e-05 | U34: 1.24443e-05 | V34: -2.386158165e-09 | W34: 8.36923e-07 | X34: -1.89826e-05 | Y34: 7.3855886e-05 | Z34: 6.164975411e-07 | AA34: 0.0003838887851 | AB34: 0 | AC34: 0 | AD34: 0 | AE34: 0 | AF34: 0 | AG34: 0 | AH34: 0
A35: 2 | B35: 2013-01-01T09:00:00 | C35: W3 | D35: 7 | E35: 2017-01-01T09:00:00 | F35: ='TOU Rates'!H12 -> W3 | G35: 0 | H35: 0.0001141552511 | I35: 3.792366383e-05 | J35: 0.000102276 | K35: 8.93953e-05 | L35: 8.93953e-05 | M35: 5.24027e-05 | N35: 9.72466009e-05 | O35: 7.230604599e-05 | P35: 0 | Q35: 3.35549e-05 | R35: 7.0899e-05 | S35: 6.32329e-05 | T35: 6.22257e-05 | U35: 1.68462e-05 | V35: -8.114064844e-10 | W35: 2.74111e-06 | X35: -7.3227e-06 | Y35: 0.0001384516861 | Z35: 6.725429836e-07 | AA35: 0.0003806791415 | AB35: 0 | AC35: 0 | AD35: 0 | AE35: 0 | AF35: 0 | AG35: 0 | AH35: 0
A36: 2 | B36: 2013-01-01T10:00:00 | C36: W3 | D36: 7 | E36: 2017-01-01T10:00:00 | F36: ='TOU Rates'!H13 -> W3 | G36: 0 | H36: 0.0001141552511 | I36: 3.684774487e-05 | J36: 0.000108558 | K36: 9.15445e-05 | L36: 9.15445e-05 | M36: 5.88581e-05 | N36: 7.230320067e-05 | O36: 5.058993197e-05 | P36: 0 | Q36: 2.24796e-05 | R36: 7.52013e-05 | S36: 6.87327e-05 | T36: 7.41725e-05 | U36: 2.19531e-05 | V36: 1.61541972e-07 | W36: 7.26522e-06 | X36: 1.11251e-06 | Y36: 0.0001387640361 | Z36: 6.164975411e-07 | AA36: 0.0003413577963 | AB36: 0 | AC36: 0 | AD36: 0 | AE36: 0 | AF36: 0 | AG36: 0 | AH36: 0
A37: 2 | B37: 2013-01-01T11:00:00 | C37: W3 | D37: 7 | E37: 2017-01-01T11:00:00 | F37: ='TOU Rates'!H14 -> W3 | G37: 0 | H37: 0.0001141552511 | I37: 5.919512324e-05 | J37: 0.000110113 | K37: 9.3617e-05 | L37: 9.3617e-05 | M37: 6.63007e-05 | N37: 5.286910049e-05 | O37: 3.458638261e-05 | P37: 0 | Q37: 1.47521e-05 | R37: 7.995885e-05 | S37: 7.13314e-05 | T37: 8.03594e-05 | U37: 4.03663e-05 | V37: 4.76241041e-07 | W37: 1.26495e-05 | X37: 3.7917e-06 | Y37: 9.305994398e-05 | Z37: 6.164975411e-07 | AA37: 0.00030160096 | AB37: 0 | AC37: 0 | AD37: 0 | AE37: 0 | AF37: 0 | AG37: 0 | AH37: 0
A38: 2 | B38: 2013-01-01T12:00:00 | C38: W3 | D38: 7 | E38: 2017-01-01T12:00:00 | F38: ='TOU Rates'!H15 -> W3 | G38: 0 | H38: 0.0001141552511 | I38: 5.919512324e-05 | J38: 0.000109742 | K38: 9.55783e-05 | L38: 9.55783e-05 | M38: 7.41223e-05 | N38: 3.777020035e-05 | O38: 2.409088443e-05 | P38: 0 | Q38: 9.98183e-06 | R38: 8.48503e-05 | S38: 7.19894e-05 | T38: 8.23426e-05 | U38: 6.1768e-05 | V38: 5.027181784e-07 | W38: 1.72873e-05 | X38: 4.80204e-06 | Y38: 0.0001291569014 | Z38: 6.164975411e-07 | AA38: 0.0001805011001 | AB38: 0 | AC38: 0 | AD38: 0 | AE38: 0 | AF38: 0 | AG38: 0 | AH38: 0
A39: 2 | B39: 2013-01-01T13:00:00 | C39: W3 | D39: 7 | E39: 2017-01-01T13:00:00 | F39: ='TOU Rates'!H16 -> W3 | G39: 0 | H39: 0.0001141552511 | I39: 5.919512324e-05 | J39: 0.000111074 | K39: 9.74837e-05 | L39: 9.74837e-05 | M39: 8.12871e-05 | N39: 2.699940025e-05 | O39: 1.796178278e-05 | P39: 0 | Q39: 7.3364e-06 | R39: 8.93854e-05 | S39: 7.2008e-05 | T39: 8.32746e-05 | U39: 5.49795e-05 | V39: 2.227477329e-07 | W39: 2.07022e-05 | X39: 1.58445e-06 | Y39: 0.0001501968698 | Z39: 6.164975411e-07 | AA39: 0.0001438689434 | AB39: 0 | AC39: 0 | AD39: 0 | AE39: 0 | AF39: 0 | AG39: 0 | AH39: =OFFSET(AH$6,MATCH($C39,$E$7:$E$10,0),0)/OFFSET($F$6,MATCH($C39,$E$7:$E$10,0),0) -> 0
A40: 2 | B40: 2013-01-01T14:00:00 | C40: W3 | D40: 7 | E40: 2017-01-01T14:00:00 | F40: ='TOU Rates'!H17 -> W3 | G40: 0 | H40: 0.0001141552511 | I40: 5.919512324e-05 | J40: 0.000114905 | K40: 9.91463e-05 | L40: 9.91463e-05 | M40: 8.63695e-05 | N40: 2.19813002e-05 | O40: 1.499559959e-05 | P40: 0 | Q40: 6.05484e-06 | R40: 9.27579e-05 | S40: 7.17376e-05 | T40: 8.38555e-05 | U40: 3.2451e-05 | V40: 3.505847619e-08 | W40: 2.08458e-05 | X40: -4.21885e-06 | Y40: 0.0001199069074 | Z40: 6.164975411e-07 | AA40: 0.0001196782474 | AB40: =OFFSET(AB$6,MATCH($C40,$E$7:$E$10,0),0)/OFFSET($F$6,MATCH($C40,$E$7:$E$10,0),0) -> 0 | AC40: 0 | AD40: 0 | AE40: 0 | AF40: 0 | AG40: 0 | AH40: 0
A41: 2 | B41: 2013-01-01T15:00:00 | C41: W3 | D41: 7 | E41: 2017-01-01T15:00:00 | F41: ='TOU Rates'!H18 -> W3 | G41: 0 | H41: 0.0001141552511 | I41: 5.919512324e-05 | J41: 0.000112248 | K41: 9.99456e-05 | L41: 9.99456e-05 | M41: 8.80094e-05 | N41: 2.073140019e-05 | O41: 1.426592228e-05 | P41: 0 | Q41: 5.67157e-06 | R41: 9.39775e-05 | S41: 7.11134e-05 | T41: 8.36706e-05 | U41: 2.11729e-05 | V41: 3.4204892e-10 | W41: 1.59592e-05 | X41: -5.75404e-06 | Y41: 0.0001463872106 | Z41: 6.725429836e-07 | AA41: 0.0001307780432 | AB41: 0 | AC41: 0 | AD41: 0 | AE41: 0 | AF41: 0 | AG41: 0 | AH41: 0
A42: 2 | B42: 2013-01-01T16:00:00 | C42: W3 | D42: 7 | E42: 2017-01-01T16:00:00 | F42: ='TOU Rates'!H19 -> W3 | G42: 0 | H42: 0.0001141552511 | I42: 5.919512324e-05 | J42: 0.000109865 | K42: 9.93844e-05 | L42: 9.93844e-05 | M42: 8.55128e-05 | N42: 2.14982002e-05 | O42: 1.53697587e-05 | P42: 0 | Q42: 6.04716e-06 | R42: 9.24486e-05 | S42: 6.98788e-05 | T42: 8.17544e-05 | U42: 1.90582e-05 | V42: 1.593343375e-11 | W42: 8.75043e-06 | X42: -3.50503e-06 | Y42: 0.0001771310235 | Z42: 6.164975411e-07 | AA42: 0.0001255396172 | AB42: 0 | AC42: 0 | AD42: 0 | AE42: 0 | AF42: 0 | AG42: 0 | AH42: 0
A43: 2 | B43: 2013-01-01T17:00:00 | C43: W3 | D43: 7 | E43: 2017-01-01T17:00:00 | F43: ='TOU Rates'!H20 -> W3 | G43: 0 | H43: 0.0001141552511 | I43: 5.919512324e-05 | J43: 0.000112469 | K43: 9.77993e-05 | L43: 9.77993e-05 | M43: 8.00635e-05 | N43: 2.501150023e-05 | O43: 1.838770727e-05 | P43: 0 | Q43: 7.32166e-06 | R43: 8.89314e-05 | S43: 6.79552e-05 | T43: 7.73457e-05 | U43: 1.788e-05 | V43: -1.924488545e-10 | W43: 3.98226e-06 | X43: -3.15601e-06 | Y43: 0.0001782279328 | Z43: 6.164975411e-07 | AA43: 0.0001706480181 | AB43: 0 | AC43: 0 | AD43: 0 | AE43: 0 | AF43: 0 | AG43: 0 | AH43: 0
A44: 2 | B44: 2013-01-01T18:00:00 | C44: W3 | D44: 7 | E44: 2017-01-01T18:00:00 | F44: ='TOU Rates'!H21 -> W3 | G44: 0 | H44: 0.0001141552511 | I44: 5.919512324e-05 | J44: 0.000149202 | K44: 9.58873e-05 | L44: 9.58873e-05 | M44: 7.40637e-05 | N44: 3.323680031e-05 | O44: 2.371913926e-05 | P44: 0 | Q44: 9.88569e-06 | R44: 8.49755e-05 | S44: 6.51769e-05 | T44: 7.03478e-05 | U44: 1.4744e-05 | V44: -1.689745137e-10 | W44: 2.23069e-06 | X44: -8.68873e-06 | Y44: 0.0001790523523 | Z44: 6.164975411e-07 | AA44: 0.0002574368498 | AB44: 0 | AC44: 0 | AD44: 0 | AE44: 0 | AF44: 0 | AG44: 0 | AH44: 0
A45: 2 | B45: 2013-01-01T19:00:00 | C45: W3 | D45: 7 | E45: 2017-01-01T19:00:00 | F45: ='TOU Rates'!H22 -> W3 | G45: 0 | H45: 0.0001141552511 | I45: 5.919512324e-05 | J45: 0.000213566 | K45: 9.40241e-05 | L45: 9.40241e-05 | M45: 6.90522e-05 | N45: 4.483570042e-05 | O45: 3.20273489e-05 | P45: 0 | Q45: 1.42453e-05 | R45: 8.153815e-05 | S45: 5.92197e-05 | T45: 5.86362e-05 | U45: 1.16757e-05 | V45: -5.538784269e-11 | W45: 1.46622e-06 | X45: -1.16441e-05 | Y45: 0.0001956075397 | Z45: 6.164975411e-07 | AA45: 0.0003190477845 | AB45: 0 | AC45: 0 | AD45: 0 | AE45: 0 | AF45: 0 | AG45: 0 | AH45: 0
A46: 2 | B46: 2013-01-01T20:00:00 | C46: W3 | D46: 7 | E46: 2017-01-01T20:00:00 | F46: ='TOU Rates'!H23 -> W3 | G46: 0 | H46: 0.0001141552511 | I46: 6.707214181e-05 | J46: 0.000243214 | K46: 9.226e-05 | L46: 9.226e-05 | M46: 6.51555e-05 | N46: 6.183370057e-05 | O46: 4.406145906e-05 | P46: 0 | Q46: 2.08341e-05 | R46: 7.870775e-05 | S46: 5.04187e-05 | T46: 4.42398e-05 | U46: 9.82707e-06 | V46: -1.040772985e-10 | W46: 8.33028e-07 | X46: -5.41629e-06 | Y46: 0.0001812329598 | Z46: 6.164975411e-07 | AA46: 0.0003729798292 | AB46: 0 | AC46: 0 | AD46: 0 | AE46: 0 | AF46: 0 | AG46: 0 | AH46: 0
A47: 2 | B47: 2013-01-01T21:00:00 | C47: W3 | D47: 7 | E47: 2017-01-01T21:00:00 | F47: ='TOU Rates'!H24 -> W3 | G47: 0 | H47: 0.0001141552511 | I47: 0.0001147805396 | J47: 0.00022525 | K47: 9.04827e-05 | L47: 9.04827e-05 | M47: 6.18469e-05 | N47: 8.59869008e-05 | O47: 6.016961204e-05 | P47: 0 | Q47: 2.97215e-05 | R47: 7.61648e-05 | S47: 4.29302e-05 | T47: 3.29034e-05 | U47: 7.95098e-06 | V47: -2.457267777e-10 | W47: 4.82681e-07 | X47: -4.99234e-06 | Y47: 0.0001882646851 | Z47: 6.164975411e-07 | AA47: 0.000260327074 | AB47: 0 | AC47: 0 | AD47: 0 | AE47: 0 | AF47: 0 | AG47: 0 | AH47: 0
A48: 2 | B48: 2013-01-01T22:00:00 | C48: W3 | D48: 7 | E48: 2017-01-01T22:00:00 | F48: ='TOU Rates'!H25 -> W3 | G48: 0 | H48: 0.0001141552511 | I48: 0.0001632492773 | J48: 0.000176449 | K48: 8.87621e-05 | L48: 8.87621e-05 | M48: 5.88628e-05 | N48: 0.000112486001 | O48: 7.987170404e-05 | P48: 0 | Q48: 4.04849e-05 | R48: 7.381245e-05 | S48: 3.87961e-05 | T48: 2.52262e-05 | U48: 6.36146e-06 | V48: -2.530259308e-10 | W48: 3.9391e-07 | X48: 1.45295e-07 | Y48: 0.0001296113959 | Z48: 6.164975411e-07 | AA48: 0.0002835167074 | AB48: 0 | AC48: 0 | AD48: 0 | AE48: 0 | AF48: 0 | AG48: 0 | AH48: 0
A49: 2 | B49: 2013-01-01T23:00:00 | C49: W3 | D49: 7 | E49: 2017-01-01T23:00:00 | F49: ='TOU Rates'!H26 -> W3 | G49: 0 | H49: 0.0001141552511 | I49: 0.0001939820084 | J49: 0.000109708 | K49: 8.7613e-05 | L49: 8.7613e-05 | M49: 5.66486e-05 | N49: 0.0001374460013 | O49: 9.616505907e-05 | P49: 0 | Q49: 4.93175e-05 | R49: 7.21308e-05 | S49: 3.95284e-05 | T49: 2.17866e-05 | U49: 5.1121e-06 | V49: -2.29853524e-10 | W49: 4.2781e-07 | X49: 1.22281e-05 | Y49: 6.819259166e-05 | Z49: 6.164975411e-07 | AA49: 0.0002062898058 | AB49: 0 | AC49: 0 | AD49: 0 | AE49: 0 | AF49: 0 | AG49: 0 | AH49: 0
A50: 3 | B50: 2013-01-02 | C50: W3 | D50: 1 | E50: 2017-01-02 | F50: ='TOU Rates'!H27 -> W3 | G50: 0 | H50: 0.0001141552511 | I50: 0.0002054488989 | J50: 9.69701e-05 | K50: 8.71736e-05 | L50: 8.71736e-05 | M50: 5.51823e-05 | N50: 0.0001564180014 | O50: 0.0001055678517 | P50: 0 | Q50: 5.44429e-05 | R50: 7.117795e-05 | S50: 4.34193e-05 | T50: 2.15355e-05 | U50: 3.72842e-06 | V50: -3.394938545e-10 | W50: 5.46838e-07 | X50: 1.23458e-05 | Y50: 2.493540267e-05 | Z50: 6.164975411e-07 | AA50: 0.0002006634648 | AB50: 0 | AC50: 0 | AD50: 0 | AE50: 0 | AF50: 0 | AG50: 0 | AH50: 0
A51: 3 | B51: 2013-01-02T01:00:00 | C51: W3 | D51: 1 | E51: 2017-01-02T01:00:00 | F51: ='TOU Rates'!H28 -> W3 | G51: 0 | H51: 0.0001141552511 | I51: 0.0002046707585 | J51: 6.04253e-05 | K51: 8.69051e-05 | L51: 8.69051e-05 | M51: 5.39506e-05 | N51: 0.0001684270016 | O51: 0.0001157196331 | P51: 0 | Q51: 5.99606e-05 | R51: 7.042785e-05 | S51: 4.59971e-05 | T51: 2.15824e-05 | U51: 2.90767e-06 | V51: -6.043138268e-10 | W51: 5.87575e-07 | X51: 1.28417e-06 | Y51: 2.049693348e-05 | Z51: 5.604520986e-07 | AA51: 7.105651823e-05 | AB51: 0 | AC51: 0 | AD51: 0 | AE51: 0 | AF51: 0 | AG51: 0 | AH51: 0
A52: 3 | B52: 2013-01-02T02:00:00 | C52: W3 | D52: 1 | E52: 2017-01-02T02:00:00 | F52: ='TOU Rates'!H29 -> W3 | G52: 0 | H52: 0.0001141552511 | I52: 0.0002061156584 | J52: 4.7303e-05 | K52: 8.66569e-05 | L52: 8.66569e-05 | M52: 5.3243e-05 | N52: 0.0001756850016 | O52: 0.0001265501311 | P52: 0 | Q52: 6.57861e-05 | R52: 6.994995e-05 | S52: 4.65752e-05 | T52: 2.17451e-05 | U52: 2.74612e-06 | V52: -9.253576477e-10 | W52: 5.77962e-07 | X52: -9.97816e-06 | Y52: 6.894482426e-06 | Z52: 6.164975411e-07 | AA52: 6.284148451e-05 | AB52: 0 | AC52: 0 | AD52: 0 | AE52: 0 | AF52: 0 | AG52: 0 | AH52: 0
A53: 3 | B53: 2013-01-02T03:00:00 | C53: W3 | D53: 1 | E53: 2017-01-02T03:00:00 | F53: ='TOU Rates'!H30 -> W3 | G53: 0 | H53: 0.0001141552511 | I53: 0.0001988408086 | J53: 4.27743e-05 | K53: 8.65723e-05 | L53: 8.65723e-05 | M53: 5.28196e-05 | N53: 0.0001805160017 | O53: 0.00013290346 | P53: 0 | Q53: 6.91223e-05 | R53: 6.969595e-05 | S53: 4.66875e-05 | T53: 2.2154e-05 | U53: 2.61715e-06 | V53: -1.055538802e-09 | W53: 5.74666e-07 | X53: -1.06705e-05 | Y53: 9.358862631e-06 | Z53: 6.164975411e-07 | AA53: 8.550260776e-05 | AB53: =OFFSET(AB$6,MATCH($C53,$E$7:$E$10,0),0)/OFFSET($F$6,MATCH($C53,$E$7:$E$10,0),0) -> 0 | AC53: 0 | AD53: 0 | AE53: 0 | AF53: 0 | AG53: 0 | AH53: 0
A54: 3 | B54: 2013-01-02T04:00:00 | C54: W3 | D54: 1 | E54: 2017-01-02T04:00:00 | F54: ='TOU Rates'!H31 -> W3 | G54: 0 | H54: 0.0001141552511 | I54: 0.0002025611334 | J54: 3.88369e-05 | K54: 8.65999e-05 | L54: 8.65999e-05 | M54: 5.17477e-05 | N54: 0.0001851640017 | O54: 0.0001339030951 | P54: 0 | Q54: 6.94709e-05 | R54: 6.91738e-05 | S54: 4.7665e-05 | T54: 2.34458e-05 | U54: 2.52596e-06 | V54: -1.043316676e-09 | W54: 5.49141e-07 | X54: -1.17462e-05 | Y54: 4.259969734e-06 | Z54: 5.604520986e-07 | AA54: 0.0001208215033 | AB54: 0 | AC54: 0 | AD54: 0 | AE54: 0 | AF54: 0 | AG54: 0 | AH54: 0
A55: 3 | B55: 2013-01-02T05:00:00 | C55: W3 | D55: 1 | E55: 2017-01-02T05:00:00 | F55: ='TOU Rates'!H32 -> W3 | G55: 0 | H55: 0.0001141552511 | I55: 0.000225518818 | J55: 4.52845e-05 | K55: 8.67135e-05 | L55: 8.67135e-05 | M55: 4.96874e-05 | N55: 0.0001857910017 | O55: 0.0001290839527 | P55: 0 | Q55: 6.65524e-05 | R55: 6.820045e-05 | S55: 5.13422e-05 | T55: 2.72679e-05 | U55: 3.36777e-06 | V55: -9.589757329e-10 | W55: 1.01744e-06 | X55: -1.54946e-05 | Y55: 3.431973396e-05 | Z55: 6.164975411e-07 | AA55: 0.0002377040642 | AB55: 0 | AC55: 0 | AD55: 0 | AE55: 0 | AF55: 0 | AG55: 0 | AH55: 0
A56: 3 | B56: 2013-01-02T06:00:00 | C56: W1 | D56: 1 | E56: 2017-01-02T06:00:00 | F56: ='TOU Rates'!H33 -> W3 | G56: 0 | H56: 0.0001141552511 | I56: 0.0002449494413 | J56: 5.89979e-05 | K56: 8.69497e-05 | L56: 8.69497e-05 | M56: 4.73655e-05 | N56: 0.0001787580017 | O56: 0.0001186265409 | P56: 0 | Q56: 6.0498e-05 | R56: 6.71576e-05 | S56: 7.06456e-05 | T56: 5.18049e-05 | U56: 5.49294e-06 | V56: -6.969682972e-10 | W56: 3.20378e-06 | X56: -8.314e-06 | Y56: 6.234814976e-05 | Z56: 6.164975411e-07 | AA56: 0.0003600450576 | AB56: 0 | AC56: 0 | AD56: 0 | AE56: 0 | AF56: 0 | AG56: 0 | AH56: 0
A57: 3 | B57: 2013-01-02T07:00:00 | C57: W1 | D57: 1 | E57: 2017-01-02T07:00:00 | F57: ='TOU Rates'!H34 -> W3 | G57: 0 | H57: 0.0001141552511 | I57: 0.0001473818249 | J57: 7.69059e-05 | K57: 8.73426e-05 | L57: 8.73426e-05 | M57: 4.71796e-05 | N57: 0.0001551070014 | O57: 0.0001036786835 | P57: 0 | Q57: 5.19934e-05 | R57: 6.72611e-05 | S57: 0.000110013 | T57: 0.00010621 | U57: 8.26782e-06 | V57: -3.767899518e-10 | W57: 8.28444e-06 | X57: 6.08672e-06 | Y57: 0.0001219125431 | Z57: 6.164975411e-07 | AA57: 0.0003042477767 | AB57: 0 | AC57: 0 | AD57: 0 | AE57: 0 | AF57: 0 | AG57: 0 | AH57: 0
A58: 3 | B58: 2013-01-02T08:00:00 | C58: W1 | D58: 1 | E58: 2017-01-02T08:00:00 | F58: ='TOU Rates'!H35 -> W3 | G58: 0 | H58: 0.0001141552511 | I58: 3.603120605e-05 | J58: 9.27712e-05 | K58: 8.82662e-05 | L58: 8.82662e-05 | M58: 5.16378e-05 | N58: 0.000111045001 | O58: 8.612405021e-05 | P58: 0 | Q58: 4.2207e-05 | R58: 6.9952e-05 | S58: 0.000144133 | T58: 0.000157309 | U58: 1.32092e-05 | V58: -2.641809475e-10 | W58: 1.86329e-05 | X58: 1.08056e-05 | Y58: 0.0001039115821 | Z58: 6.164975411e-07 | AA58: 0.0003383571373 | AB58: 0 | AC58: 0 | AD58: 0 | AE58: 0 | AF58: 0 | AG58: 0 | AH58: 0
A59: 3 | B59: 2013-01-02T09:00:00 | C59: W1 | D59: 1 | E59: 2017-01-02T09:00:00 | F59: ='TOU Rates'!H36 -> W3 | G59: 0 | H59: 0.0001141552511 | I59: 5.919512324e-05 | J59: 0.000109535 | K59: 9.02089e-05 | L59: 9.02089e-05 | M59: 6.04366e-05 | N59: 6.540790061e-05 | O59: 6.826365247e-05 | P59: 0 | Q59: 3.2475e-05 | R59: 7.532275e-05 | S59: 0.000158938 | T59: 0.000182526 | U59: 1.93566e-05 | V59: -1.488162776e-09 | W59: 3.44275e-05 | X59: 7.56763e-06 | Y59: 0.0001802516303 | Z59: 6.164975411e-07 | AA59: 0.0001937888784 | AB59: 0 | AC59: 0 | AD59: 0 | AE59: 0 | AF59: 0 | AG59: 0 | AH59: 0
A60: 3 | B60: 2013-01-02T10:00:00 | C60: W1 | D60: 1 | E60: 2017-01-02T10:00:00 | F60: ='TOU Rates'!H37 -> W3 | G60: 0 | H60: 0.0001141552511 | I60: 5.919512324e-05 | J60: 0.000119545 | K60: 9.28386e-05 | L60: 9.28386e-05 | M60: 7.06574e-05 | N60: 3.483940032e-05 | O60: 5.21351152e-05 | P60: 0 | Q60: 2.39223e-05 | R60: 8.1748e-05 | S60: 0.000163431 | T60: 0.000190802 | U60: 2.31165e-05 | V60: 4.931472816e-08 | W60: 4.91446e-05 | X60: 7.37209e-06 | Y60: 0.0002026626583 | Z60: 6.164975411e-07 | AA60: 0.0001611886773 | AB60: 0 | AC60: 0 | AD60: 0 | AE60: 0 | AF60: 0 | AG60: 0 | AH60: 0
A61: 3 | B61: 2013-01-02T11:00:00 | C61: W1 | D61: 1 | E61: 2017-01-02T11:00:00 | F61: ='TOU Rates'!H38 -> W3 | G61: 0 | H61: 0.0001141552511 | I61: 5.919512324e-05 | J61: 0.000121677 | K61: 9.55725e-05 | L61: 9.55725e-05 | M61: 7.95608e-05 | N61: 2.14386002e-05 | O61: 3.907052527e-05 | P61: 0 | Q61: 1.72268e-05 | R61: 8.756665e-05 | S61: 0.00016152 | T61: 0.000188694 | U61: 3.08533e-05 | V61: 1.920590287e-07 | W61: 5.72086e-05 | X61: 7.5413e-06 | Y61: 0.0002125430571 | Z61: 6.164975411e-07 | AA61: 0.000153798573 | AB61: 0 | AC61: 0 | AD61: 0 | AE61: 0 | AF61: 0 | AG61: 0 | AH61: 0
A62: 3 | B62: 2013-01-02T12:00:00 | C62: W1 | D62: 1 | E62: 2017-01-02T12:00:00 | F62: ='TOU Rates'!H39 -> W3 | G62: 0 | H62: 0.0001141552511 | I62: 5.919512324e-05 | J62: 0.000122752 | K62: 9.82518e-05 | L62: 9.82518e-05 | M62: 8.62468e-05 | N62: 1.660530015e-05 | O62: 2.953201611e-05 | P62: 0 | Q62: 1.25334e-05 | R62: 9.22493e-05 | S62: 0.000157274 | T62: 0.000182762 | U62: 4.64081e-05 | V62: 3.494194204e-07 | W62: 6.26204e-05 | X62: 7.5134e-06 | Y62: 0.0001888283769 | Z62: 6.725429836e-07 | AA62: 8.476214833e-05 | AB62: 0 | AC62: 0 | AD62: 0 | AE62: 0 | AF62: 0 | AG62: 0 | AH62: 0
A63: 3 | B63: 2013-01-02T13:00:00 | C63: W1 | D63: 1 | E63: 2017-01-02T13:00:00 | F63: ='TOU Rates'!H40 -> W3 | G63: 0 | H63: 0.0001141552511 | I63: 5.919512324e-05 | J63: 0.000124277 | K63: 0.000100755 | L63: 0.000100755 | M63: 9.12659e-05 | N63: 1.254090012e-05 | O63: 2.333867711e-05 | P63: 0 | Q63: 9.59796e-06 | R63: 9.601045e-05 | S63: 0.000158511 | T63: 0.000183758 | U63: 5.74008e-05 | V63: 4.392158572e-07 | W63: 7.1677e-05 | X63: 8.47011e-06 | Y63: 0.0001677792086 | Z63: 5.604520986e-07 | AA63: 5.836459249e-05 | AB63: 0 | AC63: 0 | AD63: 0 | AE63: 0 | AF63: 0 | AG63: 0 | AH63: 0
A64: 3 | B64: 2013-01-02T14:00:00 | C64: W1 | D64: 1 | E64: 2017-01-02T14:00:00 | F64: ='TOU Rates'!H41 -> W3 | G64: 0 | H64: 0.0001141552511 | I64: 5.919512324e-05 | J64: 0.000127752 | K64: 0.00010275 | L64: 0.00010275 | M64: 9.50497e-05 | N64: 1.010720009e-05 | O64: 1.991478603e-05 | P64: 0 | Q64: 8.03662e-06 | R64: 9.889985e-05 | S64: 0.000162009 | T64: 0.000188777 | U64: 5.80361e-05 | V64: 3.659989104e-07 | W64: 7.91515e-05 | X64: 6.32525e-06 | Y64: 0.0001607341319 | Z64: 6.164975411e-07 | AA64: 9.85700745e-05 | AB64: 0 | AC64: 0 | AD64: 0 | AE64: 0 | AF64: 0 | AG64: 0 | AH64: 0
A65: 3 | B65: 2013-01-02T15:00:00 | C65: W1 | D65: 1 | E65: 2017-01-02T15:00:00 | F65: ='TOU Rates'!H42 -> W3 | G65: 0 | H65: 0.0001141552511 | I65: 5.919512324e-05 | J65: 0.000125563 | K65: 0.000103552 | L65: 0.000103552 | M65: 9.63468e-05 | N65: 1.04350001e-05 | O65: 1.866007901e-05 | P65: 0 | Q65: 7.4884e-06 | R65: 9.99494e-05 | S65: 0.000160893 | T65: 0.000189119 | U65: 5.40833e-05 | V65: 4.774218928e-08 | W65: 7.4255e-05 | X65: 3.34968e-06 | Y65: 0.0001461103351 | Z65: 6.164975411e-07 | AA65: 9.17949801e-05 | AB65: 0 | AC65: 0 | AD65: 0 | AE65: 0 | AF65: 0 | AG65: 0 | AH65: 0
A66: 3 | B66: 2013-01-02T16:00:00 | C66: W1 | D66: 1 | E66: 2017-01-02T16:00:00 | F66: ='TOU Rates'!H43 -> W3 | G66: 0 | H66: 0.0001141552511 | I66: 5.919512324e-05 | J66: 0.00012289 | K66: 0.000102595 | L66: 0.000102595 | M66: 9.31429e-05 | N66: 1.385400013e-05 | O66: 1.922963231e-05 | P66: 0 | Q66: 7.79134e-06 | R66: 9.786895e-05 | S66: 0.000152989 | T66: 0.000181208 | U66: 4.23322e-05 | V66: -1.962395749e-07 | W66: 5.56052e-05 | X66: 2.61279e-06 | Y66: 0.0001543654456 | Z66: 6.164975411e-07 | AA66: 0.000111459741 | AB66: 0 | AC66: 0 | AD66: 0 | AE66: 0 | AF66: 0 | AG66: 0 | AH66: 0
A67: 3 | B67: 2013-01-02T17:00:00 | C67: W1 | D67: 1 | E67: 2017-01-02T17:00:00 | F67: ='TOU Rates'!H44 -> W3 | G67: 0 | H67: 0.0001141552511 | I67: 5.919512324e-05 | J67: 0.000129774 | K67: 0.000100383 | L67: 0.000100383 | M67: 8.59495e-05 | N67: 1.980630018e-05 | O67: 2.154056769e-05 | P67: 0 | Q67: 8.9647e-06 | R67: 9.316625e-05 | S67: 0.000137627 | T67: 0.000162701 | U67: 2.49811e-05 | V67: -1.09120218e-07 | W67: 3.11359e-05 | X67: 2.28894e-06 | Y67: 0.0001792262829 | Z67: 6.164975411e-07 | AA67: 0.0001421590323 | AB67: 0 | AC67: 0 | AD67: 0 | AE67: 0 | AF67: 0 | AG67: 0 | AH67: 0
A68: 3 | B68: 2013-01-02T18:00:00 | C68: W1 | D68: 1 | E68: 2017-01-02T18:00:00 | F68: ='TOU Rates'!H45 -> W3 | G68: 0 | H68: 0.0001141552511 | I68: 5.919512324e-05 | J68: 0.000172977 | K68: 9.79996e-05 | L68: 9.79996e-05 | M68: 7.77242e-05 | N68: 2.861030026e-05 | O68: 2.587410796e-05 | P68: 0 | Q68: 1.12295e-05 | R68: 8.78619e-05 | S68: 0.000120234 | T68: 0.000140335 | U68: 1.52344e-05 | V68: 5.011226842e-11 | W68: 1.27524e-05 | X68: 2.31107e-06 | Y68: 0.0001699541466 | Z68: 6.725429836e-07 | AA68: 0.0004401124724 | AB68: 0 | AC68: 0 | AD68: 0 | AE68: 0 | AF68: 0 | AG68: 0 | AH68: 0
A69: 3 | B69: 2013-01-02T19:00:00 | C69: W1 | D69: 1 | E69: 2017-01-02T19:00:00 | F69: ='TOU Rates'!H46 -> W3 | G69: 0 | H69: 0.0001141552511 | I69: 5.919512324e-05 | J69: 0.000238129 | K69: 9.58815e-05 | L69: 9.58815e-05 | M69: 7.03212e-05 | N69: 4.181370039e-05 | O69: 3.264987455e-05 | P69: 0 | Q69: 1.48748e-05 | R69: 8.310135e-05 | S69: 0.000103907 | T69: 0.000116512 | U69: 1.25789e-05 | V69: -9.063823315e-11 | W69: 5.14702e-06 | X69: 1.3712e-06 | Y69: 0.00018812032 | Z69: 6.164975411e-07 | AA69: 0.0004438176281 | AB69: 0 | AC69: 0 | AD69: 0 | AE69: 0 | AF69: 0 | AG69: 0 | AH69: 0
A70: 3 | B70: 2013-01-02T20:00:00 | C70: W1 | D70: 1 | E70: 2017-01-02T20:00:00 | F70: ='TOU Rates'!H47 -> W3 | G70: 0 | H70: 0.0001141552511 | I70: 5.919512324e-05 | J70: 0.00027154 | K70: 9.38707e-05 | L70: 9.38707e-05 | M70: 6.37707e-05 | N70: 6.180000057e-05 | O70: 4.227018911e-05 | P70: 0 | Q70: 2.0107e-05 | R70: 7.88207e-05 | S70: 8.74274e-05 | T70: 8.97997e-05 | U70: 1.12034e-05 | V70: -9.587503164e-11 | W70: 2.32377e-06 | X70: 3.24767e-06 | Y70: 0.0002119283233 | Z70: 6.164975411e-07 | AA70: 0.0004551637371 | AB70: =OFFSET(AB$6,MATCH($C70,$E$7:$E$10,0),0)/OFFSET($F$6,MATCH($C70,$E$7:$E$10,0),0) -> 0 | AC70: 0 | AD70: 0 | AE70: 0 | AF70: 0 | AG70: 0 | AH70: 0
A71: 3 | B71: 2013-01-02T21:00:00 | C71: W1 | D71: 1 | E71: 2017-01-02T21:00:00 | F71: ='TOU Rates'!H48 -> W3 | G71: 0 | H71: 0.0001141552511 | I71: 5.919512324e-05 | J71: 0.000251798 | K71: 9.18512e-05 | L71: 9.18512e-05 | M71: 5.79704e-05 | N71: 8.887730082e-05 | O71: 5.476857841e-05 | P71: 0 | Q71: 2.69444e-05 | R71: 7.49108e-05 | S71: 7.24219e-05 | T71: 6.41876e-05 | U71: 9.16198e-06 | V71: -3.008866188e-11 | W71: 9.90802e-07 | X71: 9.0242e-06 | Y71: 0.0001928018015 | Z71: 6.164975411e-07 | AA71: 0.000315402347 | AB71: 0 | AC71: 0 | AD71: 0 | AE71: 0 | AF71: 0 | AG71: 0 | AH71: 0
A72: 3 | B72: 2013-01-02T22:00:00 | C72: W3 | D72: 1 | E72: 2017-01-02T22:00:00 | F72: ='TOU Rates'!H49 -> W3 | G72: 0 | H72: 0.0001141552511 | I72: 8.605215576e-05 | J72: 0.000201599 | K72: 8.99818e-05 | L72: 8.99818e-05 | M72: 5.34465e-05 | N72: 0.0001169310011 | O72: 6.96076749e-05 | P72: 0 | Q72: 3.50333e-05 | R72: 7.171415e-05 | S72: 6.03437e-05 | T72: 4.25245e-05 | U72: 6.64202e-06 | V72: -2.319846409e-11 | W72: 8.52829e-07 | X72: 1.16767e-05 | Y72: 0.0001162689602 | Z72: 6.164975411e-07 | AA72: 0.0002192630845 | AB72: 0 | AC72: 0 | AD72: 0 | AE72: 0 | AF72: 0 | AG72: 0 | AH72: 0
A73: 3 | B73: 2013-01-02T23:00:00 | C73: W3 | D73: 1 | E73: 2017-01-02T23:00:00 | F73: ='TOU Rates'!H50 -> W3 | G73: 0 | H73: 0.0001141552511 | I73: 0.0001368281051 | J73: 0.000138904 | K73: 8.83819e-05 | L73: 8.83819e-05 | M73: 5.08004e-05 | N73: 0.0001390010013 | O73: 8.978088551e-05 | P73: 0 | Q73: 4.57957e-05 | R73: 6.959115e-05 | S73: 5.24791e-05 | T73: 2.99694e-05 | U73: 5.48438e-06 | V73: 1.798958417e-12 | W73: 8.31503e-07 | X73: 1.38712e-05 | Y73: 4.904171229e-05 | Z73: 6.164975411e-07 | AA73: 0.0002074277516 | AB73: 0 | AC73: 0 | AD73: 0 | AE73: 0 | AF73: 0 | AG73: 0 | AH73: 0
A74: 4 | B74: 2013-01-03 | C74: W3 | D74: 2 | E74: 2017-01-03 | F74: ='TOU Rates'!H51 -> W3 | G74: 0 | H74: 0.0001141552511 | I74: 0.0001723840352 | J74: 9.03193e-05 | K74: 8.71472e-05 | L74: 8.71472e-05 | M74: 5.00486e-05 | N74: 0.0001505210014 | O74: 0.0001144588913 | P74: 0 | Q74: 5.8748e-05 | R74: 6.85979e-05 | S74: 4.75628e-05 | T74: 2.4176e-05 | U74: 5.04846e-06 | V74: 1.98029465e-11 | W74: 8.57529e-07 | X74: 1.96448e-05 | Y74: 3.643443761e-05 | Z74: 5.604520986e-07 | AA74: 0.0001409160255 | AB74: 0 | AC74: 0 | AD74: 0 | AE74: 0 | AF74: 0 | AG74: 0 | AH74: 0
A75: 4 | B75: 2013-01-03T01:00:00 | C75: W3 | D75: 2 | E75: 2017-01-03T01:00:00 | F75: ='TOU Rates'!H52 -> W3 | G75: 0 | H75: 0.0001141552511 | I75: 0.000188246656 | J75: 5.96909e-05 | K75: 8.64639e-05 | L75: 8.64639e-05 | M75: 5.05683e-05 | N75: 0.0001536440014 | O75: 0.0001342386314 | P75: 0 | Q75: 6.91868e-05 | R75: 6.85161e-05 | S75: 4.50157e-05 | T75: 2.14439e-05 | U75: 4.9124e-06 | V75: -1.409091204e-10 | W75: 8.62833e-07 | X75: 2.28282e-05 | Y75: 2.305142761e-05 | Z75: 6.164975411e-07 | AA75: 0.0001390506947 | AB75: 0 | AC75: 0 | AD75: 0 | AE75: 0 | AF75: 0 | AG75: 0 | AH75: 0
A76: 4 | B76: 2013-01-03T02:00:00 | C76: W3 | D76: 2 | E76: 2017-01-03T02:00:00 | F76: ='TOU Rates'!H53 -> W3 | G76: 0 | H76: 0.0001141552511 | I76: 0.0001972662186 | J76: 4.6678e-05 | K76: 8.62045e-05 | L76: 8.62045e-05 | M76: 5.13194e-05 | N76: 0.0001545230014 | O76: 0.0001467977712 | P76: 0 | Q76: 7.58672e-05 | R76: 6.876195e-05 | S76: 4.45982e-05 | T76: 2.13288e-05 | U76: 4.73774e-06 | V76: -4.686616684e-10 | W76: 8.48071e-07 | X76: 1.84762e-05 | Y76: 2.066376219e-05 | Z76: 6.164975411e-07 | AA76: 0.0001837766343 | AB76: 0 | AC76: 0 | AD76: 0 | AE76: 0 | AF76: 0 | AG76: 0 | AH76: 0
A77: 4 | B77: 2013-01-03T03:00:00 | C77: W3 | D77: 2 | E77: 2017-01-03T03:00:00 | F77: ='TOU Rates'!H54 -> W3 | G77: 0 | H77: 0.0001141552511 | I77: 0.0002005346626 | J77: 4.22141e-05 | K77: 8.61328e-05 | L77: 8.61328e-05 | M77: 5.15744e-05 | N77: 0.0001550410014 | O77: 0.000154199148 | P77: 0 | Q77: 7.97224e-05 | R77: 6.88536e-05 | S77: 4.4504e-05 | T77: 2.14764e-05 | U77: 4.51561e-06 | V77: -6.147822537e-10 | W77: 8.38396e-07 | X77: 9.55593e-06 | Y77: 8.955979486e-06 | Z77: 5.604520986e-07 | AA77: 0.0002295167883 | AB77: 0 | AC77: 0 | AD77: 0 | AE77: 0 | AF77: 0 | AG77: 0 | AH77: 0
A78: 4 | B78: 2013-01-03T04:00:00 | C78: W3 | D78: 2 | E78: 2017-01-03T04:00:00 | F78: ='TOU Rates'!H55 -> W3 | G78: 0 | H78: 0.0001141552511 | I78: 0.0001910497415 | J78: 3.83096e-05 | K78: 8.61822e-05 | L78: 8.61822e-05 | M78: 5.14415e-05 | N78: 0.0001542410014 | O78: 0.000155353811 | P78: 0 | Q78: 8.01215e-05 | R78: 6.881185e-05 | S78: 4.52997e-05 | T78: 2.24874e-05 | U78: 4.99092e-06 | V78: -5.068108328e-10 | W78: 8.28746e-07 | X78: 1.77145e-05 | Y78: 2.150107694e-06 | Z78: 6.164975411e-07 | AA78: 0.0002875407983 | AB78: 0 | AC78: 0 | AD78: 0 | AE78: 0 | AF78: 0 | AG78: 0 | AH78: 0
A79: 4 | B79: 2013-01-03T05:00:00 | C79: W3 | D79: 2 | E79: 2017-01-03T05:00:00 | F79: ='TOU Rates'!H56 -> W3 | G79: 0 | H79: 0.0001141552511 | I79: 0.0002014213866 | J79: 4.47913e-05 | K79: 8.63441e-05 | L79: 8.63441e-05 | M79: 5.12794e-05 | N79: 0.0001478870014 | O79: 0.0001497065565 | P79: 0 | Q79: 7.67431e-05 | R79: 6.881175e-05 | S79: 4.88293e-05 | T79: 2.60478e-05 | U79: 6.06817e-06 | V79: -3.244095587e-10 | W79: 1.74575e-06 | X79: 2.35884e-05 | Y79: 1.762698039e-05 | Z79: 6.164975411e-07 | AA79: 0.0005990054796 | AB79: 0 | AC79: 0 | AD79: 0 | AE79: 0 | AF79: 0 | AG79: 0 | AH79: 0
A80: 4 | B80: 2013-01-03T06:00:00 | C80: W1 | D80: 2 | E80: 2017-01-03T06:00:00 | F80: ='TOU Rates'!H57 -> W1 | G80: 0 | H80: 0.0001141552511 | I80: 0.000203947037 | J80: 5.85216e-05 | K80: 8.66611e-05 | L80: 8.66611e-05 | M80: 5.12874e-05 | N80: 0.0001355570013 | O80: 0.0001375229168 | P80: 0 | Q80: 6.97626e-05 | R80: 6.897425e-05 | S80: 6.80175e-05 | T80: 5.03879e-05 | U80: 1.03965e-05 | V80: -1.618863009e-10 | W80: 6.1151e-06 | X80: 2.3711e-06 | Y80: 4.758872541e-05 | Z80: 6.164975411e-07 | AA80: 0.000686753645 | AB80: 0 | AC80: 0 | AD80: 0 | AE80: 0 | AF80: 0 | AG80: 0 | AH80: 0
A81: 4 | B81: 2013-01-03T07:00:00 | C81: W1 | D81: 2 | E81: 2017-01-03T07:00:00 | F81: ='TOU Rates'!H58 -> W1 | G81: 0 | H81: 0.0001141552511 | I81: 9.757397377e-05 | J81: 7.64495e-05 | K81: 8.71767e-05 | L81: 8.71767e-05 | M81: 5.24949e-05 | N81: 0.0001188600011 | O81: 0.0001201318943 | P81: 0 | Q81: 5.99657e-05 | R81: 6.98358e-05 | S81: 0.000107292 | T81: 0.0001047 | U81: 1.74021e-05 | V81: -7.773292939e-11 | W81: 1.47098e-05 | X81: -3.44497e-06 | Y81: 8.466070434e-05 | Z81: 6.164975411e-07 | AA81: 0.0005397708613 | AB81: 0 | AC81: 0 | AD81: 0 | AE81: 0 | AF81: 0 | AG81: 0 | AH81: 0
A82: 4 | B82: 2013-01-03T08:00:00 | C82: W1 | D82: 2 | E82: 2017-01-03T08:00:00 | F82: ='TOU Rates'!H59 -> W1 | G82: 0 | H82: 0.0001141552511 | I82: 5.919512324e-05 | J82: 9.23391e-05 | K82: 8.82035e-05 | L82: 8.82035e-05 | M82: 5.66566e-05 | N82: 9.869350091e-05 | O82: 9.974210058e-05 | P82: 0 | Q82: 4.86948e-05 | R82: 7.243005e-05 | S82: 0.00014136 | T82: 0.00015583 | U82: 2.08388e-05 | V82: -2.532327349e-11 | W82: 2.48778e-05 | X82: 7.69612e-06 | Y82: 0.0001379382317 | Z82: 8.54010836e-07 | AA82: 0.0003900279487 | AB82: 0 | AC82: 0 | AD82: 0 | AE82: 0 | AF82: 0 | AG82: 0 | AH82: 0
A83: 4 | B83: 2013-01-03T09:00:00 | C83: W1 | D83: 2 | E83: 2017-01-03T09:00:00 | F83: ='TOU Rates'!H60 -> W1 | G83: 0 | H83: 0.0001141552511 | I83: 5.919512324e-05 | J83: 0.000109128 | K83: 9.00778e-05 | L83: 9.00778e-05 | M83: 6.38069e-05 | N83: 8.026370074e-05 | O83: 7.902830382e-05 | P83: 0 | Q83: 3.74774e-05 | R83: 7.694235e-05 | S83: 0.000156202 | T83: 0.000181194 | U83: 2.33889e-05 | V83: -8.173148794e-09 | W83: 3.47621e-05 | X83: 8.90049e-06 | Y83: 0.0001842889859 | Z83: 6.164975411e-07 | AA83: 0.0002130445105 | AB83: 0 | AC83: 0 | AD83: 0 | AE83: 0 | AF83: 0 | AG83: 0 | AH83: 0
A84: 4 | B84: 2013-01-03T10:00:00 | C84: W1 | D84: 2 | E84: 2017-01-03T10:00:00 | F84: ='TOU Rates'!H61 -> W1 | G84: 0 | H84: 0.0001141552511 | I84: 5.919512324e-05 | J84: 0.000119188 | K84: 9.23298e-05 | L84: 9.23298e-05 | M84: 7.16552e-05 | N84: 6.783500063e-05 | O84: 6.032987015e-05 | P84: 0 | Q84: 2.76257e-05 | R84: 8.19925e-05 | S84: 0.000160855 | T84: 0.00018969 | U84: 2.77827e-05 | V84: -4.958171234e-08 | W84: 4.29076e-05 | X84: 8.74322e-06 | Y84: 0.0001557423233 | Z84: 6.164975411e-07 | AA84: 0.0001748563065 | AB84: 0 | AC84: 0 | AD84: 0 | AE84: 0 | AF84: 0 | AG84: 0 | AH84: 0
A85: 4 | B85: 2013-01-03T11:00:00 | C85: W1 | D85: 2 | E85: 2017-01-03T11:00:00 | F85: ='TOU Rates'!H62 -> W1 | G85: 0 | H85: 0.0001141552511 | I85: 5.919512324e-05 | J85: 0.000121373 | K85: 9.43648e-05 | L85: 9.43648e-05 | M85: 7.78955e-05 | N85: 6.52251006e-05 | O85: 4.517642637e-05 | P85: 0 | Q85: 1.99021e-05 | R85: 8.613015e-05 | S85: 0.000159167 | T85: 0.000187797 | U85: 3.73305e-05 | V85: -1.298957645e-07 | W85: 4.61072e-05 | X85: 1.22136e-05 | Y85: 0.0002022866725 | Z85: 6.164975411e-07 | AA85: 0.0001507981145 | AB85: 0 | AC85: 0 | AD85: 0 | AE85: 0 | AF85: 0 | AG85: 0 | AH85: 0
A86: 4 | B86: 2013-01-03T12:00:00 | C86: W1 | D86: 2 | E86: 2017-01-03T12:00:00 | F86: ='TOU Rates'!H63 -> W1 | G86: 0 | H86: 0.0001141552511 | I86: 5.919512324e-05 | J86: 0.000122506 | K86: 9.61801e-05 | L86: 9.61801e-05 | M86: 8.17927e-05 | N86: 7.017710065e-05 | O86: 3.413967151e-05 | P86: 0 | Q86: 1.44812e-05 | R86: 8.89864e-05 | S86: 0.000155092 | T86: 0.000182009 | U86: 5.09131e-05 | V86: -4.12893823e-07 | W86: 4.71336e-05 | X86: 1.64496e-05 | Y86: 0.0002035543007 | Z86: 6.164975411e-07 | AA86: 0.0001277751005 | AB86: 0 | AC86: 0 | AD86: 0 | AE86: 0 | AF86: 0 | AG86: 0 | AH86: 0
A87: 4 | B87: 2013-01-03T13:00:00 | C87: W1 | D87: 2 | E87: 2017-01-03T13:00:00 | F87: ='TOU Rates'!H64 -> W1 | G87: 0 | H87: 0.0001141552511 | I87: 5.919512324e-05 | J87: 0.000124036 | K87: 9.78054e-05 | L87: 9.78054e-05 | M87: 8.39714e-05 | N87: 7.658690071e-05 | O87: 2.695688954e-05 | P87: 0 | Q87: 1.10866e-05 | R87: 9.08884e-05 | S87: 0.000156391 | T87: 0.000183041 | U87: 5.43422e-05 | V87: -6.616337375e-07 | W87: 5.12744e-05 | X87: 1.83357e-05 | Y87: 0.0001907091693 | Z87: 6.164975411e-07 | AA87: 4.395884815e-05 | AB87: =OFFSET(AB$6,MATCH($C87,$E$7:$E$10,0),0)/OFFSET($F$6,MATCH($C87,$E$7:$E$10,0),0) -> 0 | AC87: 0 | AD87: 0 | AE87: 0 | AF87: 0 | AG87: 0 | AH87: 0
A88: 4 | B88: 2013-01-03T14:00:00 | C88: W1 | D88: 2 | E88: 2017-01-03T14:00:00 | F88: ='TOU Rates'!H65 -> W1 | G88: 0 | H88: 0.0001141552511 | I88: 5.919512324e-05 | J88: 0.000127557 | K88: 9.90693e-05 | L88: 9.90693e-05 | M88: 8.51187e-05 | N88: 8.370870078e-05 | O88: 2.295365532e-05 | P88: 0 | Q88: 9.2614e-06 | R88: 9.2094e-05 | S88: 0.000159921 | T88: 0.000187992 | U88: 5.11761e-05 | V88: -4.438451685e-07 | W88: 5.48179e-05 | X88: 1.59607e-05 | Y88: 0.0002118522976 | Z88: 6.164975411e-07 | AA88: 1.993012115e-05 | AB88: 0 | AC88: 0 | AD88: 0 | AE88: 0 | AF88: 0 | AG88: 0 | AH88: 0
A89: 4 | B89: 2013-01-03T15:00:00 | C89: W1 | D89: 2 | E89: 2017-01-03T15:00:00 | F89: ='TOU Rates'!H66 -> W1 | G89: 0 | H89: 0.0001141552511 | I89: 5.919512324e-05 | J89: 0.000125344 | K89: 9.96095e-05 | L89: 9.96095e-05 | M89: 8.45912e-05 | N89: 9.064400084e-05 | O89: 2.14626514e-05 | P89: 0 | Q89: 8.60774e-06 | R89: 9.210035e-05 | S89: 0.000158956 | T89: 0.000188184 | U89: 4.83876e-05 | V89: -1.451330955e-07 | W89: 5.1932e-05 | X89: 1.2236e-05 | Y89: 0.0002160294355 | Z89: 6.164975411e-07 | AA89: 1.472118251e-05 | AB89: 0 | AC89: 0 | AD89: 0 | AE89: 0 | AF89: 0 | AG89: 0 | AH89: 0
A90: 4 | B90: 2013-01-03T16:00:00 | C90: W1 | D90: 2 | E90: 2017-01-03T16:00:00 | F90: ='TOU Rates'!H67 -> W1 | G90: 0 | H90: 0.0001141552511 | I90: 5.919512324e-05 | J90: 0.000122664 | K90: 9.90706e-05 | L90: 9.90706e-05 | M90: 8.10572e-05 | N90: 9.337120086e-05 | O90: 2.205379597e-05 | P90: 0 | Q90: 8.91631e-06 | R90: 9.00639e-05 | S90: 0.000151389 | T90: 0.00018008 | U90: 3.73696e-05 | V90: -3.856142855e-08 | W90: 4.07443e-05 | X90: 1.04126e-05 | Y90: 0.0001635028747 | Z90: 6.164975411e-07 | AA90: 3.924094681e-05 | AB90: 0 | AC90: 0 | AD90: 0 | AE90: 0 | AF90: 0 | AG90: 0 | AH90: 0
A91: =WEEKDAY(B91,2) -> 4 | B91: 2013-01-03T17:00:00 | C91: W1 | D91: =WEEKDAY(E91,2) -> 2 | E91: 2017-01-03T17:00:00 | F91: ='TOU Rates'!H68 -> W1 | G91: 0 | H91: 0.0001141552511 | I91: 5.919512324e-05 | J91: 0.000129467 | K91: 9.76129e-05 | L91: 9.76129e-05 | M91: 7.47279e-05 | N91: 8.926360083e-05 | O91: 2.465239131e-05 | P91: 0 | Q91: 1.02301e-05 | R91: 8.61704e-05 | S91: 0.000136477 | T91: 0.000161405 | U91: 2.1423e-05 | V91: -1.149179728e-10 | W91: 2.40977e-05 | X91: 1.08191e-05 | Y91: 0.0001948710917 | Z91: 6.164975411e-07 | AA91: 0.0001455245914 | AB91: 0 | AC91: 0 | AD91: 0 | AE91: 0 | AF91: 0 | AG91: 0 | AH91: 0
A92: 4 | B92: 2013-01-03T18:00:00 | C92: W1 | D92: 2 | E92: =E91+1/24 -> 2017-01-03T18:00:00 | F92: ='TOU Rates'!H69 -> W1 | G92: 0 | H92: 0.0001141552511 | I92: 5.919512324e-05 | J92: 0.000172549 | K92: 9.58451e-05 | L92: 9.58451e-05 | M92: 6.7816e-05 | N92: 8.289560077e-05 | O92: 2.957023667e-05 | P92: 0 | Q92: 1.27889e-05 | R92: 8.183055e-05 | S92: 0.000119488 | T92: 0.00013899 | U92: 1.23343e-05 | V92: -1.401749656e-10 | W92: 1.09205e-05 | X92: 1.11741e-05 | Y92: 0.0002251902116 | Z92: 6.164975411e-07 | AA92: 0.0002305340073 | AB92: 0 | AC92: 0 | AD92: 0 | AE92: 0 | AF92: 0 | AG92: 0 | AH92: 0
A93: 4 | B93: 2013-01-03T19:00:00 | C93: W1 | D93: 2 | E93: 2017-01-03T19:00:00 | F93: ='TOU Rates'!H70 -> W1 | G93: 0 | H93: 0.0001141552511 | I93: 5.919512324e-05 | J93: 0.000237596 | K93: 9.41834e-05 | L93: 9.41834e-05 | M93: 6.2381e-05 | N93: 8.043960074e-05 | O93: 3.733410516e-05 | P93: 0 | Q93: 1.6939e-05 | R93: 7.82822e-05 | S93: 0.000103398 | T93: 0.000115307 | U93: 1.0102e-05 | V93: -5.538556785e-11 | W93: 5.06669e-06 | X93: 1.03082e-05 | Y93: 0.0002004670992 | Z93: 6.164975411e-07 | AA93: 0.000245822537 | AB93: 0 | AC93: 0 | AD93: 0 | AE93: 0 | AF93: 0 | AG93: 0 | AH93: 0
A94: 4 | B94: =B93+1/24 -> 2013-01-03T20:00:00 | C94: W1 | D94: 2 | E94: 2017-01-03T20:00:00 | F94: ='TOU Rates'!H71 -> W1 | G94: 0 | H94: 0.0001141552511 | I94: 5.919512324e-05 | J94: 0.000270849 | K94: 9.26347e-05 | L94: 9.26347e-05 | M94: 5.88563e-05 | N94: 8.457360078e-05 | O94: 4.841417665e-05 | P94: 0 | Q94: 2.29527e-05 | R94: 7.57455e-05 | S94: 8.69523e-05 | T94: 8.89114e-05 | U94: 9.328e-06 | V94: 3.686335955e-11 | W94: 2.37192e-06 | X94: 1.08378e-05 | Y94: 0.0001823588111 | Z94: 6.164975411e-07 | AA94: 0.00023854271 | AB94: 0 | AC94: 0 | AD94: 0 | AE94: 0 | AF94: 0 | AG94: 0 | AH94: 0
A95: 4 | B95: 2013-01-03T21:00:00 | C95: W1 | D95: 2 | E95: 2017-01-03T21:00:00 | F95: ='TOU Rates'!H72 -> W1 | G95: 0 | H95: 0.0001141552511 | I95: 5.919512324e-05 | J95: 0.000250996 | K95: 9.10364e-05 | L95: 9.10364e-05 | M95: 5.66189e-05 | N95: 9.528140088e-05 | O95: 6.292162602e-05 | P95: 0 | Q95: 3.0835e-05 | R95: 7.382765e-05 | S95: 7.18068e-05 | T95: 6.36831e-05 | U95: 7.73782e-06 | V95: 5.178334949e-11 | W95: 1.12366e-06 | X95: 1.01204e-05 | Y95: 0.0001704095299 | Z95: 6.164975411e-07 | AA95: 0.0002535261969 | AB95: 0 | AC95: 0 | AD95: 0 | AE95: 0 | AF95: 0 | AG95: 0 | AH95: 0
A96: 4 | B96: 2013-01-03T22:00:00 | C96: W3 | D96: 2 | E96: 2017-01-03T22:00:00 | F96: ='TOU Rates'!H73 -> W3 | G96: 0 | H96: 0.0001141552511 | I96: 5.919512324e-05 | J96: 0.000200734 | K96: 8.93997e-05 | L96: 8.93997e-05 | M96: 5.48374e-05 | N96: 0.000111499001 | O96: 8.040987626e-05 | P96: 0 | Q96: 4.02853e-05 | R96: 7.211855e-05 | S96: 5.94731e-05 | T96: 4.23291e-05 | U96: 5.98207e-06 | V96: 8.261640296e-11 | W96: 9.73023e-07 | X96: 8.37559e-06 | Y96: 0.0001276344998 | Z96: 6.164975411e-07 | AA96: 0.000187808295 | AB96: 0 | AC96: 0 | AD96: 0 | AE96: 0 | AF96: 0 | AG96: 0 | AH96: 0
A97: 4 | B97: 2013-01-03T23:00:00 | C97: W3 | D97: 2 | E97: 2017-01-03T23:00:00 | F97: ='TOU Rates'!H74 -> W3 | G97: 0 | H97: 0.0001141552511 | I97: 5.919512324e-05 | J97: 0.000137527 | K97: 8.80726e-05 | L97: 8.80726e-05 | M97: 5.31017e-05 | N97: 0.0001315860012 | O97: 9.838372869e-05 | P97: 0 | Q97: 4.92829e-05 | R97: 7.058715e-05 | S97: 5.19387e-05 | T97: 2.98564e-05 | U97: 4.98802e-06 | V97: -7.845881202e-11 | W97: 8.72066e-07 | X97: 1.71409e-05 | Y97: 7.901413587e-05 | Z97: 6.164975411e-07 | AA97: 0.00016212032 | AB97: 0 | AC97: 0 | AD97: 0 | AE97: 0 | AF97: 0 | AG97: 0 | AH97: 0
A98: 5 | B98: 2013-01-04 | C98: W3 | D98: 3 | E98: 2017-01-04 | F98: ='TOU Rates'!H75 -> W3 | G98: 0 | H98: 0.0001141552511 | I98: 7.708116334e-05 | J98: 9.10076e-05 | K98: 8.72341e-05 | L98: 8.72341e-05 | M98: 5.13044e-05 | N98: 0.0001495650014 | O98: 0.0001146851301 | P98: 0 | Q98: 5.66095e-05 | R98: 6.926925e-05 | S98: 4.80932e-05 | T98: 2.39556e-05 | U98: 4.22603e-06 | V98: -4.147943533e-10 | W98: 7.99075e-07 | X98: 3.15446e-05 | Y98: 4.40018957e-05 | Z98: 6.164975411e-07 | AA98: 0.0001676014926 | AB98: 0 | AC98: 0 | AD98: 0 | AE98: 0 | AF98: 0 | AG98: 0 | AH98: 0
A99: 5 | B99: 2013-01-04T01:00:00 | C99: W3 | D99: 3 | E99: 2017-01-04T01:00:00 | F99: ='TOU Rates'!H76 -> W3 | G99: 0 | H99: 0.0001141552511 | I99: 0.0001026318863 | J99: 5.98769e-05 | K99: 8.66758e-05 | L99: 8.66758e-05 | M99: 4.90761e-05 | N99: 0.0001637810015 | O99: 0.0001297106357 | P99: 0 | Q99: 6.3712e-05 | R99: 6.787595e-05 | S99: 4.62005e-05 | T99: 2.11566e-05 | U99: 3.73092e-06 | V99: -5.617297471e-10 | W99: 7.19105e-07 | X99: 3.27407e-05 | Y99: 1.874078171e-05 | Z99: 5.604520986e-07 | AA99: 0.0001774553337 | AB99: 0 | AC99: 0 | AD99: 0 | AE99: 0 | AF99: 0 | AG99: 0 | AH99: 0
A100: 5 | B100: 2013-01-04T02:00:00 | C100: W3 | D100: 3 | E100: 2017-01-04T02:00:00 | F100: ='TOU Rates'!H77 -> W3 | G100: 0 | H100: 0.0001141552511 | I100: 0.0001257431646 | J100: 4.68452e-05 | K100: 8.63177e-05 | L100: 8.63177e-05 | M100: 4.62932e-05 | N100: 0.0001757030016 | O100: 0.0001419243154 | P100: 0 | Q100: 6.99273e-05 | R100: 6.630545e-05 | S100: 4.59083e-05 | T100: 2.10577e-05 | U100: 3.35474e-06 | V100: -8.330506084e-10 | W100: 6.52773e-07 | X100: 2.62773e-05 | Y100: 1.397086802e-05 | Z100: 6.164975411e-07 | AA100: 0.0001851505276 | AB100: 0 | AC100: 0 | AD100: 0 | AE100: 0 | AF100: 0 | AG100: 0 | AH100: 0
A101: 5 | B101: 2013-01-04T03:00:00 | C101: W3 | D101: 3 | E101: 2017-01-04T03:00:00 | F101: ='TOU Rates'!H78 -> W3 | G101: 0 | H101: 0.0001141552511 | I101: 0.0001436625173 | J101: 4.23512e-05 | K101: 8.61546e-05 | L101: 8.61546e-05 | M101: 4.34105e-05 | N101: 0.0001841550017 | O101: 0.0001490655241 | P101: 0 | Q101: 7.34901e-05 | R101: 6.478255e-05 | S101: 4.59426e-05 | T101: 2.12358e-05 | U101: 2.768e-06 | V101: -1.189154973e-09 | W101: 6.14101e-07 | X101: 4.32463e-05 | Y101: 1.450424112e-05 | Z101: 6.164975411e-07 | AA101: 0.000207288328 | AB101: 0 | AC101: 0 | AD101: 0 | AE101: 0 | AF101: 0 | AG101: 0 | AH101: 0
A102: 5 | B102: 2013-01-04T04:00:00 | C102: W3 | D102: 3 | E102: 2017-01-04T04:00:00 | F102: ='TOU Rates'!H79 -> W3 | G102: 0 | H102: 0.0001141552511 | I102: 0.0001379050412 | J102: 3.84819e-05 | K102: 8.6126e-05 | L102: 8.6126e-05 | M102: 4.12954e-05 | N102: 0.0001880380017 | O102: 0.0001502818765 | P102: 0 | Q102: 7.39187e-05 | R102: 6.37107e-05 | S102: 4.68736e-05 | T102: 2.22992e-05 | U102: 2.26696e-06 | V102: -1.106143781e-09 | W102: 6.00515e-07 | X102: 5.86185e-05 | Y102: 1.960888454e-05 | Z102: 6.164975411e-07 | AA102: 0.0002909055262 | AB102: 0 | AC102: 0 | AD102: 0 | AE102: 0 | AF102: 0 | AG102: 0 | AH102: 0
A103: 5 | B103: 2013-01-04T05:00:00 | C103: W3 | D103: 3 | E103: 2017-01-04T05:00:00 | F103: ='TOU Rates'!H80 -> W3 | G103: 0 | H103: 0.0001141552511 | I103: 0.0001330294576 | J103: 4.49272e-05 | K103: 8.62371e-05 | L103: 8.62371e-05 | M103: 4.01351e-05 | N103: 0.0001846970017 | O103: 0.0001450959508 | P103: 0 | Q103: 7.09129e-05 | R103: 6.31861e-05 | S103: 5.05453e-05 | T103: 2.59487e-05 | U103: 3.39249e-06 | V103: -7.672496589e-10 | W103: 1.37112e-06 | X103: 2.52501e-05 | Y103: 2.954489742e-05 | Z103: 5.604520986e-07 | AA103: 0.0003899994908 | AB103: 0 | AC103: 0 | AD103: 0 | AE103: 0 | AF103: 0 | AG103: 0 | AH103: 0
A104: 5 | B104: 2013-01-04T06:00:00 | C104: W1 | D104: 3 | E104: 2017-01-04T06:00:00 | F104: ='TOU Rates'!H81 -> W1 | G104: 0 | H104: 0.0001141552511 | I104: 0.0001382582559 | J104: 5.86384e-05 | K104: 8.65116e-05 | L104: 8.65116e-05 | M104: 3.90999e-05 | N104: 0.0001766390016 | O104: 0.0001337109195 | P104: 0 | Q104: 6.46203e-05 | R104: 6.280575e-05 | S104: 6.98804e-05 | T104: 5.04164e-05 | U104: 5.82271e-06 | V104: -4.696791449e-10 | W104: 4.64852e-06 | X104: -3.47467e-06 | Y104: 4.390124259e-05 | Z104: 6.164975411e-07 | AA104: 0.0005296369965 | AB104: =OFFSET(AB$6,MATCH($C104,$E$7:$E$10,0),0)/OFFSET($F$6,MATCH($C104,$E$7:$E$10,0),0) -> 0 | AC104: 0 | AD104: 0 | AE104: 0 | AF104: 0 | AG104: 0 | AH104: 0
A105: 5 | B105: 2013-01-04T07:00:00 | C105: W1 | D105: 3 | E105: 2017-01-04T07:00:00 | F105: ='TOU Rates'!H82 -> W1 | G105: 0 | H105: 0.0001141552511 | I105: 9.578857386e-05 | J105: 7.65597e-05 | K105: 8.69353e-05 | L105: 8.69353e-05 | M105: 3.90737e-05 | N105: 0.0001605820015 | O105: 0.0001172876146 | P105: 0 | Q105: 5.57305e-05 | R105: 6.30045e-05 | S105: 0.000109304 | T105: 0.000104865 | U105: 8.58851e-06 | V105: -3.031635327e-10 | W105: 1.07028e-05 | X105: 5.13314e-06 | Y105: 7.356619494e-05 | Z105: 6.164975411e-07 | AA105: 0.0004956895653 | AB105: 0 | AC105: 0 | AD105: 0 | AE105: 0 | AF105: 0 | AG105: 0 | AH105: 0
A106: 5 | B106: 2013-01-04T08:00:00 | C106: W1 | D106: 3 | E106: 2017-01-04T08:00:00 | F106: ='TOU Rates'!H83 -> W1 | G106: 0 | H106: 0.0001141552511 | I106: 5.919512324e-05 | J106: 9.24319e-05 | K106: 8.77375e-05 | L106: 8.77375e-05 | M106: 4.24429e-05 | N106: 0.0001290720012 | O106: 9.790617293e-05 | P106: 0 | Q106: 4.54308e-05 | R106: 6.50902e-05 | S106: 0.000143516 | T106: 0.000156079 | U106: 1.31598e-05 | V106: -3.131966368e-09 | W106: 1.97857e-05 | X106: 1.04249e-05 | Y106: 0.0001700924713 | Z106: 6.725429836e-07 | AA106: 0.0003368168579 | AB106: 0 | AC106: 0 | AD106: 0 | AE106: 0 | AF106: 0 | AG106: 0 | AH106: 0
A107: 5 | B107: 2013-01-04T09:00:00 | C107: W1 | D107: 3 | E107: 2017-01-04T09:00:00 | F107: ='TOU Rates'!H84 -> W1 | G107: 0 | H107: 0.0001141552511 | I107: 5.919512324e-05 | J107: 0.000109175 | K107: 8.92381e-05 | L107: 8.92381e-05 | M107: 4.9604e-05 | N107: 9.012180083e-05 | O107: 7.804824835e-05 | P107: 0 | Q107: 3.51326e-05 | R107: 6.942105e-05 | S107: 0.00015849 | T107: 0.000181415 | U107: 1.79076e-05 | V107: 7.913382081e-08 | W107: 3.3009e-05 | X107: 1.02486e-05 | Y107: 0.0001941852382 | Z107: 6.164975411e-07 | AA107: 0.0003893359174 | AB107: 0 | AC107: 0 | AD107: 0 | AE107: 0 | AF107: 0 | AG107: 0 | AH107: 0
A108: 5 | B108: 2013-01-04T10:00:00 | C108: W1 | D108: 3 | E108: 2017-01-04T10:00:00 | F108: ='TOU Rates'!H85 -> W1 | G108: 0 | H108: 0.0001141552511 | I108: 5.919512324e-05 | J108: 0.000119203 | K108: 9.11945e-05 | L108: 9.11945e-05 | M108: 5.88521e-05 | N108: 5.675210053e-05 | O108: 5.996201408e-05 | P108: 0 | Q108: 2.60183e-05 | R108: 7.50233e-05 | S108: 0.000163259 | T108: 0.000189767 | U108: 2.08749e-05 | V108: 3.782696356e-07 | W108: 4.67835e-05 | X108: 1.34885e-05 | Y108: 0.0002730412078 | Z108: 6.164975411e-07 | AA108: 0.0002819231042 | AB108: 0 | AC108: 0 | AD108: 0 | AE108: 0 | AF108: 0 | AG108: 0 | AH108: 0
A109: 5 | B109: 2013-01-04T11:00:00 | C109: W1 | D109: 3 | E109: 2017-01-04T11:00:00 | F109: ='TOU Rates'!H86 -> W1 | G109: 0 | H109: 0.0001141552511 | I109: 5.919512324e-05 | J109: 0.00012138 | K109: 9.33073e-05 | L109: 9.33073e-05 | M109: 6.83418e-05 | N109: 3.648390034e-05 | O109: 4.517615816e-05 | P109: 0 | Q109: 1.8831e-05 | R109: 8.082455e-05 | S109: 0.000161677 | T109: 0.000187691 | U109: 2.75014e-05 | V109: 9.788144565e-07 | W109: 5.61631e-05 | X109: 1.31666e-05 | Y109: 0.0002622166949 | Z109: 6.725429836e-07 | AA109: 0.000232972804 | AB109: 0 | AC109: 0 | AD109: 0 | AE109: 0 | AF109: 0 | AG109: 0 | AH109: 0
A110: 5 | B110: 2013-01-04T12:00:00 | C110: W1 | D110: 3 | E110: 2017-01-04T12:00:00 | F110: ='TOU Rates'!H87 -> W1 | G110: 0 | H110: 0.0001141552511 | I110: 5.919512324e-05 | J110: 0.000122473 | K110: 9.56609e-05 | L110: 9.56609e-05 | M110: 7.69305e-05 | N110: 2.523110023e-05 | O110: 3.429429712e-05 | P110: 0 | Q110: 1.37433e-05 | R110: 8.62957e-05 | S110: 0.00015769 | T110: 0.000181785 | U110: 4.21532e-05 | V110: 1.698792819e-06 | W110: 6.42102e-05 | X110: 2.19868e-05 | Y110: 0.0001817617318 | Z110: 6.164975411e-07 | AA110: 0.000219486686 | AB110: 0 | AC110: 0 | AD110: 0 | AE110: 0 | AF110: 0 | AG110: 0 | AH110: 0
A111: 5 | B111: 2013-01-04T13:00:00 | C111: W1 | D111: 3 | E111: 2017-01-04T13:00:00 | F111: ='TOU Rates'!H88 -> W1 | G111: 0 | H111: 0.0001141552511 | I111: 5.919512324e-05 | J111: 0.000124019 | K111: 9.81757e-05 | L111: 9.81757e-05 | M111: 8.42093e-05 | N111: 1.652910015e-05 | O111: 2.712948551e-05 | P111: 0 | Q111: 1.05295e-05 | R111: 9.11925e-05 | S111: 0.000159021 | T111: 0.000182818 | U111: 5.47309e-05 | V111: 1.666903617e-06 | W111: 7.46316e-05 | X111: 4.55941e-05 | Y111: 0.0002038078991 | Z111: 6.164975411e-07 | AA111: 0.0001482328483 | AB111: 0 | AC111: 0 | AD111: 0 | AE111: 0 | AF111: 0 | AG111: 0 | AH111: 0
A112: 5 | B112: 2013-01-04T14:00:00 | C112: W1 | D112: 3 | E112: 2017-01-04T14:00:00 | F112: ='TOU Rates'!H89 -> W1 | G112: 0 | H112: 0.0001141552511 | I112: 5.919512324e-05 | J112: 0.000127522 | K112: 0.000100352 | L112: 0.000100352 | M112: 8.97436e-05 | N112: 1.200000011e-05 | O112: 2.310170968e-05 | P112: 0 | Q112: 8.78196e-06 | R112: 9.50478e-05 | S112: 0.000162477 | T112: 0.000187852 | U112: 5.73565e-05 | V112: 9.181463865e-08 | W112: 8.0606e-05 | X112: 4.93901e-05 | Y112: 0.0001424578665 | Z112: 6.164975411e-07 | AA112: 9.058128405e-05 | AB112: 0 | AC112: 0 | AD112: 0 | AE112: 0 | AF112: 0 | AG112: 0 | AH112: 0
A113: 5 | B113: 2013-01-04T15:00:00 | C113: W1 | D113: 3 | E113: 2017-01-04T15:00:00 | F113: ='TOU Rates'!H90 -> W1 | G113: 0 | H113: 0.0001141552511 | I113: 5.919512324e-05 | J113: 0.000125311 | K113: 0.00010133 | L113: 0.00010133 | M113: 9.18598e-05 | N113: 1.437680013e-05 | O113: 2.158227503e-05 | P113: 0 | Q113: 8.14667e-06 | R113: 9.65949e-05 | S113: 0.000161308 | T113: 0.000188129 | U113: 5.31104e-05 | V113: -1.224104877e-06 | W113: 7.3734e-05 | X113: 2.34472e-05 | Y113: 0.0001306100346 | Z113: 6.164975411e-07 | AA113: 9.695835361e-05 | AB113: 0 | AC113: 0 | AD113: 0 | AE113: 0 | AF113: 0 | AG113: 0 | AH113: 0
A114: 5 | B114: 2013-01-04T16:00:00 | C114: W1 | D114: 3 | E114: 2017-01-04T16:00:00 | F114: ='TOU Rates'!H91 -> W1 | G114: 0 | H114: 0.0001141552511 | I114: 5.919512324e-05 | J114: 0.000122626 | K114: 0.000100546 | L114: 0.000100546 | M114: 8.84685e-05 | N114: 2.494300023e-05 | O114: 2.214324548e-05 | P114: 0 | Q114: 8.41859e-06 | R114: 9.450725e-05 | S114: 0.000153438 | T114: 0.000180053 | U114: 3.97006e-05 | V114: -6.649415701e-07 | W114: 5.4177e-05 | X114: 3.93119e-06 | Y114: 0.0001537045685 | Z114: 6.164975411e-07 | AA114: 0.0001119849071 | AB114: 0 | AC114: 0 | AD114: 0 | AE114: 0 | AF114: 0 | AG114: 0 | AH114: 0
A115: 5 | B115: 2013-01-04T17:00:00 | C115: W1 | D115: 3 | E115: 2017-01-04T17:00:00 | F115: ='TOU Rates'!H92 -> W1 | G115: 0 | H115: 0.0001141552511 | I115: 5.919512324e-05 | J115: 0.000129428 | K115: 9.8557e-05 | L115: 9.8557e-05 | M115: 8.03284e-05 | N115: 4.000120037e-05 | O115: 2.468511346e-05 | P115: 0 | Q115: 9.63268e-06 | R115: 8.94427e-05 | S115: 0.000138183 | T115: 0.000161356 | U115: 2.19269e-05 | V115: 2.834737081e-10 | W115: 2.95802e-05 | X115: 2.50542e-06 | Y115: 0.0001201302888 | Z115: 6.164975411e-07 | AA115: 0.0002454505618 | AB115: 0 | AC115: 0 | AD115: 0 | AE115: 0 | AF115: 0 | AG115: 0 | AH115: 0
A116: 5 | B116: 2013-01-04T18:00:00 | C116: W1 | D116: 3 | E116: 2017-01-04T18:00:00 | F116: ='TOU Rates'!H93 -> W1 | G116: 0 | H116: 0.0001141552511 | I116: 5.919512324e-05 | J116: 0.000172549 | K116: 9.63727e-05 | L116: 9.63727e-05 | M116: 7.09972e-05 | N116: 5.466330051e-05 | O116: 2.949191806e-05 | P116: 0 | Q116: 1.19982e-05 | R116: 8.368495e-05 | S116: 0.00012087 | T116: 0.000138903 | U116: 1.26365e-05 | V116: 7.380375365e-11 | W116: 1.16875e-05 | X116: 5.3619e-06 | Y116: 0.0001665530085 | Z116: 6.164975411e-07 | AA116: 0.0004220444344 | AB116: 0 | AC116: 0 | AD116: 0 | AE116: 0 | AF116: 0 | AG116: 0 | AH116: 0
A117: 5 | B117: 2013-01-04T19:00:00 | C117: W1 | D117: 3 | E117: 2017-01-04T19:00:00 | F117: ='TOU Rates'!H94 -> W1 | G117: 0 | H117: 0.0001141552511 | I117: 5.919512324e-05 | J117: 0.000237612 | K117: 9.44089e-05 | L117: 9.44089e-05 | M117: 6.30978e-05 | N117: 6.799180063e-05 | O117: 3.701586876e-05 | P117: 0 | Q117: 1.5827e-05 | R117: 7.875335e-05 | S117: 0.000104515 | T117: 0.000115188 | U117: 1.06283e-05 | V117: -2.200510065e-10 | W117: 4.55211e-06 | X117: 5.56612e-06 | Y117: 0.0001907451176 | Z117: 6.164975411e-07 | AA117: 0.0003005991198 | AB117: =OFFSET(AB$6,MATCH($C117,$E$7:$E$10,0),0)/OFFSET($F$6,MATCH($C117,$E$7:$E$10,0),0) -> 0 | AC117: 0 | AD117: 0 | AE117: 0 | AF117: 0 | AG117: 0 | AH117: 0
A118: 5 | B118: 2013-01-04T20:00:00 | C118: W1 | D118: 3 | E118: 2017-01-04T20:00:00 | F118: ='TOU Rates'!H95 -> W1 | G118: 0 | H118: 0.0001141552511 | I118: 5.919512324e-05 | J118: 0.000270913 | K118: 9.26011e-05 | L118: 9.26011e-05 | M118: 5.71706e-05 | N118: 8.378510078e-05 | O118: 4.771748972e-05 | P118: 0 | Q118: 2.13659e-05 | R118: 7.488585e-05 | S118: 8.78857e-05 | T118: 8.87607e-05 | U118: 9.48968e-06 | V118: -4.094288192e-10 | W118: 2.01428e-06 | X118: 3.78116e-06 | Y118: 0.0001551266064 | Z118: 6.164975411e-07 | AA118: 0.0002057623134 | AB118: 0 | AC118: 0 | AD118: 0 | AE118: 0 | AF118: 0 | AG118: 0 | AH118: 0
A119: 5 | B119: 2013-01-04T21:00:00 | C119: W1 | D119: 3 | E119: 2017-01-04T21:00:00 | F119: ='TOU Rates'!H96 -> W1 | G119: 0 | H119: 0.0001141552511 | I119: 5.919512324e-05 | J119: 0.000251117 | K119: 9.0829e-05 | L119: 9.0829e-05 | M119: 5.26253e-05 | N119: 0.000105508001 | O119: 6.165270363e-05 | P119: 0 | Q119: 2.86158e-05 | R119: 7.172715e-05 | S119: 7.2653e-05 | T119: 6.34896e-05 | U119: 7.78897e-06 | V119: -5.585242825e-10 | W119: 8.58877e-07 | X119: 5.03827e-06 | Y119: 0.0001193365623 | Z119: 6.164975411e-07 | AA119: 0.0001976312459 | AB119: 0 | AC119: 0 | AD119: 0 | AE119: 0 | AF119: 0 | AG119: 0 | AH119: 0
A120: 5 | B120: 2013-01-04T22:00:00 | C120: W3 | D120: 3 | E120: 2017-01-04T22:00:00 | F120: ='TOU Rates'!H97 -> W3 | G120: 0 | H120: 0.0001141552511 | I120: 5.919512324e-05 | J120: 0.00020089 | K120: 8.90343e-05 | L120: 8.90343e-05 | M120: 4.83944e-05 | N120: 0.0001318650012 | O120: 8.053768042e-05 | P120: 0 | Q120: 3.85058e-05 | R120: 6.871435e-05 | S120: 5.8824e-05 | T120: 4.12948e-05 | U120: 5.89167e-06 | V120: -1.063076814e-09 | W120: 7.23239e-07 | X120: 1.55987e-05 | Y120: 9.418095217e-05 | Z120: 5.604520986e-07 | AA120: 0.000194655187 | AB120: 0 | AC120: 0 | AD120: 0 | AE120: 0 | AF120: 0 | AG120: 0 | AH120: 0
A121: 5 | B121: 2013-01-04T23:00:00 | C121: W3 | D121: 3 | E121: 2017-01-04T23:00:00 | F121: ='TOU Rates'!H98 -> W3 | G121: 0 | H121: 0.0001141552511 | I121: 8.557993135e-05 | J121: 0.000123162 | K121: 8.74785e-05 | L121: 8.74785e-05 | M121: 4.4603e-05 | N121: 0.0001603140015 | O121: 0.0001030333596 | P121: 0 | Q121: 5.05472e-05 | R121: 6.604075e-05 | S121: 4.66411e-05 | T121: 2.80873e-05 | U121: 4.72772e-06 | V121: -1.837806579e-09 | W121: 5.67195e-07 | X121: 2.89565e-05 | Y121: 6.65785236e-05 | Z121: 6.164975411e-07 | AA121: 0.0002444110726 | AB121: 0 | AC121: 0 | AD121: 0 | AE121: 0 | AF121: 0 | AG121: 0 | AH121: 0
A122: 6 | B122: 2013-01-05 | C122: W3 | D122: 4 | E122: 2017-01-05 | F122: ='TOU Rates'!H99 -> W3 | G122: 0 | H122: 0.0001141552511 | I122: 0.0001340631638 | J122: 9.19975e-05 | K122: 8.64042e-05 | L122: 8.64042e-05 | M122: 4.17672e-05 | N122: 0.0001835270017 | O122: 0.0001261836161 | P122: 0 | Q122: 6.30988e-05 | R122: 6.40857e-05 | S122: 3.64756e-05 | T122: 2.23057e-05 | U122: 3.76803e-06 | V122: -2.669293748e-09 | W122: 3.81626e-07 | X122: 3.99392e-05 | Y122: 4.018482419e-05 | Z122: 6.164975411e-07 | AA122: 0.0001668136558 | AB122: 0 | AC122: 0 | AD122: 0 | AE122: 0 | AF122: 0 | AG122: 0 | AH122: 0
A123: 6 | B123: 2013-01-05T01:00:00 | C123: W3 | D123: 4 | E123: 2017-01-05T01:00:00 | F123: ='TOU Rates'!H100 -> W3 | G123: 0 | H123: 0.0001141552511 | I123: 0.000169724626 | J123: 5.09599e-05 | K123: 8.5716e-05 | L123: 8.5716e-05 | M123: 3.95535e-05 | N123: 0.0001951140018 | O123: 0.0001491513527 | P123: 0 | Q123: 7.52791e-05 | R123: 6.263475e-05 | S123: 3.04227e-05 | T123: 1.86468e-05 | U123: 2.9996e-06 | V123: -3.127447697e-09 | W123: 2.94963e-07 | X123: 4.84741e-05 | Y123: 1.325040462e-05 | Z123: 6.164975411e-07 | AA123: 0.0001920634661 | AB123: 0 | AC123: 0 | AD123: 0 | AE123: 0 | AF123: 0 | AG123: 0 | AH123: 0
A124: 6 | B124: 2013-01-05T02:00:00 | C124: W3 | D124: 4 | E124: 2017-01-05T02:00:00 | F124: ='TOU Rates'!H101 -> W3 | G124: 0 | H124: 0.0001141552511 | I124: 0.0001742742043 | J124: 3.70126e-05 | K124: 8.54214e-05 | L124: 8.54214e-05 | M124: 3.82428e-05 | N124: 0.0001983100018 | O124: 0.0001668494807 | P124: 0 | Q124: 8.43512e-05 | R124: 6.18321e-05 | S124: 3.00031e-05 | T124: 1.75277e-05 | U124: 2.78237e-06 | V124: -3.035792091e-09 | W124: 2.92334e-07 | X124: 4.25319e-05 | Y124: 8.583239661e-06 | Z124: 5.604520986e-07 | AA124: 0.0001828901044 | AB124: 0 | AC124: 0 | AD124: 0 | AE124: 0 | AF124: 0 | AG124: 0 | AH124: 0
A125: 6 | B125: 2013-01-05T03:00:00 | C125: W3 | D125: 4 | E125: 2017-01-05T03:00:00 | F125: ='TOU Rates'!H102 -> W3 | G125: 0 | H125: 0.0001141552511 | I125: 0.000177717857 | J125: 3.33267e-05 | K125: 8.54207e-05 | L125: 8.54207e-05 | M125: 3.75429e-05 | N125: 0.0001997810018 | O125: 0.0001768766765 | P125: 0 | Q125: 8.92931e-05 | R125: 6.14818e-05 | S125: 3.14285e-05 | T125: 1.74003e-05 | U125: 2.52202e-06 | V125: -2.72301113e-09 | W125: 2.82393e-07 | X125: 2.99598e-05 | Y125: 7.816639334e-06 | Z125: 6.164975411e-07 | AA125: 0.0001022653228 | AB125: 0 | AC125: 0 | AD125: 0 | AE125: 0 | AF125: 0 | AG125: 0 | AH125: 0
A126: 6 | B126: 2013-01-05T04:00:00 | C126: W3 | D126: 4 | E126: 2017-01-05T04:00:00 | F126: ='TOU Rates'!H103 -> W3 | G126: 0 | H126: 0.0001141552511 | I126: 0.0001764822413 | J126: 3.17625e-05 | K126: 8.55101e-05 | L126: 8.55101e-05 | M126: 3.65729e-05 | N126: 0.0002019600019 | O126: 0.0001799665066 | P126: 0 | Q126: 9.05601e-05 | R126: 6.10415e-05 | S126: 3.23061e-05 | T126: 1.75952e-05 | U126: 2.02795e-06 | V126: -2.321986832e-09 | W126: 2.65245e-07 | X126: 2.15475e-05 | Y126: 2.536363256e-06 | Z126: 6.164975411e-07 | AA126: 0.0001187404149 | AB126: 0 | AC126: 0 | AD126: 0 | AE126: 0 | AF126: 0 | AG126: 0 | AH126: 0
A127: 6 | B127: 2013-01-05T05:00:00 | C127: W3 | D127: 4 | E127: 2017-01-05T05:00:00 | F127: ='TOU Rates'!H104 -> W3 | G127: 0 | H127: 0.0001141552511 | I127: 0.0001851737643 | J127: 3.91838e-05 | K127: 8.56864e-05 | L127: 8.56864e-05 | M127: 3.52747e-05 | N127: 0.0002026380019 | O127: 0.0001741073627 | P127: 0 | Q127: 8.70952e-05 | R127: 6.048055e-05 | S127: 3.34196e-05 | T127: 1.85829e-05 | U127: 2.96314e-06 | V127: -2.059552346e-09 | W127: 2.47081e-07 | X127: 5.00501e-05 | Y127: 7.311100005e-06 | Z127: 5.604520986e-07 | AA127: 0.0001695874808 | AB127: 0 | AC127: 0 | AD127: 0 | AE127: 0 | AF127: 0 | AG127: 0 | AH127: 0
A128: 6 | B128: 2013-01-05T06:00:00 | C128: W3 | D128: 4 | E128: 2017-01-05T06:00:00 | F128: ='TOU Rates'!H105 -> W1 | G128: 0 | H128: 0.0001141552511 | I128: 0.000244377025 | J128: 5.33328e-05 | K128: 8.60146e-05 | L128: 8.60146e-05 | M128: 3.42027e-05 | N128: 0.0001948170018 | O128: 0.0001582518677 | P128: 0 | Q128: 7.83437e-05 | R128: 6.010865e-05 | S128: 4.01255e-05 | T128: 2.52085e-05 | U128: 5.30799e-06 | V128: -1.871226133e-09 | W128: 2.57827e-07 | X128: 8.90409e-05 | Y128: 1.782751994e-05 | Z128: 6.164975411e-07 | AA128: 0.0004075975005 | AB128: 0 | AC128: 0 | AD128: 0 | AE128: 0 | AF128: 0 | AG128: 0 | AH128: 0
A129: 6 | B129: 2013-01-05T07:00:00 | C129: W3 | D129: 4 | E129: 2017-01-05T07:00:00 | F129: ='TOU Rates'!H106 -> W1 | G129: 0 | H129: 0.0001141552511 | I129: 0.0001261225716 | J129: 7.25357e-05 | K129: 8.6579e-05 | L129: 8.6579e-05 | M129: 3.5497e-05 | N129: 0.0001691680016 | O129: 0.0001338401989 | P129: 0 | Q129: 6.513e-05 | R129: 6.1038e-05 | S129: 5.72967e-05 | T129: 4.54801e-05 | U129: 7.6391e-06 | V129: -1.449831624e-09 | W129: 6.08113e-07 | X129: 6.10763e-05 | Y129: 4.435680757e-05 | Z129: 6.164975411e-07 | AA129: 0.0005944155267 | AB129: 0 | AC129: 0 | AD129: 0 | AE129: 0 | AF129: 0 | AG129: 0 | AH129: 0
A130: 6 | B130: 2013-01-05T08:00:00 | C130: W3 | D130: 4 | E130: 2017-01-05T08:00:00 | F130: ='TOU Rates'!H107 -> W1 | G130: 0 | H130: 0.0001141552511 | I130: 5.919512324e-05 | J130: 9.00855e-05 | K130: 8.77499e-05 | L130: 8.77499e-05 | M130: 4.19232e-05 | N130: 0.0001320700012 | O130: 0.0001050058084 | P130: 0 | Q130: 4.97905e-05 | R130: 6.483655e-05 | S130: 7.77594e-05 | T130: 7.3841e-05 | U130: 1.26723e-05 | V130: -9.208699973e-10 | W130: 3.06041e-06 | X130: 2.09343e-05 | Y130: 0.0001076452391 | Z130: 6.164975411e-07 | AA130: 0.0005059725889 | AB130: 0 | AC130: 0 | AD130: 0 | AE130: 0 | AF130: 0 | AG130: 0 | AH130: 0
A131: 6 | B131: 2013-01-05T09:00:00 | C131: W3 | D131: 4 | E131: 2017-01-05T09:00:00 | F131: ='TOU Rates'!H108 -> W1 | G131: 0 | H131: 0.0001141552511 | I131: 5.919512324e-05 | J131: 0.000102311 | K131: 8.98425e-05 | L131: 8.98425e-05 | M131: 5.30661e-05 | N131: 9.920980092e-05 | O131: 7.689224423e-05 | P131: 0 | Q131: 3.51816e-05 | R131: 7.14543e-05 | S131: 9.06989e-05 | T131: 9.29722e-05 | U131: 2.24696e-05 | V131: 1.070945712e-07 | W131: 8.36677e-06 | X131: 1.4392e-05 | Y131: 0.0002469742138 | Z131: 6.164975411e-07 | AA131: 0.0003756573426 | AB131: 0 | AC131: 0 | AD131: 0 | AE131: 0 | AF131: 0 | AG131: 0 | AH131: 0
A132: 6 | B132: 2013-01-05T10:00:00 | C132: W3 | D132: 4 | E132: 2017-01-05T10:00:00 | F132: ='TOU Rates'!H109 -> W1 | G132: 0 | H132: 0.0001141552511 | I132: 5.919512324e-05 | J132: 0.00010863 | K132: 9.24603e-05 | L132: 9.24603e-05 | M132: 6.52888e-05 | N132: 7.699340071e-05 | O132: 5.341275456e-05 | P132: 0 | Q132: 2.34266e-05 | R132: 7.887455e-05 | S132: 9.54262e-05 | T132: 9.85646e-05 | U132: 3.29992e-05 | V132: 6.899917587e-07 | W132: 1.37884e-05 | X132: 1.46199e-05 | Y132: 0.000344160581 | Z132: 6.164975411e-07 | AA132: 0.0002887931192 | AB132: 0 | AC132: 0 | AD132: 0 | AE132: 0 | AF132: 0 | AG132: 0 | AH132: 0
A133: 6 | B133: 2013-01-05T11:00:00 | C133: W3 | D133: 4 | E133: 2017-01-05T11:00:00 | F133: ='TOU Rates'!H110 -> W1 | G133: 0 | H133: 0.0001141552511 | I133: 5.919512324e-05 | J133: 0.000110179 | K133: 9.50559e-05 | L133: 9.50559e-05 | M133: 7.53952e-05 | N133: 6.614700061e-05 | O133: 3.623911982e-05 | P133: 0 | Q133: 1.52488e-05 | R133: 8.522555e-05 | S133: 9.61778e-05 | T133: 9.84211e-05 | U133: 3.98941e-05 | V133: 1.120527011e-06 | W133: 1.77696e-05 | X133: 1.48762e-05 | Y133: 0.0002763204571 | Z133: 6.164975411e-07 | AA133: 0.0002255307328 | AB133: 0 | AC133: 0 | AD133: 0 | AE133: 0 | AF133: 0 | AG133: 0 | AH133: 0
A134: 6 | B134: 2013-01-05T12:00:00 | C134: W3 | D134: 4 | E134: 2017-01-05T12:00:00 | F134: ='TOU Rates'!H111 -> W1 | G134: 0 | H134: 0.0001141552511 | I134: 5.919512324e-05 | J134: 0.000109815 | K134: 9.74423e-05 | L134: 9.74423e-05 | M134: 8.24752e-05 | N134: 6.047680056e-05 | O134: 2.506410043e-05 | P134: 0 | Q134: 1.02357e-05 | R134: 8.995875e-05 | S134: 9.60747e-05 | T134: 9.76704e-05 | U134: 4.37291e-05 | V134: 1.316535999e-06 | W134: 2.15859e-05 | X134: 1.40469e-05 | Y134: 0.0003030307755 | Z134: 6.725429836e-07 | AA134: 0.0001997806736 | AB134: =OFFSET(AB$6,MATCH($C134,$E$7:$E$10,0),0)/OFFSET($F$6,MATCH($C134,$E$7:$E$10,0),0) -> 0 | AC134: 0 | AD134: 0 | AE134: 0 | AF134: 0 | AG134: 0 | AH134: 0
A135: 6 | B135: 2013-01-05T13:00:00 | C135: W3 | D135: 4 | E135: 2017-01-05T13:00:00 | F135: ='TOU Rates'!H112 -> W1 | G135: 0 | H135: 0.0001141552511 | I135: 5.919512324e-05 | J135: 0.000111158 | K135: 9.95219e-05 | L135: 9.95219e-05 | M135: 8.7509e-05 | N135: 5.40218005e-05 | O135: 1.859356183e-05 | P135: 0 | Q135: 7.49174e-06 | R135: 9.351545e-05 | S135: 9.76142e-05 | T135: 9.85823e-05 | U135: 4.6143e-05 | V135: 2.123630617e-06 | W135: 2.547e-05 | X135: 1.5113e-05 | Y135: 0.0003073144435 | Z135: 6.164975411e-07 | AA135: 0.0002053214323 | AB135: 0 | AC135: 0 | AD135: 0 | AE135: 0 | AF135: 0 | AG135: 0 | AH135: 0
A136: 6 | B136: 2013-01-05T14:00:00 | C136: W3 | D136: 4 | E136: 2017-01-05T14:00:00 | F136: ='TOU Rates'!H113 -> W1 | G136: 0 | H136: 0.0001141552511 | I136: 5.919512324e-05 | J136: 0.000114983 | K136: 0.000101187 | L136: 0.000101187 | M136: 9.15742e-05 | N136: 4.637280043e-05 | O136: 1.544633391e-05 | P136: 0 | Q136: 6.19957e-06 | R136: 9.63806e-05 | S136: 0.000100178 | T136: 0.000100293 | U136: 4.83759e-05 | V136: 2.475032255e-06 | W136: 2.76176e-05 | X136: 1.77641e-05 | Y136: 0.0003007931661 | Z136: 6.164975411e-07 | AA136: 0.0002029771713 | AB136: 0 | AC136: 0 | AD136: 0 | AE136: 0 | AF136: 0 | AG136: 0 | AH136: 0
A137: 6 | B137: 2013-01-05T15:00:00 | C137: W3 | D137: 4 | E137: 2017-01-05T15:00:00 | F137: ='TOU Rates'!H114 -> W1 | G137: 0 | H137: 0.0001141552511 | I137: 5.919512324e-05 | J137: 0.000112308 | K137: 0.000102032 | L137: 0.000102032 | M137: 9.3795e-05 | N137: 3.995310037e-05 | O137: 1.466287962e-05 | P137: 0 | Q137: 5.85182e-06 | R137: 9.79135e-05 | S137: 0.000101601 | T137: 0.000101081 | U137: 4.54369e-05 | V137: 1.562467513e-06 | W137: 2.46336e-05 | X137: 1.56675e-05 | Y137: 0.0003407997164 | Z137: 5.604520986e-07 | AA137: 0.0001534352523 | AB137: 0 | AC137: 0 | AD137: 0 | AE137: 0 | AF137: 0 | AG137: 0 | AH137: 0
A138: 6 | B138: 2013-01-05T16:00:00 | C138: W3 | D138: 4 | E138: 2017-01-05T16:00:00 | F138: ='TOU Rates'!H115 -> W1 | G138: 0 | H138: 0.0001141552511 | I138: 5.919512324e-05 | J138: 0.000109956 | K138: 0.000101579 | L138: 0.000101579 | M138: 9.18168e-05 | N138: 3.758820035e-05 | O138: 1.582183409e-05 | P138: 0 | Q138: 6.28096e-06 | R138: 9.66979e-05 | S138: 9.69915e-05 | T138: 9.59127e-05 | U138: 3.62477e-05 | V138: 3.644251307e-07 | W138: 1.62205e-05 | X138: 8.2613e-06 | Y138: 0.0002893867556 | Z138: 6.164975411e-07 | AA138: 0.0001981188381 | AB138: 0 | AC138: 0 | AD138: 0 | AE138: 0 | AF138: 0 | AG138: 0 | AH138: 0
A139: 6 | B139: 2013-01-05T17:00:00 | C139: W3 | D139: 4 | E139: 2017-01-05T17:00:00 | F139: ='TOU Rates'!H116 -> W1 | G139: 0 | H139: 0.0001141552511 | I139: 5.919512324e-05 | J139: 0.000112555 | K139: 0.000100009 | L139: 0.000100009 | M139: 8.53579e-05 | N139: 3.842850036e-05 | O139: 1.898488666e-05 | P139: 0 | Q139: 7.61383e-06 | R139: 9.268345e-05 | S139: 8.59762e-05 | T139: 8.40154e-05 | U139: 2.72139e-05 | V139: -6.809823352e-08 | W139: 7.90084e-06 | X139: 4.28589e-06 | Y139: 0.0002783730045 | Z139: 6.164975411e-07 | AA139: 0.0001423995828 | AB139: 0 | AC139: 0 | AD139: 0 | AE139: 0 | AF139: 0 | AG139: 0 | AH139: 0
A140: 6 | B140: 2013-01-05T18:00:00 | C140: W3 | D140: 4 | E140: 2017-01-05T18:00:00 | F140: ='TOU Rates'!H117 -> W1 | G140: 0 | H140: 0.0001141552511 | I140: 5.919512324e-05 | J140: 0.00014929 | K140: 9.79065e-05 | L140: 9.79065e-05 | M140: 7.71672e-05 | N140: 4.250350039e-05 | O140: 2.466218113e-05 | P140: 0 | Q140: 1.02355e-05 | R140: 8.753685e-05 | S140: 7.76203e-05 | T140: 7.57762e-05 | U140: 1.84173e-05 | V140: -9.493200464e-11 | W140: 3.3489e-06 | X140: 5.15736e-06 | Y140: 0.0002147065936 | Z140: 6.725429836e-07 | AA140: 0.0003757001805 | AB140: 0 | AC140: 0 | AD140: 0 | AE140: 0 | AF140: 0 | AG140: 0 | AH140: 0
A141: 6 | B141: 2013-01-05T19:00:00 | C141: W3 | D141: 4 | E141: 2017-01-05T19:00:00 | F141: ='TOU Rates'!H118 -> W1 | G141: 0 | H141: 0.0001141552511 | I141: 5.919512324e-05 | J141: 0.000213572 | K141: 9.56451e-05 | L141: 9.56451e-05 | M141: 6.96468e-05 | N141: 4.928630046e-05 | O141: 3.35978784e-05 | P141: 0 | Q141: 1.47099e-05 | R141: 8.264595e-05 | S141: 7.0703e-05 | T141: 6.79657e-05 | U141: 1.25479e-05 | V141: -1.064824309e-10 | W141: 1.57598e-06 | X141: 6.86424e-06 | Y141: 0.0002043418423 | Z141: 6.164975411e-07 | AA141: 0.000398448912 | AB141: 0 | AC141: 0 | AD141: 0 | AE141: 0 | AF141: 0 | AG141: 0 | AH141: 0
A142: 6 | B142: 2013-01-05T20:00:00 | C142: W3 | D142: 4 | E142: 2017-01-05T20:00:00 | F142: ='TOU Rates'!H119 -> W1 | G142: 0 | H142: 0.0001141552511 | I142: 5.919512324e-05 | J142: 0.000243147 | K142: 9.33803e-05 | L142: 9.33803e-05 | M142: 6.32558e-05 | N142: 6.150830057e-05 | O142: 4.663685385e-05 | P142: 0 | Q142: 2.15597e-05 | R142: 7.831805e-05 | S142: 6.06436e-05 | T142: 5.4684e-05 | U142: 1.00029e-05 | V142: -8.047163696e-11 | W142: 8.05927e-07 | X142: 7.30432e-06 | Y142: 0.0001837738819 | Z142: 6.164975411e-07 | AA142: 0.0002463091822 | AB142: 0 | AC142: 0 | AD142: 0 | AE142: 0 | AF142: 0 | AG142: 0 | AH142: 0
A143: 6 | B143: 2013-01-05T21:00:00 | C143: W3 | D143: 4 | E143: 2017-01-05T21:00:00 | F143: ='TOU Rates'!H120 -> W1 | G143: 0 | H143: 0.0001141552511 | I143: 5.919512324e-05 | J143: 0.000225102 | K143: 9.11081e-05 | L143: 9.11081e-05 | M143: 5.78821e-05 | N143: 8.204220076e-05 | O143: 6.419175537e-05 | P143: 0 | Q143: 3.09408e-05 | R143: 7.44951e-05 | S143: 5.00927e-05 | T143: 4.04941e-05 | U143: 7.76878e-06 | V143: -2.493768713e-10 | W143: 4.29786e-07 | X143: 8.07043e-06 | Y143: 0.0001346539218 | Z143: 6.164975411e-07 | AA143: 0.00018580467 | AB143: 0 | AC143: 0 | AD143: 0 | AE143: 0 | AF143: 0 | AG143: 0 | AH143: 0
A144: 6 | B144: 2013-01-05T22:00:00 | C144: W3 | D144: 4 | E144: 2017-01-05T22:00:00 | F144: ='TOU Rates'!H121 -> W3 | G144: 0 | H144: 0.0001141552511 | I144: 5.919512324e-05 | J144: 0.000176242 | K144: 8.8984e-05 | L144: 8.8984e-05 | M144: 5.37085e-05 | N144: 0.000107118001 | O144: 8.557729513e-05 | P144: 0 | Q144: 4.23335e-05 | R144: 7.134625e-05 | S144: 4.04035e-05 | T144: 2.77233e-05 | U144: 6.42499e-06 | V144: -5.917670181e-10 | W144: 3.56206e-07 | X144: 1.38671e-05 | Y144: 0.0001036145284 | Z144: 6.164975411e-07 | AA144: 0.0001533301234 | AB144: 0 | AC144: 0 | AD144: 0 | AE144: 0 | AF144: 0 | AG144: 0 | AH144: 0
A145: 6 | B145: 2013-01-05T23:00:00 | C145: W3 | D145: 4 | E145: 2017-01-05T23:00:00 | F145: ='TOU Rates'!H122 -> W3 | G145: 0 | H145: 0.0001141552511 | I145: 5.919512324e-05 | J145: 0.00011584 | K145: 8.73567e-05 | L145: 8.73567e-05 | M145: 5.07823e-05 | N145: 0.0001327280012 | O145: 0.0001078629625 | P145: -2.828300186e-08 | Q145: 5.44052e-05 | R145: 6.90695e-05 | S145: 3.30867e-05 | T145: 2.00838e-05 | U145: 5.39698e-06 | V145: -8.92310342e-10 | W145: 3.29589e-07 | X145: 2.01723e-05 | Y145: 4.59560428e-05 | Z145: 5.604520986e-07 | AA145: 0.0001086901488 | AB145: 0 | AC145: 0 | AD145: 0 | AE145: 0 | AF145: 0 | AG145: 0 | AH145: 0
A146: 7 | B146: 2013-01-06 | C146: W3 | D146: 5 | E146: 2017-01-06 | F146: ='TOU Rates'!H123 -> W3 | G146: 0 | H146: 0.0001141552511 | I146: 5.919512324e-05 | J146: 7.64994e-05 | K146: 8.63418e-05 | L146: 8.63418e-05 | M146: 4.87369e-05 | N146: 0.0001531640014 | O146: 0.0001283131045 | P146: -7.969710523e-08 | Q146: 6.57685e-05 | R146: 6.753935e-05 | S146: 2.83554e-05 | T146: 1.65509e-05 | U146: 4.37236e-06 | V146: -1.123256826e-09 | W146: 3.11692e-07 | X146: 2.04697e-05 | Y146: 4.653745994e-05 | Z146: 6.164975411e-07 | AA146: 7.802386152e-05 | AB146: 0 | AC146: 0 | AD146: 0 | AE146: 0 | AF146: 0 | AG146: 0 | AH146: 0
A147: 7 | B147: 2013-01-06T01:00:00 | C147: W3 | D147: 5 | E147: 2017-01-06T01:00:00 | F147: ='TOU Rates'!H124 -> W3 | G147: 0 | H147: 0.0001141552511 | I147: 8.639748735e-05 | J147: 5.0977e-05 | K147: 8.58108e-05 | L147: 8.58108e-05 | M147: 4.67469e-05 | N147: 0.0001675790016 | O147: 0.0001466609819 | P147: -9.28783061e-08 | Q147: 7.57066e-05 | R147: 6.627885e-05 | S147: 2.63474e-05 | T147: 1.49376e-05 | U147: 3.75145e-06 | V147: -1.186787066e-09 | W147: 2.82643e-07 | X147: 1.94643e-05 | Y147: 2.901877814e-05 | Z147: 6.164975411e-07 | AA147: 9.837738383e-05 | AB147: 0 | AC147: 0 | AD147: 0 | AE147: 0 | AF147: 0 | AG147: 0 | AH147: 0
A148: 7 | B148: 2013-01-06T02:00:00 | C148: W3 | D148: 5 | E148: 2017-01-06T02:00:00 | F148: ='TOU Rates'!H125 -> W3 | G148: 0 | H148: 0.0001141552511 | I148: 0.0001092056469 | J148: 3.70119e-05 | K148: 8.55666e-05 | L148: 8.55666e-05 | M148: 4.40711e-05 | N148: 0.0001799430017 | O148: 0.0001616917176 | P148: -7.563470497e-08 | Q148: 8.35156e-05 | R148: 6.481885e-05 | S148: 2.66665e-05 | T148: 1.50352e-05 | U148: 3.28543e-06 | V148: -1.179083611e-09 | W148: 2.48488e-07 | X148: 4.32569e-05 | Y148: 2.085429278e-05 | Z148: 6.164975411e-07 | AA148: 6.921460551e-05 | AB148: 0 | AC148: 0 | AD148: 0 | AE148: 0 | AF148: 0 | AG148: 0 | AH148: 0
A149: 7 | B149: 2013-01-06T03:00:00 | C149: W3 | D149: 5 | E149: 2017-01-06T03:00:00 | F149: ='TOU Rates'!H126 -> W3 | G149: 0 | H149: 0.0001141552511 | I149: 0.0001292318274 | J149: 3.33369e-05 | K149: 8.5471e-05 | L149: 8.5471e-05 | M149: 4.10338e-05 | N149: 0.0001894740018 | O149: 0.0001714681329 | P149: -6.175600405e-08 | Q149: 8.84418e-05 | R149: 6.32524e-05 | S149: 2.74752e-05 | T149: 1.49025e-05 | U149: 2.84818e-06 | V149: -1.163004587e-09 | W149: 2.22708e-07 | X149: 4.50599e-05 | Y149: 1.572010506e-05 | Z149: 6.164975411e-07 | AA149: 5.716565398e-05 | AB149: 0 | AC149: 0 | AD149: 0 | AE149: 0 | AF149: 0 | AG149: 0 | AH149: 0
A150: 7 | B150: 2013-01-06T04:00:00 | C150: W3 | D150: 5 | E150: 2017-01-06T04:00:00 | F150: ='TOU Rates'!H127 -> W3 | G150: 0 | H150: 0.0001141552511 | I150: 0.0001474466699 | J150: 3.17617e-05 | K150: 8.54939e-05 | L150: 8.54939e-05 | M150: 3.85633e-05 | N150: 0.0001936540018 | O150: 0.0001744788397 | P150: -4.889150321e-08 | Q150: 8.96709e-05 | R150: 6.20286e-05 | S150: 2.83475e-05 | T150: 1.43095e-05 | U150: 3.094e-06 | V150: -1.142603356e-09 | W150: 2.09958e-07 | X150: 7.14948e-06 | Y150: 1.496704968e-05 | Z150: 5.604520986e-07 | AA150: 6.153400067e-05 | AB150: 0 | AC150: 0 | AD150: 0 | AE150: 0 | AF150: 0 | AG150: 0 | AH150: 0
A151: 7 | B151: 2013-01-06T05:00:00 | C151: W3 | D151: 5 | E151: 2017-01-06T05:00:00 | F151: ='TOU Rates'!H128 -> W3 | G151: 0 | H151: 0.0001141552511 | I151: 0.0001413326734 | J151: 3.9183e-05 | K151: 8.56583e-05 | L151: 8.56583e-05 | M151: 3.6971e-05 | N151: 0.0001908560018 | O151: 0.0001688517013 | P151: -1.775130117e-08 | Q151: 8.61627e-05 | R151: 6.131465e-05 | S151: 2.98434e-05 | T151: 1.39652e-05 | U151: 4.09235e-06 | V151: -1.102576409e-09 | W151: 2.03125e-07 | X151: 2.75569e-05 | Y151: 4.034981691e-06 | Z151: 6.164975411e-07 | AA151: 9.229769225e-05 | AB151: =OFFSET(AB$6,MATCH($C151,$E$7:$E$10,0),0)/OFFSET($F$6,MATCH($C151,$E$7:$E$10,0),0) -> 0 | AC151: 0 | AD151: 0 | AE151: 0 | AF151: 0 | AG151: 0 | AH151: 0
A152: 7 | B152: 2013-01-06T06:00:00 | C152: W3 | D152: 5 | E152: 2017-01-06T06:00:00 | F152: ='TOU Rates'!H129 -> W1 | G152: 0 | H152: 0.0001141552511 | I152: 0.0001847674021 | J152: 5.33253e-05 | K152: 8.60075e-05 | L152: 8.60075e-05 | M152: 3.61857e-05 | N152: 0.0001795990017 | O152: 0.0001535822548 | P152: 1.024360067e-07 | Q152: 7.73936e-05 | R152: 6.10966e-05 | S152: 3.37654e-05 | T152: 1.61547e-05 | U152: 5.14187e-06 | V152: -9.737891153e-10 | W152: 2.04987e-07 | X152: 2.05248e-05 | Y152: 4.807432887e-06 | Z152: 6.164975411e-07 | AA152: 9.247679482e-05 | AB152: 0 | AC152: 0 | AD152: 0 | AE152: 0 | AF152: 0 | AG152: 0 | AH152: 0
A153: 7 | B153: 2013-01-06T07:00:00 | C153: W3 | D153: 5 | E153: 2017-01-06T07:00:00 | F153: ='TOU Rates'!H130 -> W1 | G153: 0 | H153: 0.0001141552511 | I153: 0.0001313831567 | J153: 7.25085e-05 | K153: 8.6601e-05 | L153: 8.6601e-05 | M153: 3.75062e-05 | N153: 0.0001553190014 | O153: 0.0001300806374 | P153: 4.823640317e-07 | Q153: 6.42299e-05 | R153: 6.20536e-05 | S153: 4.34866e-05 | T153: 2.81735e-05 | U153: 7.36127e-06 | V153: -6.70101334e-10 | W153: 4.15962e-07 | X153: -4.15411e-05 | Y153: 2.84375812e-05 | Z153: 6.164975411e-07 | AA153: 0.0003959894752 | AB153: 0 | AC153: 0 | AD153: 0 | AE153: 0 | AF153: 0 | AG153: 0 | AH153: 0
A154: 7 | B154: 2013-01-06T08:00:00 | C154: W3 | D154: 5 | E154: 2017-01-06T08:00:00 | F154: ='TOU Rates'!H131 -> W1 | G154: 0 | H154: 0.0001141552511 | I154: 0.0001101709478 | J154: 9.00462e-05 | K154: 8.7711e-05 | L154: 8.7711e-05 | M154: 4.29347e-05 | N154: 0.0001232210011 | O154: 0.0001023208481 | P154: 1.421530093e-06 | Q154: 4.90195e-05 | R154: 6.532285e-05 | S154: 5.70432e-05 | T154: 4.94295e-05 | U154: 1.31541e-05 | V154: -1.525521949e-10 | W154: 9.15896e-07 | X154: -2.58382e-05 | Y154: 7.526844293e-05 | Z154: 6.164975411e-07 | AA154: 0.0005045011224 | AB154: 0 | AC154: 0 | AD154: 0 | AE154: 0 | AF154: 0 | AG154: 0 | AH154: 0
A155: =WEEKDAY(B155,2) -> 7 | B155: 2013-01-06T09:00:00 | C155: W3 | D155: =WEEKDAY(E155,2) -> 5 | E155: 2017-01-06T09:00:00 | F155: ='TOU Rates'!H132 -> W1 | G155: 0 | H155: 0.0001141552511 | I155: 8.879726215e-05 | J155: 0.000102246 | K155: 8.95715e-05 | L155: 8.95715e-05 | M155: 5.23114e-05 | N155: 9.317300086e-05 | O155: 7.520879647e-05 | P155: 3.289100216e-06 | Q155: 3.46042e-05 | R155: 7.094145e-05 | S155: 6.68199e-05 | T155: 6.71409e-05 | U155: 2.00412e-05 | V155: -2.20373621e-08 | W155: 1.94287e-06 | X155: 7.34268e-06 | Y155: 0.0001623531854 | Z155: 6.164975411e-07 | AA155: 0.0003308970401 | AB155: 0 | AC155: 0 | AD155: 0 | AE155: 0 | AF155: 0 | AG155: 0 | AH155: 0
A156: 7 | B156: 2013-01-06T10:00:00 | C156: W3 | D156: 5 | E156: =E155+1/24 -> 2017-01-06T10:00:00 | F156: ='TOU Rates'!H133 -> W1 | G156: 0 | H156: 0.0001141552511 | I156: 6.424108397e-05 | J156: 0.000108535 | K156: 9.18191e-05 | L156: 9.18191e-05 | M156: 6.34969e-05 | N156: 6.651710062e-05 | O156: 5.251530913e-05 | P156: 6.275230412e-06 | Q156: 2.30547e-05 | R156: 7.7658e-05 | S156: 7.12626e-05 | T156: 7.78555e-05 | U156: 2.75483e-05 | V156: 5.307422109e-07 | W156: 4.47326e-06 | X156: 6.21966e-06 | Y156: 0.00025645942 | Z156: 6.164975411e-07 | AA156: 0.0001890233049 | AB156: 0 | AC156: 0 | AD156: 0 | AE156: 0 | AF156: 0 | AG156: 0 | AH156: 0
A157: 7 | B157: 2013-01-06T11:00:00 | C157: W3 | D157: 5 | E157: 2017-01-06T11:00:00 | F157: ='TOU Rates'!H134 -> W1 | G157: 0 | H157: 0.0001141552511 | I157: 5.919512324e-05 | J157: 0.00011009 | K157: 9.39514e-05 | L157: 9.39514e-05 | M157: 7.38869e-05 | N157: 5.016930046e-05 | O157: 3.580836748e-05 | P157: 9.938690652e-06 | Q157: 1.50483e-05 | R157: 8.391915e-05 | S157: 7.31437e-05 | T157: 8.45128e-05 | U157: 3.38588e-05 | V157: 3.017955231e-06 | W157: 7.72205e-06 | X157: 8.20169e-06 | Y157: 0.0002719740542 | Z157: 6.164975411e-07 | AA157: 0.0001110594038 | AB157: 0 | AC157: 0 | AD157: 0 | AE157: 0 | AF157: 0 | AG157: 0 | AH157: 0
A158: 7 | B158: =B157+1/24 -> 2013-01-06T12:00:00 | C158: W3 | D158: 5 | E158: 2017-01-06T12:00:00 | F158: ='TOU Rates'!H135 -> W1 | G158: 0 | H158: 0.0001141552511 | I158: 5.919512324e-05 | J158: 0.000109725 | K158: 9.57628e-05 | L158: 9.57628e-05 | M158: 8.14547e-05 | N158: 4.802670044e-05 | O158: 2.488010534e-05 | P158: 1.295360085e-05 | Q158: 1.01506e-05 | R158: 8.860875e-05 | S158: 7.40077e-05 | T158: 8.76079e-05 | U158: 3.50081e-05 | V158: 7.579248591e-06 | W158: 1.00691e-05 | X158: 1.2377e-05 | Y158: 0.0003258551051 | Z158: 5.604520986e-07 | AA158: 9.221132543e-05 | AB158: 0 | AC158: 0 | AD158: 0 | AE158: 0 | AF158: 0 | AG158: 0 | AH158: 0
A159: 7 | B159: 2013-01-06T13:00:00 | C159: W3 | D159: 5 | E159: 2017-01-06T13:00:00 | F159: ='TOU Rates'!H136 -> W1 | G159: 0 | H159: 0.0001141552511 | I159: 5.919512324e-05 | J159: 0.000111061 | K159: 9.72034e-05 | L159: 9.72034e-05 | M159: 8.61776e-05 | N159: 4.950940046e-05 | O159: 1.852530126e-05 | P159: 1.36891009e-05 | Q159: 7.45371e-06 | R159: 9.16905e-05 | S159: 7.48104e-05 | T159: 8.82878e-05 | U159: 3.53761e-05 | V159: 9.637560112e-06 | W159: 1.1665e-05 | X159: 1.33114e-05 | Y159: 0.0003702323374 | Z159: 6.164975411e-07 | AA159: 6.349295954e-05 | AB159: 0 | AC159: 0 | AD159: 0 | AE159: 0 | AF159: 0 | AG159: 0 | AH159: 0
A160: 7 | B160: 2013-01-06T14:00:00 | C160: W3 | D160: 5 | E160: 2017-01-06T14:00:00 | F160: ='TOU Rates'!H137 -> W1 | G160: 0 | H160: 0.0001141552511 | I160: 5.919512324e-05 | J160: 0.000114901 | K160: 9.82561e-05 | L160: 9.82561e-05 | M160: 8.90189e-05 | N160: 4.522410042e-05 | O160: 1.54293023e-05 | P160: 1.152270076e-05 | Q160: 6.1481e-06 | R160: 9.36375e-05 | S160: 7.56029e-05 | T160: 8.74923e-05 | U160: 3.29436e-05 | V160: 6.916637704e-06 | W160: 1.19409e-05 | X160: 1.25254e-05 | Y160: 0.0003911661919 | Z160: 6.164975411e-07 | AA160: 4.294054953e-05 | AB160: 0 | AC160: 0 | AD160: 0 | AE160: 0 | AF160: 0 | AG160: 0 | AH160: 0
A161: 7 | B161: 2013-01-06T15:00:00 | C161: W3 | D161: 5 | E161: 2017-01-06T15:00:00 | F161: ='TOU Rates'!H138 -> W1 | G161: 0 | H161: 0.0001141552511 | I161: 5.919512324e-05 | J161: 0.000112228 | K161: 9.86457e-05 | L161: 9.86457e-05 | M161: 8.95396e-05 | N161: 4.069110038e-05 | O161: 1.465080997e-05 | P161: 7.536970495e-06 | Q161: 5.75392e-06 | R161: 9.409265e-05 | S161: 7.57981e-05 | T161: 8.59378e-05 | U161: 2.58353e-05 | V161: 3.413344116e-06 | W161: 9.97838e-06 | X161: 1.24385e-05 | Y161: 0.0003394682033 | Z161: 6.164975411e-07 | AA161: 3.982077331e-05 | AB161: 0 | AC161: 0 | AD161: 0 | AE161: 0 | AF161: 0 | AG161: 0 | AH161: 0
A162: 7 | B162: 2013-01-06T16:00:00 | C162: W3 | D162: 5 | E162: 2017-01-06T16:00:00 | F162: ='TOU Rates'!H139 -> W1 | G162: 0 | H162: 0.0001141552511 | I162: 5.919512324e-05 | J162: 0.000109887 | K162: 9.81061e-05 | L162: 9.81061e-05 | M162: 8.64736e-05 | N162: 4.062100038e-05 | O162: 1.576483853e-05 | P162: 3.66020024e-06 | Q162: 6.11817e-06 | R162: 9.228985e-05 | S162: 7.45228e-05 | T162: 8.32767e-05 | U162: 2.00996e-05 | V162: 9.464434005e-07 | W162: 6.7376e-06 | X162: 8.22307e-06 | Y162: 0.0003373391931 | Z162: 6.164975411e-07 | AA162: 0.0001095387197 | AB162: 0 | AC162: 0 | AD162: 0 | AE162: 0 | AF162: 0 | AG162: 0 | AH162: 0
A163: 7 | B163: 2013-01-06T17:00:00 | C163: W3 | D163: 5 | E163: 2017-01-06T17:00:00 | F163: ='TOU Rates'!H140 -> W1 | G163: 0 | H163: 0.0001141552511 | I163: 5.919512324e-05 | J163: 0.00011248 | K163: 9.69645e-05 | L163: 9.69645e-05 | M163: 8.04523e-05 | N163: 4.260340039e-05 | O163: 1.884756088e-05 | P163: 1.155900076e-06 | Q163: 7.38767e-06 | R163: 8.87084e-05 | S163: 7.1566e-05 | T163: 7.84704e-05 | U163: 1.79203e-05 | V163: -7.368804672e-08 | W163: 4.01211e-06 | X163: 3.98367e-06 | Y163: 0.000332828578 | Z163: 6.164975411e-07 | AA163: 0.0001127476094 | AB163: 0 | AC163: 0 | AD163: 0 | AE163: 0 | AF163: 0 | AG163: 0 | AH163: 0
A164: 7 | B164: 2013-01-06T18:00:00 | C164: W3 | D164: 5 | E164: 2017-01-06T18:00:00 | F164: ='TOU Rates'!H141 -> W1 | G164: 0 | H164: 0.0001141552511 | I164: 5.919512324e-05 | J164: 0.00014918 | K164: 9.5668e-05 | L164: 9.5668e-05 | M164: 7.38879e-05 | N164: 4.907570045e-05 | O164: 2.432074418e-05 | P164: 7.192130472e-08 | Q164: 9.93498e-06 | R164: 8.477795e-05 | S164: 6.73901e-05 | T164: 7.11334e-05 | U164: 1.61686e-05 | V164: -4.756030502e-11 | W164: 2.49781e-06 | X164: 5.35011e-06 | Y164: 0.0003131164743 | Z164: 6.164975411e-07 | AA164: 0.0002058001552 | AB164: 0 | AC164: 0 | AD164: 0 | AE164: 0 | AF164: 0 | AG164: 0 | AH164: 0
A165: 7 | B165: 2013-01-06T19:00:00 | C165: W3 | D165: 5 | E165: 2017-01-06T19:00:00 | F165: ='TOU Rates'!H142 -> W1 | G165: 0 | H165: 0.0001141552511 | I165: 5.919512324e-05 | J165: 0.00021351 | K165: 9.42572e-05 | L165: 9.42572e-05 | M165: 6.82098e-05 | N165: 6.160440057e-05 | O165: 3.290990843e-05 | P165: -1.966300129e-07 | Q165: 1.43157e-05 | R165: 8.12335e-05 | S165: 6.09223e-05 | T165: 6.05315e-05 | U165: 1.2511e-05 | V165: -1.07678793e-10 | W165: 1.60348e-06 | X165: 1.21794e-05 | Y165: 0.000279943355 | Z165: 6.164975411e-07 | AA165: 0.000287078076 | AB165: 0 | AC165: 0 | AD165: 0 | AE165: 0 | AF165: 0 | AG165: 0 | AH165: 0
A166: 7 | B166: 2013-01-06T20:00:00 | C166: W3 | D166: 5 | E166: 2017-01-06T20:00:00 | F166: ='TOU Rates'!H143 -> W1 | G166: 0 | H166: 0.0001141552511 | I166: 8.010802776e-05 | J166: 0.000243126 | K166: 9.2679e-05 | L166: 9.2679e-05 | M166: 6.33612e-05 | N166: 8.130310075e-05 | O166: 4.541634416e-05 | P166: -1.878120123e-07 | Q166: 2.10503e-05 | R166: 7.80201e-05 | S166: 5.27425e-05 | T166: 4.92418e-05 | U166: 9.62141e-06 | V166: -1.011416099e-10 | W166: 9.3434e-07 | X166: 2.08843e-05 | Y166: 0.0002762198405 | Z166: 6.164975411e-07 | AA166: 0.0002562245839 | AB166: 0 | AC166: 0 | AD166: 0 | AE166: 0 | AF166: 0 | AG166: 0 | AH166: 0
A167: 7 | B167: 2013-01-06T21:00:00 | C167: W3 | D167: 5 | E167: 2017-01-06T21:00:00 | F167: ='TOU Rates'!H144 -> W1 | G167: 0 | H167: 0.0001141552511 | I167: 0.0001268653651 | J167: 0.000225124 | K167: 9.09268e-05 | L167: 9.09268e-05 | M167: 5.90113e-05 | N167: 0.000107720001 | O167: 6.226838982e-05 | P167: -1.444640095e-07 | Q167: 3.0303e-05 | R167: 7.496905e-05 | S167: 4.43338e-05 | T167: 3.76705e-05 | U167: 7.86806e-06 | V167: -1.439305292e-10 | W167: 6.09383e-07 | X167: 1.78336e-05 | Y167: 0.0002542753021 | Z167: 6.164975411e-07 | AA167: 0.0001783607563 | AB167: 0 | AC167: 0 | AD167: 0 | AE167: 0 | AF167: 0 | AG167: 0 | AH167: 0
A168: 7 | B168: 2013-01-06T22:00:00 | C168: W3 | D168: 5 | E168: 2017-01-06T22:00:00 | F168: ='TOU Rates'!H145 -> W3 | G168: 0 | H168: 0.0001141552511 | I168: 0.0001722538365 | J168: 0.000176291 | K168: 8.91415e-05 | L168: 8.91415e-05 | M168: 5.48558e-05 | N168: 0.0001363360013 | O168: 8.447573854e-05 | P168: -1.21333008e-07 | Q168: 4.29187e-05 | R168: 7.199865e-05 | S168: 3.71287e-05 | T168: 2.53233e-05 | U168: 6.39365e-06 | V168: -2.009846965e-10 | W168: 4.93945e-07 | X168: 9.19334e-06 | Y168: 0.0002214812575 | Z168: 6.164975411e-07 | AA168: 0.0001562601112 | AB168: =OFFSET(AB$6,MATCH($C168,$E$7:$E$10,0),0)/OFFSET($F$6,MATCH($C168,$E$7:$E$10,0),0) -> 0 | AC168: 0 | AD168: 0 | AE168: 0 | AF168: 0 | AG168: 0 | AH168: 0
A169: 7 | B169: 2013-01-06T23:00:00 | C169: W3 | D169: 5 | E169: 2017-01-06T23:00:00 | F169: ='TOU Rates'!H146 -> W3 | G169: 0 | H169: 0.0001141552511 | I169: 0.0002070008566 | J169: 0.00010956 | K169: 8.79273e-05 | L169: 8.79273e-05 | M169: 5.12978e-05 | N169: 0.0001631840015 | O169: 0.0001077653324 | P169: -1.120810074e-07 | Q169: 5.74268e-05 | R169: 6.961255e-05 | S169: 3.64324e-05 | T169: 1.98309e-05 | U169: 5.3838e-06 | V169: -1.85816645e-10 | W169: 4.93765e-07 | X169: 9.83722e-06 | Y169: 7.085699212e-05 | Z169: 6.164975411e-07 | AA169: 0.0001559037243 | AB169: 0 | AC169: 0 | AD169: 0 | AE169: 0 | AF169: 0 | AG169: 0 | AH169: 0
A170: 1 | B170: 2013-01-07 | C170: W3 | D170: 6 | E170: 2017-01-07 | F170: ='TOU Rates'!H147 -> W3 | G170: 0 | H170: 0.0001141552511 | I170: 0.0002211480085 | J170: 9.68232e-05 | K170: 8.74711e-05 | L170: 8.74711e-05 | M170: 4.86267e-05 | N170: 0.0001838680017 | O170: 0.0001278647841 | P170: -1.028660068e-07 | Q170: 7.1341e-05 | R170: 6.80489e-05 | S170: 4.12187e-05 | T170: 2.07437e-05 | U170: 4.18464e-06 | V170: -3.611710672e-10 | W170: 6.1008e-07 | X170: 1.08409e-05 | Y170: 3.220813573e-05 | Z170: 5.604520986e-07 | AA170: 0.0001267017256 | AB170: 0 | AC170: 0 | AD170: 0 | AE170: 0 | AF170: 0 | AG170: 0 | AH170: 0
A171: 1 | B171: 2013-01-07T01:00:00 | C171: W3 | D171: 6 | E171: 2017-01-07T01:00:00 | F171: ='TOU Rates'!H148 -> W3 | G171: 0 | H171: 0.0001141552511 | I171: 0.0002230061365 | J171: 6.02239e-05 | K171: 8.7141e-05 | L171: 8.7141e-05 | M171: 4.63167e-05 | N171: 0.0001981230018 | O171: 0.0001473100608 | P171: -1.007240066e-07 | Q171: 8.43763e-05 | R171: 6.672885e-05 | S171: 4.45483e-05 | T171: 2.16266e-05 | U171: 3.31974e-06 | V171: -6.686340585e-10 | W171: 6.42479e-07 | X171: 8.80901e-06 | Y171: 7.632944966e-06 | Z171: 6.164975411e-07 | AA171: 0.0001176191927 | AB171: 0 | AC171: 0 | AD171: 0 | AE171: 0 | AF171: 0 | AG171: 0 | AH171: 0
A172: 1 | B172: 2013-01-07T02:00:00 | C172: W3 | D172: 6 | E172: 2017-01-07T02:00:00 | F172: ='TOU Rates'!H149 -> W3 | G172: 0 | H172: 0.0001141552511 | I172: 0.0001984621644 | J172: 4.70785e-05 | K172: 8.67728e-05 | L172: 8.67728e-05 | M172: 4.43546e-05 | N172: 0.0002091610019 | O172: 0.0001630006039 | P172: -9.305000611e-08 | Q172: 9.3986e-05 | R172: 6.55637e-05 | S172: 4.51382e-05 | T172: 2.19141e-05 | U172: 3.06798e-06 | V172: -9.479168801e-10 | W172: 5.97063e-07 | X172: 1.18334e-05 | Y172: 1.132708777e-05 | Z172: 6.164975411e-07 | AA172: 5.065977935e-05 | AB172: 0 | AC172: 0 | AD172: 0 | AE172: 0 | AF172: 0 | AG172: 0 | AH172: 0
A173: 1 | B173: 2013-01-07T03:00:00 | C173: W3 | D173: 6 | E173: 2017-01-07T03:00:00 | F173: ='TOU Rates'!H150 -> W3 | G173: 0 | H173: 0.0001141552511 | I173: 0.000210744068 | J173: 4.25228e-05 | K173: 8.65724e-05 | L173: 8.65724e-05 | M173: 4.26162e-05 | N173: 0.000217985002 | O173: 0.0001712200346 | P173: -7.106680467e-08 | Q173: 9.86818e-05 | R173: 6.45943e-05 | S173: 4.50781e-05 | T173: 2.21196e-05 | U173: 2.7419e-06 | V173: -1.031970365e-09 | W173: 5.64229e-07 | X173: 1.38543e-05 | Y173: 1.418244448e-05 | Z173: 5.604520986e-07 | AA173: 0.0001056431584 | AB173: 0 | AC173: 0 | AD173: 0 | AE173: 0 | AF173: 0 | AG173: 0 | AH173: 0
A174: 1 | B174: 2013-01-07T04:00:00 | C174: W3 | D174: 6 | E174: 2017-01-07T04:00:00 | F174: ='TOU Rates'!H151 -> W3 | G174: 0 | H174: 0.0001141552511 | I174: 0.0002154134189 | J174: 3.85728e-05 | K174: 8.65297e-05 | L174: 8.65297e-05 | M174: 4.10309e-05 | N174: 0.0002223590021 | O174: 0.0001723411708 | P174: 1.06431007e-08 | Q174: 9.90204e-05 | R174: 6.37803e-05 | S174: 4.80024e-05 | T174: 2.53079e-05 | U174: 2.5999e-06 | V174: -7.763138855e-10 | W174: 5.42705e-07 | X174: 1.03141e-05 | Y174: 1.136027141e-05 | Z174: 6.164975411e-07 | AA174: 0.0001023012769 | AB174: 0 | AC174: 0 | AD174: 0 | AE174: 0 | AF174: 0 | AG174: 0 | AH174: 0
A175: 1 | B175: 2013-01-07T05:00:00 | C175: W3 | D175: 6 | E175: 2017-01-07T05:00:00 | F175: ='TOU Rates'!H152 -> W3 | G175: 0 | H175: 0.0001141552511 | I175: 0.0002246898187 | J175: 4.50364e-05 | K175: 8.66347e-05 | L175: 8.66347e-05 | M175: 3.9856e-05 | N175: 0.000217771002 | O175: 0.0001656867712 | P175: 2.701800177e-07 | Q175: 9.45823e-05 | R175: 6.324535e-05 | S175: 5.58229e-05 | T175: 3.32391e-05 | U175: 3.19724e-06 | V175: -3.937075666e-10 | W175: 1.33987e-06 | X175: 6.93546e-06 | Y175: 2.092129361e-05 | Z175: 5.604520986e-07 | AA175: 0.0002462559312 | AB175: 0 | AC175: 0 | AD175: 0 | AE175: 0 | AF175: 0 | AG175: 0 | AH175: 0
A176: 1 | B176: 2013-01-07T06:00:00 | C176: W1 | D176: 6 | E176: 2017-01-07T06:00:00 | F176: ='TOU Rates'!H153 -> W3 | G176: 0 | H176: 0.0001141552511 | I176: 0.000246287029 | J176: 5.876e-05 | K176: 8.69004e-05 | L176: 8.69004e-05 | M176: 3.92786e-05 | N176: 0.0002039020019 | O176: 0.0001516055146 | P176: 1.020340067e-06 | Q176: 8.56166e-05 | R176: 6.30895e-05 | S176: 7.78911e-05 | T176: 6.03161e-05 | U176: 4.24804e-06 | V176: -2.212556408e-10 | W176: 4.61609e-06 | X176: -4.59441e-06 | Y176: 7.718461898e-05 | Z176: 6.164975411e-07 | AA176: 0.0004350933908 | AB176: 0 | AC176: 0 | AD176: 0 | AE176: 0 | AF176: 0 | AG176: 0 | AH176: 0
A177: 1 | B177: 2013-01-07T07:00:00 | C177: W1 | D177: 6 | E177: 2017-01-07T07:00:00 | F177: ='TOU Rates'!H154 -> W3 | G177: 0 | H177: 0.0001141552511 | I177: 0.0001396261047 | J177: 7.66765e-05 | K177: 8.73699e-05 | L177: 8.73699e-05 | M177: 4.05198e-05 | N177: 0.0001833400017 | O177: 0.0001316867053 | P177: 2.785730183e-06 | Q177: 7.32008e-05 | R177: 6.394485e-05 | S177: 0.000119634 | T177: 0.000116739 | U177: 7.50967e-06 | V177: -1.478753187e-10 | W177: 1.07675e-05 | X177: -1.31603e-05 | Y177: 0.0001331361823 | Z177: 6.725429836e-07 | AA177: 0.0005225274414 | AB177: 0 | AC177: 0 | AD177: 0 | AE177: 0 | AF177: 0 | AG177: 0 | AH177: 0
A178: 1 | B178: 2013-01-07T08:00:00 | C178: W1 | D178: 6 | E178: 2017-01-07T08:00:00 | F178: ='TOU Rates'!H155 -> W3 | G178: 0 | H178: 0.0001141552511 | I178: 5.05608164e-05 | J178: 9.25666e-05 | K178: 8.83126e-05 | L178: 8.83126e-05 | M178: 4.52403e-05 | N178: 0.0001574590015 | O178: 0.0001085690369 | P178: 6.146430404e-06 | Q178: 5.91218e-05 | R178: 6.677645e-05 | S178: 0.00015841 | T178: 0.000172213 | U178: 1.33859e-05 | V178: 1.20387943e-09 | W178: 1.8691e-05 | X178: -1.57921e-06 | Y178: 0.0001593450352 | Z178: 6.164975411e-07 | AA178: 0.0003531213808 | AB178: 0 | AC178: 0 | AD178: 0 | AE178: 0 | AF178: 0 | AG178: 0 | AH178: 0
A179: 1 | B179: 2013-01-07T09:00:00 | C179: W1 | D179: 6 | E179: 2017-01-07T09:00:00 | F179: ='TOU Rates'!H156 -> W3 | G179: 0 | H179: 0.0001141552511 | I179: 5.919512324e-05 | J179: 0.000109325 | K179: 9.00215e-05 | L179: 9.00215e-05 | M179: 5.35295e-05 | N179: 0.0001291730012 | O179: 8.532772162e-05 | P179: 1.127890074e-05 | Q179: 4.5363e-05 | R179: 7.17755e-05 | S179: 0.00017883 | T179: 0.000202799 | U179: 1.87349e-05 | V179: 1.25105146e-07 | W179: 2.80203e-05 | X179: 1.0239e-05 | Y179: 0.0002707295178 | Z179: 6.164975411e-07 | AA179: 0.000220818709 | AB179: 0 | AC179: 0 | AD179: 0 | AE179: 0 | AF179: 0 | AG179: 0 | AH179: 0
A180: 1 | B180: 2013-01-07T10:00:00 | C180: W1 | D180: 6 | E180: 2017-01-07T10:00:00 | F180: ='TOU Rates'!H157 -> W3 | G180: 0 | H180: 0.0001141552511 | I180: 5.919512324e-05 | J180: 0.000119363 | K180: 9.22016e-05 | L180: 9.22016e-05 | M180: 6.36551e-05 | N180: 0.0001023500009 | O180: 6.457489966e-05 | P180: 1.741930114e-05 | Q180: 3.35215e-05 | R180: 7.792835e-05 | S180: 0.000187142 | T180: 0.000214512 | U180: 2.35957e-05 | V180: 3.933156727e-06 | W180: 3.7822e-05 | X180: 1.616e-05 | Y180: 0.0002817185409 | Z180: 6.164975411e-07 | AA180: 0.0001978406379 | AB180: 0 | AC180: 0 | AD180: 0 | AE180: 0 | AF180: 0 | AG180: 0 | AH180: 0
A181: 1 | B181: 2013-01-07T11:00:00 | C181: W1 | D181: 6 | E181: 2017-01-07T11:00:00 | F181: ='TOU Rates'!H158 -> W3 | G181: 0 | H181: 0.0001141552511 | I181: 5.919512324e-05 | J181: 0.000121505 | K181: 9.43967e-05 | L181: 9.43967e-05 | M181: 7.33343e-05 | N181: 8.170050076e-05 | O181: 4.795754162e-05 | P181: 2.27953015e-05 | Q181: 2.44137e-05 | R181: 8.38655e-05 | S181: 0.000186562 | T181: 0.000213221 | U181: 3.03507e-05 | V181: 1.481669126e-05 | W181: 4.47174e-05 | X181: 1.90681e-05 | Y181: 0.0003088712842 | Z181: 6.164975411e-07 | AA181: 0.0001498578992 | AB181: =OFFSET(AB$6,MATCH($C181,$E$7:$E$10,0),0)/OFFSET($F$6,MATCH($C181,$E$7:$E$10,0),0) -> 0 | AC181: 0 | AD181: 0 | AE181: 0 | AF181: 0 | AG181: 0 | AH181: 0
A182: 1 | B182: 2013-01-07T12:00:00 | C182: W1 | D182: 6 | E182: 2017-01-07T12:00:00 | F182: ='TOU Rates'!H159 -> W3 | G182: 0 | H182: 0.0001141552511 | I182: 5.919512324e-05 | J182: 0.000122609 | K182: 9.64356e-05 | L182: 9.64356e-05 | M182: 8.1157e-05 | N182: 6.813850063e-05 | O182: 3.594944826e-05 | P182: 2.536250166e-05 | Q182: 1.80586e-05 | R182: 8.87963e-05 | S182: 0.000182645 | T182: 0.000207173 | U182: 4.00355e-05 | V182: 2.30498753e-05 | W182: 5.14473e-05 | X182: 1.7051e-05 | Y182: 0.0002096867189 | Z182: 6.164975411e-07 | AA182: 0.0001181419183 | AB182: 0 | AC182: 0 | AD182: 0 | AE182: 0 | AF182: 0 | AG182: 0 | AH182: 0
A183: 1 | B183: 2013-01-07T13:00:00 | C183: W1 | D183: 6 | E183: 2017-01-07T13:00:00 | F183: ='TOU Rates'!H160 -> W3 | G183: 0 | H183: 0.0001141552511 | I183: 5.919512324e-05 | J183: 0.000124167 | K183: 9.81905e-05 | L183: 9.81905e-05 | M183: 8.72438e-05 | N183: 5.835290054e-05 | O183: 2.81751194e-05 | P183: 2.403110158e-05 | Q183: 1.39859e-05 | R183: 9.271715e-05 | S183: 0.000183781 | T183: 0.000207795 | U183: 5.11575e-05 | V183: 2.075734772e-05 | W183: 6.34249e-05 | X183: 1.9564e-05 | Y183: 0.0001676689745 | Z183: 6.164975411e-07 | AA183: 6.465684401e-05 | AB183: 0 | AC183: 0 | AD183: 0 | AE183: 0 | AF183: 0 | AG183: 0 | AH183: 0
A184: 1 | B184: 2013-01-07T14:00:00 | C184: W1 | D184: 6 | E184: 2017-01-07T14:00:00 | F184: ='TOU Rates'!H161 -> W3 | G184: 0 | H184: 0.0001141552511 | I184: 5.919512324e-05 | J184: 0.000127643 | K184: 9.95073e-05 | L184: 9.95073e-05 | M184: 9.21386e-05 | N184: 4.543300042e-05 | O184: 2.382119484e-05 | P184: 1.939300127e-05 | Q184: 1.16084e-05 | R184: 9.582295e-05 | S184: 0.000184133 | T184: 0.000209373 | U184: 6.95844e-05 | V184: 1.378980517e-05 | W184: 7.38245e-05 | X184: 2.26859e-05 | Y184: 0.0001378310055 | Z184: 6.164975411e-07 | AA184: 4.803477581e-05 | AB184: 0 | AC184: 0 | AD184: 0 | AE184: 0 | AF184: 0 | AG184: 0 | AH184: 0
A185: 1 | B185: 2013-01-07T15:00:00 | C185: W1 | D185: 6 | E185: 2017-01-07T15:00:00 | F185: ='TOU Rates'!H162 -> W3 | G185: 0 | H185: 0.0001141552511 | I185: 5.919512324e-05 | J185: 0.000125451 | K185: 0.000100012 | L185: 0.000100012 | M185: 9.47285e-05 | N185: 3.075020028e-05 | O185: 2.213734476e-05 | P185: 1.331580087e-05 | Q185: 1.04842e-05 | R185: 9.737025e-05 | S185: 0.000177223 | T185: 0.000203499 | U185: 7.26952e-05 | V185: 6.162609035e-06 | W185: 7.2075e-05 | X185: 2.01989e-05 | Y185: 0.0001363797933 | Z185: 6.164975411e-07 | AA185: 4.031118453e-05 | AB185: 0 | AC185: 0 | AD185: 0 | AE185: 0 | AF185: 0 | AG185: 0 | AH185: 0
A186: 1 | B186: 2013-01-07T16:00:00 | C186: W1 | D186: 6 | E186: 2017-01-07T16:00:00 | F186: ='TOU Rates'!H163 -> W3 | G186: 0 | H186: 0.0001141552511 | I186: 5.919512324e-05 | J186: 0.000122785 | K186: 9.94087e-05 | L186: 9.94087e-05 | M186: 9.28018e-05 | N186: 2.722110025e-05 | O186: 2.266747055e-05 | P186: 7.76553051e-06 | Q186: 1.04913e-05 | R186: 9.610525e-05 | S186: 0.000166044 | T186: 0.000191995 | U186: 4.08889e-05 | V186: 1.09365281e-06 | W186: 5.60228e-05 | X186: 1.49392e-05 | Y186: 0.0001419590645 | Z186: 6.164975411e-07 | AA186: 7.378062983e-05 | AB186: 0 | AC186: 0 | AD186: 0 | AE186: 0 | AF186: 0 | AG186: 0 | AH186: 0
A187: 1 | B187: 2013-01-07T17:00:00 | C187: W1 | D187: 6 | E187: 2017-01-07T17:00:00 | F187: ='TOU Rates'!H164 -> W3 | G187: 0 | H187: 0.0001141552511 | I187: 5.919512324e-05 | J187: 0.000129633 | K187: 9.80668e-05 | L187: 9.80668e-05 | M187: 8.66587e-05 | N187: 3.24076003e-05 | O187: 2.542712864e-05 | P187: 3.844010252e-06 | Q187: 1.17986e-05 | R187: 9.236275e-05 | S187: 0.000149433 | T187: 0.000172091 | U187: 1.72913e-05 | V187: 6.026697337e-09 | W187: 3.22207e-05 | X187: 9.26969e-06 | Y187: 0.0001526162285 | Z187: 1.40244572e-06 | AA187: 0.000123811235 | AB187: 0 | AC187: 0 | AD187: 0 | AE187: 0 | AF187: 0 | AG187: 0 | AH187: 0
A188: 1 | B188: 2013-01-07T18:00:00 | C188: W1 | D188: 6 | E188: 2017-01-07T18:00:00 | F188: ='TOU Rates'!H165 -> W3 | G188: 0 | H188: 0.0001141552511 | I188: 5.919512324e-05 | J188: 0.000172836 | K188: 9.6616e-05 | L188: 9.6616e-05 | M188: 7.94399e-05 | N188: 3.774030035e-05 | O188: 3.08510946e-05 | P188: 1.620620106e-06 | Q188: 1.4792e-05 | R188: 8.802795e-05 | S188: 0.000129578 | T188: 0.000147252 | U188: 1.47813e-05 | V188: 6.732716419e-11 | W188: 1.37061e-05 | X188: 8.18159e-06 | Y188: 0.0002041086137 | Z188: 6.164975411e-07 | AA188: 0.0002366792066 | AB188: 0 | AC188: 0 | AD188: 0 | AE188: 0 | AF188: 0 | AG188: 0 | AH188: 0
A189: 1 | B189: 2013-01-07T19:00:00 | C189: W1 | D189: 6 | E189: 2017-01-07T19:00:00 | F189: ='TOU Rates'!H166 -> W3 | G189: 0 | H189: 0.0001141552511 | I189: 5.919512324e-05 | J189: 0.00023803 | K189: 9.52604e-05 | L189: 9.52604e-05 | M189: 7.35957e-05 | N189: 4.379200041e-05 | O189: 3.959166587e-05 | P189: 5.863050385e-07 | Q189: 1.99414e-05 | R189: 8.442805e-05 | S189: 0.000109719 | T189: 0.000120094 | U189: 1.30357e-05 | V189: 9.568270376e-11 | W189: 5.88255e-06 | X189: 9.3769e-06 | Y189: 0.0001552153097 | Z189: 6.164975411e-07 | AA189: 0.0002170203854 | AB189: 0 | AC189: 0 | AD189: 0 | AE189: 0 | AF189: 0 | AG189: 0 | AH189: 0
A190: 1 | B190: 2013-01-07T20:00:00 | C190: W1 | D190: 6 | E190: 2017-01-07T20:00:00 | F190: ='TOU Rates'!H167 -> W3 | G190: 0 | H190: 0.0001141552511 | I190: 5.919512324e-05 | J190: 0.000271468 | K190: 9.38821e-05 | L190: 9.38821e-05 | M190: 6.92672e-05 | N190: 5.494280051e-05 | O190: 5.218191862e-05 | P190: 1.777850117e-07 | Q190: 2.75637e-05 | R190: 8.157465e-05 | S190: 9.01699e-05 | T190: 9.07995e-05 | U190: 1.14285e-05 | V190: 1.570460494e-10 | W190: 2.65764e-06 | X190: 4.57947e-06 | Y190: 0.0001710934839 | Z190: 6.164975411e-07 | AA190: 0.0003299945896 | AB190: 0 | AC190: 0 | AD190: 0 | AE190: 0 | AF190: 0 | AG190: 0 | AH190: 0
A191: 1 | B191: 2013-01-07T21:00:00 | C191: W1 | D191: 6 | E191: 2017-01-07T21:00:00 | F191: ='TOU Rates'!H168 -> W3 | G191: 0 | H191: 0.0001141552511 | I191: 0.0001064600319 | J191: 0.000251706 | K191: 9.23079e-05 | L191: 9.23079e-05 | M191: 6.56087e-05 | N191: 7.320750068e-05 | O191: 6.868206696e-05 | P191: 2.954000194e-08 | Q191: 3.76039e-05 | R191: 7.89583e-05 | S191: 7.37047e-05 | T191: 6.44889e-05 | U191: 8.87059e-06 | V191: 9.248168548e-11 | W191: 1.10634e-06 | X191: 5.86909e-07 | Y191: 0.0001419224285 | Z191: 6.164975411e-07 | AA191: 0.0002959369067 | AB191: 0 | AC191: 0 | AD191: 0 | AE191: 0 | AF191: 0 | AG191: 0 | AH191: 0
A192: 1 | B192: 2013-01-07T22:00:00 | C192: W3 | D192: 6 | E192: 2017-01-07T22:00:00 | F192: ='TOU Rates'!H169 -> W3 | G192: 0 | H192: 0.0001141552511 | I192: 0.0001779426531 | J192: 0.000201502 | K192: 9.05123e-05 | L192: 9.05123e-05 | M192: 6.20689e-05 | N192: 9.68826009e-05 | O192: 8.843981345e-05 | P192: -2.90006019e-08 | Q192: 4.92874e-05 | R192: 7.62906e-05 | S192: 6.10436e-05 | T192: 4.30108e-05 | U192: 6.19747e-06 | V192: -1.799072159e-11 | W192: 9.29043e-07 | X192: 6.20992e-06 | Y192: 0.0001172564559 | Z192: 5.604520986e-07 | AA192: 0.0003588662535 | AB192: 0 | AC192: 0 | AD192: 0 | AE192: 0 | AF192: 0 | AG192: 0 | AH192: 0
A193: 1 | B193: 2013-01-07T23:00:00 | C193: W3 | D193: 6 | E193: 2017-01-07T23:00:00 | F193: ='TOU Rates'!H170 -> W3 | G193: 0 | H193: 0.0001141552511 | I193: 0.0002177539431 | J193: 0.000136976 | K193: 8.90023e-05 | L193: 8.90023e-05 | M193: 5.83955e-05 | N193: 0.0001270750012 | O193: 0.0001034191861 | P193: -3.981090261e-08 | Q193: 5.66443e-05 | R193: 7.36989e-05 | S193: 5.31722e-05 | T193: 3.02174e-05 | U193: 4.97893e-06 | V193: -9.24873726e-11 | W193: 8.21284e-07 | X193: 1.88324e-05 | Y193: 6.160077311e-05 | Z193: 6.164975411e-07 | AA193: 0.0001824807849 | AB193: 0 | AC193: 0 | AD193: 0 | AE193: 0 | AF193: 0 | AG193: 0 | AH193: 0
A194: 2 | B194: 2013-01-08 | C194: W3 | D194: 7 | E194: 2017-01-08 | F194: ='TOU Rates'!H171 -> W3 | G194: 0 | H194: 0.0001141552511 | I194: 0.0002426493499 | J194: 9.32788e-05 | K194: 8.80843e-05 | L194: 8.80843e-05 | M194: 5.44849e-05 | N194: 0.0001581110015 | O194: 0.0001106200725 | P194: -2.186980144e-08 | Q194: 5.7893e-05 | R194: 7.12846e-05 | S194: 4.89314e-05 | T194: 2.38186e-05 | U194: 4.05993e-06 | V194: -4.911268049e-11 | W194: 7.39929e-07 | X194: 2.8874e-05 | Y194: 1.38782971e-05 | Z194: 6.164975411e-07 | AA194: 0.0001694601638 | AB194: 0 | AC194: 0 | AD194: 0 | AE194: 0 | AF194: 0 | AG194: 0 | AH194: 0
A195: 2 | B195: 2013-01-08T01:00:00 | C195: W3 | D195: 7 | E195: 2017-01-08T01:00:00 | F195: ='TOU Rates'!H172 -> W3 | G195: 0 | H195: 0.0001141552511 | I195: 0.0002368394892 | J195: 6.07225e-05 | K195: 8.74169e-05 | L195: 8.74169e-05 | M195: 5.0416e-05 | N195: 0.0001819380017 | O195: 0.0001203506232 | P195: -6.413160421e-09 | Q195: 6.1196e-05 | R195: 6.891645e-05 | S195: 4.68727e-05 | T195: 2.09064e-05 | U195: 3.11442e-06 | V195: -2.661828118e-10 | W195: 6.58026e-07 | X195: 4.19161e-05 | Y195: 1.484916724e-05 | Z195: 6.164975411e-07 | AA195: 0.0001193949253 | AB195: 0 | AC195: 0 | AD195: 0 | AE195: 0 | AF195: 0 | AG195: 0 | AH195: 0
A196: 2 | B196: 2013-01-08T02:00:00 | C196: W3 | D196: 7 | E196: 2017-01-08T02:00:00 | F196: ='TOU Rates'!H173 -> W3 | G196: 0 | H196: 0.0001141552511 | I196: 0.0002304338171 | J196: 4.75418e-05 | K196: 8.6956e-05 | L196: 8.6956e-05 | M196: 4.64826e-05 | N196: 0.0001987310018 | O196: 0.0001320487948 | P196: -3.364950221e-09 | Q196: 6.69673e-05 | R196: 6.67193e-05 | S196: 4.6594e-05 | T196: 2.1106e-05 | U196: 2.60964e-06 | V196: -9.149409219e-10 | W196: 6.00478e-07 | X196: 5.38644e-05 | Y196: 1.042068995e-05 | Z196: 5.604520986e-07 | AA196: 0.000150119171 | AB196: 0 | AC196: 0 | AD196: 0 | AE196: 0 | AF196: 0 | AG196: 0 | AH196: 0
A197: 2 | B197: 2013-01-08T03:00:00 | C197: W3 | D197: 7 | E197: 2017-01-08T03:00:00 | F197: ='TOU Rates'!H174 -> W3 | G197: 0 | H197: 0.0001141552511 | I197: 0.0002285525483 | J197: 4.29679e-05 | K197: 8.6759e-05 | L197: 8.6759e-05 | M197: 4.30904e-05 | N197: 0.000211078002 | O197: 0.0001389524997 | P197: -3.364950221e-09 | Q197: 7.04518e-05 | R197: 6.49247e-05 | S197: 4.66428e-05 | T197: 2.16218e-05 | U197: 2.43167e-06 | V197: -1.17507161e-09 | W197: 5.75661e-07 | X197: 3.82616e-05 | Y197: 1.735042351e-05 | Z197: 6.164975411e-07 | AA197: 0.0002064819892 | AB197: 0 | AC197: 0 | AD197: 0 | AE197: 0 | AF197: 0 | AG197: 0 | AH197: 0
A198: 2 | B198: 2013-01-08T04:00:00 | C198: W3 | D198: 7 | E198: 2017-01-08T04:00:00 | F198: ='TOU Rates'!H175 -> W3 | G198: 0 | H198: 0.0001141552511 | I198: 0.0002426735078 | J198: 3.90255e-05 | K198: 8.67075e-05 | L198: 8.67075e-05 | M198: 4.04105e-05 | N198: 0.000219850002 | O198: 0.000140186286 | P198: -3.364950221e-09 | Q198: 7.08826e-05 | R198: 6.3559e-05 | S198: 4.96913e-05 | T198: 2.51509e-05 | U198: 2.25819e-06 | V198: -1.008517739e-09 | W198: 5.58993e-07 | X198: 1.72649e-05 | Y198: 9.693416939e-06 | Z198: 6.164975411e-07 | AA198: 0.0003543010122 | AB198: =OFFSET(AB$6,MATCH($C198,$E$7:$E$10,0),0)/OFFSET($F$6,MATCH($C198,$E$7:$E$10,0),0) -> 0 | AC198: 0 | AD198: 0 | AE198: 0 | AF198: 0 | AG198: 0 | AH198: 0
A199: 2 | B199: 2013-01-08T05:00:00 | C199: W3 | D199: 7 | E199: 2017-01-08T05:00:00 | F199: ='TOU Rates'!H176 -> W3 | G199: 0 | H199: 0.0001141552511 | I199: 0.0002382513309 | J199: 4.54554e-05 | K199: 8.67915e-05 | L199: 8.67915e-05 | M199: 3.82793e-05 | N199: 0.000221032002 | O199: 0.0001351974979 | P199: -3.364950221e-09 | Q199: 6.79516e-05 | R199: 6.25354e-05 | S199: 5.76294e-05 | T199: 3.34446e-05 | U199: 2.80996e-06 | V199: -7.543306027e-10 | W199: 1.29321e-06 | X199: 2.16638e-05 | Y199: 2.588535689e-05 | Z199: 5.604520986e-07 | AA199: 0.0003702833158 | AB199: 0 | AC199: 0 | AD199: 0 | AE199: 0 | AF199: 0 | AG199: 0 | AH199: 0
A200: 2 | B200: 2013-01-08T06:00:00 | C200: W1 | D200: 7 | E200: 2017-01-08T06:00:00 | F200: ='TOU Rates'!H177 -> W3 | G200: 0 | H200: 0.0001141552511 | I200: 0.0003470765536 | J200: 5.91826e-05 | K200: 8.70236e-05 | L200: 8.70236e-05 | M200: 3.70055e-05 | N200: 0.0002079730019 | O200: 0.0001242024504 | P200: -2.350760154e-09 | Q200: 6.18004e-05 | R200: 6.201455e-05 | S200: 7.97804e-05 | T200: 6.09508e-05 | U200: 4.96894e-06 | V200: -4.698270098e-10 | W200: 4.59699e-06 | X200: 3.00226e-05 | Y200: 9.426403929e-05 | Z200: 6.164975411e-07 | AA200: 0.0005209618377 | AB200: 0 | AC200: 0 | AD200: 0 | AE200: 0 | AF200: 0 | AG200: 0 | AH200: 0
A201: 2 | B201: 2013-01-08T07:00:00 | C201: W1 | D201: 7 | E201: 2017-01-08T07:00:00 | F201: ='TOU Rates'!H178 -> W3 | G201: 0 | H201: 0.0001141552511 | I201: 0.0001772352065 | J201: 7.70789e-05 | K201: 8.74445e-05 | L201: 8.74445e-05 | M201: 3.85925e-05 | N201: 0.0001690960016 | O201: 0.0001083983184 | P201: -2.350760154e-09 | Q201: 5.3113e-05 | R201: 6.30185e-05 | S201: 0.000121567 | T201: 0.000117941 | U201: 9.5694e-06 | V201: -3.711348919e-10 | W201: 1.3008e-05 | X201: 2.04088e-05 | Y201: 0.0001222210399 | Z201: 6.164975411e-07 | AA201: 0.0005793068139 | AB201: 0 | AC201: 0 | AD201: 0 | AE201: 0 | AF201: 0 | AG201: 0 | AH201: 0
A202: 2 | B202: 2013-01-08T08:00:00 | C202: W1 | D202: 7 | E202: 2017-01-08T08:00:00 | F202: ='TOU Rates'!H179 -> W3 | G202: 0 | H202: 0.0001141552511 | I202: 4.34230312e-05 | J202: 9.29122e-05 | K202: 8.84969e-05 | L202: 8.84969e-05 | M202: 4.55287e-05 | N202: 0.000111185001 | O202: 8.982433625e-05 | P202: -1.786940117e-09 | Q202: 4.30809e-05 | R202: 6.70128e-05 | S202: 0.000160377 | T202: 0.000174163 | U202: 1.66782e-05 | V202: -1.165031268e-08 | W202: 2.78465e-05 | X202: 8.52884e-06 | Y202: 0.0001270832586 | Z202: 6.164975411e-07 | AA202: 0.0004913125002 | AB202: 0 | AC202: 0 | AD202: 0 | AE202: 0 | AF202: 0 | AG202: 0 | AH202: 0
A203: 2 | B203: 2013-01-08T09:00:00 | C203: W1 | D203: 7 | E203: 2017-01-08T09:00:00 | F203: ='TOU Rates'!H180 -> W3 | G203: 0 | H203: 0.0001141552511 | I203: 5.919512324e-05 | J203: 0.000109645 | K203: 9.07026e-05 | L203: 9.07026e-05 | M203: 5.73448e-05 | N203: 6.305040058e-05 | O203: 7.092568052e-05 | P203: -1.786940117e-09 | Q203: 3.30807e-05 | R203: 7.40237e-05 | S203: 0.000180867 | T203: 0.000205629 | U203: 2.30076e-05 | V203: 2.385455031e-07 | W203: 4.70826e-05 | X203: 5.44618e-06 | Y203: 0.0001751220859 | Z203: 6.164975411e-07 | AA203: 0.0002989052067 | AB203: 0 | AC203: 0 | AD203: 0 | AE203: 0 | AF203: 0 | AG203: 0 | AH203: 0
A204: 2 | B204: 2013-01-08T10:00:00 | C204: W1 | D204: 7 | E204: 2017-01-08T10:00:00 | F204: ='TOU Rates'!H181 -> W3 | G204: 0 | H204: 0.0001141552511 | I204: 5.919512324e-05 | J204: 0.00011961 | K204: 9.36251e-05 | L204: 9.36251e-05 | M204: 7.07384e-05 | N204: 3.315500031e-05 | O204: 5.386000209e-05 | P204: -1.786940117e-09 | Q204: 2.42867e-05 | R204: 8.218175e-05 | S204: 0.000189299 | T204: 0.000218225 | U204: 3.3687e-05 | V204: 3.281930409e-06 | W204: 6.57034e-05 | X204: 5.7226e-06 | Y204: 0.0001563754411 | Z204: 6.164975411e-07 | AA204: 0.0002120292257 | AB204: 0 | AC204: 0 | AD204: 0 | AE204: 0 | AF204: 0 | AG204: 0 | AH204: 0
A205: 2 | B205: 2013-01-08T11:00:00 | C205: W1 | D205: 7 | E205: 2017-01-08T11:00:00 | F205: ='TOU Rates'!H182 -> W3 | G205: 0 | H205: 0.0001141552511 | I205: 5.919512324e-05 | J205: 0.00012175 | K205: 9.66152e-05 | L205: 9.66152e-05 | M205: 8.29556e-05 | N205: 1.687350016e-05 | O205: 4.00500443e-05 | P205: -1.786940117e-09 | Q205: 1.73887e-05 | R205: 8.97854e-05 | S205: 0.000188854 | T205: 0.000217662 | U205: 6.19578e-05 | V205: 8.31594707e-06 | W205: 7.90278e-05 | X205: 7.54659e-06 | Y205: 0.000153724861 | Z205: 6.164975411e-07 | AA205: 0.0001452399636 | AB205: 0 | AC205: 0 | AD205: 0 | AE205: 0 | AF205: 0 | AG205: 0 | AH205: 0
A206: 2 | B206: 2013-01-08T12:00:00 | C206: W1 | D206: 7 | E206: 2017-01-08T12:00:00 | F206: ='TOU Rates'!H183 -> W3 | G206: 0 | H206: 0.0001141552511 | I206: 5.919512324e-05 | J206: 0.000122783 | K206: 9.96207e-05 | L206: 9.96207e-05 | M206: 9.30116e-05 | N206: 9.76969009e-06 | O206: 2.998663954e-05 | P206: -1.786940117e-09 | Q206: 1.25459e-05 | R206: 9.631615e-05 | S206: 0.00018502 | T206: 0.000212076 | U206: 9.29665e-05 | V206: 8.081348425e-06 | W206: 9.0575e-05 | X206: 8.88876e-06 | Y206: 0.0001544981 | Z206: 6.164975411e-07 | AA206: 7.163850307e-05 | AB206: 0 | AC206: 0 | AD206: 0 | AE206: 0 | AF206: 0 | AG206: 0 | AH206: 0
A207: 2 | B207: 2013-01-08T13:00:00 | C207: W1 | D207: 7 | E207: 2017-01-08T13:00:00 | F207: ='TOU Rates'!H184 -> W3 | G207: 0 | H207: 0.0001141552511 | I207: 5.919512324e-05 | J207: 0.000124282 | K207: 0.00010256 | L207: 0.00010256 | M207: 0.000101044 | N207: 6.423160059e-06 | O207: 2.343402734e-05 | P207: -1.786940117e-09 | Q207: 9.51025e-06 | R207: 0.000101802 | S207: 0.000186126 | T207: 0.000212872 | U207: 0.000107899 | V207: 2.931852317e-06 | W207: 0.000104629 | X207: 1.93357e-05 | Y207: 0.0001375666416 | Z207: 6.164975411e-07 | AA207: 4.333882715e-05 | AB207: 0 | AC207: 0 | AD207: 0 | AE207: 0 | AF207: 0 | AG207: 0 | AH207: 0
A208: 2 | B208: 2013-01-08T14:00:00 | C208: W1 | D208: 7 | E208: 2017-01-08T14:00:00 | F208: ='TOU Rates'!H185 -> W3 | G208: 0 | H208: 0.0001141552511 | I208: 5.919512324e-05 | J208: 0.000127756 | K208: 0.000105071 | L208: 0.000105071 | M208: 0.000107277 | N208: 5.205780048e-06 | O208: 1.976525649e-05 | P208: -1.786940117e-09 | Q208: 7.87365e-06 | R208: 0.000106174 | S208: 0.000186303 | T208: 0.000214398 | U208: 0.000114252 | V208: -2.964423973e-07 | W208: 0.000112857 | X208: 2.94873e-05 | Y208: 8.360228647e-05 | Z208: 6.164975411e-07 | AA208: 2.995957955e-05 | AB208: 0 | AC208: 0 | AD208: 0 | AE208: 0 | AF208: 0 | AG208: 0 | AH208: 0
A209: 2 | B209: 2013-01-08T15:00:00 | C209: W1 | D209: 7 | E209: 2017-01-08T15:00:00 | F209: ='TOU Rates'!H186 -> W3 | G209: 0 | H209: 0.0001141552511 | I209: 5.919512324e-05 | J209: 0.0001256 | K209: 0.000106496 | L209: 0.000106496 | M209: 0.000110124 | N209: 5.030450047e-06 | O209: 1.838113602e-05 | P209: -3.0482102e-09 | Q209: 7.2736e-06 | R209: 0.00010831 | S209: 0.000179075 | T209: 0.000208342 | U209: 9.8275e-05 | V209: -7.125799437e-07 | W209: 0.000104506 | X209: 1.7657e-05 | Y209: 0.0001470672032 | Z209: 6.164975411e-07 | AA209: 4.504341424e-05 | AB209: 0 | AC209: 0 | AD209: 0 | AE209: 0 | AF209: 0 | AG209: 0 | AH209: 0
A210: 2 | B210: 2013-01-08T16:00:00 | C210: W1 | D210: 7 | E210: 2017-01-08T16:00:00 | F210: ='TOU Rates'!H187 -> W3 | G210: 0 | H210: 0.0001141552511 | I210: 5.919512324e-05 | J210: 0.00012294 | K210: 0.000106145 | L210: 0.000106145 | M210: 0.000106828 | N210: 6.132110057e-06 | O210: 1.88517182e-05 | P210: -5.190050341e-09 | Q210: 7.53011e-06 | R210: 0.0001064865 | S210: 0.000167475 | T210: 0.000196581 | U210: 5.66103e-05 | V210: -2.814501293e-07 | W210: 7.85152e-05 | X210: 2.0132e-06 | Y210: 0.00012125078 | Z210: 6.164975411e-07 | AA210: 5.613661012e-05 | AB210: 0 | AC210: 0 | AD210: 0 | AE210: 0 | AF210: 0 | AG210: 0 | AH210: 0
A211: 2 | B211: 2013-01-08T17:00:00 | C211: W1 | D211: 7 | E211: 2017-01-08T17:00:00 | F211: ='TOU Rates'!H188 -> W3 | G211: 0 | H211: 0.0001141552511 | I211: 5.919512324e-05 | J211: 0.000129835 | K211: 0.000104152 | L211: 0.000104152 | M211: 9.78061e-05 | N211: 8.726580081e-06 | O211: 2.115353429e-05 | P211: -6.413160421e-09 | Q211: 8.67176e-06 | R211: 0.00010097905 | S211: 0.000150414 | T211: 0.000176316 | U211: 2.59536e-05 | V211: 2.689963825e-10 | W211: 4.38129e-05 | X211: 1.91627e-08 | Y211: 0.0001541002115 | Z211: 6.164975411e-07 | AA211: 8.823535753e-05 | AB211: 0 | AC211: 0 | AD211: 0 | AE211: 0 | AF211: 0 | AG211: 0 | AH211: 0
A212: 2 | B212: 2013-01-08T18:00:00 | C212: W1 | D212: 7 | E212: 2017-01-08T18:00:00 | F212: ='TOU Rates'!H189 -> W3 | G212: 0 | H212: 0.0001141552511 | I212: 5.919512324e-05 | J212: 0.000173072 | K212: 0.000101433 | L212: 0.000101433 | M212: 8.70755e-05 | N212: 1.334010012e-05 | O212: 2.555895602e-05 | P212: -5.190050341e-09 | Q212: 1.09233e-05 | R212: 9.425425e-05 | S212: 0.000130182 | T212: 0.000150913 | U212: 1.66028e-05 | V212: 8.223350505e-11 | W212: 1.71982e-05 | X212: 2.84852e-06 | Y212: 0.0001369423361 | Z212: 6.164975411e-07 | AA212: 0.0002847225786 | AB212: 0 | AC212: 0 | AD212: 0 | AE212: 0 | AF212: 0 | AG212: 0 | AH212: 0
A213: 2 | B213: 2013-01-08T19:00:00 | C213: W1 | D213: 7 | E213: 2017-01-08T19:00:00 | F213: ='TOU Rates'!H190 -> W3 | G213: 0 | H213: 0.0001141552511 | I213: 5.919512324e-05 | J213: 0.000238306 | K213: 9.86394e-05 | L213: 9.86394e-05 | M213: 7.75981e-05 | N213: 2.19998002e-05 | O213: 3.25409795e-05 | P213: -4.626220304e-09 | Q213: 1.45919e-05 | R213: 8.811875e-05 | S213: 0.000110112 | T213: 0.000122926 | U213: 1.27408e-05 | V213: -3.034851132e-11 | W213: 6.29545e-06 | X213: 3.38387e-06 | Y213: 0.0001646294361 | Z213: 6.164975411e-07 | AA213: 0.0003137825538 | AB213: 0 | AC213: 0 | AD213: 0 | AE213: 0 | AF213: 0 | AG213: 0 | AH213: 0
A214: 2 | B214: 2013-01-08T20:00:00 | C214: W1 | D214: 7 | E214: 2017-01-08T20:00:00 | F214: ='TOU Rates'!H191 -> W3 | G214: 0 | H214: 0.0001141552511 | I214: 5.919512324e-05 | J214: 0.00027179 | K214: 9.59227e-05 | L214: 9.59227e-05 | M214: 6.97655e-05 | N214: 3.795020035e-05 | O214: 4.253572137e-05 | P214: -3.364950221e-09 | Q214: 1.99187e-05 | R214: 8.28441e-05 | S214: 9.05572e-05 | T214: 9.2588e-05 | U214: 9.86925e-06 | V214: 2.729256616e-10 | W214: 2.68177e-06 | X214: 3.43054e-06 | Y214: 0.0001832404201 | Z214: 6.164975411e-07 | AA214: 0.0003653003346 | AB214: 0 | AC214: 0 | AD214: 0 | AE214: 0 | AF214: 0 | AG214: 0 | AH214: 0
A215: 2 | B215: 2013-01-08T21:00:00 | C215: W1 | D215: 7 | E215: 2017-01-08T21:00:00 | F215: ='TOU Rates'!H192 -> W3 | G215: 0 | H215: 0.0001141552511 | I215: 6.219884687e-05 | J215: 0.000252101 | K215: 9.32808e-05 | L215: 9.32808e-05 | M215: 6.32529e-05 | N215: 6.313260058e-05 | O215: 5.565100383e-05 | P215: -1.786940117e-09 | Q215: 2.6918e-05 | R215: 7.826685e-05 | S215: 7.4258e-05 | T215: 6.51949e-05 | U215: 7.62576e-06 | V215: 6.122323584e-10 | W215: 1.03411e-06 | X215: 5.3537e-06 | Y215: 0.0001231727145 | Z215: 6.164975411e-07 | AA215: 0.0003519963573 | AB215: =OFFSET(AB$6,MATCH($C215,$E$7:$E$10,0),0)/OFFSET($F$6,MATCH($C215,$E$7:$E$10,0),0) -> 0 | AC215: 0 | AD215: 0 | AE215: 0 | AF215: 0 | AG215: 0 | AH215: 0
A216: 2 | B216: 2013-01-08T22:00:00 | C216: W3 | D216: 7 | E216: 2017-01-08T22:00:00 | F216: ='TOU Rates'!H193 -> W3 | G216: 0 | H216: 0.0001141552511 | I216: 0.0001224531056 | J216: 0.000201948 | K216: 9.08719e-05 | L216: 9.08719e-05 | M216: 5.78081e-05 | N216: 9.604430089e-05 | O216: 7.15915228e-05 | P216: -5.63827037e-10 | Q216: 3.54225e-05 | R216: 7.434e-05 | S216: 6.17717e-05 | T216: 4.27571e-05 | U216: 5.53073e-06 | V216: 2.886717308e-10 | W216: 8.00497e-07 | X216: 7.23952e-06 | Y216: 5.471281798e-05 | Z216: 6.164975411e-07 | AA216: 0.0002006232888 | AB216: 0 | AC216: 0 | AD216: 0 | AE216: 0 | AF216: 0 | AG216: 0 | AH216: 0
... 2034 more rows

Sheet DropDown Lists
B2: List 1 - Electric Load Shapes | E2: List 2 - Type of Rate Structure | J2: List 3 - Whether to calculate output for a particular test | L2: List 4 - Type of Customer
B3: Number | C3: Name
B4: 0 | C4: =TRANSPOSE('Load Shape Library'!$G$25:$AR$25) -> None | E4: Annual | F4: Summer/Winter | G4: TOU | J4: TRUE | L4: Residential
B5: 1 | C5: Flat | E5: Annual | F5: Summer | G5: Summer On-Peak | J5: FALSE | L5: Commercial
B6: 2 | C6: Example | E6: N/A | F6: Winter | G6: Summer Off-Peak | L6: Customer type 3
B7: 3 | C7: Res:Indoor_CFL_Ltg | E7: N/A | F7: N/A | G7: Winter On-Peak | L7: Customer type 4
B8: 4 | C8: Res:RefgFrzr_HighEff | E8: N/A | F8: N/A | G8: Winter Off-Peak | L8: Customer type 5
B9: 5 | C9: Res:RefgFrzr_Recyc-Conditioned
B10: 6 | C10: Res:RefgFrzr_Recyc-UnConditioned
B11: 7 | C11: Res:HVAC_Eff_AC
B12: 8 | C12: Res:HVAC_Duct_Sealing
B13: 9 | C13: Res:HVAC_Refrig_Charge
B14: 10 | C14: Res:Refg_Chrg_Duct_Seal
B15: 11 | C15: Res:RefgFrzr_Recycling
B16: 12 | C16: Non_Res:Indoor_CFL_Ltg
B17: 13 | C17: Non_Res:Indoor_Non-CFL_Ltg
B18: 14 | C18: Non_Res:HVAC_Chillers
B19: 15 | C19: Non_Res:HVAC_Refrig_Charge
B20: 16 | C20: Non_Res:HVAC_Split-Package_AC
B21: 17 | C21: Non_Res:HVAC_Duct_Sealing
B22: 18 | C22: Residential_Clothes_Washer/Dryer
B23: 19 | C23: Residential_Water_Heating
B24: 20 | C24: Res_Heat_Pump
B25: 21 | C25: User_Defined: Load_4
B26: 22 | C26: User_Defined: Load_5
B27: 23 | C27: User_Defined: Load_6
B28: 24 | C28: User_Defined: Load_7
B29: 25 | C29: User_Defined: Load_8
B30: 26 | C30: User_Defined: Load_9
B31: 27 | C31: User_Defined: Load_10
B32: 28 | C32: User_Defined: Load_11
B33: 29 | C33: User_Defined: Load_12
B34: 30 | C34: User_Defined: Load_13
B35: 31 | C35: User_Defined: Load_14
B36: 32 | C36: User_Defined: Load_15
B37: 33 | C37: User_Defined: Load_16
B38: 34 | C38: User_Defined: Load_17
B39: 35 | C39: User_Defined: Load_18
B40: 36 | C40: User_Defined: Load_19
B41: 37 | C41: User_Defined: Load_20

Sheet Life of Measure
B1: If measure is active in a given year, cell value is 1, if not, it is 0.
B5: Year | C5: 1 | D5: 2 | E5: 3 | F5: 4 | G5: 5 | H5: 6 | I5: 7 | J5: 8 | K5: 9 | L5: 10 | M5: 11 | N5: 12 | O5: 13 | P5: 14 | Q5: 15 | R5: 16 | S5: 17 | T5: 18 | U5: 19 | V5: 20 | W5: 21 | X5: 22 | Y5: 23 | Z5: 24 | AA5: 25 | AB5: 26 | AC5: 27 | AD5: 28 | AE5: 29 | AF5: 30
B6: ='Program Builder'!B17 -> Residential Lighting (POS)
B8: ='Program Builder'!B19 -> Name
B9: ='Program Builder'!B20 -> CFL 15 WATT INT BARE SPIRAL 1PK | C9: =IF(C$5<='Program Builder'!$D20,1,0) -> 1 | D9: =IF(D$5<='Program Builder'!$D20,1,0) -> 1 | E9: =IF(E$5<='Program Builder'!$D20,1,0) -> 1 | F9: =IF(F$5<='Program Builder'!$D20,1,0) -> 0 | G9: =IF(G$5<='Program Builder'!$D20,1,0) -> 0 | H9: =IF(H$5<='Program Builder'!$D20,1,0) -> 0 | I9: =IF(I$5<='Program Builder'!$D20,1,0) -> 0 | J9: =IF(J$5<='Program Builder'!$D20,1,0) -> 0 | K9: =IF(K$5<='Program Builder'!$D20,1,0) -> 0 | L9: =IF(L$5<='Program Builder'!$D20,1,0) -> 0 | M9: =IF(M$5<='Program Builder'!$D20,1,0) -> 0 | N9: =IF(N$5<='Program Builder'!$D20,1,0) -> 0 | O9: =IF(O$5<='Program Builder'!$D20,1,0) -> 0 | P9: =IF(P$5<='Program Builder'!$D20,1,0) -> 0 | Q9: =IF(Q$5<='Program Builder'!$D20,1,0) -> 0 | R9: =IF(R$5<='Program Builder'!$D20,1,0) -> 0 | S9: =IF(S$5<='Program Builder'!$D20,1,0) -> 0 | T9: =IF(T$5<='Program Builder'!$D20,1,0) -> 0 | U9: =IF(U$5<='Program Builder'!$D20,1,0) -> 0 | V9: =IF(V$5<='Program Builder'!$D20,1,0) -> 0 | W9: =IF(W$5<='Program Builder'!$D20,1,0) -> 0 | X9: =IF(X$5<='Program Builder'!$D20,1,0) -> 0 | Y9: =IF(Y$5<='Program Builder'!$D20,1,0) -> 0 | Z9: =IF(Z$5<='Program Builder'!$D20,1,0) -> 0 | AA9: =IF(AA$5<='Program Builder'!$D20,1,0) -> 0 | AB9: =IF(AB$5<='Program Builder'!$D20,1,0) -> 0 | AC9: =IF(AC$5<='Program Builder'!$D20,1,0) -> 0 | AD9: =IF(AD$5<='Program Builder'!$D20,1,0) -> 0 | AE9: =IF(AE$5<='Program Builder'!$D20,1,0) -> 0 | AF9: =IF(AF$5<='Program Builder'!$D20,1,0) -> 0
B10: ='Program Builder'!B21 -> CFL 20 WATT INT COVERED MULTI-PK | C10: =IF(C$5<='Program Builder'!$D21,1,0) -> 1 | D10: =IF(D$5<='Program Builder'!$D21,1,0) -> 1 | E10: =IF(E$5<='Program Builder'!$D21,1,0) -> 1 | F10: =IF(F$5<='Program Builder'!$D21,1,0) -> 1 | G10: =IF(G$5<='Program Builder'!$D21,1,0) -> 1 | H10: =IF(H$5<='Program Builder'!$D21,1,0) -> 1 | I10: =IF(I$5<='Program Builder'!$D21,1,0) -> 1 | J10: =IF(J$5<='Program Builder'!$D21,1,0) -> 1 | K10: =IF(K$5<='Program Builder'!$D21,1,0) -> 1 | L10: =IF(L$5<='Program Builder'!$D21,1,0) -> 0 | M10: =IF(M$5<='Program Builder'!$D21,1,0) -> 0 | N10: =IF(N$5<='Program Builder'!$D21,1,0) -> 0 | O10: =IF(O$5<='Program Builder'!$D21,1,0) -> 0 | P10: =IF(P$5<='Program Builder'!$D21,1,0) -> 0 | Q10: =IF(Q$5<='Program Builder'!$D21,1,0) -> 0 | R10: =IF(R$5<='Program Builder'!$D21,1,0) -> 0 | S10: =IF(S$5<='Program Builder'!$D21,1,0) -> 0 | T10: =IF(T$5<='Program Builder'!$D21,1,0) -> 0 | U10: =IF(U$5<='Program Builder'!$D21,1,0) -> 0 | V10: =IF(V$5<='Program Builder'!$D21,1,0) -> 0 | W10: =IF(W$5<='Program Builder'!$D21,1,0) -> 0 | X10: =IF(X$5<='Program Builder'!$D21,1,0) -> 0 | Y10: =IF(Y$5<='Program Builder'!$D21,1,0) -> 0 | Z10: =IF(Z$5<='Program Builder'!$D21,1,0) -> 0 | AA10: =IF(AA$5<='Program Builder'!$D21,1,0) -> 0 | AB10: =IF(AB$5<='Program Builder'!$D21,1,0) -> 0 | AC10: =IF(AC$5<='Program Builder'!$D21,1,0) -> 0 | AD10: =IF(AD$5<='Program Builder'!$D21,1,0) -> 0 | AE10: =IF(AE$5<='Program Builder'!$D21,1,0) -> 0 | AF10: =IF(AF$5<='Program Builder'!$D21,1,0) -> 0
B11: ='Program Builder'!B22 -> CFL 14 WATT INT COVERED MULTI-PK | C11: =IF(C$5<='Program Builder'!$D22,1,0) -> 1 | D11: =IF(D$5<='Program Builder'!$D22,1,0) -> 1 | E11: =IF(E$5<='Program Builder'!$D22,1,0) -> 1 | F11: =IF(F$5<='Program Builder'!$D22,1,0) -> 0 | G11: =IF(G$5<='Program Builder'!$D22,1,0) -> 0 | H11: =IF(H$5<='Program Builder'!$D22,1,0) -> 0 | I11: =IF(I$5<='Program Builder'!$D22,1,0) -> 0 | J11: =IF(J$5<='Program Builder'!$D22,1,0) -> 0 | K11: =IF(K$5<='Program Builder'!$D22,1,0) -> 0 | L11: =IF(L$5<='Program Builder'!$D22,1,0) -> 0 | M11: =IF(M$5<='Program Builder'!$D22,1,0) -> 0 | N11: =IF(N$5<='Program Builder'!$D22,1,0) -> 0 | O11: =IF(O$5<='Program Builder'!$D22,1,0) -> 0 | P11: =IF(P$5<='Program Builder'!$D22,1,0) -> 0 | Q11: =IF(Q$5<='Program Builder'!$D22,1,0) -> 0 | R11: =IF(R$5<='Program Builder'!$D22,1,0) -> 0 | S11: =IF(S$5<='Program Builder'!$D22,1,0) -> 0 | T11: =IF(T$5<='Program Builder'!$D22,1,0) -> 0 | U11: =IF(U$5<='Program Builder'!$D22,1,0) -> 0 | V11: =IF(V$5<='Program Builder'!$D22,1,0) -> 0 | W11: =IF(W$5<='Program Builder'!$D22,1,0) -> 0 | X11: =IF(X$5<='Program Builder'!$D22,1,0) -> 0 | Y11: =IF(Y$5<='Program Builder'!$D22,1,0) -> 0 | Z11: =IF(Z$5<='Program Builder'!$D22,1,0) -> 0 | AA11: =IF(AA$5<='Program Builder'!$D22,1,0) -> 0 | AB11: =IF(AB$5<='Program Builder'!$D22,1,0) -> 0 | AC11: =IF(AC$5<='Program Builder'!$D22,1,0) -> 0 | AD11: =IF(AD$5<='Program Builder'!$D22,1,0) -> 0 | AE11: =IF(AE$5<='Program Builder'!$D22,1,0) -> 0 | AF11: =IF(AF$5<='Program Builder'!$D22,1,0) -> 0
B12: ='Program Builder'!B23 -> CFL 18 WATT INT REFLECTOR AND/OR DIMMABLE MULTI-PK | C12: =IF(C$5<='Program Builder'!$D23,1,0) -> 1 | D12: =IF(D$5<='Program Builder'!$D23,1,0) -> 1 | E12: =IF(E$5<='Program Builder'!$D23,1,0) -> 1 | F12: =IF(F$5<='Program Builder'!$D23,1,0) -> 1 | G12: =IF(G$5<='Program Builder'!$D23,1,0) -> 1 | H12: =IF(H$5<='Program Builder'!$D23,1,0) -> 1 | I12: =IF(I$5<='Program Builder'!$D23,1,0) -> 1 | J12: =IF(J$5<='Program Builder'!$D23,1,0) -> 1 | K12: =IF(K$5<='Program Builder'!$D23,1,0) -> 1 | L12: =IF(L$5<='Program Builder'!$D23,1,0) -> 0 | M12: =IF(M$5<='Program Builder'!$D23,1,0) -> 0 | N12: =IF(N$5<='Program Builder'!$D23,1,0) -> 0 | O12: =IF(O$5<='Program Builder'!$D23,1,0) -> 0 | P12: =IF(P$5<='Program Builder'!$D23,1,0) -> 0 | Q12: =IF(Q$5<='Program Builder'!$D23,1,0) -> 0 | R12: =IF(R$5<='Program Builder'!$D23,1,0) -> 0 | S12: =IF(S$5<='Program Builder'!$D23,1,0) -> 0 | T12: =IF(T$5<='Program Builder'!$D23,1,0) -> 0 | U12: =IF(U$5<='Program Builder'!$D23,1,0) -> 0 | V12: =IF(V$5<='Program Builder'!$D23,1,0) -> 0 | W12: =IF(W$5<='Program Builder'!$D23,1,0) -> 0 | X12: =IF(X$5<='Program Builder'!$D23,1,0) -> 0 | Y12: =IF(Y$5<='Program Builder'!$D23,1,0) -> 0 | Z12: =IF(Z$5<='Program Builder'!$D23,1,0) -> 0 | AA12: =IF(AA$5<='Program Builder'!$D23,1,0) -> 0 | AB12: =IF(AB$5<='Program Builder'!$D23,1,0) -> 0 | AC12: =IF(AC$5<='Program Builder'!$D23,1,0) -> 0 | AD12: =IF(AD$5<='Program Builder'!$D23,1,0) -> 0 | AE12: =IF(AE$5<='Program Builder'!$D23,1,0) -> 0 | AF12: =IF(AF$5<='Program Builder'!$D23,1,0) -> 0
B13: ='Program Builder'!B24 -> LED R-BR - 11 TO <14 WATTS | C13: =IF(C$5<='Program Builder'!$D24,1,0) -> 1 | D13: =IF(D$5<='Program Builder'!$D24,1,0) -> 1 | E13: =IF(E$5<='Program Builder'!$D24,1,0) -> 1 | F13: =IF(F$5<='Program Builder'!$D24,1,0) -> 1 | G13: =IF(G$5<='Program Builder'!$D24,1,0) -> 1 | H13: =IF(H$5<='Program Builder'!$D24,1,0) -> 1 | I13: =IF(I$5<='Program Builder'!$D24,1,0) -> 1 | J13: =IF(J$5<='Program Builder'!$D24,1,0) -> 1 | K13: =IF(K$5<='Program Builder'!$D24,1,0) -> 0 | L13: =IF(L$5<='Program Builder'!$D24,1,0) -> 0 | M13: =IF(M$5<='Program Builder'!$D24,1,0) -> 0 | N13: =IF(N$5<='Program Builder'!$D24,1,0) -> 0 | O13: =IF(O$5<='Program Builder'!$D24,1,0) -> 0 | P13: =IF(P$5<='Program Builder'!$D24,1,0) -> 0 | Q13: =IF(Q$5<='Program Builder'!$D24,1,0) -> 0 | R13: =IF(R$5<='Program Builder'!$D24,1,0) -> 0 | S13: =IF(S$5<='Program Builder'!$D24,1,0) -> 0 | T13: =IF(T$5<='Program Builder'!$D24,1,0) -> 0 | U13: =IF(U$5<='Program Builder'!$D24,1,0) -> 0 | V13: =IF(V$5<='Program Builder'!$D24,1,0) -> 0 | W13: =IF(W$5<='Program Builder'!$D24,1,0) -> 0 | X13: =IF(X$5<='Program Builder'!$D24,1,0) -> 0 | Y13: =IF(Y$5<='Program Builder'!$D24,1,0) -> 0 | Z13: =IF(Z$5<='Program Builder'!$D24,1,0) -> 0 | AA13: =IF(AA$5<='Program Builder'!$D24,1,0) -> 0 | AB13: =IF(AB$5<='Program Builder'!$D24,1,0) -> 0 | AC13: =IF(AC$5<='Program Builder'!$D24,1,0) -> 0 | AD13: =IF(AD$5<='Program Builder'!$D24,1,0) -> 0 | AE13: =IF(AE$5<='Program Builder'!$D24,1,0) -> 0 | AF13: =IF(AF$5<='Program Builder'!$D24,1,0) -> 0
B14: ='Program Builder'!B25 -> LED A-Lamp 9 to < 10 watts | C14: =IF(C$5<='Program Builder'!$D25,1,0) -> 1 | D14: =IF(D$5<='Program Builder'!$D25,1,0) -> 1 | E14: =IF(E$5<='Program Builder'!$D25,1,0) -> 1 | F14: =IF(F$5<='Program Builder'!$D25,1,0) -> 1 | G14: =IF(G$5<='Program Builder'!$D25,1,0) -> 1 | H14: =IF(H$5<='Program Builder'!$D25,1,0) -> 1 | I14: =IF(I$5<='Program Builder'!$D25,1,0) -> 1 | J14: =IF(J$5<='Program Builder'!$D25,1,0) -> 1 | K14: =IF(K$5<='Program Builder'!$D25,1,0) -> 1 | L14: =IF(L$5<='Program Builder'!$D25,1,0) -> 1 | M14: =IF(M$5<='Program Builder'!$D25,1,0) -> 1 | N14: =IF(N$5<='Program Builder'!$D25,1,0) -> 1 | O14: =IF(O$5<='Program Builder'!$D25,1,0) -> 1 | P14: =IF(P$5<='Program Builder'!$D25,1,0) -> 1 | Q14: =IF(Q$5<='Program Builder'!$D25,1,0) -> 1 | R14: =IF(R$5<='Program Builder'!$D25,1,0) -> 1 | S14: =IF(S$5<='Program Builder'!$D25,1,0) -> 0 | T14: =IF(T$5<='Program Builder'!$D25,1,0) -> 0 | U14: =IF(U$5<='Program Builder'!$D25,1,0) -> 0 | V14: =IF(V$5<='Program Builder'!$D25,1,0) -> 0 | W14: =IF(W$5<='Program Builder'!$D25,1,0) -> 0 | X14: =IF(X$5<='Program Builder'!$D25,1,0) -> 0 | Y14: =IF(Y$5<='Program Builder'!$D25,1,0) -> 0 | Z14: =IF(Z$5<='Program Builder'!$D25,1,0) -> 0 | AA14: =IF(AA$5<='Program Builder'!$D25,1,0) -> 0 | AB14: =IF(AB$5<='Program Builder'!$D25,1,0) -> 0 | AC14: =IF(AC$5<='Program Builder'!$D25,1,0) -> 0 | AD14: =IF(AD$5<='Program Builder'!$D25,1,0) -> 0 | AE14: =IF(AE$5<='Program Builder'!$D25,1,0) -> 0 | AF14: =IF(AF$5<='Program Builder'!$D25,1,0) -> 0
B15: ='Program Builder'!B26 -> CFL 23 WATT INT 3-WAY, SINGLE | C15: =IF(C$5<='Program Builder'!$D26,1,0) -> 1 | D15: =IF(D$5<='Program Builder'!$D26,1,0) -> 1 | E15: =IF(E$5<='Program Builder'!$D26,1,0) -> 1 | F15: =IF(F$5<='Program Builder'!$D26,1,0) -> 1 | G15: =IF(G$5<='Program Builder'!$D26,1,0) -> 1 | H15: =IF(H$5<='Program Builder'!$D26,1,0) -> 1 | I15: =IF(I$5<='Program Builder'!$D26,1,0) -> 1 | J15: =IF(J$5<='Program Builder'!$D26,1,0) -> 1 | K15: =IF(K$5<='Program Builder'!$D26,1,0) -> 1 | L15: =IF(L$5<='Program Builder'!$D26,1,0) -> 0 | M15: =IF(M$5<='Program Builder'!$D26,1,0) -> 0 | N15: =IF(N$5<='Program Builder'!$D26,1,0) -> 0 | O15: =IF(O$5<='Program Builder'!$D26,1,0) -> 0 | P15: =IF(P$5<='Program Builder'!$D26,1,0) -> 0 | Q15: =IF(Q$5<='Program Builder'!$D26,1,0) -> 0 | R15: =IF(R$5<='Program Builder'!$D26,1,0) -> 0 | S15: =IF(S$5<='Program Builder'!$D26,1,0) -> 0 | T15: =IF(T$5<='Program Builder'!$D26,1,0) -> 0 | U15: =IF(U$5<='Program Builder'!$D26,1,0) -> 0 | V15: =IF(V$5<='Program Builder'!$D26,1,0) -> 0 | W15: =IF(W$5<='Program Builder'!$D26,1,0) -> 0 | X15: =IF(X$5<='Program Builder'!$D26,1,0) -> 0 | Y15: =IF(Y$5<='Program Builder'!$D26,1,0) -> 0 | Z15: =IF(Z$5<='Program Builder'!$D26,1,0) -> 0 | AA15: =IF(AA$5<='Program Builder'!$D26,1,0) -> 0 | AB15: =IF(AB$5<='Program Builder'!$D26,1,0) -> 0 | AC15: =IF(AC$5<='Program Builder'!$D26,1,0) -> 0 | AD15: =IF(AD$5<='Program Builder'!$D26,1,0) -> 0 | AE15: =IF(AE$5<='Program Builder'!$D26,1,0) -> 0 | AF15: =IF(AF$5<='Program Builder'!$D26,1,0) -> 0
B16: ='Program Builder'!B27 -> LED A-Lamp 10 to < 11 watts | C16: =IF(C$5<='Program Builder'!$D27,1,0) -> 1 | D16: =IF(D$5<='Program Builder'!$D27,1,0) -> 1 | E16: =IF(E$5<='Program Builder'!$D27,1,0) -> 1 | F16: =IF(F$5<='Program Builder'!$D27,1,0) -> 1 | G16: =IF(G$5<='Program Builder'!$D27,1,0) -> 1 | H16: =IF(H$5<='Program Builder'!$D27,1,0) -> 1 | I16: =IF(I$5<='Program Builder'!$D27,1,0) -> 0 | J16: =IF(J$5<='Program Builder'!$D27,1,0) -> 0 | K16: =IF(K$5<='Program Builder'!$D27,1,0) -> 0 | L16: =IF(L$5<='Program Builder'!$D27,1,0) -> 0 | M16: =IF(M$5<='Program Builder'!$D27,1,0) -> 0 | N16: =IF(N$5<='Program Builder'!$D27,1,0) -> 0 | O16: =IF(O$5<='Program Builder'!$D27,1,0) -> 0 | P16: =IF(P$5<='Program Builder'!$D27,1,0) -> 0 | Q16: =IF(Q$5<='Program Builder'!$D27,1,0) -> 0 | R16: =IF(R$5<='Program Builder'!$D27,1,0) -> 0 | S16: =IF(S$5<='Program Builder'!$D27,1,0) -> 0 | T16: =IF(T$5<='Program Builder'!$D27,1,0) -> 0 | U16: =IF(U$5<='Program Builder'!$D27,1,0) -> 0 | V16: =IF(V$5<='Program Builder'!$D27,1,0) -> 0 | W16: =IF(W$5<='Program Builder'!$D27,1,0) -> 0 | X16: =IF(X$5<='Program Builder'!$D27,1,0) -> 0 | Y16: =IF(Y$5<='Program Builder'!$D27,1,0) -> 0 | Z16: =IF(Z$5<='Program Builder'!$D27,1,0) -> 0 | AA16: =IF(AA$5<='Program Builder'!$D27,1,0) -> 0 | AB16: =IF(AB$5<='Program Builder'!$D27,1,0) -> 0 | AC16: =IF(AC$5<='Program Builder'!$D27,1,0) -> 0 | AD16: =IF(AD$5<='Program Builder'!$D27,1,0) -> 0 | AE16: =IF(AE$5<='Program Builder'!$D27,1,0) -> 0 | AF16: =IF(AF$5<='Program Builder'!$D27,1,0) -> 0
B17: ='Program Builder'!B28 -> 0 | C17: =IF(C$5<='Program Builder'!$D28,1,0) -> 0 | D17: =IF(D$5<='Program Builder'!$D28,1,0) -> 0 | E17: =IF(E$5<='Program Builder'!$D28,1,0) -> 0 | F17: =IF(F$5<='Program Builder'!$D28,1,0) -> 0 | G17: =IF(G$5<='Program Builder'!$D28,1,0) -> 0 | H17: =IF(H$5<='Program Builder'!$D28,1,0) -> 0 | I17: =IF(I$5<='Program Builder'!$D28,1,0) -> 0 | J17: =IF(J$5<='Program Builder'!$D28,1,0) -> 0 | K17: =IF(K$5<='Program Builder'!$D28,1,0) -> 0 | L17: =IF(L$5<='Program Builder'!$D28,1,0) -> 0 | M17: =IF(M$5<='Program Builder'!$D28,1,0) -> 0 | N17: =IF(N$5<='Program Builder'!$D28,1,0) -> 0 | O17: =IF(O$5<='Program Builder'!$D28,1,0) -> 0 | P17: =IF(P$5<='Program Builder'!$D28,1,0) -> 0 | Q17: =IF(Q$5<='Program Builder'!$D28,1,0) -> 0 | R17: =IF(R$5<='Program Builder'!$D28,1,0) -> 0 | S17: =IF(S$5<='Program Builder'!$D28,1,0) -> 0 | T17: =IF(T$5<='Program Builder'!$D28,1,0) -> 0 | U17: =IF(U$5<='Program Builder'!$D28,1,0) -> 0 | V17: =IF(V$5<='Program Builder'!$D28,1,0) -> 0 | W17: =IF(W$5<='Program Builder'!$D28,1,0) -> 0 | X17: =IF(X$5<='Program Builder'!$D28,1,0) -> 0 | Y17: =IF(Y$5<='Program Builder'!$D28,1,0) -> 0 | Z17: =IF(Z$5<='Program Builder'!$D28,1,0) -> 0 | AA17: =IF(AA$5<='Program Builder'!$D28,1,0) -> 0 | AB17: =IF(AB$5<='Program Builder'!$D28,1,0) -> 0 | AC17: =IF(AC$5<='Program Builder'!$D28,1,0) -> 0 | AD17: =IF(AD$5<='Program Builder'!$D28,1,0) -> 0 | AE17: =IF(AE$5<='Program Builder'!$D28,1,0) -> 0 | AF17: =IF(AF$5<='Program Builder'!$D28,1,0) -> 0
B18: ='Program Builder'!B29 -> 0 | C18: =IF(C$5<='Program Builder'!$D29,1,0) -> 0 | D18: =IF(D$5<='Program Builder'!$D29,1,0) -> 0 | E18: =IF(E$5<='Program Builder'!$D29,1,0) -> 0 | F18: =IF(F$5<='Program Builder'!$D29,1,0) -> 0 | G18: =IF(G$5<='Program Builder'!$D29,1,0) -> 0 | H18: =IF(H$5<='Program Builder'!$D29,1,0) -> 0 | I18: =IF(I$5<='Program Builder'!$D29,1,0) -> 0 | J18: =IF(J$5<='Program Builder'!$D29,1,0) -> 0 | K18: =IF(K$5<='Program Builder'!$D29,1,0) -> 0 | L18: =IF(L$5<='Program Builder'!$D29,1,0) -> 0 | M18: =IF(M$5<='Program Builder'!$D29,1,0) -> 0 | N18: =IF(N$5<='Program Builder'!$D29,1,0) -> 0 | O18: =IF(O$5<='Program Builder'!$D29,1,0) -> 0 | P18: =IF(P$5<='Program Builder'!$D29,1,0) -> 0 | Q18: =IF(Q$5<='Program Builder'!$D29,1,0) -> 0 | R18: =IF(R$5<='Program Builder'!$D29,1,0) -> 0 | S18: =IF(S$5<='Program Builder'!$D29,1,0) -> 0 | T18: =IF(T$5<='Program Builder'!$D29,1,0) -> 0 | U18: =IF(U$5<='Program Builder'!$D29,1,0) -> 0 | V18: =IF(V$5<='Program Builder'!$D29,1,0) -> 0 | W18: =IF(W$5<='Program Builder'!$D29,1,0) -> 0 | X18: =IF(X$5<='Program Builder'!$D29,1,0) -> 0 | Y18: =IF(Y$5<='Program Builder'!$D29,1,0) -> 0 | Z18: =IF(Z$5<='Program Builder'!$D29,1,0) -> 0 | AA18: =IF(AA$5<='Program Builder'!$D29,1,0) -> 0 | AB18: =IF(AB$5<='Program Builder'!$D29,1,0) -> 0 | AC18: =IF(AC$5<='Program Builder'!$D29,1,0) -> 0 | AD18: =IF(AD$5<='Program Builder'!$D29,1,0) -> 0 | AE18: =IF(AE$5<='Program Builder'!$D29,1,0) -> 0 | AF18: =IF(AF$5<='Program Builder'!$D29,1,0) -> 0
B19: ='Program Builder'!B30 -> Total
B21: ='Program Builder'!B32 -> Residential Appliance Rebates/(POS) Discounts
B23: ='Program Builder'!B34 -> Name
B24: ='Program Builder'!B35 -> ENERGY EFFICIENT TELEVISIONS ENERGY STAR V5.1+20% - 36"- 39" | C24: =IF(C$5<='Program Builder'!$D35,1,0) -> 1 | D24: =IF(D$5<='Program Builder'!$D35,1,0) -> 1 | E24: =IF(E$5<='Program Builder'!$D35,1,0) -> 1 | F24: =IF(F$5<='Program Builder'!$D35,1,0) -> 1 | G24: =IF(G$5<='Program Builder'!$D35,1,0) -> 1 | H24: =IF(H$5<='Program Builder'!$D35,1,0) -> 1 | I24: =IF(I$5<='Program Builder'!$D35,1,0) -> 1 | J24: =IF(J$5<='Program Builder'!$D35,1,0) -> 0 | K24: =IF(K$5<='Program Builder'!$D35,1,0) -> 0 | L24: =IF(L$5<='Program Builder'!$D35,1,0) -> 0 | M24: =IF(M$5<='Program Builder'!$D35,1,0) -> 0 | N24: =IF(N$5<='Program Builder'!$D35,1,0) -> 0 | O24: =IF(O$5<='Program Builder'!$D35,1,0) -> 0 | P24: =IF(P$5<='Program Builder'!$D35,1,0) -> 0 | Q24: =IF(Q$5<='Program Builder'!$D35,1,0) -> 0 | R24: =IF(R$5<='Program Builder'!$D35,1,0) -> 0 | S24: =IF(S$5<='Program Builder'!$D35,1,0) -> 0 | T24: =IF(T$5<='Program Builder'!$D35,1,0) -> 0 | U24: =IF(U$5<='Program Builder'!$D35,1,0) -> 0 | V24: =IF(V$5<='Program Builder'!$D35,1,0) -> 0 | W24: =IF(W$5<='Program Builder'!$D35,1,0) -> 0 | X24: =IF(X$5<='Program Builder'!$D35,1,0) -> 0 | Y24: =IF(Y$5<='Program Builder'!$D35,1,0) -> 0 | Z24: =IF(Z$5<='Program Builder'!$D35,1,0) -> 0 | AA24: =IF(AA$5<='Program Builder'!$D35,1,0) -> 0 | AB24: =IF(AB$5<='Program Builder'!$D35,1,0) -> 0 | AC24: =IF(AC$5<='Program Builder'!$D35,1,0) -> 0 | AD24: =IF(AD$5<='Program Builder'!$D35,1,0) -> 0 | AE24: =IF(AE$5<='Program Builder'!$D35,1,0) -> 0 | AF24: =IF(AF$5<='Program Builder'!$D35,1,0) -> 0
B25: ='Program Builder'!B36 -> REFRIGERATOR: BOTTOM FREEZER WITHOUT ICE >= 16.5 CU. FT. | C25: =IF(C$5<='Program Builder'!$D36,1,0) -> 1 | D25: =IF(D$5<='Program Builder'!$D36,1,0) -> 1 | E25: =IF(E$5<='Program Builder'!$D36,1,0) -> 1 | F25: =IF(F$5<='Program Builder'!$D36,1,0) -> 1 | G25: =IF(G$5<='Program Builder'!$D36,1,0) -> 1 | H25: =IF(H$5<='Program Builder'!$D36,1,0) -> 1 | I25: =IF(I$5<='Program Builder'!$D36,1,0) -> 1 | J25: =IF(J$5<='Program Builder'!$D36,1,0) -> 1 | K25: =IF(K$5<='Program Builder'!$D36,1,0) -> 1 | L25: =IF(L$5<='Program Builder'!$D36,1,0) -> 1 | M25: =IF(M$5<='Program Builder'!$D36,1,0) -> 1 | N25: =IF(N$5<='Program Builder'!$D36,1,0) -> 1 | O25: =IF(O$5<='Program Builder'!$D36,1,0) -> 1 | P25: =IF(P$5<='Program Builder'!$D36,1,0) -> 1 | Q25: =IF(Q$5<='Program Builder'!$D36,1,0) -> 0 | R25: =IF(R$5<='Program Builder'!$D36,1,0) -> 0 | S25: =IF(S$5<='Program Builder'!$D36,1,0) -> 0 | T25: =IF(T$5<='Program Builder'!$D36,1,0) -> 0 | U25: =IF(U$5<='Program Builder'!$D36,1,0) -> 0 | V25: =IF(V$5<='Program Builder'!$D36,1,0) -> 0 | W25: =IF(W$5<='Program Builder'!$D36,1,0) -> 0 | X25: =IF(X$5<='Program Builder'!$D36,1,0) -> 0 | Y25: =IF(Y$5<='Program Builder'!$D36,1,0) -> 0 | Z25: =IF(Z$5<='Program Builder'!$D36,1,0) -> 0 | AA25: =IF(AA$5<='Program Builder'!$D36,1,0) -> 0 | AB25: =IF(AB$5<='Program Builder'!$D36,1,0) -> 0 | AC25: =IF(AC$5<='Program Builder'!$D36,1,0) -> 0 | AD25: =IF(AD$5<='Program Builder'!$D36,1,0) -> 0 | AE25: =IF(AE$5<='Program Builder'!$D36,1,0) -> 0 | AF25: =IF(AF$5<='Program Builder'!$D36,1,0) -> 0
B26: ='Program Builder'!B37 -> EFFICIENT VARIABLE SPEED POOL PUMP AND MOTOR - CUSTOMER | C26: =IF(C$5<='Program Builder'!$D37,1,0) -> 1 | D26: =IF(D$5<='Program Builder'!$D37,1,0) -> 1 | E26: =IF(E$5<='Program Builder'!$D37,1,0) -> 1 | F26: =IF(F$5<='Program Builder'!$D37,1,0) -> 1 | G26: =IF(G$5<='Program Builder'!$D37,1,0) -> 1 | H26: =IF(H$5<='Program Builder'!$D37,1,0) -> 1 | I26: =IF(I$5<='Program Builder'!$D37,1,0) -> 1 | J26: =IF(J$5<='Program Builder'!$D37,1,0) -> 1 | K26: =IF(K$5<='Program Builder'!$D37,1,0) -> 1 | L26: =IF(L$5<='Program Builder'!$D37,1,0) -> 1 | M26: =IF(M$5<='Program Builder'!$D37,1,0) -> 0 | N26: =IF(N$5<='Program Builder'!$D37,1,0) -> 0 | O26: =IF(O$5<='Program Builder'!$D37,1,0) -> 0 | P26: =IF(P$5<='Program Builder'!$D37,1,0) -> 0 | Q26: =IF(Q$5<='Program Builder'!$D37,1,0) -> 0 | R26: =IF(R$5<='Program Builder'!$D37,1,0) -> 0 | S26: =IF(S$5<='Program Builder'!$D37,1,0) -> 0 | T26: =IF(T$5<='Program Builder'!$D37,1,0) -> 0 | U26: =IF(U$5<='Program Builder'!$D37,1,0) -> 0 | V26: =IF(V$5<='Program Builder'!$D37,1,0) -> 0 | W26: =IF(W$5<='Program Builder'!$D37,1,0) -> 0 | X26: =IF(X$5<='Program Builder'!$D37,1,0) -> 0 | Y26: =IF(Y$5<='Program Builder'!$D37,1,0) -> 0 | Z26: =IF(Z$5<='Program Builder'!$D37,1,0) -> 0 | AA26: =IF(AA$5<='Program Builder'!$D37,1,0) -> 0 | AB26: =IF(AB$5<='Program Builder'!$D37,1,0) -> 0 | AC26: =IF(AC$5<='Program Builder'!$D37,1,0) -> 0 | AD26: =IF(AD$5<='Program Builder'!$D37,1,0) -> 0 | AE26: =IF(AE$5<='Program Builder'!$D37,1,0) -> 0 | AF26: =IF(AF$5<='Program Builder'!$D37,1,0) -> 0
B27: ='Program Builder'!B38 -> REFRIGERATOR: SIDE FREEZER WITH ICE >= 23 CU. FT. | C27: =IF(C$5<='Program Builder'!$D38,1,0) -> 1 | D27: =IF(D$5<='Program Builder'!$D38,1,0) -> 1 | E27: =IF(E$5<='Program Builder'!$D38,1,0) -> 1 | F27: =IF(F$5<='Program Builder'!$D38,1,0) -> 1 | G27: =IF(G$5<='Program Builder'!$D38,1,0) -> 1 | H27: =IF(H$5<='Program Builder'!$D38,1,0) -> 1 | I27: =IF(I$5<='Program Builder'!$D38,1,0) -> 1 | J27: =IF(J$5<='Program Builder'!$D38,1,0) -> 1 | K27: =IF(K$5<='Program Builder'!$D38,1,0) -> 1 | L27: =IF(L$5<='Program Builder'!$D38,1,0) -> 1 | M27: =IF(M$5<='Program Builder'!$D38,1,0) -> 1 | N27: =IF(N$5<='Program Builder'!$D38,1,0) -> 1 | O27: =IF(O$5<='Program Builder'!$D38,1,0) -> 1 | P27: =IF(P$5<='Program Builder'!$D38,1,0) -> 1 | Q27: =IF(Q$5<='Program Builder'!$D38,1,0) -> 0 | R27: =IF(R$5<='Program Builder'!$D38,1,0) -> 0 | S27: =IF(S$5<='Program Builder'!$D38,1,0) -> 0 | T27: =IF(T$5<='Program Builder'!$D38,1,0) -> 0 | U27: =IF(U$5<='Program Builder'!$D38,1,0) -> 0 | V27: =IF(V$5<='Program Builder'!$D38,1,0) -> 0 | W27: =IF(W$5<='Program Builder'!$D38,1,0) -> 0 | X27: =IF(X$5<='Program Builder'!$D38,1,0) -> 0 | Y27: =IF(Y$5<='Program Builder'!$D38,1,0) -> 0 | Z27: =IF(Z$5<='Program Builder'!$D38,1,0) -> 0 | AA27: =IF(AA$5<='Program Builder'!$D38,1,0) -> 0 | AB27: =IF(AB$5<='Program Builder'!$D38,1,0) -> 0 | AC27: =IF(AC$5<='Program Builder'!$D38,1,0) -> 0 | AD27: =IF(AD$5<='Program Builder'!$D38,1,0) -> 0 | AE27: =IF(AE$5<='Program Builder'!$D38,1,0) -> 0 | AF27: =IF(AF$5<='Program Builder'!$D38,1,0) -> 0
B28: ='Program Builder'!B39 -> HI EFF CLOTHES WASHER - LEVEL 3 - MEF >= 2.4 WF <= 4.0 | C28: =IF(C$5<='Program Builder'!$D39,1,0) -> 1 | D28: =IF(D$5<='Program Builder'!$D39,1,0) -> 1 | E28: =IF(E$5<='Program Builder'!$D39,1,0) -> 1 | F28: =IF(F$5<='Program Builder'!$D39,1,0) -> 1 | G28: =IF(G$5<='Program Builder'!$D39,1,0) -> 1 | H28: =IF(H$5<='Program Builder'!$D39,1,0) -> 1 | I28: =IF(I$5<='Program Builder'!$D39,1,0) -> 1 | J28: =IF(J$5<='Program Builder'!$D39,1,0) -> 1 | K28: =IF(K$5<='Program Builder'!$D39,1,0) -> 1 | L28: =IF(L$5<='Program Builder'!$D39,1,0) -> 1 | M28: =IF(M$5<='Program Builder'!$D39,1,0) -> 1 | N28: =IF(N$5<='Program Builder'!$D39,1,0) -> 0 | O28: =IF(O$5<='Program Builder'!$D39,1,0) -> 0 | P28: =IF(P$5<='Program Builder'!$D39,1,0) -> 0 | Q28: =IF(Q$5<='Program Builder'!$D39,1,0) -> 0 | R28: =IF(R$5<='Program Builder'!$D39,1,0) -> 0 | S28: =IF(S$5<='Program Builder'!$D39,1,0) -> 0 | T28: =IF(T$5<='Program Builder'!$D39,1,0) -> 0 | U28: =IF(U$5<='Program Builder'!$D39,1,0) -> 0 | V28: =IF(V$5<='Program Builder'!$D39,1,0) -> 0 | W28: =IF(W$5<='Program Builder'!$D39,1,0) -> 0 | X28: =IF(X$5<='Program Builder'!$D39,1,0) -> 0 | Y28: =IF(Y$5<='Program Builder'!$D39,1,0) -> 0 | Z28: =IF(Z$5<='Program Builder'!$D39,1,0) -> 0 | AA28: =IF(AA$5<='Program Builder'!$D39,1,0) -> 0 | AB28: =IF(AB$5<='Program Builder'!$D39,1,0) -> 0 | AC28: =IF(AC$5<='Program Builder'!$D39,1,0) -> 0 | AD28: =IF(AD$5<='Program Builder'!$D39,1,0) -> 0 | AE28: =IF(AE$5<='Program Builder'!$D39,1,0) -> 0 | AF28: =IF(AF$5<='Program Builder'!$D39,1,0) -> 0
B29: ='Program Builder'!B40 -> ENERGY EFFICIENT TELEVISIONS ENERGY STAR +35%- >50" | C29: =IF(C$5<='Program Builder'!$D40,1,0) -> 1 | D29: =IF(D$5<='Program Builder'!$D40,1,0) -> 1 | E29: =IF(E$5<='Program Builder'!$D40,1,0) -> 1 | F29: =IF(F$5<='Program Builder'!$D40,1,0) -> 1 | G29: =IF(G$5<='Program Builder'!$D40,1,0) -> 1 | H29: =IF(H$5<='Program Builder'!$D40,1,0) -> 1 | I29: =IF(I$5<='Program Builder'!$D40,1,0) -> 1 | J29: =IF(J$5<='Program Builder'!$D40,1,0) -> 0 | K29: =IF(K$5<='Program Builder'!$D40,1,0) -> 0 | L29: =IF(L$5<='Program Builder'!$D40,1,0) -> 0 | M29: =IF(M$5<='Program Builder'!$D40,1,0) -> 0 | N29: =IF(N$5<='Program Builder'!$D40,1,0) -> 0 | O29: =IF(O$5<='Program Builder'!$D40,1,0) -> 0 | P29: =IF(P$5<='Program Builder'!$D40,1,0) -> 0 | Q29: =IF(Q$5<='Program Builder'!$D40,1,0) -> 0 | R29: =IF(R$5<='Program Builder'!$D40,1,0) -> 0 | S29: =IF(S$5<='Program Builder'!$D40,1,0) -> 0 | T29: =IF(T$5<='Program Builder'!$D40,1,0) -> 0 | U29: =IF(U$5<='Program Builder'!$D40,1,0) -> 0 | V29: =IF(V$5<='Program Builder'!$D40,1,0) -> 0 | W29: =IF(W$5<='Program Builder'!$D40,1,0) -> 0 | X29: =IF(X$5<='Program Builder'!$D40,1,0) -> 0 | Y29: =IF(Y$5<='Program Builder'!$D40,1,0) -> 0 | Z29: =IF(Z$5<='Program Builder'!$D40,1,0) -> 0 | AA29: =IF(AA$5<='Program Builder'!$D40,1,0) -> 0 | AB29: =IF(AB$5<='Program Builder'!$D40,1,0) -> 0 | AC29: =IF(AC$5<='Program Builder'!$D40,1,0) -> 0 | AD29: =IF(AD$5<='Program Builder'!$D40,1,0) -> 0 | AE29: =IF(AE$5<='Program Builder'!$D40,1,0) -> 0 | AF29: =IF(AF$5<='Program Builder'!$D40,1,0) -> 0
B30: ='Program Builder'!B41 -> REFRIGERATOR: BOTTOM FREEZER WITH ICE >= 16.5 CU. FT. | C30: =IF(C$5<='Program Builder'!$D41,1,0) -> 1 | D30: =IF(D$5<='Program Builder'!$D41,1,0) -> 1 | E30: =IF(E$5<='Program Builder'!$D41,1,0) -> 1 | F30: =IF(F$5<='Program Builder'!$D41,1,0) -> 1 | G30: =IF(G$5<='Program Builder'!$D41,1,0) -> 1 | H30: =IF(H$5<='Program Builder'!$D41,1,0) -> 1 | I30: =IF(I$5<='Program Builder'!$D41,1,0) -> 1 | J30: =IF(J$5<='Program Builder'!$D41,1,0) -> 1 | K30: =IF(K$5<='Program Builder'!$D41,1,0) -> 1 | L30: =IF(L$5<='Program Builder'!$D41,1,0) -> 1 | M30: =IF(M$5<='Program Builder'!$D41,1,0) -> 1 | N30: =IF(N$5<='Program Builder'!$D41,1,0) -> 1 | O30: =IF(O$5<='Program Builder'!$D41,1,0) -> 1 | P30: =IF(P$5<='Program Builder'!$D41,1,0) -> 1 | Q30: =IF(Q$5<='Program Builder'!$D41,1,0) -> 0 | R30: =IF(R$5<='Program Builder'!$D41,1,0) -> 0 | S30: =IF(S$5<='Program Builder'!$D41,1,0) -> 0 | T30: =IF(T$5<='Program Builder'!$D41,1,0) -> 0 | U30: =IF(U$5<='Program Builder'!$D41,1,0) -> 0 | V30: =IF(V$5<='Program Builder'!$D41,1,0) -> 0 | W30: =IF(W$5<='Program Builder'!$D41,1,0) -> 0 | X30: =IF(X$5<='Program Builder'!$D41,1,0) -> 0 | Y30: =IF(Y$5<='Program Builder'!$D41,1,0) -> 0 | Z30: =IF(Z$5<='Program Builder'!$D41,1,0) -> 0 | AA30: =IF(AA$5<='Program Builder'!$D41,1,0) -> 0 | AB30: =IF(AB$5<='Program Builder'!$D41,1,0) -> 0 | AC30: =IF(AC$5<='Program Builder'!$D41,1,0) -> 0 | AD30: =IF(AD$5<='Program Builder'!$D41,1,0) -> 0 | AE30: =IF(AE$5<='Program Builder'!$D41,1,0) -> 0 | AF30: =IF(AF$5<='Program Builder'!$D41,1,0) -> 0
B31: ='Program Builder'!B42 -> 0 | C31: =IF(C$5<='Program Builder'!$D42,1,0) -> 0 | D31: =IF(D$5<='Program Builder'!$D42,1,0) -> 0 | E31: =IF(E$5<='Program Builder'!$D42,1,0) -> 0 | F31: =IF(F$5<='Program Builder'!$D42,1,0) -> 0 | G31: =IF(G$5<='Program Builder'!$D42,1,0) -> 0 | H31: =IF(H$5<='Program Builder'!$D42,1,0) -> 0 | I31: =IF(I$5<='Program Builder'!$D42,1,0) -> 0 | J31: =IF(J$5<='Program Builder'!$D42,1,0) -> 0 | K31: =IF(K$5<='Program Builder'!$D42,1,0) -> 0 | L31: =IF(L$5<='Program Builder'!$D42,1,0) -> 0 | M31: =IF(M$5<='Program Builder'!$D42,1,0) -> 0 | N31: =IF(N$5<='Program Builder'!$D42,1,0) -> 0 | O31: =IF(O$5<='Program Builder'!$D42,1,0) -> 0 | P31: =IF(P$5<='Program Builder'!$D42,1,0) -> 0 | Q31: =IF(Q$5<='Program Builder'!$D42,1,0) -> 0 | R31: =IF(R$5<='Program Builder'!$D42,1,0) -> 0 | S31: =IF(S$5<='Program Builder'!$D42,1,0) -> 0 | T31: =IF(T$5<='Program Builder'!$D42,1,0) -> 0 | U31: =IF(U$5<='Program Builder'!$D42,1,0) -> 0 | V31: =IF(V$5<='Program Builder'!$D42,1,0) -> 0 | W31: =IF(W$5<='Program Builder'!$D42,1,0) -> 0 | X31: =IF(X$5<='Program Builder'!$D42,1,0) -> 0 | Y31: =IF(Y$5<='Program Builder'!$D42,1,0) -> 0 | Z31: =IF(Z$5<='Program Builder'!$D42,1,0) -> 0 | AA31: =IF(AA$5<='Program Builder'!$D42,1,0) -> 0 | AB31: =IF(AB$5<='Program Builder'!$D42,1,0) -> 0 | AC31: =IF(AC$5<='Program Builder'!$D42,1,0) -> 0 | AD31: =IF(AD$5<='Program Builder'!$D42,1,0) -> 0 | AE31: =IF(AE$5<='Program Builder'!$D42,1,0) -> 0 | AF31: =IF(AF$5<='Program Builder'!$D42,1,0) -> 0
B32: ='Program Builder'!B43 -> 0 | C32: =IF(C$5<='Program Builder'!$D43,1,0) -> 0 | D32: =IF(D$5<='Program Builder'!$D43,1,0) -> 0 | E32: =IF(E$5<='Program Builder'!$D43,1,0) -> 0 | F32: =IF(F$5<='Program Builder'!$D43,1,0) -> 0 | G32: =IF(G$5<='Program Builder'!$D43,1,0) -> 0 | H32: =IF(H$5<='Program Builder'!$D43,1,0) -> 0 | I32: =IF(I$5<='Program Builder'!$D43,1,0) -> 0 | J32: =IF(J$5<='Program Builder'!$D43,1,0) -> 0 | K32: =IF(K$5<='Program Builder'!$D43,1,0) -> 0 | L32: =IF(L$5<='Program Builder'!$D43,1,0) -> 0 | M32: =IF(M$5<='Program Builder'!$D43,1,0) -> 0 | N32: =IF(N$5<='Program Builder'!$D43,1,0) -> 0 | O32: =IF(O$5<='Program Builder'!$D43,1,0) -> 0 | P32: =IF(P$5<='Program Builder'!$D43,1,0) -> 0 | Q32: =IF(Q$5<='Program Builder'!$D43,1,0) -> 0 | R32: =IF(R$5<='Program Builder'!$D43,1,0) -> 0 | S32: =IF(S$5<='Program Builder'!$D43,1,0) -> 0 | T32: =IF(T$5<='Program Builder'!$D43,1,0) -> 0 | U32: =IF(U$5<='Program Builder'!$D43,1,0) -> 0 | V32: =IF(V$5<='Program Builder'!$D43,1,0) -> 0 | W32: =IF(W$5<='Program Builder'!$D43,1,0) -> 0 | X32: =IF(X$5<='Program Builder'!$D43,1,0) -> 0 | Y32: =IF(Y$5<='Program Builder'!$D43,1,0) -> 0 | Z32: =IF(Z$5<='Program Builder'!$D43,1,0) -> 0 | AA32: =IF(AA$5<='Program Builder'!$D43,1,0) -> 0 | AB32: =IF(AB$5<='Program Builder'!$D43,1,0) -> 0 | AC32: =IF(AC$5<='Program Builder'!$D43,1,0) -> 0 | AD32: =IF(AD$5<='Program Builder'!$D43,1,0) -> 0 | AE32: =IF(AE$5<='Program Builder'!$D43,1,0) -> 0 | AF32: =IF(AF$5<='Program Builder'!$D43,1,0) -> 0
B33: ='Program Builder'!B44 -> 0 | C33: =IF(C$5<='Program Builder'!$D44,1,0) -> 0 | D33: =IF(D$5<='Program Builder'!$D44,1,0) -> 0 | E33: =IF(E$5<='Program Builder'!$D44,1,0) -> 0 | F33: =IF(F$5<='Program Builder'!$D44,1,0) -> 0 | G33: =IF(G$5<='Program Builder'!$D44,1,0) -> 0 | H33: =IF(H$5<='Program Builder'!$D44,1,0) -> 0 | I33: =IF(I$5<='Program Builder'!$D44,1,0) -> 0 | J33: =IF(J$5<='Program Builder'!$D44,1,0) -> 0 | K33: =IF(K$5<='Program Builder'!$D44,1,0) -> 0 | L33: =IF(L$5<='Program Builder'!$D44,1,0) -> 0 | M33: =IF(M$5<='Program Builder'!$D44,1,0) -> 0 | N33: =IF(N$5<='Program Builder'!$D44,1,0) -> 0 | O33: =IF(O$5<='Program Builder'!$D44,1,0) -> 0 | P33: =IF(P$5<='Program Builder'!$D44,1,0) -> 0 | Q33: =IF(Q$5<='Program Builder'!$D44,1,0) -> 0 | R33: =IF(R$5<='Program Builder'!$D44,1,0) -> 0 | S33: =IF(S$5<='Program Builder'!$D44,1,0) -> 0 | T33: =IF(T$5<='Program Builder'!$D44,1,0) -> 0 | U33: =IF(U$5<='Program Builder'!$D44,1,0) -> 0 | V33: =IF(V$5<='Program Builder'!$D44,1,0) -> 0 | W33: =IF(W$5<='Program Builder'!$D44,1,0) -> 0 | X33: =IF(X$5<='Program Builder'!$D44,1,0) -> 0 | Y33: =IF(Y$5<='Program Builder'!$D44,1,0) -> 0 | Z33: =IF(Z$5<='Program Builder'!$D44,1,0) -> 0 | AA33: =IF(AA$5<='Program Builder'!$D44,1,0) -> 0 | AB33: =IF(AB$5<='Program Builder'!$D44,1,0) -> 0 | AC33: =IF(AC$5<='Program Builder'!$D44,1,0) -> 0 | AD33: =IF(AD$5<='Program Builder'!$D44,1,0) -> 0 | AE33: =IF(AE$5<='Program Builder'!$D44,1,0) -> 0 | AF33: =IF(AF$5<='Program Builder'!$D44,1,0) -> 0
B34: ='Program Builder'!B45 -> Total
B36: ='Program Builder'!B47 -> Whole-Home Retrofit
B38: ='Program Builder'!B49 -> Name
B39: ='Program Builder'!B50 -> Wall Insulation | C39: =IF(C$5<='Program Builder'!$D50,1,0) -> 1 | D39: =IF(D$5<='Program Builder'!$D50,1,0) -> 1 | E39: =IF(E$5<='Program Builder'!$D50,1,0) -> 1 | F39: =IF(F$5<='Program Builder'!$D50,1,0) -> 1 | G39: =IF(G$5<='Program Builder'!$D50,1,0) -> 1 | H39: =IF(H$5<='Program Builder'!$D50,1,0) -> 1 | I39: =IF(I$5<='Program Builder'!$D50,1,0) -> 1 | J39: =IF(J$5<='Program Builder'!$D50,1,0) -> 1 | K39: =IF(K$5<='Program Builder'!$D50,1,0) -> 1 | L39: =IF(L$5<='Program Builder'!$D50,1,0) -> 1 | M39: =IF(M$5<='Program Builder'!$D50,1,0) -> 1 | N39: =IF(N$5<='Program Builder'!$D50,1,0) -> 1 | O39: =IF(O$5<='Program Builder'!$D50,1,0) -> 1 | P39: =IF(P$5<='Program Builder'!$D50,1,0) -> 1 | Q39: =IF(Q$5<='Program Builder'!$D50,1,0) -> 1 | R39: =IF(R$5<='Program Builder'!$D50,1,0) -> 1 | S39: =IF(S$5<='Program Builder'!$D50,1,0) -> 1 | T39: =IF(T$5<='Program Builder'!$D50,1,0) -> 1 | U39: =IF(U$5<='Program Builder'!$D50,1,0) -> 1 | V39: =IF(V$5<='Program Builder'!$D50,1,0) -> 0 | W39: =IF(W$5<='Program Builder'!$D50,1,0) -> 0 | X39: =IF(X$5<='Program Builder'!$D50,1,0) -> 0 | Y39: =IF(Y$5<='Program Builder'!$D50,1,0) -> 0 | Z39: =IF(Z$5<='Program Builder'!$D50,1,0) -> 0 | AA39: =IF(AA$5<='Program Builder'!$D50,1,0) -> 0 | AB39: =IF(AB$5<='Program Builder'!$D50,1,0) -> 0 | AC39: =IF(AC$5<='Program Builder'!$D50,1,0) -> 0 | AD39: =IF(AD$5<='Program Builder'!$D50,1,0) -> 0 | AE39: =IF(AE$5<='Program Builder'!$D50,1,0) -> 0 | AF39: =IF(AF$5<='Program Builder'!$D50,1,0) -> 0
B40: ='Program Builder'!B51 -> HVAC Duct Sealing | C40: =IF(C$5<='Program Builder'!$D51,1,0) -> 1 | D40: =IF(D$5<='Program Builder'!$D51,1,0) -> 1 | E40: =IF(E$5<='Program Builder'!$D51,1,0) -> 1 | F40: =IF(F$5<='Program Builder'!$D51,1,0) -> 1 | G40: =IF(G$5<='Program Builder'!$D51,1,0) -> 1 | H40: =IF(H$5<='Program Builder'!$D51,1,0) -> 1 | I40: =IF(I$5<='Program Builder'!$D51,1,0) -> 1 | J40: =IF(J$5<='Program Builder'!$D51,1,0) -> 1 | K40: =IF(K$5<='Program Builder'!$D51,1,0) -> 1 | L40: =IF(L$5<='Program Builder'!$D51,1,0) -> 1 | M40: =IF(M$5<='Program Builder'!$D51,1,0) -> 1 | N40: =IF(N$5<='Program Builder'!$D51,1,0) -> 1 | O40: =IF(O$5<='Program Builder'!$D51,1,0) -> 1 | P40: =IF(P$5<='Program Builder'!$D51,1,0) -> 1 | Q40: =IF(Q$5<='Program Builder'!$D51,1,0) -> 1 | R40: =IF(R$5<='Program Builder'!$D51,1,0) -> 1 | S40: =IF(S$5<='Program Builder'!$D51,1,0) -> 1 | T40: =IF(T$5<='Program Builder'!$D51,1,0) -> 1 | U40: =IF(U$5<='Program Builder'!$D51,1,0) -> 1 | V40: =IF(V$5<='Program Builder'!$D51,1,0) -> 1 | W40: =IF(W$5<='Program Builder'!$D51,1,0) -> 0 | X40: =IF(X$5<='Program Builder'!$D51,1,0) -> 0 | Y40: =IF(Y$5<='Program Builder'!$D51,1,0) -> 0 | Z40: =IF(Z$5<='Program Builder'!$D51,1,0) -> 0 | AA40: =IF(AA$5<='Program Builder'!$D51,1,0) -> 0 | AB40: =IF(AB$5<='Program Builder'!$D51,1,0) -> 0 | AC40: =IF(AC$5<='Program Builder'!$D51,1,0) -> 0 | AD40: =IF(AD$5<='Program Builder'!$D51,1,0) -> 0 | AE40: =IF(AE$5<='Program Builder'!$D51,1,0) -> 0 | AF40: =IF(AF$5<='Program Builder'!$D51,1,0) -> 0
B41: ='Program Builder'!B52 -> Attic Insulation | C41: =IF(C$5<='Program Builder'!$D52,1,0) -> 1 | D41: =IF(D$5<='Program Builder'!$D52,1,0) -> 1 | E41: =IF(E$5<='Program Builder'!$D52,1,0) -> 1 | F41: =IF(F$5<='Program Builder'!$D52,1,0) -> 1 | G41: =IF(G$5<='Program Builder'!$D52,1,0) -> 1 | H41: =IF(H$5<='Program Builder'!$D52,1,0) -> 1 | I41: =IF(I$5<='Program Builder'!$D52,1,0) -> 1 | J41: =IF(J$5<='Program Builder'!$D52,1,0) -> 1 | K41: =IF(K$5<='Program Builder'!$D52,1,0) -> 1 | L41: =IF(L$5<='Program Builder'!$D52,1,0) -> 1 | M41: =IF(M$5<='Program Builder'!$D52,1,0) -> 1 | N41: =IF(N$5<='Program Builder'!$D52,1,0) -> 1 | O41: =IF(O$5<='Program Builder'!$D52,1,0) -> 1 | P41: =IF(P$5<='Program Builder'!$D52,1,0) -> 1 | Q41: =IF(Q$5<='Program Builder'!$D52,1,0) -> 1 | R41: =IF(R$5<='Program Builder'!$D52,1,0) -> 1 | S41: =IF(S$5<='Program Builder'!$D52,1,0) -> 1 | T41: =IF(T$5<='Program Builder'!$D52,1,0) -> 1 | U41: =IF(U$5<='Program Builder'!$D52,1,0) -> 1 | V41: =IF(V$5<='Program Builder'!$D52,1,0) -> 1 | W41: =IF(W$5<='Program Builder'!$D52,1,0) -> 0 | X41: =IF(X$5<='Program Builder'!$D52,1,0) -> 0 | Y41: =IF(Y$5<='Program Builder'!$D52,1,0) -> 0 | Z41: =IF(Z$5<='Program Builder'!$D52,1,0) -> 0 | AA41: =IF(AA$5<='Program Builder'!$D52,1,0) -> 0 | AB41: =IF(AB$5<='Program Builder'!$D52,1,0) -> 0 | AC41: =IF(AC$5<='Program Builder'!$D52,1,0) -> 0 | AD41: =IF(AD$5<='Program Builder'!$D52,1,0) -> 0 | AE41: =IF(AE$5<='Program Builder'!$D52,1,0) -> 0 | AF41: =IF(AF$5<='Program Builder'!$D52,1,0) -> 0
B42: ='Program Builder'!B53 -> AFUE >= 94% < 96% GAS FURNACE WITH BUILT-IN VSM | C42: =IF(C$5<='Program Builder'!$D53,1,0) -> 1 | D42: =IF(D$5<='Program Builder'!$D53,1,0) -> 1 | E42: =IF(E$5<='Program Builder'!$D53,1,0) -> 1 | F42: =IF(F$5<='Program Builder'!$D53,1,0) -> 1 | G42: =IF(G$5<='Program Builder'!$D53,1,0) -> 1 | H42: =IF(H$5<='Program Builder'!$D53,1,0) -> 1 | I42: =IF(I$5<='Program Builder'!$D53,1,0) -> 1 | J42: =IF(J$5<='Program Builder'!$D53,1,0) -> 1 | K42: =IF(K$5<='Program Builder'!$D53,1,0) -> 1 | L42: =IF(L$5<='Program Builder'!$D53,1,0) -> 1 | M42: =IF(M$5<='Program Builder'!$D53,1,0) -> 1 | N42: =IF(N$5<='Program Builder'!$D53,1,0) -> 1 | O42: =IF(O$5<='Program Builder'!$D53,1,0) -> 1 | P42: =IF(P$5<='Program Builder'!$D53,1,0) -> 1 | Q42: =IF(Q$5<='Program Builder'!$D53,1,0) -> 1 | R42: =IF(R$5<='Program Builder'!$D53,1,0) -> 0 | S42: =IF(S$5<='Program Builder'!$D53,1,0) -> 0 | T42: =IF(T$5<='Program Builder'!$D53,1,0) -> 0 | U42: =IF(U$5<='Program Builder'!$D53,1,0) -> 0 | V42: =IF(V$5<='Program Builder'!$D53,1,0) -> 0 | W42: =IF(W$5<='Program Builder'!$D53,1,0) -> 0 | X42: =IF(X$5<='Program Builder'!$D53,1,0) -> 0 | Y42: =IF(Y$5<='Program Builder'!$D53,1,0) -> 0 | Z42: =IF(Z$5<='Program Builder'!$D53,1,0) -> 0 | AA42: =IF(AA$5<='Program Builder'!$D53,1,0) -> 0 | AB42: =IF(AB$5<='Program Builder'!$D53,1,0) -> 0 | AC42: =IF(AC$5<='Program Builder'!$D53,1,0) -> 0 | AD42: =IF(AD$5<='Program Builder'!$D53,1,0) -> 0 | AE42: =IF(AE$5<='Program Builder'!$D53,1,0) -> 0 | AF42: =IF(AF$5<='Program Builder'!$D53,1,0) -> 0
B43: ='Program Builder'!B54 -> 0 | C43: =IF(C$5<='Program Builder'!$D54,1,0) -> 0 | D43: =IF(D$5<='Program Builder'!$D54,1,0) -> 0 | E43: =IF(E$5<='Program Builder'!$D54,1,0) -> 0 | F43: =IF(F$5<='Program Builder'!$D54,1,0) -> 0 | G43: =IF(G$5<='Program Builder'!$D54,1,0) -> 0 | H43: =IF(H$5<='Program Builder'!$D54,1,0) -> 0 | I43: =IF(I$5<='Program Builder'!$D54,1,0) -> 0 | J43: =IF(J$5<='Program Builder'!$D54,1,0) -> 0 | K43: =IF(K$5<='Program Builder'!$D54,1,0) -> 0 | L43: =IF(L$5<='Program Builder'!$D54,1,0) -> 0 | M43: =IF(M$5<='Program Builder'!$D54,1,0) -> 0 | N43: =IF(N$5<='Program Builder'!$D54,1,0) -> 0 | O43: =IF(O$5<='Program Builder'!$D54,1,0) -> 0 | P43: =IF(P$5<='Program Builder'!$D54,1,0) -> 0 | Q43: =IF(Q$5<='Program Builder'!$D54,1,0) -> 0 | R43: =IF(R$5<='Program Builder'!$D54,1,0) -> 0 | S43: =IF(S$5<='Program Builder'!$D54,1,0) -> 0 | T43: =IF(T$5<='Program Builder'!$D54,1,0) -> 0 | U43: =IF(U$5<='Program Builder'!$D54,1,0) -> 0 | V43: =IF(V$5<='Program Builder'!$D54,1,0) -> 0 | W43: =IF(W$5<='Program Builder'!$D54,1,0) -> 0 | X43: =IF(X$5<='Program Builder'!$D54,1,0) -> 0 | Y43: =IF(Y$5<='Program Builder'!$D54,1,0) -> 0 | Z43: =IF(Z$5<='Program Builder'!$D54,1,0) -> 0 | AA43: =IF(AA$5<='Program Builder'!$D54,1,0) -> 0 | AB43: =IF(AB$5<='Program Builder'!$D54,1,0) -> 0 | AC43: =IF(AC$5<='Program Builder'!$D54,1,0) -> 0 | AD43: =IF(AD$5<='Program Builder'!$D54,1,0) -> 0 | AE43: =IF(AE$5<='Program Builder'!$D54,1,0) -> 0 | AF43: =IF(AF$5<='Program Builder'!$D54,1,0) -> 0
B44: ='Program Builder'!B55 -> 0 | C44: =IF(C$5<='Program Builder'!$D55,1,0) -> 0 | D44: =IF(D$5<='Program Builder'!$D55,1,0) -> 0 | E44: =IF(E$5<='Program Builder'!$D55,1,0) -> 0 | F44: =IF(F$5<='Program Builder'!$D55,1,0) -> 0 | G44: =IF(G$5<='Program Builder'!$D55,1,0) -> 0 | H44: =IF(H$5<='Program Builder'!$D55,1,0) -> 0 | I44: =IF(I$5<='Program Builder'!$D55,1,0) -> 0 | J44: =IF(J$5<='Program Builder'!$D55,1,0) -> 0 | K44: =IF(K$5<='Program Builder'!$D55,1,0) -> 0 | L44: =IF(L$5<='Program Builder'!$D55,1,0) -> 0 | M44: =IF(M$5<='Program Builder'!$D55,1,0) -> 0 | N44: =IF(N$5<='Program Builder'!$D55,1,0) -> 0 | O44: =IF(O$5<='Program Builder'!$D55,1,0) -> 0 | P44: =IF(P$5<='Program Builder'!$D55,1,0) -> 0 | Q44: =IF(Q$5<='Program Builder'!$D55,1,0) -> 0 | R44: =IF(R$5<='Program Builder'!$D55,1,0) -> 0 | S44: =IF(S$5<='Program Builder'!$D55,1,0) -> 0 | T44: =IF(T$5<='Program Builder'!$D55,1,0) -> 0 | U44: =IF(U$5<='Program Builder'!$D55,1,0) -> 0 | V44: =IF(V$5<='Program Builder'!$D55,1,0) -> 0 | W44: =IF(W$5<='Program Builder'!$D55,1,0) -> 0 | X44: =IF(X$5<='Program Builder'!$D55,1,0) -> 0 | Y44: =IF(Y$5<='Program Builder'!$D55,1,0) -> 0 | Z44: =IF(Z$5<='Program Builder'!$D55,1,0) -> 0 | AA44: =IF(AA$5<='Program Builder'!$D55,1,0) -> 0 | AB44: =IF(AB$5<='Program Builder'!$D55,1,0) -> 0 | AC44: =IF(AC$5<='Program Builder'!$D55,1,0) -> 0 | AD44: =IF(AD$5<='Program Builder'!$D55,1,0) -> 0 | AE44: =IF(AE$5<='Program Builder'!$D55,1,0) -> 0 | AF44: =IF(AF$5<='Program Builder'!$D55,1,0) -> 0
B45: ='Program Builder'!B56 -> 0 | C45: =IF(C$5<='Program Builder'!$D56,1,0) -> 0 | D45: =IF(D$5<='Program Builder'!$D56,1,0) -> 0 | E45: =IF(E$5<='Program Builder'!$D56,1,0) -> 0 | F45: =IF(F$5<='Program Builder'!$D56,1,0) -> 0 | G45: =IF(G$5<='Program Builder'!$D56,1,0) -> 0 | H45: =IF(H$5<='Program Builder'!$D56,1,0) -> 0 | I45: =IF(I$5<='Program Builder'!$D56,1,0) -> 0 | J45: =IF(J$5<='Program Builder'!$D56,1,0) -> 0 | K45: =IF(K$5<='Program Builder'!$D56,1,0) -> 0 | L45: =IF(L$5<='Program Builder'!$D56,1,0) -> 0 | M45: =IF(M$5<='Program Builder'!$D56,1,0) -> 0 | N45: =IF(N$5<='Program Builder'!$D56,1,0) -> 0 | O45: =IF(O$5<='Program Builder'!$D56,1,0) -> 0 | P45: =IF(P$5<='Program Builder'!$D56,1,0) -> 0 | Q45: =IF(Q$5<='Program Builder'!$D56,1,0) -> 0 | R45: =IF(R$5<='Program Builder'!$D56,1,0) -> 0 | S45: =IF(S$5<='Program Builder'!$D56,1,0) -> 0 | T45: =IF(T$5<='Program Builder'!$D56,1,0) -> 0 | U45: =IF(U$5<='Program Builder'!$D56,1,0) -> 0 | V45: =IF(V$5<='Program Builder'!$D56,1,0) -> 0 | W45: =IF(W$5<='Program Builder'!$D56,1,0) -> 0 | X45: =IF(X$5<='Program Builder'!$D56,1,0) -> 0 | Y45: =IF(Y$5<='Program Builder'!$D56,1,0) -> 0 | Z45: =IF(Z$5<='Program Builder'!$D56,1,0) -> 0 | AA45: =IF(AA$5<='Program Builder'!$D56,1,0) -> 0 | AB45: =IF(AB$5<='Program Builder'!$D56,1,0) -> 0 | AC45: =IF(AC$5<='Program Builder'!$D56,1,0) -> 0 | AD45: =IF(AD$5<='Program Builder'!$D56,1,0) -> 0 | AE45: =IF(AE$5<='Program Builder'!$D56,1,0) -> 0 | AF45: =IF(AF$5<='Program Builder'!$D56,1,0) -> 0
B46: ='Program Builder'!B57 -> 0 | C46: =IF(C$5<='Program Builder'!$D57,1,0) -> 0 | D46: =IF(D$5<='Program Builder'!$D57,1,0) -> 0 | E46: =IF(E$5<='Program Builder'!$D57,1,0) -> 0 | F46: =IF(F$5<='Program Builder'!$D57,1,0) -> 0 | G46: =IF(G$5<='Program Builder'!$D57,1,0) -> 0 | H46: =IF(H$5<='Program Builder'!$D57,1,0) -> 0 | I46: =IF(I$5<='Program Builder'!$D57,1,0) -> 0 | J46: =IF(J$5<='Program Builder'!$D57,1,0) -> 0 | K46: =IF(K$5<='Program Builder'!$D57,1,0) -> 0 | L46: =IF(L$5<='Program Builder'!$D57,1,0) -> 0 | M46: =IF(M$5<='Program Builder'!$D57,1,0) -> 0 | N46: =IF(N$5<='Program Builder'!$D57,1,0) -> 0 | O46: =IF(O$5<='Program Builder'!$D57,1,0) -> 0 | P46: =IF(P$5<='Program Builder'!$D57,1,0) -> 0 | Q46: =IF(Q$5<='Program Builder'!$D57,1,0) -> 0 | R46: =IF(R$5<='Program Builder'!$D57,1,0) -> 0 | S46: =IF(S$5<='Program Builder'!$D57,1,0) -> 0 | T46: =IF(T$5<='Program Builder'!$D57,1,0) -> 0 | U46: =IF(U$5<='Program Builder'!$D57,1,0) -> 0 | V46: =IF(V$5<='Program Builder'!$D57,1,0) -> 0 | W46: =IF(W$5<='Program Builder'!$D57,1,0) -> 0 | X46: =IF(X$5<='Program Builder'!$D57,1,0) -> 0 | Y46: =IF(Y$5<='Program Builder'!$D57,1,0) -> 0 | Z46: =IF(Z$5<='Program Builder'!$D57,1,0) -> 0 | AA46: =IF(AA$5<='Program Builder'!$D57,1,0) -> 0 | AB46: =IF(AB$5<='Program Builder'!$D57,1,0) -> 0 | AC46: =IF(AC$5<='Program Builder'!$D57,1,0) -> 0 | AD46: =IF(AD$5<='Program Builder'!$D57,1,0) -> 0 | AE46: =IF(AE$5<='Program Builder'!$D57,1,0) -> 0 | AF46: =IF(AF$5<='Program Builder'!$D57,1,0) -> 0
B47: ='Program Builder'!B58 -> 0 | C47: =IF(C$5<='Program Builder'!$D58,1,0) -> 0 | D47: =IF(D$5<='Program Builder'!$D58,1,0) -> 0 | E47: =IF(E$5<='Program Builder'!$D58,1,0) -> 0 | F47: =IF(F$5<='Program Builder'!$D58,1,0) -> 0 | G47: =IF(G$5<='Program Builder'!$D58,1,0) -> 0 | H47: =IF(H$5<='Program Builder'!$D58,1,0) -> 0 | I47: =IF(I$5<='Program Builder'!$D58,1,0) -> 0 | J47: =IF(J$5<='Program Builder'!$D58,1,0) -> 0 | K47: =IF(K$5<='Program Builder'!$D58,1,0) -> 0 | L47: =IF(L$5<='Program Builder'!$D58,1,0) -> 0 | M47: =IF(M$5<='Program Builder'!$D58,1,0) -> 0 | N47: =IF(N$5<='Program Builder'!$D58,1,0) -> 0 | O47: =IF(O$5<='Program Builder'!$D58,1,0) -> 0 | P47: =IF(P$5<='Program Builder'!$D58,1,0) -> 0 | Q47: =IF(Q$5<='Program Builder'!$D58,1,0) -> 0 | R47: =IF(R$5<='Program Builder'!$D58,1,0) -> 0 | S47: =IF(S$5<='Program Builder'!$D58,1,0) -> 0 | T47: =IF(T$5<='Program Builder'!$D58,1,0) -> 0 | U47: =IF(U$5<='Program Builder'!$D58,1,0) -> 0 | V47: =IF(V$5<='Program Builder'!$D58,1,0) -> 0 | W47: =IF(W$5<='Program Builder'!$D58,1,0) -> 0 | X47: =IF(X$5<='Program Builder'!$D58,1,0) -> 0 | Y47: =IF(Y$5<='Program Builder'!$D58,1,0) -> 0 | Z47: =IF(Z$5<='Program Builder'!$D58,1,0) -> 0 | AA47: =IF(AA$5<='Program Builder'!$D58,1,0) -> 0 | AB47: =IF(AB$5<='Program Builder'!$D58,1,0) -> 0 | AC47: =IF(AC$5<='Program Builder'!$D58,1,0) -> 0 | AD47: =IF(AD$5<='Program Builder'!$D58,1,0) -> 0 | AE47: =IF(AE$5<='Program Builder'!$D58,1,0) -> 0 | AF47: =IF(AF$5<='Program Builder'!$D58,1,0) -> 0
B48: ='Program Builder'!B59 -> 0 | C48: =IF(C$5<='Program Builder'!$D59,1,0) -> 0 | D48: =IF(D$5<='Program Builder'!$D59,1,0) -> 0 | E48: =IF(E$5<='Program Builder'!$D59,1,0) -> 0 | F48: =IF(F$5<='Program Builder'!$D59,1,0) -> 0 | G48: =IF(G$5<='Program Builder'!$D59,1,0) -> 0 | H48: =IF(H$5<='Program Builder'!$D59,1,0) -> 0 | I48: =IF(I$5<='Program Builder'!$D59,1,0) -> 0 | J48: =IF(J$5<='Program Builder'!$D59,1,0) -> 0 | K48: =IF(K$5<='Program Builder'!$D59,1,0) -> 0 | L48: =IF(L$5<='Program Builder'!$D59,1,0) -> 0 | M48: =IF(M$5<='Program Builder'!$D59,1,0) -> 0 | N48: =IF(N$5<='Program Builder'!$D59,1,0) -> 0 | O48: =IF(O$5<='Program Builder'!$D59,1,0) -> 0 | P48: =IF(P$5<='Program Builder'!$D59,1,0) -> 0 | Q48: =IF(Q$5<='Program Builder'!$D59,1,0) -> 0 | R48: =IF(R$5<='Program Builder'!$D59,1,0) -> 0 | S48: =IF(S$5<='Program Builder'!$D59,1,0) -> 0 | T48: =IF(T$5<='Program Builder'!$D59,1,0) -> 0 | U48: =IF(U$5<='Program Builder'!$D59,1,0) -> 0 | V48: =IF(V$5<='Program Builder'!$D59,1,0) -> 0 | W48: =IF(W$5<='Program Builder'!$D59,1,0) -> 0 | X48: =IF(X$5<='Program Builder'!$D59,1,0) -> 0 | Y48: =IF(Y$5<='Program Builder'!$D59,1,0) -> 0 | Z48: =IF(Z$5<='Program Builder'!$D59,1,0) -> 0 | AA48: =IF(AA$5<='Program Builder'!$D59,1,0) -> 0 | AB48: =IF(AB$5<='Program Builder'!$D59,1,0) -> 0 | AC48: =IF(AC$5<='Program Builder'!$D59,1,0) -> 0 | AD48: =IF(AD$5<='Program Builder'!$D59,1,0) -> 0 | AE48: =IF(AE$5<='Program Builder'!$D59,1,0) -> 0 | AF48: =IF(AF$5<='Program Builder'!$D59,1,0) -> 0
B49: ='Program Builder'!B60 -> Total
B51: ='Program Builder'!B62 -> Residential HVAC/Water Heating Rebates
B53: ='Program Builder'!B64 -> Name
B54: ='Program Builder'!B65 -> Water Heating Tankless Water Heater (Gas) | C54: =IF(C$5<='Program Builder'!$D65,1,0) -> 1 | D54: =IF(D$5<='Program Builder'!$D65,1,0) -> 1 | E54: =IF(E$5<='Program Builder'!$D65,1,0) -> 1 | F54: =IF(F$5<='Program Builder'!$D65,1,0) -> 1 | G54: =IF(G$5<='Program Builder'!$D65,1,0) -> 1 | H54: =IF(H$5<='Program Builder'!$D65,1,0) -> 1 | I54: =IF(I$5<='Program Builder'!$D65,1,0) -> 1 | J54: =IF(J$5<='Program Builder'!$D65,1,0) -> 1 | K54: =IF(K$5<='Program Builder'!$D65,1,0) -> 1 | L54: =IF(L$5<='Program Builder'!$D65,1,0) -> 1 | M54: =IF(M$5<='Program Builder'!$D65,1,0) -> 1 | N54: =IF(N$5<='Program Builder'!$D65,1,0) -> 1 | O54: =IF(O$5<='Program Builder'!$D65,1,0) -> 1 | P54: =IF(P$5<='Program Builder'!$D65,1,0) -> 1 | Q54: =IF(Q$5<='Program Builder'!$D65,1,0) -> 1 | R54: =IF(R$5<='Program Builder'!$D65,1,0) -> 1 | S54: =IF(S$5<='Program Builder'!$D65,1,0) -> 1 | T54: =IF(T$5<='Program Builder'!$D65,1,0) -> 1 | U54: =IF(U$5<='Program Builder'!$D65,1,0) -> 1 | V54: =IF(V$5<='Program Builder'!$D65,1,0) -> 1 | W54: =IF(W$5<='Program Builder'!$D65,1,0) -> 0 | X54: =IF(X$5<='Program Builder'!$D65,1,0) -> 0 | Y54: =IF(Y$5<='Program Builder'!$D65,1,0) -> 0 | Z54: =IF(Z$5<='Program Builder'!$D65,1,0) -> 0 | AA54: =IF(AA$5<='Program Builder'!$D65,1,0) -> 0 | AB54: =IF(AB$5<='Program Builder'!$D65,1,0) -> 0 | AC54: =IF(AC$5<='Program Builder'!$D65,1,0) -> 0 | AD54: =IF(AD$5<='Program Builder'!$D65,1,0) -> 0 | AE54: =IF(AE$5<='Program Builder'!$D65,1,0) -> 0 | AF54: =IF(AF$5<='Program Builder'!$D65,1,0) -> 0
B55: ='Program Builder'!B66 -> RESIDENTIAL HEAT PUMP STORAGE WATER HEATER EF > 2.0 | C55: =IF(C$5<='Program Builder'!$D66,1,0) -> 1 | D55: =IF(D$5<='Program Builder'!$D66,1,0) -> 1 | E55: =IF(E$5<='Program Builder'!$D66,1,0) -> 1 | F55: =IF(F$5<='Program Builder'!$D66,1,0) -> 1 | G55: =IF(G$5<='Program Builder'!$D66,1,0) -> 1 | H55: =IF(H$5<='Program Builder'!$D66,1,0) -> 1 | I55: =IF(I$5<='Program Builder'!$D66,1,0) -> 1 | J55: =IF(J$5<='Program Builder'!$D66,1,0) -> 1 | K55: =IF(K$5<='Program Builder'!$D66,1,0) -> 1 | L55: =IF(L$5<='Program Builder'!$D66,1,0) -> 1 | M55: =IF(M$5<='Program Builder'!$D66,1,0) -> 0 | N55: =IF(N$5<='Program Builder'!$D66,1,0) -> 0 | O55: =IF(O$5<='Program Builder'!$D66,1,0) -> 0 | P55: =IF(P$5<='Program Builder'!$D66,1,0) -> 0 | Q55: =IF(Q$5<='Program Builder'!$D66,1,0) -> 0 | R55: =IF(R$5<='Program Builder'!$D66,1,0) -> 0 | S55: =IF(S$5<='Program Builder'!$D66,1,0) -> 0 | T55: =IF(T$5<='Program Builder'!$D66,1,0) -> 0 | U55: =IF(U$5<='Program Builder'!$D66,1,0) -> 0 | V55: =IF(V$5<='Program Builder'!$D66,1,0) -> 0 | W55: =IF(W$5<='Program Builder'!$D66,1,0) -> 0 | X55: =IF(X$5<='Program Builder'!$D66,1,0) -> 0 | Y55: =IF(Y$5<='Program Builder'!$D66,1,0) -> 0 | Z55: =IF(Z$5<='Program Builder'!$D66,1,0) -> 0 | AA55: =IF(AA$5<='Program Builder'!$D66,1,0) -> 0 | AB55: =IF(AB$5<='Program Builder'!$D66,1,0) -> 0 | AC55: =IF(AC$5<='Program Builder'!$D66,1,0) -> 0 | AD55: =IF(AD$5<='Program Builder'!$D66,1,0) -> 0 | AE55: =IF(AE$5<='Program Builder'!$D66,1,0) -> 0 | AF55: =IF(AF$5<='Program Builder'!$D66,1,0) -> 0
B56: ='Program Builder'!B67 -> AFUE >= 94% < 96% GAS FURNACE WITH BUILT-IN VSM | C56: =IF(C$5<='Program Builder'!$D67,1,0) -> 1 | D56: =IF(D$5<='Program Builder'!$D67,1,0) -> 1 | E56: =IF(E$5<='Program Builder'!$D67,1,0) -> 1 | F56: =IF(F$5<='Program Builder'!$D67,1,0) -> 1 | G56: =IF(G$5<='Program Builder'!$D67,1,0) -> 1 | H56: =IF(H$5<='Program Builder'!$D67,1,0) -> 1 | I56: =IF(I$5<='Program Builder'!$D67,1,0) -> 1 | J56: =IF(J$5<='Program Builder'!$D67,1,0) -> 1 | K56: =IF(K$5<='Program Builder'!$D67,1,0) -> 1 | L56: =IF(L$5<='Program Builder'!$D67,1,0) -> 1 | M56: =IF(M$5<='Program Builder'!$D67,1,0) -> 1 | N56: =IF(N$5<='Program Builder'!$D67,1,0) -> 1 | O56: =IF(O$5<='Program Builder'!$D67,1,0) -> 1 | P56: =IF(P$5<='Program Builder'!$D67,1,0) -> 1 | Q56: =IF(Q$5<='Program Builder'!$D67,1,0) -> 1 | R56: =IF(R$5<='Program Builder'!$D67,1,0) -> 0 | S56: =IF(S$5<='Program Builder'!$D67,1,0) -> 0 | T56: =IF(T$5<='Program Builder'!$D67,1,0) -> 0 | U56: =IF(U$5<='Program Builder'!$D67,1,0) -> 0 | V56: =IF(V$5<='Program Builder'!$D67,1,0) -> 0 | W56: =IF(W$5<='Program Builder'!$D67,1,0) -> 0 | X56: =IF(X$5<='Program Builder'!$D67,1,0) -> 0 | Y56: =IF(Y$5<='Program Builder'!$D67,1,0) -> 0 | Z56: =IF(Z$5<='Program Builder'!$D67,1,0) -> 0 | AA56: =IF(AA$5<='Program Builder'!$D67,1,0) -> 0 | AB56: =IF(AB$5<='Program Builder'!$D67,1,0) -> 0 | AC56: =IF(AC$5<='Program Builder'!$D67,1,0) -> 0 | AD56: =IF(AD$5<='Program Builder'!$D67,1,0) -> 0 | AE56: =IF(AE$5<='Program Builder'!$D67,1,0) -> 0 | AF56: =IF(AF$5<='Program Builder'!$D67,1,0) -> 0
B57: ='Program Builder'!B68 -> ENERGY STAR ROOM A/C- | C57: =IF(C$5<='Program Builder'!$D68,1,0) -> 1 | D57: =IF(D$5<='Program Builder'!$D68,1,0) -> 1 | E57: =IF(E$5<='Program Builder'!$D68,1,0) -> 1 | F57: =IF(F$5<='Program Builder'!$D68,1,0) -> 1 | G57: =IF(G$5<='Program Builder'!$D68,1,0) -> 1 | H57: =IF(H$5<='Program Builder'!$D68,1,0) -> 1 | I57: =IF(I$5<='Program Builder'!$D68,1,0) -> 1 | J57: =IF(J$5<='Program Builder'!$D68,1,0) -> 1 | K57: =IF(K$5<='Program Builder'!$D68,1,0) -> 1 | L57: =IF(L$5<='Program Builder'!$D68,1,0) -> 0 | M57: =IF(M$5<='Program Builder'!$D68,1,0) -> 0 | N57: =IF(N$5<='Program Builder'!$D68,1,0) -> 0 | O57: =IF(O$5<='Program Builder'!$D68,1,0) -> 0 | P57: =IF(P$5<='Program Builder'!$D68,1,0) -> 0 | Q57: =IF(Q$5<='Program Builder'!$D68,1,0) -> 0 | R57: =IF(R$5<='Program Builder'!$D68,1,0) -> 0 | S57: =IF(S$5<='Program Builder'!$D68,1,0) -> 0 | T57: =IF(T$5<='Program Builder'!$D68,1,0) -> 0 | U57: =IF(U$5<='Program Builder'!$D68,1,0) -> 0 | V57: =IF(V$5<='Program Builder'!$D68,1,0) -> 0 | W57: =IF(W$5<='Program Builder'!$D68,1,0) -> 0 | X57: =IF(X$5<='Program Builder'!$D68,1,0) -> 0 | Y57: =IF(Y$5<='Program Builder'!$D68,1,0) -> 0 | Z57: =IF(Z$5<='Program Builder'!$D68,1,0) -> 0 | AA57: =IF(AA$5<='Program Builder'!$D68,1,0) -> 0 | AB57: =IF(AB$5<='Program Builder'!$D68,1,0) -> 0 | AC57: =IF(AC$5<='Program Builder'!$D68,1,0) -> 0 | AD57: =IF(AD$5<='Program Builder'!$D68,1,0) -> 0 | AE57: =IF(AE$5<='Program Builder'!$D68,1,0) -> 0 | AF57: =IF(AF$5<='Program Builder'!$D68,1,0) -> 0
B58: ='Program Builder'!B69 -> dxAC-Res-Split-SEER-17.0 | C58: =IF(C$5<='Program Builder'!$D69,1,0) -> 1 | D58: =IF(D$5<='Program Builder'!$D69,1,0) -> 1 | E58: =IF(E$5<='Program Builder'!$D69,1,0) -> 1 | F58: =IF(F$5<='Program Builder'!$D69,1,0) -> 1 | G58: =IF(G$5<='Program Builder'!$D69,1,0) -> 1 | H58: =IF(H$5<='Program Builder'!$D69,1,0) -> 1 | I58: =IF(I$5<='Program Builder'!$D69,1,0) -> 1 | J58: =IF(J$5<='Program Builder'!$D69,1,0) -> 1 | K58: =IF(K$5<='Program Builder'!$D69,1,0) -> 1 | L58: =IF(L$5<='Program Builder'!$D69,1,0) -> 1 | M58: =IF(M$5<='Program Builder'!$D69,1,0) -> 1 | N58: =IF(N$5<='Program Builder'!$D69,1,0) -> 1 | O58: =IF(O$5<='Program Builder'!$D69,1,0) -> 1 | P58: =IF(P$5<='Program Builder'!$D69,1,0) -> 1 | Q58: =IF(Q$5<='Program Builder'!$D69,1,0) -> 1 | R58: =IF(R$5<='Program Builder'!$D69,1,0) -> 0 | S58: =IF(S$5<='Program Builder'!$D69,1,0) -> 0 | T58: =IF(T$5<='Program Builder'!$D69,1,0) -> 0 | U58: =IF(U$5<='Program Builder'!$D69,1,0) -> 0 | V58: =IF(V$5<='Program Builder'!$D69,1,0) -> 0 | W58: =IF(W$5<='Program Builder'!$D69,1,0) -> 0 | X58: =IF(X$5<='Program Builder'!$D69,1,0) -> 0 | Y58: =IF(Y$5<='Program Builder'!$D69,1,0) -> 0 | Z58: =IF(Z$5<='Program Builder'!$D69,1,0) -> 0 | AA58: =IF(AA$5<='Program Builder'!$D69,1,0) -> 0 | AB58: =IF(AB$5<='Program Builder'!$D69,1,0) -> 0 | AC58: =IF(AC$5<='Program Builder'!$D69,1,0) -> 0 | AD58: =IF(AD$5<='Program Builder'!$D69,1,0) -> 0 | AE58: =IF(AE$5<='Program Builder'!$D69,1,0) -> 0 | AF58: =IF(AF$5<='Program Builder'!$D69,1,0) -> 0
B59: ='Program Builder'!B70 -> HVAC Duct Sealing | C59: =IF(C$5<='Program Builder'!$D70,1,0) -> 1 | D59: =IF(D$5<='Program Builder'!$D70,1,0) -> 1 | E59: =IF(E$5<='Program Builder'!$D70,1,0) -> 1 | F59: =IF(F$5<='Program Builder'!$D70,1,0) -> 1 | G59: =IF(G$5<='Program Builder'!$D70,1,0) -> 1 | H59: =IF(H$5<='Program Builder'!$D70,1,0) -> 1 | I59: =IF(I$5<='Program Builder'!$D70,1,0) -> 1 | J59: =IF(J$5<='Program Builder'!$D70,1,0) -> 1 | K59: =IF(K$5<='Program Builder'!$D70,1,0) -> 1 | L59: =IF(L$5<='Program Builder'!$D70,1,0) -> 1 | M59: =IF(M$5<='Program Builder'!$D70,1,0) -> 1 | N59: =IF(N$5<='Program Builder'!$D70,1,0) -> 1 | O59: =IF(O$5<='Program Builder'!$D70,1,0) -> 1 | P59: =IF(P$5<='Program Builder'!$D70,1,0) -> 1 | Q59: =IF(Q$5<='Program Builder'!$D70,1,0) -> 1 | R59: =IF(R$5<='Program Builder'!$D70,1,0) -> 1 | S59: =IF(S$5<='Program Builder'!$D70,1,0) -> 1 | T59: =IF(T$5<='Program Builder'!$D70,1,0) -> 1 | U59: =IF(U$5<='Program Builder'!$D70,1,0) -> 1 | V59: =IF(V$5<='Program Builder'!$D70,1,0) -> 1 | W59: =IF(W$5<='Program Builder'!$D70,1,0) -> 0 | X59: =IF(X$5<='Program Builder'!$D70,1,0) -> 0 | Y59: =IF(Y$5<='Program Builder'!$D70,1,0) -> 0 | Z59: =IF(Z$5<='Program Builder'!$D70,1,0) -> 0 | AA59: =IF(AA$5<='Program Builder'!$D70,1,0) -> 0 | AB59: =IF(AB$5<='Program Builder'!$D70,1,0) -> 0 | AC59: =IF(AC$5<='Program Builder'!$D70,1,0) -> 0 | AD59: =IF(AD$5<='Program Builder'!$D70,1,0) -> 0 | AE59: =IF(AE$5<='Program Builder'!$D70,1,0) -> 0 | AF59: =IF(AF$5<='Program Builder'!$D70,1,0) -> 0
B60: ='Program Builder'!B71 -> Ductless Heat Pump | C60: =IF(C$5<='Program Builder'!$D71,1,0) -> 1 | D60: =IF(D$5<='Program Builder'!$D71,1,0) -> 1 | E60: =IF(E$5<='Program Builder'!$D71,1,0) -> 1 | F60: =IF(F$5<='Program Builder'!$D71,1,0) -> 1 | G60: =IF(G$5<='Program Builder'!$D71,1,0) -> 1 | H60: =IF(H$5<='Program Builder'!$D71,1,0) -> 1 | I60: =IF(I$5<='Program Builder'!$D71,1,0) -> 1 | J60: =IF(J$5<='Program Builder'!$D71,1,0) -> 1 | K60: =IF(K$5<='Program Builder'!$D71,1,0) -> 1 | L60: =IF(L$5<='Program Builder'!$D71,1,0) -> 1 | M60: =IF(M$5<='Program Builder'!$D71,1,0) -> 1 | N60: =IF(N$5<='Program Builder'!$D71,1,0) -> 1 | O60: =IF(O$5<='Program Builder'!$D71,1,0) -> 1 | P60: =IF(P$5<='Program Builder'!$D71,1,0) -> 1 | Q60: =IF(Q$5<='Program Builder'!$D71,1,0) -> 1 | R60: =IF(R$5<='Program Builder'!$D71,1,0) -> 1 | S60: =IF(S$5<='Program Builder'!$D71,1,0) -> 1 | T60: =IF(T$5<='Program Builder'!$D71,1,0) -> 1 | U60: =IF(U$5<='Program Builder'!$D71,1,0) -> 1 | V60: =IF(V$5<='Program Builder'!$D71,1,0) -> 1 | W60: =IF(W$5<='Program Builder'!$D71,1,0) -> 0 | X60: =IF(X$5<='Program Builder'!$D71,1,0) -> 0 | Y60: =IF(Y$5<='Program Builder'!$D71,1,0) -> 0 | Z60: =IF(Z$5<='Program Builder'!$D71,1,0) -> 0 | AA60: =IF(AA$5<='Program Builder'!$D71,1,0) -> 0 | AB60: =IF(AB$5<='Program Builder'!$D71,1,0) -> 0 | AC60: =IF(AC$5<='Program Builder'!$D71,1,0) -> 0 | AD60: =IF(AD$5<='Program Builder'!$D71,1,0) -> 0 | AE60: =IF(AE$5<='Program Builder'!$D71,1,0) -> 0 | AF60: =IF(AF$5<='Program Builder'!$D71,1,0) -> 0
B61: ='Program Builder'!B72 -> AIR FLOW CORRECTION | C61: =IF(C$5<='Program Builder'!$D72,1,0) -> 1 | D61: =IF(D$5<='Program Builder'!$D72,1,0) -> 1 | E61: =IF(E$5<='Program Builder'!$D72,1,0) -> 1 | F61: =IF(F$5<='Program Builder'!$D72,1,0) -> 1 | G61: =IF(G$5<='Program Builder'!$D72,1,0) -> 1 | H61: =IF(H$5<='Program Builder'!$D72,1,0) -> 1 | I61: =IF(I$5<='Program Builder'!$D72,1,0) -> 1 | J61: =IF(J$5<='Program Builder'!$D72,1,0) -> 1 | K61: =IF(K$5<='Program Builder'!$D72,1,0) -> 1 | L61: =IF(L$5<='Program Builder'!$D72,1,0) -> 0 | M61: =IF(M$5<='Program Builder'!$D72,1,0) -> 0 | N61: =IF(N$5<='Program Builder'!$D72,1,0) -> 0 | O61: =IF(O$5<='Program Builder'!$D72,1,0) -> 0 | P61: =IF(P$5<='Program Builder'!$D72,1,0) -> 0 | Q61: =IF(Q$5<='Program Builder'!$D72,1,0) -> 0 | R61: =IF(R$5<='Program Builder'!$D72,1,0) -> 0 | S61: =IF(S$5<='Program Builder'!$D72,1,0) -> 0 | T61: =IF(T$5<='Program Builder'!$D72,1,0) -> 0 | U61: =IF(U$5<='Program Builder'!$D72,1,0) -> 0 | V61: =IF(V$5<='Program Builder'!$D72,1,0) -> 0 | W61: =IF(W$5<='Program Builder'!$D72,1,0) -> 0 | X61: =IF(X$5<='Program Builder'!$D72,1,0) -> 0 | Y61: =IF(Y$5<='Program Builder'!$D72,1,0) -> 0 | Z61: =IF(Z$5<='Program Builder'!$D72,1,0) -> 0 | AA61: =IF(AA$5<='Program Builder'!$D72,1,0) -> 0 | AB61: =IF(AB$5<='Program Builder'!$D72,1,0) -> 0 | AC61: =IF(AC$5<='Program Builder'!$D72,1,0) -> 0 | AD61: =IF(AD$5<='Program Builder'!$D72,1,0) -> 0 | AE61: =IF(AE$5<='Program Builder'!$D72,1,0) -> 0 | AF61: =IF(AF$5<='Program Builder'!$D72,1,0) -> 0
B62: ='Program Builder'!B73 -> BLOWER MOTOR RETROFIT | C62: =IF(C$5<='Program Builder'!$D73,1,0) -> 1 | D62: =IF(D$5<='Program Builder'!$D73,1,0) -> 1 | E62: =IF(E$5<='Program Builder'!$D73,1,0) -> 1 | F62: =IF(F$5<='Program Builder'!$D73,1,0) -> 1 | G62: =IF(G$5<='Program Builder'!$D73,1,0) -> 1 | H62: =IF(H$5<='Program Builder'!$D73,1,0) -> 1 | I62: =IF(I$5<='Program Builder'!$D73,1,0) -> 1 | J62: =IF(J$5<='Program Builder'!$D73,1,0) -> 1 | K62: =IF(K$5<='Program Builder'!$D73,1,0) -> 1 | L62: =IF(L$5<='Program Builder'!$D73,1,0) -> 0 | M62: =IF(M$5<='Program Builder'!$D73,1,0) -> 0 | N62: =IF(N$5<='Program Builder'!$D73,1,0) -> 0 | O62: =IF(O$5<='Program Builder'!$D73,1,0) -> 0 | P62: =IF(P$5<='Program Builder'!$D73,1,0) -> 0 | Q62: =IF(Q$5<='Program Builder'!$D73,1,0) -> 0 | R62: =IF(R$5<='Program Builder'!$D73,1,0) -> 0 | S62: =IF(S$5<='Program Builder'!$D73,1,0) -> 0 | T62: =IF(T$5<='Program Builder'!$D73,1,0) -> 0 | U62: =IF(U$5<='Program Builder'!$D73,1,0) -> 0 | V62: =IF(V$5<='Program Builder'!$D73,1,0) -> 0 | W62: =IF(W$5<='Program Builder'!$D73,1,0) -> 0 | X62: =IF(X$5<='Program Builder'!$D73,1,0) -> 0 | Y62: =IF(Y$5<='Program Builder'!$D73,1,0) -> 0 | Z62: =IF(Z$5<='Program Builder'!$D73,1,0) -> 0 | AA62: =IF(AA$5<='Program Builder'!$D73,1,0) -> 0 | AB62: =IF(AB$5<='Program Builder'!$D73,1,0) -> 0 | AC62: =IF(AC$5<='Program Builder'!$D73,1,0) -> 0 | AD62: =IF(AD$5<='Program Builder'!$D73,1,0) -> 0 | AE62: =IF(AE$5<='Program Builder'!$D73,1,0) -> 0 | AF62: =IF(AF$5<='Program Builder'!$D73,1,0) -> 0
B63: ='Program Builder'!B74 -> ENHANCED TIME DELAY RELAY | C63: =IF(C$5<='Program Builder'!$D74,1,0) -> 1 | D63: =IF(D$5<='Program Builder'!$D74,1,0) -> 1 | E63: =IF(E$5<='Program Builder'!$D74,1,0) -> 1 | F63: =IF(F$5<='Program Builder'!$D74,1,0) -> 1 | G63: =IF(G$5<='Program Builder'!$D74,1,0) -> 1 | H63: =IF(H$5<='Program Builder'!$D74,1,0) -> 1 | I63: =IF(I$5<='Program Builder'!$D74,1,0) -> 1 | J63: =IF(J$5<='Program Builder'!$D74,1,0) -> 1 | K63: =IF(K$5<='Program Builder'!$D74,1,0) -> 1 | L63: =IF(L$5<='Program Builder'!$D74,1,0) -> 1 | M63: =IF(M$5<='Program Builder'!$D74,1,0) -> 0 | N63: =IF(N$5<='Program Builder'!$D74,1,0) -> 0 | O63: =IF(O$5<='Program Builder'!$D74,1,0) -> 0 | P63: =IF(P$5<='Program Builder'!$D74,1,0) -> 0 | Q63: =IF(Q$5<='Program Builder'!$D74,1,0) -> 0 | R63: =IF(R$5<='Program Builder'!$D74,1,0) -> 0 | S63: =IF(S$5<='Program Builder'!$D74,1,0) -> 0 | T63: =IF(T$5<='Program Builder'!$D74,1,0) -> 0 | U63: =IF(U$5<='Program Builder'!$D74,1,0) -> 0 | V63: =IF(V$5<='Program Builder'!$D74,1,0) -> 0 | W63: =IF(W$5<='Program Builder'!$D74,1,0) -> 0 | X63: =IF(X$5<='Program Builder'!$D74,1,0) -> 0 | Y63: =IF(Y$5<='Program Builder'!$D74,1,0) -> 0 | Z63: =IF(Z$5<='Program Builder'!$D74,1,0) -> 0 | AA63: =IF(AA$5<='Program Builder'!$D74,1,0) -> 0 | AB63: =IF(AB$5<='Program Builder'!$D74,1,0) -> 0 | AC63: =IF(AC$5<='Program Builder'!$D74,1,0) -> 0 | AD63: =IF(AD$5<='Program Builder'!$D74,1,0) -> 0 | AE63: =IF(AE$5<='Program Builder'!$D74,1,0) -> 0 | AF63: =IF(AF$5<='Program Builder'!$D74,1,0) -> 0
B64: ='Program Builder'!B75 -> Total
B66: ='Program Builder'!B77 -> New Home Construction
B68: ='Program Builder'!B79 -> Name
B69: ='Program Builder'!B80 -> HI EFF CLOTHES WASHER - LEVEL 3 - MEF >= 2.4 WF <= 4.0 | C69: =IF(C$5<='Program Builder'!$D80,1,0) -> 1 | D69: =IF(D$5<='Program Builder'!$D80,1,0) -> 1 | E69: =IF(E$5<='Program Builder'!$D80,1,0) -> 1 | F69: =IF(F$5<='Program Builder'!$D80,1,0) -> 1 | G69: =IF(G$5<='Program Builder'!$D80,1,0) -> 1 | H69: =IF(H$5<='Program Builder'!$D80,1,0) -> 1 | I69: =IF(I$5<='Program Builder'!$D80,1,0) -> 1 | J69: =IF(J$5<='Program Builder'!$D80,1,0) -> 1 | K69: =IF(K$5<='Program Builder'!$D80,1,0) -> 1 | L69: =IF(L$5<='Program Builder'!$D80,1,0) -> 1 | M69: =IF(M$5<='Program Builder'!$D80,1,0) -> 1 | N69: =IF(N$5<='Program Builder'!$D80,1,0) -> 0 | O69: =IF(O$5<='Program Builder'!$D80,1,0) -> 0 | P69: =IF(P$5<='Program Builder'!$D80,1,0) -> 0 | Q69: =IF(Q$5<='Program Builder'!$D80,1,0) -> 0 | R69: =IF(R$5<='Program Builder'!$D80,1,0) -> 0 | S69: =IF(S$5<='Program Builder'!$D80,1,0) -> 0 | T69: =IF(T$5<='Program Builder'!$D80,1,0) -> 0 | U69: =IF(U$5<='Program Builder'!$D80,1,0) -> 0 | V69: =IF(V$5<='Program Builder'!$D80,1,0) -> 0 | W69: =IF(W$5<='Program Builder'!$D80,1,0) -> 0 | X69: =IF(X$5<='Program Builder'!$D80,1,0) -> 0 | Y69: =IF(Y$5<='Program Builder'!$D80,1,0) -> 0 | Z69: =IF(Z$5<='Program Builder'!$D80,1,0) -> 0 | AA69: =IF(AA$5<='Program Builder'!$D80,1,0) -> 0 | AB69: =IF(AB$5<='Program Builder'!$D80,1,0) -> 0 | AC69: =IF(AC$5<='Program Builder'!$D80,1,0) -> 0 | AD69: =IF(AD$5<='Program Builder'!$D80,1,0) -> 0 | AE69: =IF(AE$5<='Program Builder'!$D80,1,0) -> 0 | AF69: =IF(AF$5<='Program Builder'!$D80,1,0) -> 0
B70: ='Program Builder'!B81 -> Appliance Dishwasher | C70: =IF(C$5<='Program Builder'!$D81,1,0) -> 1 | D70: =IF(D$5<='Program Builder'!$D81,1,0) -> 1 | E70: =IF(E$5<='Program Builder'!$D81,1,0) -> 1 | F70: =IF(F$5<='Program Builder'!$D81,1,0) -> 1 | G70: =IF(G$5<='Program Builder'!$D81,1,0) -> 1 | H70: =IF(H$5<='Program Builder'!$D81,1,0) -> 1 | I70: =IF(I$5<='Program Builder'!$D81,1,0) -> 1 | J70: =IF(J$5<='Program Builder'!$D81,1,0) -> 1 | K70: =IF(K$5<='Program Builder'!$D81,1,0) -> 1 | L70: =IF(L$5<='Program Builder'!$D81,1,0) -> 1 | M70: =IF(M$5<='Program Builder'!$D81,1,0) -> 1 | N70: =IF(N$5<='Program Builder'!$D81,1,0) -> 0 | O70: =IF(O$5<='Program Builder'!$D81,1,0) -> 0 | P70: =IF(P$5<='Program Builder'!$D81,1,0) -> 0 | Q70: =IF(Q$5<='Program Builder'!$D81,1,0) -> 0 | R70: =IF(R$5<='Program Builder'!$D81,1,0) -> 0 | S70: =IF(S$5<='Program Builder'!$D81,1,0) -> 0 | T70: =IF(T$5<='Program Builder'!$D81,1,0) -> 0 | U70: =IF(U$5<='Program Builder'!$D81,1,0) -> 0 | V70: =IF(V$5<='Program Builder'!$D81,1,0) -> 0 | W70: =IF(W$5<='Program Builder'!$D81,1,0) -> 0 | X70: =IF(X$5<='Program Builder'!$D81,1,0) -> 0 | Y70: =IF(Y$5<='Program Builder'!$D81,1,0) -> 0 | Z70: =IF(Z$5<='Program Builder'!$D81,1,0) -> 0 | AA70: =IF(AA$5<='Program Builder'!$D81,1,0) -> 0 | AB70: =IF(AB$5<='Program Builder'!$D81,1,0) -> 0 | AC70: =IF(AC$5<='Program Builder'!$D81,1,0) -> 0 | AD70: =IF(AD$5<='Program Builder'!$D81,1,0) -> 0 | AE70: =IF(AE$5<='Program Builder'!$D81,1,0) -> 0 | AF70: =IF(AF$5<='Program Builder'!$D81,1,0) -> 0
B71: ='Program Builder'!B82 -> REFRIGERATOR: BOTTOM FREEZER 18-23 CU. FT. | C71: =IF(C$5<='Program Builder'!$D82,1,0) -> 1 | D71: =IF(D$5<='Program Builder'!$D82,1,0) -> 1 | E71: =IF(E$5<='Program Builder'!$D82,1,0) -> 1 | F71: =IF(F$5<='Program Builder'!$D82,1,0) -> 1 | G71: =IF(G$5<='Program Builder'!$D82,1,0) -> 1 | H71: =IF(H$5<='Program Builder'!$D82,1,0) -> 1 | I71: =IF(I$5<='Program Builder'!$D82,1,0) -> 1 | J71: =IF(J$5<='Program Builder'!$D82,1,0) -> 1 | K71: =IF(K$5<='Program Builder'!$D82,1,0) -> 1 | L71: =IF(L$5<='Program Builder'!$D82,1,0) -> 1 | M71: =IF(M$5<='Program Builder'!$D82,1,0) -> 1 | N71: =IF(N$5<='Program Builder'!$D82,1,0) -> 1 | O71: =IF(O$5<='Program Builder'!$D82,1,0) -> 1 | P71: =IF(P$5<='Program Builder'!$D82,1,0) -> 1 | Q71: =IF(Q$5<='Program Builder'!$D82,1,0) -> 0 | R71: =IF(R$5<='Program Builder'!$D82,1,0) -> 0 | S71: =IF(S$5<='Program Builder'!$D82,1,0) -> 0 | T71: =IF(T$5<='Program Builder'!$D82,1,0) -> 0 | U71: =IF(U$5<='Program Builder'!$D82,1,0) -> 0 | V71: =IF(V$5<='Program Builder'!$D82,1,0) -> 0 | W71: =IF(W$5<='Program Builder'!$D82,1,0) -> 0 | X71: =IF(X$5<='Program Builder'!$D82,1,0) -> 0 | Y71: =IF(Y$5<='Program Builder'!$D82,1,0) -> 0 | Z71: =IF(Z$5<='Program Builder'!$D82,1,0) -> 0 | AA71: =IF(AA$5<='Program Builder'!$D82,1,0) -> 0 | AB71: =IF(AB$5<='Program Builder'!$D82,1,0) -> 0 | AC71: =IF(AC$5<='Program Builder'!$D82,1,0) -> 0 | AD71: =IF(AD$5<='Program Builder'!$D82,1,0) -> 0 | AE71: =IF(AE$5<='Program Builder'!$D82,1,0) -> 0 | AF71: =IF(AF$5<='Program Builder'!$D82,1,0) -> 0
B72: ='Program Builder'!B83 -> Water Heating Tankless Water Heater (Gas) | C72: =IF(C$5<='Program Builder'!$D83,1,0) -> 1 | D72: =IF(D$5<='Program Builder'!$D83,1,0) -> 1 | E72: =IF(E$5<='Program Builder'!$D83,1,0) -> 1 | F72: =IF(F$5<='Program Builder'!$D83,1,0) -> 1 | G72: =IF(G$5<='Program Builder'!$D83,1,0) -> 1 | H72: =IF(H$5<='Program Builder'!$D83,1,0) -> 1 | I72: =IF(I$5<='Program Builder'!$D83,1,0) -> 1 | J72: =IF(J$5<='Program Builder'!$D83,1,0) -> 1 | K72: =IF(K$5<='Program Builder'!$D83,1,0) -> 1 | L72: =IF(L$5<='Program Builder'!$D83,1,0) -> 1 | M72: =IF(M$5<='Program Builder'!$D83,1,0) -> 1 | N72: =IF(N$5<='Program Builder'!$D83,1,0) -> 1 | O72: =IF(O$5<='Program Builder'!$D83,1,0) -> 1 | P72: =IF(P$5<='Program Builder'!$D83,1,0) -> 1 | Q72: =IF(Q$5<='Program Builder'!$D83,1,0) -> 1 | R72: =IF(R$5<='Program Builder'!$D83,1,0) -> 1 | S72: =IF(S$5<='Program Builder'!$D83,1,0) -> 1 | T72: =IF(T$5<='Program Builder'!$D83,1,0) -> 1 | U72: =IF(U$5<='Program Builder'!$D83,1,0) -> 1 | V72: =IF(V$5<='Program Builder'!$D83,1,0) -> 1 | W72: =IF(W$5<='Program Builder'!$D83,1,0) -> 0 | X72: =IF(X$5<='Program Builder'!$D83,1,0) -> 0 | Y72: =IF(Y$5<='Program Builder'!$D83,1,0) -> 0 | Z72: =IF(Z$5<='Program Builder'!$D83,1,0) -> 0 | AA72: =IF(AA$5<='Program Builder'!$D83,1,0) -> 0 | AB72: =IF(AB$5<='Program Builder'!$D83,1,0) -> 0 | AC72: =IF(AC$5<='Program Builder'!$D83,1,0) -> 0 | AD72: =IF(AD$5<='Program Builder'!$D83,1,0) -> 0 | AE72: =IF(AE$5<='Program Builder'!$D83,1,0) -> 0 | AF72: =IF(AF$5<='Program Builder'!$D83,1,0) -> 0
B73: ='Program Builder'!B84 -> INTEGRATED BUILDING-RES-SINGLE FAMILY - WHOLE HOUSE | C73: =IF(C$5<='Program Builder'!$D84,1,0) -> 1 | D73: =IF(D$5<='Program Builder'!$D84,1,0) -> 1 | E73: =IF(E$5<='Program Builder'!$D84,1,0) -> 1 | F73: =IF(F$5<='Program Builder'!$D84,1,0) -> 1 | G73: =IF(G$5<='Program Builder'!$D84,1,0) -> 1 | H73: =IF(H$5<='Program Builder'!$D84,1,0) -> 1 | I73: =IF(I$5<='Program Builder'!$D84,1,0) -> 1 | J73: =IF(J$5<='Program Builder'!$D84,1,0) -> 1 | K73: =IF(K$5<='Program Builder'!$D84,1,0) -> 1 | L73: =IF(L$5<='Program Builder'!$D84,1,0) -> 1 | M73: =IF(M$5<='Program Builder'!$D84,1,0) -> 1 | N73: =IF(N$5<='Program Builder'!$D84,1,0) -> 1 | O73: =IF(O$5<='Program Builder'!$D84,1,0) -> 1 | P73: =IF(P$5<='Program Builder'!$D84,1,0) -> 1 | Q73: =IF(Q$5<='Program Builder'!$D84,1,0) -> 1 | R73: =IF(R$5<='Program Builder'!$D84,1,0) -> 1 | S73: =IF(S$5<='Program Builder'!$D84,1,0) -> 1 | T73: =IF(T$5<='Program Builder'!$D84,1,0) -> 1 | U73: =IF(U$5<='Program Builder'!$D84,1,0) -> 1 | V73: =IF(V$5<='Program Builder'!$D84,1,0) -> 0 | W73: =IF(W$5<='Program Builder'!$D84,1,0) -> 0 | X73: =IF(X$5<='Program Builder'!$D84,1,0) -> 0 | Y73: =IF(Y$5<='Program Builder'!$D84,1,0) -> 0 | Z73: =IF(Z$5<='Program Builder'!$D84,1,0) -> 0 | AA73: =IF(AA$5<='Program Builder'!$D84,1,0) -> 0 | AB73: =IF(AB$5<='Program Builder'!$D84,1,0) -> 0 | AC73: =IF(AC$5<='Program Builder'!$D84,1,0) -> 0 | AD73: =IF(AD$5<='Program Builder'!$D84,1,0) -> 0 | AE73: =IF(AE$5<='Program Builder'!$D84,1,0) -> 0 | AF73: =IF(AF$5<='Program Builder'!$D84,1,0) -> 0
B74: ='Program Builder'!B85 -> INTEGRATED BUILDING-RES-SINGLE FAMILY - WHOLE HOUSE 31-40% | C74: =IF(C$5<='Program Builder'!$D85,1,0) -> 1 | D74: =IF(D$5<='Program Builder'!$D85,1,0) -> 1 | E74: =IF(E$5<='Program Builder'!$D85,1,0) -> 1 | F74: =IF(F$5<='Program Builder'!$D85,1,0) -> 1 | G74: =IF(G$5<='Program Builder'!$D85,1,0) -> 1 | H74: =IF(H$5<='Program Builder'!$D85,1,0) -> 1 | I74: =IF(I$5<='Program Builder'!$D85,1,0) -> 1 | J74: =IF(J$5<='Program Builder'!$D85,1,0) -> 1 | K74: =IF(K$5<='Program Builder'!$D85,1,0) -> 1 | L74: =IF(L$5<='Program Builder'!$D85,1,0) -> 1 | M74: =IF(M$5<='Program Builder'!$D85,1,0) -> 1 | N74: =IF(N$5<='Program Builder'!$D85,1,0) -> 1 | O74: =IF(O$5<='Program Builder'!$D85,1,0) -> 1 | P74: =IF(P$5<='Program Builder'!$D85,1,0) -> 1 | Q74: =IF(Q$5<='Program Builder'!$D85,1,0) -> 1 | R74: =IF(R$5<='Program Builder'!$D85,1,0) -> 1 | S74: =IF(S$5<='Program Builder'!$D85,1,0) -> 1 | T74: =IF(T$5<='Program Builder'!$D85,1,0) -> 1 | U74: =IF(U$5<='Program Builder'!$D85,1,0) -> 1 | V74: =IF(V$5<='Program Builder'!$D85,1,0) -> 0 | W74: =IF(W$5<='Program Builder'!$D85,1,0) -> 0 | X74: =IF(X$5<='Program Builder'!$D85,1,0) -> 0 | Y74: =IF(Y$5<='Program Builder'!$D85,1,0) -> 0 | Z74: =IF(Z$5<='Program Builder'!$D85,1,0) -> 0 | AA74: =IF(AA$5<='Program Builder'!$D85,1,0) -> 0 | AB74: =IF(AB$5<='Program Builder'!$D85,1,0) -> 0 | AC74: =IF(AC$5<='Program Builder'!$D85,1,0) -> 0 | AD74: =IF(AD$5<='Program Builder'!$D85,1,0) -> 0 | AE74: =IF(AE$5<='Program Builder'!$D85,1,0) -> 0 | AF74: =IF(AF$5<='Program Builder'!$D85,1,0) -> 0
B75: ='Program Builder'!B86 -> INTEGRATED BUILDING-RES-SINGLE FAMILY - WHOLE HOUSE 21-30% | C75: =IF(C$5<='Program Builder'!$D86,1,0) -> 1 | D75: =IF(D$5<='Program Builder'!$D86,1,0) -> 1 | E75: =IF(E$5<='Program Builder'!$D86,1,0) -> 1 | F75: =IF(F$5<='Program Builder'!$D86,1,0) -> 1 | G75: =IF(G$5<='Program Builder'!$D86,1,0) -> 1 | H75: =IF(H$5<='Program Builder'!$D86,1,0) -> 1 | I75: =IF(I$5<='Program Builder'!$D86,1,0) -> 1 | J75: =IF(J$5<='Program Builder'!$D86,1,0) -> 1 | K75: =IF(K$5<='Program Builder'!$D86,1,0) -> 1 | L75: =IF(L$5<='Program Builder'!$D86,1,0) -> 1 | M75: =IF(M$5<='Program Builder'!$D86,1,0) -> 1 | N75: =IF(N$5<='Program Builder'!$D86,1,0) -> 1 | O75: =IF(O$5<='Program Builder'!$D86,1,0) -> 1 | P75: =IF(P$5<='Program Builder'!$D86,1,0) -> 1 | Q75: =IF(Q$5<='Program Builder'!$D86,1,0) -> 1 | R75: =IF(R$5<='Program Builder'!$D86,1,0) -> 1 | S75: =IF(S$5<='Program Builder'!$D86,1,0) -> 1 | T75: =IF(T$5<='Program Builder'!$D86,1,0) -> 1 | U75: =IF(U$5<='Program Builder'!$D86,1,0) -> 1 | V75: =IF(V$5<='Program Builder'!$D86,1,0) -> 0 | W75: =IF(W$5<='Program Builder'!$D86,1,0) -> 0 | X75: =IF(X$5<='Program Builder'!$D86,1,0) -> 0 | Y75: =IF(Y$5<='Program Builder'!$D86,1,0) -> 0 | Z75: =IF(Z$5<='Program Builder'!$D86,1,0) -> 0 | AA75: =IF(AA$5<='Program Builder'!$D86,1,0) -> 0 | AB75: =IF(AB$5<='Program Builder'!$D86,1,0) -> 0 | AC75: =IF(AC$5<='Program Builder'!$D86,1,0) -> 0 | AD75: =IF(AD$5<='Program Builder'!$D86,1,0) -> 0 | AE75: =IF(AE$5<='Program Builder'!$D86,1,0) -> 0 | AF75: =IF(AF$5<='Program Builder'!$D86,1,0) -> 0
B76: ='Program Builder'!B87 -> INTEGRATED BUILDING-RES-SINGLE FAMILY - WHOLE HOUSE >41% | C76: =IF(C$5<='Program Builder'!$D87,1,0) -> 1 | D76: =IF(D$5<='Program Builder'!$D87,1,0) -> 1 | E76: =IF(E$5<='Program Builder'!$D87,1,0) -> 1 | F76: =IF(F$5<='Program Builder'!$D87,1,0) -> 1 | G76: =IF(G$5<='Program Builder'!$D87,1,0) -> 1 | H76: =IF(H$5<='Program Builder'!$D87,1,0) -> 1 | I76: =IF(I$5<='Program Builder'!$D87,1,0) -> 1 | J76: =IF(J$5<='Program Builder'!$D87,1,0) -> 1 | K76: =IF(K$5<='Program Builder'!$D87,1,0) -> 1 | L76: =IF(L$5<='Program Builder'!$D87,1,0) -> 1 | M76: =IF(M$5<='Program Builder'!$D87,1,0) -> 1 | N76: =IF(N$5<='Program Builder'!$D87,1,0) -> 1 | O76: =IF(O$5<='Program Builder'!$D87,1,0) -> 1 | P76: =IF(P$5<='Program Builder'!$D87,1,0) -> 1 | Q76: =IF(Q$5<='Program Builder'!$D87,1,0) -> 1 | R76: =IF(R$5<='Program Builder'!$D87,1,0) -> 1 | S76: =IF(S$5<='Program Builder'!$D87,1,0) -> 1 | T76: =IF(T$5<='Program Builder'!$D87,1,0) -> 1 | U76: =IF(U$5<='Program Builder'!$D87,1,0) -> 1 | V76: =IF(V$5<='Program Builder'!$D87,1,0) -> 0 | W76: =IF(W$5<='Program Builder'!$D87,1,0) -> 0 | X76: =IF(X$5<='Program Builder'!$D87,1,0) -> 0 | Y76: =IF(Y$5<='Program Builder'!$D87,1,0) -> 0 | Z76: =IF(Z$5<='Program Builder'!$D87,1,0) -> 0 | AA76: =IF(AA$5<='Program Builder'!$D87,1,0) -> 0 | AB76: =IF(AB$5<='Program Builder'!$D87,1,0) -> 0 | AC76: =IF(AC$5<='Program Builder'!$D87,1,0) -> 0 | AD76: =IF(AD$5<='Program Builder'!$D87,1,0) -> 0 | AE76: =IF(AE$5<='Program Builder'!$D87,1,0) -> 0 | AF76: =IF(AF$5<='Program Builder'!$D87,1,0) -> 0
B77: ='Program Builder'!B88 -> INTEGRATED BUILDING-RES-SINGLE FAMILY - WHOLE HOUSE 15-20% | C77: =IF(C$5<='Program Builder'!$D88,1,0) -> 1 | D77: =IF(D$5<='Program Builder'!$D88,1,0) -> 1 | E77: =IF(E$5<='Program Builder'!$D88,1,0) -> 1 | F77: =IF(F$5<='Program Builder'!$D88,1,0) -> 1 | G77: =IF(G$5<='Program Builder'!$D88,1,0) -> 1 | H77: =IF(H$5<='Program Builder'!$D88,1,0) -> 1 | I77: =IF(I$5<='Program Builder'!$D88,1,0) -> 1 | J77: =IF(J$5<='Program Builder'!$D88,1,0) -> 1 | K77: =IF(K$5<='Program Builder'!$D88,1,0) -> 1 | L77: =IF(L$5<='Program Builder'!$D88,1,0) -> 1 | M77: =IF(M$5<='Program Builder'!$D88,1,0) -> 1 | N77: =IF(N$5<='Program Builder'!$D88,1,0) -> 1 | O77: =IF(O$5<='Program Builder'!$D88,1,0) -> 1 | P77: =IF(P$5<='Program Builder'!$D88,1,0) -> 1 | Q77: =IF(Q$5<='Program Builder'!$D88,1,0) -> 1 | R77: =IF(R$5<='Program Builder'!$D88,1,0) -> 1 | S77: =IF(S$5<='Program Builder'!$D88,1,0) -> 1 | T77: =IF(T$5<='Program Builder'!$D88,1,0) -> 1 | U77: =IF(U$5<='Program Builder'!$D88,1,0) -> 1 | V77: =IF(V$5<='Program Builder'!$D88,1,0) -> 0 | W77: =IF(W$5<='Program Builder'!$D88,1,0) -> 0 | X77: =IF(X$5<='Program Builder'!$D88,1,0) -> 0 | Y77: =IF(Y$5<='Program Builder'!$D88,1,0) -> 0 | Z77: =IF(Z$5<='Program Builder'!$D88,1,0) -> 0 | AA77: =IF(AA$5<='Program Builder'!$D88,1,0) -> 0 | AB77: =IF(AB$5<='Program Builder'!$D88,1,0) -> 0 | AC77: =IF(AC$5<='Program Builder'!$D88,1,0) -> 0 | AD77: =IF(AD$5<='Program Builder'!$D88,1,0) -> 0 | AE77: =IF(AE$5<='Program Builder'!$D88,1,0) -> 0 | AF77: =IF(AF$5<='Program Builder'!$D88,1,0) -> 0
B78: ='Program Builder'!B89 -> WHOLE HOUSE (35%) - NSHPPM - SF | C78: =IF(C$5<='Program Builder'!$D89,1,0) -> 1 | D78: =IF(D$5<='Program Builder'!$D89,1,0) -> 1 | E78: =IF(E$5<='Program Builder'!$D89,1,0) -> 1 | F78: =IF(F$5<='Program Builder'!$D89,1,0) -> 1 | G78: =IF(G$5<='Program Builder'!$D89,1,0) -> 1 | H78: =IF(H$5<='Program Builder'!$D89,1,0) -> 1 | I78: =IF(I$5<='Program Builder'!$D89,1,0) -> 1 | J78: =IF(J$5<='Program Builder'!$D89,1,0) -> 1 | K78: =IF(K$5<='Program Builder'!$D89,1,0) -> 1 | L78: =IF(L$5<='Program Builder'!$D89,1,0) -> 1 | M78: =IF(M$5<='Program Builder'!$D89,1,0) -> 1 | N78: =IF(N$5<='Program Builder'!$D89,1,0) -> 1 | O78: =IF(O$5<='Program Builder'!$D89,1,0) -> 1 | P78: =IF(P$5<='Program Builder'!$D89,1,0) -> 1 | Q78: =IF(Q$5<='Program Builder'!$D89,1,0) -> 1 | R78: =IF(R$5<='Program Builder'!$D89,1,0) -> 1 | S78: =IF(S$5<='Program Builder'!$D89,1,0) -> 1 | T78: =IF(T$5<='Program Builder'!$D89,1,0) -> 1 | U78: =IF(U$5<='Program Builder'!$D89,1,0) -> 1 | V78: =IF(V$5<='Program Builder'!$D89,1,0) -> 0 | W78: =IF(W$5<='Program Builder'!$D89,1,0) -> 0 | X78: =IF(X$5<='Program Builder'!$D89,1,0) -> 0 | Y78: =IF(Y$5<='Program Builder'!$D89,1,0) -> 0 | Z78: =IF(Z$5<='Program Builder'!$D89,1,0) -> 0 | AA78: =IF(AA$5<='Program Builder'!$D89,1,0) -> 0 | AB78: =IF(AB$5<='Program Builder'!$D89,1,0) -> 0 | AC78: =IF(AC$5<='Program Builder'!$D89,1,0) -> 0 | AD78: =IF(AD$5<='Program Builder'!$D89,1,0) -> 0 | AE78: =IF(AE$5<='Program Builder'!$D89,1,0) -> 0 | AF78: =IF(AF$5<='Program Builder'!$D89,1,0) -> 0
B79: ='Program Builder'!B90 -> Total

Sheet TOU Definitions
A1: Seasons | C1: On Peak/Off Peak | G1: TOD PERIODS
H3: Weekday | I3: Weekday | K3: Weekend & Holiday
A4: Seasons | B4: Winter=W, Summer=S | D4: Summer On | E4: S1 | G4: Hour | H4: S | I4: W | J4: Sp | K4: S | L4: W | M4: Sp
A5: Jan | B5: =IF('Initial Inputs'!D64='DropDown Lists'!$F$6,"W","S") -> W | D5: Summer Mid | E5: S2 | G5: 1 | H5: =IF('Initial Inputs'!H63='DropDown Lists'!$G$5,1,3) -> 3 | I5: =IF('Initial Inputs'!F63='DropDown Lists'!$G$7,1,3) -> 3 | K5: =IF('Initial Inputs'!I63='DropDown Lists'!$G$5,1,3) -> 3 | L5: =IF('Initial Inputs'!G63='DropDown Lists'!$G$7,1,3) -> 3
A6: Feb | B6: =IF('Initial Inputs'!D65='DropDown Lists'!$F$6,"W","S") -> W | D6: Summer Off | E6: S3 | G6: 2 | H6: =IF('Initial Inputs'!H64='DropDown Lists'!$G$5,1,3) -> 3 | I6: =IF('Initial Inputs'!F64='DropDown Lists'!$G$7,1,3) -> 3 | K6: =IF('Initial Inputs'!I64='DropDown Lists'!$G$5,1,3) -> 3 | L6: =IF('Initial Inputs'!G64='DropDown Lists'!$G$7,1,3) -> 3
A7: Mar | B7: =IF('Initial Inputs'!D66='DropDown Lists'!$F$6,"W","S") -> W | D7: Winter On | E7: W1 | G7: 3 | H7: =IF('Initial Inputs'!H65='DropDown Lists'!$G$5,1,3) -> 3 | I7: =IF('Initial Inputs'!F65='DropDown Lists'!$G$7,1,3) -> 3 | K7: =IF('Initial Inputs'!I65='DropDown Lists'!$G$5,1,3) -> 3 | L7: =IF('Initial Inputs'!G65='DropDown Lists'!$G$7,1,3) -> 3
A8: Apr | B8: =IF('Initial Inputs'!D67='DropDown Lists'!$F$6,"W","S") -> W | D8: Winter Mid | E8: W2 | G8: 4 | H8: =IF('Initial Inputs'!H66='DropDown Lists'!$G$5,1,3) -> 3 | I8: =IF('Initial Inputs'!F66='DropDown Lists'!$G$7,1,3) -> 3 | K8: =IF('Initial Inputs'!I66='DropDown Lists'!$G$5,1,3) -> 3 | L8: =IF('Initial Inputs'!G66='DropDown Lists'!$G$7,1,3) -> 3
A9: May | B9: =IF('Initial Inputs'!D68='DropDown Lists'!$F$6,"W","S") -> S | D9: Winter Off | E9: W3 | G9: 5 | H9: =IF('Initial Inputs'!H67='DropDown Lists'!$G$5,1,3) -> 3 | I9: =IF('Initial Inputs'!F67='DropDown Lists'!$G$7,1,3) -> 3 | K9: =IF('Initial Inputs'!I67='DropDown Lists'!$G$5,1,3) -> 3 | L9: =IF('Initial Inputs'!G67='DropDown Lists'!$G$7,1,3) -> 3
A10: Jun | B10: =IF('Initial Inputs'!D69='DropDown Lists'!$F$6,"W","S") -> S | G10: 6 | H10: =IF('Initial Inputs'!H68='DropDown Lists'!$G$5,1,3) -> 3 | I10: =IF('Initial Inputs'!F68='DropDown Lists'!$G$7,1,3) -> 3 | K10: =IF('Initial Inputs'!I68='DropDown Lists'!$G$5,1,3) -> 3 | L10: =IF('Initial Inputs'!G68='DropDown Lists'!$G$7,1,3) -> 3
A11: Jul | B11: =IF('Initial Inputs'!D70='DropDown Lists'!$F$6,"W","S") -> S | G11: 7 | H11: =IF('Initial Inputs'!H69='DropDown Lists'!$G$5,1,3) -> 1 | I11: =IF('Initial Inputs'!F69='DropDown Lists'!$G$7,1,3) -> 1 | K11: =IF('Initial Inputs'!I69='DropDown Lists'!$G$5,1,3) -> 3 | L11: =IF('Initial Inputs'!G69='DropDown Lists'!$G$7,1,3) -> 3
A12: Aug | B12: =IF('Initial Inputs'!D71='DropDown Lists'!$F$6,"W","S") -> S | G12: 8 | H12: =IF('Initial Inputs'!H70='DropDown Lists'!$G$5,1,3) -> 1 | I12: =IF('Initial Inputs'!F70='DropDown Lists'!$G$7,1,3) -> 1 | K12: =IF('Initial Inputs'!I70='DropDown Lists'!$G$5,1,3) -> 3 | L12: =IF('Initial Inputs'!G70='DropDown Lists'!$G$7,1,3) -> 3
A13: Sep | B13: =IF('Initial Inputs'!D72='DropDown Lists'!$F$6,"W","S") -> S | G13: 9 | H13: =IF('Initial Inputs'!H71='DropDown Lists'!$G$5,1,3) -> 1 | I13: =IF('Initial Inputs'!F71='DropDown Lists'!$G$7,1,3) -> 1 | K13: =IF('Initial Inputs'!I71='DropDown Lists'!$G$5,1,3) -> 3 | L13: =IF('Initial Inputs'!G71='DropDown Lists'!$G$7,1,3) -> 3
A14: Oct | B14: =IF('Initial Inputs'!D73='DropDown Lists'!$F$6,"W","S") -> W | G14: 10 | H14: =IF('Initial Inputs'!H72='DropDown Lists'!$G$5,1,3) -> 1 | I14: =IF('Initial Inputs'!F72='DropDown Lists'!$G$7,1,3) -> 1 | K14: =IF('Initial Inputs'!I72='DropDown Lists'!$G$5,1,3) -> 3 | L14: =IF('Initial Inputs'!G72='DropDown Lists'!$G$7,1,3) -> 3
A15: Nov | B15: =IF('Initial Inputs'!D74='DropDown Lists'!$F$6,"W","S") -> W | G15: 11 | H15: =IF('Initial Inputs'!H73='DropDown Lists'!$G$5,1,3) -> 1 | I15: =IF('Initial Inputs'!F73='DropDown Lists'!$G$7,1,3) -> 1 | K15: =IF('Initial Inputs'!I73='DropDown Lists'!$G$5,1,3) -> 3 | L15: =IF('Initial Inputs'!G73='DropDown Lists'!$G$7,1,3) -> 3
A16: Dec | B16: =IF('Initial Inputs'!D75='DropDown Lists'!$F$6,"W","S") -> W | G16: 12 | H16: =IF('Initial Inputs'!H74='DropDown Lists'!$G$5,1,3) -> 1 | I16: =IF('Initial Inputs'!F74='DropDown Lists'!$G$7,1,3) -> 1 | K16: =IF('Initial Inputs'!I74='DropDown Lists'!$G$5,1,3) -> 3 | L16: =IF('Initial Inputs'!G74='DropDown Lists'!$G$7,1,3) -> 3
G17: 13 | H17: =IF('Initial Inputs'!H75='DropDown Lists'!$G$5,1,3) -> 1 | I17: =IF('Initial Inputs'!F75='DropDown Lists'!$G$7,1,3) -> 1 | K17: =IF('Initial Inputs'!I75='DropDown Lists'!$G$5,1,3) -> 3 | L17: =IF('Initial Inputs'!G75='DropDown Lists'!$G$7,1,3) -> 3
G18: 14 | H18: =IF('Initial Inputs'!H76='DropDown Lists'!$G$5,1,3) -> 1 | I18: =IF('Initial Inputs'!F76='DropDown Lists'!$G$7,1,3) -> 1 | K18: =IF('Initial Inputs'!I76='DropDown Lists'!$G$5,1,3) -> 3 | L18: =IF('Initial Inputs'!G76='DropDown Lists'!$G$7,1,3) -> 3
G19: 15 | H19: =IF('Initial Inputs'!H77='DropDown Lists'!$G$5,1,3) -> 1 | I19: =IF('Initial Inputs'!F77='DropDown Lists'!$G$7,1,3) -> 1 | K19: =IF('Initial Inputs'!I77='DropDown Lists'!$G$5,1,3) -> 3 | L19: =IF('Initial Inputs'!G77='DropDown Lists'!$G$7,1,3) -> 3
G20: 16 | H20: =IF('Initial Inputs'!H78='DropDown Lists'!$G$5,1,3) -> 1 | I20: =IF('Initial Inputs'!F78='DropDown Lists'!$G$7,1,3) -> 1 | K20: =IF('Initial Inputs'!I78='DropDown Lists'!$G$5,1,3) -> 3 | L20: =IF('Initial Inputs'!G78='DropDown Lists'!$G$7,1,3) -> 3
G21: 17 | H21: =IF('Initial Inputs'!H79='DropDown Lists'!$G$5,1,3) -> 1 | I21: =IF('Initial Inputs'!F79='DropDown Lists'!$G$7,1,3) -> 1 | K21: =IF('Initial Inputs'!I79='DropDown Lists'!$G$5,1,3) -> 3 | L21: =IF('Initial Inputs'!G79='DropDown Lists'!$G$7,1,3) -> 3
G22: 18 | H22: =IF('Initial Inputs'!H80='DropDown Lists'!$G$5,1,3) -> 1 | I22: =IF('Initial Inputs'!F80='DropDown Lists'!$G$7,1,3) -> 1 | K22: =IF('Initial Inputs'!I80='DropDown Lists'!$G$5,1,3) -> 3 | L22: =IF('Initial Inputs'!G80='DropDown Lists'!$G$7,1,3) -> 3
G23: 19 | H23: =IF('Initial Inputs'!H81='DropDown Lists'!$G$5,1,3) -> 1 | I23: =IF('Initial Inputs'!F81='DropDown Lists'!$G$7,1,3) -> 1 | K23: =IF('Initial Inputs'!I81='DropDown Lists'!$G$5,1,3) -> 3 | L23: =IF('Initial Inputs'!G81='DropDown Lists'!$G$7,1,3) -> 3
G24: 20 | H24: =IF('Initial Inputs'!H82='DropDown Lists'!$G$5,1,3) -> 1 | I24: =IF('Initial Inputs'!F82='DropDown Lists'!$G$7,1,3) -> 1 | K24: =IF('Initial Inputs'!I82='DropDown Lists'!$G$5,1,3) -> 3 | L24: =IF('Initial Inputs'!G82='DropDown Lists'!$G$7,1,3) -> 3
G25: 21 | H25: =IF('Initial Inputs'!H83='DropDown Lists'!$G$5,1,3) -> 1 | I25: =IF('Initial Inputs'!F83='DropDown Lists'!$G$7,1,3) -> 1 | K25: =IF('Initial Inputs'!I83='DropDown Lists'!$G$5,1,3) -> 3 | L25: =IF('Initial Inputs'!G83='DropDown Lists'!$G$7,1,3) -> 3
G26: 22 | H26: =IF('Initial Inputs'!H84='DropDown Lists'!$G$5,1,3) -> 1 | I26: =IF('Initial Inputs'!F84='DropDown Lists'!$G$7,1,3) -> 1 | K26: =IF('Initial Inputs'!I84='DropDown Lists'!$G$5,1,3) -> 3 | L26: =IF('Initial Inputs'!G84='DropDown Lists'!$G$7,1,3) -> 3
G27: 23 | H27: =IF('Initial Inputs'!H85='DropDown Lists'!$G$5,1,3) -> 3 | I27: =IF('Initial Inputs'!F85='DropDown Lists'!$G$7,1,3) -> 3 | K27: =IF('Initial Inputs'!I85='DropDown Lists'!$G$5,1,3) -> 3 | L27: =IF('Initial Inputs'!G85='DropDown Lists'!$G$7,1,3) -> 3
G28: 24 | H28: =IF('Initial Inputs'!H86='DropDown Lists'!$G$5,1,3) -> 3 | I28: =IF('Initial Inputs'!F86='DropDown Lists'!$G$7,1,3) -> 3 | K28: =IF('Initial Inputs'!I86='DropDown Lists'!$G$5,1,3) -> 3 | L28: =IF('Initial Inputs'!G86='DropDown Lists'!$G$7,1,3) -> 3

Sheet TOU Rates
A1: Holidays | D1: Calculations | L1: WHOLESALE | N1: ='Initial Inputs'!C31 -> Residential | P1: ='Initial Inputs'!C35 -> Commercial | R1: ='Initial Inputs'!C39 -> Customer type 3 | T1: ='Initial Inputs'!C43 -> Customer type 4 | V1: ='Initial Inputs'!C47 -> Customer type 5
A2: YEAR | B2: =YEAR('Initial Inputs'!C2) -> 2017 | D2: Date | E2: Month | F2: Weekday | G2: Holiday | H2: TOU Code | I2: Peak = 1, Off Peak = 3 | J2: Summer = S, Winter = W | L2: TOU Wholesale Rate, Year 1 ($/MWh) | N2: TOU Retail Rate, Year 1 ($/kWh) | P2: TOU Retail Rate, Year 1 | R2: TOU Retail Rate, Year 1 | T2: TOU Retail Rate, Year 1 | V2: TOU Retail Rate, Year 1
A3: New years | B3: =IF(WEEKDAY(DATE($B$2,1,1))=1,DATE($B$2,1,2),IF(WEEKDAY(DATE($B$2,1,1))=7,DATE($B$2-1,12,31),DATE($B$2,1,1))) -> 2017-01-02 | D3: =DATE(B2,1,1) -> 2017-01-01 | E3: =MONTH(D3) -> 1 | F3: =WEEKDAY(D3,2) -> 7 | G3: =IF(ISNUMBER(MATCH(TRUNC(ROUND($D3,5)),$B$3:$B$42,0)),1,0) -> 0 | H3: =J3&I3 -> W3 | I3: =IF(OR($G3>0,$F3>$B$12),OFFSET('TOU Definitions'!$K$5,HOUR($D3),MATCH(J3,'TOU Definitions'!$H$4:$J$4)-1),OFFSET('TOU Definitions'!$H$5,HOUR($D3),MATCH(J3,'TOU Definitions'!$H$4:$J$4)-1)) -> 3 | J3: =OFFSET('TOU Definitions'!$B$4,$E3,0) -> W | L3: =IF($H3="W1",'Initial Inputs'!$F$94,IF($H3="W3",'Initial Inputs'!$G$94,IF($H3="S1",'Initial Inputs'!$D$94,'Initial Inputs'!$E$94))) -> 70 | N3: =IF($H3="W1",'Initial Inputs'!$E$33,IF($H3="W3",'Initial Inputs'!$F$33,IF($H3="S1",'Initial Inputs'!$C$33,'Initial Inputs'!$D$33))) -> 0.15 | P3: =IF($H3="W1",'Initial Inputs'!$E$37,IF($H3="W3",'Initial Inputs'!$F$37,IF($H3="S1",'Initial Inputs'!$C$37,'Initial Inputs'!$D$37))) -> 0.15 | R3: =IF($H3="W1",'Initial Inputs'!$E$41,IF($H3="W3",'Initial Inputs'!$F$41,IF($H3="S1",'Initial Inputs'!$C$41,'Initial Inputs'!$D$41))) -> 0.08 | T3: =IF($H3="W1",'Initial Inputs'!$E$45,IF($H3="W3",'Initial Inputs'!$F$45,IF($H3="S1",'Initial Inputs'!$C$45,'Initial Inputs'!$D$45))) -> 0.08 | V3: =IF($H3="W1",'Initial Inputs'!$E$49,IF($H3="W3",'Initial Inputs'!$F$49,IF($H3="S1",'Initial Inputs'!$C$49,'Initial Inputs'!$D$49))) -> 0.08
A4: Presidents Day | B4: =DATE($B$2,2,15+(2-WEEKDAY(DATE($B$2,2,15)))+IF(WEEKDAY(DATE($B$2,2,15))>2,7,0)) -> 2017-02-20 | D4: =D3+1/24 -> 2017-01-01T01:00:00 | E4: 1 | F4: =WEEKDAY(D4,2) -> 7 | G4: =IF(ISNUMBER(MATCH(TRUNC(ROUND($D4,5)),$B$3:$B$42,0)),1,0) -> 0 | H4: =J4&I4 -> W3 | I4: =IF(OR($G4>0,$F4>$B$12),OFFSET('TOU Definitions'!$K$5,HOUR($D4),MATCH(J4,'TOU Definitions'!$H$4:$J$4)-1),OFFSET('TOU Definitions'!$H$5,HOUR($D4),MATCH(J4,'TOU Definitions'!$H$4:$J$4)-1)) -> 3 | J4: =OFFSET('TOU Definitions'!$B$4,$E4,0) -> W | L4: =IF($H4="W1",'Initial Inputs'!$F$94,IF($H4="W3",'Initial Inputs'!$G$94,IF($H4="S1",'Initial Inputs'!$D$94,'Initial Inputs'!$E$94))) -> 70 | N4: =IF($H4="W1",'Initial Inputs'!$E$33,IF($H4="W3",'Initial Inputs'!$F$33,IF($H4="S1",'Initial Inputs'!$C$33,'Initial Inputs'!$D$33))) -> 0.15 | P4: =IF($H4="W1",'Initial Inputs'!$E$37,IF($H4="W3",'Initial Inputs'!$F$37,IF($H4="S1",'Initial Inputs'!$C$37,'Initial Inputs'!$D$37))) -> 0.15 | R4: =IF($H4="W1",'Initial Inputs'!$E$41,IF($H4="W3",'Initial Inputs'!$F$41,IF($H4="S1",'Initial Inputs'!$C$41,'Initial Inputs'!$D$41))) -> 0.08 | T4: =IF($H4="W1",'Initial Inputs'!$E$45,IF($H4="W3",'Initial Inputs'!$F$45,IF($H4="S1",'Initial Inputs'!$C$45,'Initial Inputs'!$D$45))) -> 0.08 | V4: =IF($H4="W1",'Initial Inputs'!$E$49,IF($H4="W3",'Initial Inputs'!$F$49,IF($H4="S1",'Initial Inputs'!$C$49,'Initial Inputs'!$D$49))) -> 0.08
A5: Memorial Day | B5: =DATE($B$2,5,31-(WEEKDAY(DATE($B$2,5,31))-2)-IF(WEEKDAY(DATE($B$2,5,31))<2,7,0)) -> 2017-05-29 | D5: 2017-01-01T02:00:00 | E5: 1 | F5: 7 | G5: =IF(ISNUMBER(MATCH(TRUNC(ROUND($D5,5)),$B$3:$B$42,0)),1,0) -> 0 | H5: W3 | I5: =IF(OR($G5>0,$F5>$B$12),OFFSET('TOU Definitions'!$K$5,HOUR($D5),MATCH(J5,'TOU Definitions'!$H$4:$J$4)-1),OFFSET('TOU Definitions'!$H$5,HOUR($D5),MATCH(J5,'TOU Definitions'!$H$4:$J$4)-1)) -> 3 | J5: =OFFSET('TOU Definitions'!$B$4,$E5,0) -> W | L5: =IF($H5="W1",'Initial Inputs'!$F$94,IF($H5="W3",'Initial Inputs'!$G$94,IF($H5="S1",'Initial Inputs'!$D$94,'Initial Inputs'!$E$94))) -> 70 | N5: =IF($H5="W1",'Initial Inputs'!$E$33,IF($H5="W3",'Initial Inputs'!$F$33,IF($H5="S1",'Initial Inputs'!$C$33,'Initial Inputs'!$D$33))) -> 0.15 | P5: =IF($H5="W1",'Initial Inputs'!$E$37,IF($H5="W3",'Initial Inputs'!$F$37,IF($H5="S1",'Initial Inputs'!$C$37,'Initial Inputs'!$D$37))) -> 0.15 | R5: =IF($H5="W1",'Initial Inputs'!$E$41,IF($H5="W3",'Initial Inputs'!$F$41,IF($H5="S1",'Initial Inputs'!$C$41,'Initial Inputs'!$D$41))) -> 0.08 | T5: =IF($H5="W1",'Initial Inputs'!$E$45,IF($H5="W3",'Initial Inputs'!$F$45,IF($H5="S1",'Initial Inputs'!$C$45,'Initial Inputs'!$D$45))) -> 0.08 | V5: =IF($H5="W1",'Initial Inputs'!$E$49,IF($H5="W3",'Initial Inputs'!$F$49,IF($H5="S1",'Initial Inputs'!$C$49,'Initial Inputs'!$D$49))) -> 0.08
A6: 4th of July | B6: =IF(WEEKDAY(DATE($B$2,7,4))=1,DATE($B$2,7,5),IF(WEEKDAY(DATE($B$2,7,4))=7,DATE($B$2,7,3),DATE($B$2,7,5))) -> 2017-07-05 | D6: 2017-01-01T03:00:00 | E6: 1 | F6: 7 | G6: 0 | H6: W3 | I6: =IF(OR($G6>0,$F6>$B$12),OFFSET('TOU Definitions'!$K$5,HOUR($D6),MATCH(J6,'TOU Definitions'!$H$4:$J$4)-1),OFFSET('TOU Definitions'!$H$5,HOUR($D6),MATCH(J6,'TOU Definitions'!$H$4:$J$4)-1)) -> 3 | J6: =OFFSET('TOU Definitions'!$B$4,$E6,0) -> W | L6: =IF($H6="W1",'Initial Inputs'!$F$94,IF($H6="W3",'Initial Inputs'!$G$94,IF($H6="S1",'Initial Inputs'!$D$94,'Initial Inputs'!$E$94))) -> 70 | N6: =IF($H6="W1",'Initial Inputs'!$E$33,IF($H6="W3",'Initial Inputs'!$F$33,IF($H6="S1",'Initial Inputs'!$C$33,'Initial Inputs'!$D$33))) -> 0.15 | P6: =IF($H6="W1",'Initial Inputs'!$E$37,IF($H6="W3",'Initial Inputs'!$F$37,IF($H6="S1",'Initial Inputs'!$C$37,'Initial Inputs'!$D$37))) -> 0.15 | R6: =IF($H6="W1",'Initial Inputs'!$E$41,IF($H6="W3",'Initial Inputs'!$F$41,IF($H6="S1",'Initial Inputs'!$C$41,'Initial Inputs'!$D$41))) -> 0.08 | T6: =IF($H6="W1",'Initial Inputs'!$E$45,IF($H6="W3",'Initial Inputs'!$F$45,IF($H6="S1",'Initial Inputs'!$C$45,'Initial Inputs'!$D$45))) -> 0.08 | V6: =IF($H6="W1",'Initial Inputs'!$E$49,IF($H6="W3",'Initial Inputs'!$F$49,IF($H6="S1",'Initial Inputs'!$C$49,'Initial Inputs'!$D$49))) -> 0.08
A7: Labor Day | B7: =DATE($B$2,9,1+(2-WEEKDAY(DATE($B$2,9,1)))+IF(WEEKDAY(DATE($B$2,9,1))>2,7,0)) -> 2017-09-04 | D7: 2017-01-01T04:00:00 | E7: 1 | F7: 7 | G7: 0 | H7: W3 | I7: =IF(OR($G7>0,$F7>$B$12),OFFSET('TOU Definitions'!$K$5,HOUR($D7),MATCH(J7,'TOU Definitions'!$H$4:$J$4)-1),OFFSET('TOU Definitions'!$H$5,HOUR($D7),MATCH(J7,'TOU Definitions'!$H$4:$J$4)-1)) -> 3 | J7: =OFFSET('TOU Definitions'!$B$4,$E7,0) -> W | L7: =IF($H7="W1",'Initial Inputs'!$F$94,IF($H7="W3",'Initial Inputs'!$G$94,IF($H7="S1",'Initial Inputs'!$D$94,'Initial Inputs'!$E$94))) -> 70 | N7: =IF($H7="W1",'Initial Inputs'!$E$33,IF($H7="W3",'Initial Inputs'!$F$33,IF($H7="S1",'Initial Inputs'!$C$33,'Initial Inputs'!$D$33))) -> 0.15 | P7: =IF($H7="W1",'Initial Inputs'!$E$37,IF($H7="W3",'Initial Inputs'!$F$37,IF($H7="S1",'Initial Inputs'!$C$37,'Initial Inputs'!$D$37))) -> 0.15 | R7: =IF($H7="W1",'Initial Inputs'!$E$41,IF($H7="W3",'Initial Inputs'!$F$41,IF($H7="S1",'Initial Inputs'!$C$41,'Initial Inputs'!$D$41))) -> 0.08 | T7: =IF($H7="W1",'Initial Inputs'!$E$45,IF($H7="W3",'Initial Inputs'!$F$45,IF($H7="S1",'Initial Inputs'!$C$45,'Initial Inputs'!$D$45))) -> 0.08 | V7: =IF($H7="W1",'Initial Inputs'!$E$49,IF($H7="W3",'Initial Inputs'!$F$49,IF($H7="S1",'Initial Inputs'!$C$49,'Initial Inputs'!$D$49))) -> 0.08
A8: Veteran's Day | B8: =IF(WEEKDAY(DATE($B$2,11,11))=1,DATE($B$2,11,12),IF(WEEKDAY(DATE($B$2,11,11))=7,DATE($B$2,11,10),DATE($B$2,11,12))) -> 2017-11-10 | D8: 2017-01-01T05:00:00 | E8: 1 | F8: 7 | G8: 0 | H8: W3 | I8: =IF(OR($G8>0,$F8>$B$12),OFFSET('TOU Definitions'!$K$5,HOUR($D8),MATCH(J8,'TOU Definitions'!$H$4:$J$4)-1),OFFSET('TOU Definitions'!$H$5,HOUR($D8),MATCH(J8,'TOU Definitions'!$H$4:$J$4)-1)) -> 3 | J8: =OFFSET('TOU Definitions'!$B$4,$E8,0) -> W | L8: =IF($H8="W1",'Initial Inputs'!$F$94,IF($H8="W3",'Initial Inputs'!$G$94,IF($H8="S1",'Initial Inputs'!$D$94,'Initial Inputs'!$E$94))) -> 70 | N8: =IF($H8="W1",'Initial Inputs'!$E$33,IF($H8="W3",'Initial Inputs'!$F$33,IF($H8="S1",'Initial Inputs'!$C$33,'Initial Inputs'!$D$33))) -> 0.15 | P8: =IF($H8="W1",'Initial Inputs'!$E$37,IF($H8="W3",'Initial Inputs'!$F$37,IF($H8="S1",'Initial Inputs'!$C$37,'Initial Inputs'!$D$37))) -> 0.15 | R8: =IF($H8="W1",'Initial Inputs'!$E$41,IF($H8="W3",'Initial Inputs'!$F$41,IF($H8="S1",'Initial Inputs'!$C$41,'Initial Inputs'!$D$41))) -> 0.08 | T8: =IF($H8="W1",'Initial Inputs'!$E$45,IF($H8="W3",'Initial Inputs'!$F$45,IF($H8="S1",'Initial Inputs'!$C$45,'Initial Inputs'!$D$45))) -> 0.08 | V8: =IF($H8="W1",'Initial Inputs'!$E$49,IF($H8="W3",'Initial Inputs'!$F$49,IF($H8="S1",'Initial Inputs'!$C$49,'Initial Inputs'!$D$49))) -> 0.08
A9: Thanksgiving | B9: =DATE($B$2,11,22+(5-WEEKDAY(DATE($B$2,11,22)))+IF(WEEKDAY(DATE($B$2,11,22))>5,7,0)) -> 2017-11-23 | D9: 2017-01-01T06:00:00 | E9: 1 | F9: 7 | G9: 0 | H9: W3 | I9: =IF(OR($G9>0,$F9>$B$12),OFFSET('TOU Definitions'!$K$5,HOUR($D9),MATCH(J9,'TOU Definitions'!$H$4:$J$4)-1),OFFSET('TOU Definitions'!$H$5,HOUR($D9),MATCH(J9,'TOU Definitions'!$H$4:$J$4)-1)) -> 3 | J9: =OFFSET('TOU Definitions'!$B$4,$E9,0) -> W | L9: =IF($H9="W1",'Initial Inputs'!$F$94,IF($H9="W3",'Initial Inputs'!$G$94,IF($H9="S1",'Initial Inputs'!$D$94,'Initial Inputs'!$E$94))) -> 70 | N9: =IF($H9="W1",'Initial Inputs'!$E$33,IF($H9="W3",'Initial Inputs'!$F$33,IF($H9="S1",'Initial Inputs'!$C$33,'Initial Inputs'!$D$33))) -> 0.15 | P9: =IF($H9="W1",'Initial Inputs'!$E$37,IF($H9="W3",'Initial Inputs'!$F$37,IF($H9="S1",'Initial Inputs'!$C$37,'Initial Inputs'!$D$37))) -> 0.15 | R9: =IF($H9="W1",'Initial Inputs'!$E$41,IF($H9="W3",'Initial Inputs'!$F$41,IF($H9="S1",'Initial Inputs'!$C$41,'Initial Inputs'!$D$41))) -> 0.08 | T9: =IF($H9="W1",'Initial Inputs'!$E$45,IF($H9="W3",'Initial Inputs'!$F$45,IF($H9="S1",'Initial Inputs'!$C$45,'Initial Inputs'!$D$45))) -> 0.08 | V9: =IF($H9="W1",'Initial Inputs'!$E$49,IF($H9="W3",'Initial Inputs'!$F$49,IF($H9="S1",'Initial Inputs'!$C$49,'Initial Inputs'!$D$49))) -> 0.08
A10: Christmas | B10: =IF(WEEKDAY(DATE($B$2,12,25))=1,DATE($B$2,12,26),IF(WEEKDAY(DATE($B$2,12,25))=7,DATE($B$2,12,24),DATE($B$2,12,25))) -> 2017-12-25 | D10: 2017-01-01T07:00:00 | E10: 1 | F10: 7 | G10: 0 | H10: W3 | I10: =IF(OR($G10>0,$F10>$B$12),OFFSET('TOU Definitions'!$K$5,HOUR($D10),MATCH(J10,'TOU Definitions'!$H$4:$J$4)-1),OFFSET('TOU Definitions'!$H$5,HOUR($D10),MATCH(J10,'TOU Definitions'!$H$4:$J$4)-1)) -> 3 | J10: =OFFSET('TOU Definitions'!$B$4,$E10,0) -> W | L10: =IF($H10="W1",'Initial Inputs'!$F$94,IF($H10="W3",'Initial Inputs'!$G$94,IF($H10="S1",'Initial Inputs'!$D$94,'Initial Inputs'!$E$94))) -> 70 | N10: =IF($H10="W1",'Initial Inputs'!$E$33,IF($H10="W3",'Initial Inputs'!$F$33,IF($H10="S1",'Initial Inputs'!$C$33,'Initial Inputs'!$D$33))) -> 0.15 | P10: =IF($H10="W1",'Initial Inputs'!$E$37,IF($H10="W3",'Initial Inputs'!$F$37,IF($H10="S1",'Initial Inputs'!$C$37,'Initial Inputs'!$D$37))) -> 0.15 | R10: =IF($H10="W1",'Initial Inputs'!$E$41,IF($H10="W3",'Initial Inputs'!$F$41,IF($H10="S1",'Initial Inputs'!$C$41,'Initial Inputs'!$D$41))) -> 0.08 | T10: =IF($H10="W1",'Initial Inputs'!$E$45,IF($H10="W3",'Initial Inputs'!$F$45,IF($H10="S1",'Initial Inputs'!$C$45,'Initial Inputs'!$D$45))) -> 0.08 | V10: =IF($H10="W1",'Initial Inputs'!$E$49,IF($H10="W3",'Initial Inputs'!$F$49,IF($H10="S1",'Initial Inputs'!$C$49,'Initial Inputs'!$D$49))) -> 0.08
D11: 2017-01-01T08:00:00 | E11: 1 | F11: 7 | G11: 0 | H11: W3 | I11: =IF(OR($G11>0,$F11>$B$12),OFFSET('TOU Definitions'!$K$5,HOUR($D11),MATCH(J11,'TOU Definitions'!$H$4:$J$4)-1),OFFSET('TOU Definitions'!$H$5,HOUR($D11),MATCH(J11,'TOU Definitions'!$H$4:$J$4)-1)) -> 3 | J11: =OFFSET('TOU Definitions'!$B$4,$E11,0) -> W | L11: =IF($H11="W1",'Initial Inputs'!$F$94,IF($H11="W3",'Initial Inputs'!$G$94,IF($H11="S1",'Initial Inputs'!$D$94,'Initial Inputs'!$E$94))) -> 70 | N11: =IF($H11="W1",'Initial Inputs'!$E$33,IF($H11="W3",'Initial Inputs'!$F$33,IF($H11="S1",'Initial Inputs'!$C$33,'Initial Inputs'!$D$33))) -> 0.15 | P11: =IF($H11="W1",'Initial Inputs'!$E$37,IF($H11="W3",'Initial Inputs'!$F$37,IF($H11="S1",'Initial Inputs'!$C$37,'Initial Inputs'!$D$37))) -> 0.15 | R11: =IF($H11="W1",'Initial Inputs'!$E$41,IF($H11="W3",'Initial Inputs'!$F$41,IF($H11="S1",'Initial Inputs'!$C$41,'Initial Inputs'!$D$41))) -> 0.08 | T11: =IF($H11="W1",'Initial Inputs'!$E$45,IF($H11="W3",'Initial Inputs'!$F$45,IF($H11="S1",'Initial Inputs'!$C$45,'Initial Inputs'!$D$45))) -> 0.08 | V11: =IF($H11="W1",'Initial Inputs'!$E$49,IF($H11="W3",'Initial Inputs'!$F$49,IF($H11="S1",'Initial Inputs'!$C$49,'Initial Inputs'!$D$49))) -> 0.08
A12: Saturday On Peak | B12: 5 | D12: 2017-01-01T09:00:00 | E12: 1 | F12: 7 | G12: 0 | H12: W3 | I12: =IF(OR($G12>0,$F12>$B$12),OFFSET('TOU Definitions'!$K$5,HOUR($D12),MATCH(J12,'TOU Definitions'!$H$4:$J$4)-1),OFFSET('TOU Definitions'!$H$5,HOUR($D12),MATCH(J12,'TOU Definitions'!$H$4:$J$4)-1)) -> 3 | J12: =OFFSET('TOU Definitions'!$B$4,$E12,0) -> W | L12: =IF($H12="W1",'Initial Inputs'!$F$94,IF($H12="W3",'Initial Inputs'!$G$94,IF($H12="S1",'Initial Inputs'!$D$94,'Initial Inputs'!$E$94))) -> 70 | N12: =IF($H12="W1",'Initial Inputs'!$E$33,IF($H12="W3",'Initial Inputs'!$F$33,IF($H12="S1",'Initial Inputs'!$C$33,'Initial Inputs'!$D$33))) -> 0.15 | P12: =IF($H12="W1",'Initial Inputs'!$E$37,IF($H12="W3",'Initial Inputs'!$F$37,IF($H12="S1",'Initial Inputs'!$C$37,'Initial Inputs'!$D$37))) -> 0.15 | R12: =IF($H12="W1",'Initial Inputs'!$E$41,IF($H12="W3",'Initial Inputs'!$F$41,IF($H12="S1",'Initial Inputs'!$C$41,'Initial Inputs'!$D$41))) -> 0.08 | T12: =IF($H12="W1",'Initial Inputs'!$E$45,IF($H12="W3",'Initial Inputs'!$F$45,IF($H12="S1",'Initial Inputs'!$C$45,'Initial Inputs'!$D$45))) -> 0.08 | V12: =IF($H12="W1",'Initial Inputs'!$E$49,IF($H12="W3",'Initial Inputs'!$F$49,IF($H12="S1",'Initial Inputs'!$C$49,'Initial Inputs'!$D$49))) -> 0.08
A13: (5 = Sat Off Peak) | D13: 2017-01-01T10:00:00 | E13: 1 | F13: 7 | G13: 0 | H13: W3 | I13: =IF(OR($G13>0,$F13>$B$12),OFFSET('TOU Definitions'!$K$5,HOUR($D13),MATCH(J13,'TOU Definitions'!$H$4:$J$4)-1),OFFSET('TOU Definitions'!$H$5,HOUR($D13),MATCH(J13,'TOU Definitions'!$H$4:$J$4)-1)) -> 3 | J13: =OFFSET('TOU Definitions'!$B$4,$E13,0) -> W | L13: =IF($H13="W1",'Initial Inputs'!$F$94,IF($H13="W3",'Initial Inputs'!$G$94,IF($H13="S1",'Initial Inputs'!$D$94,'Initial Inputs'!$E$94))) -> 70 | N13: =IF($H13="W1",'Initial Inputs'!$E$33,IF($H13="W3",'Initial Inputs'!$F$33,IF($H13="S1",'Initial Inputs'!$C$33,'Initial Inputs'!$D$33))) -> 0.15 | P13: =IF($H13="W1",'Initial Inputs'!$E$37,IF($H13="W3",'Initial Inputs'!$F$37,IF($H13="S1",'Initial Inputs'!$C$37,'Initial Inputs'!$D$37))) -> 0.15 | R13: =IF($H13="W1",'Initial Inputs'!$E$41,IF($H13="W3",'Initial Inputs'!$F$41,IF($H13="S1",'Initial Inputs'!$C$41,'Initial Inputs'!$D$41))) -> 0.08 | T13: =IF($H13="W1",'Initial Inputs'!$E$45,IF($H13="W3",'Initial Inputs'!$F$45,IF($H13="S1",'Initial Inputs'!$C$45,'Initial Inputs'!$D$45))) -> 0.08 | V13: =IF($H13="W1",'Initial Inputs'!$E$49,IF($H13="W3",'Initial Inputs'!$F$49,IF($H13="S1",'Initial Inputs'!$C$49,'Initial Inputs'!$D$49))) -> 0.08
A14: (6 = Sat Off Peak) | D14: 2017-01-01T11:00:00 | E14: 1 | F14: 7 | G14: 0 | H14: W3 | I14: =IF(OR($G14>0,$F14>$B$12),OFFSET('TOU Definitions'!$K$5,HOUR($D14),MATCH(J14,'TOU Definitions'!$H$4:$J$4)-1),OFFSET('TOU Definitions'!$H$5,HOUR($D14),MATCH(J14,'TOU Definitions'!$H$4:$J$4)-1)) -> 3 | J14: =OFFSET('TOU Definitions'!$B$4,$E14,0) -> W | L14: =IF($H14="W1",'Initial Inputs'!$F$94,IF($H14="W3",'Initial Inputs'!$G$94,IF($H14="S1",'Initial Inputs'!$D$94,'Initial Inputs'!$E$94))) -> 70 | N14: =IF($H14="W1",'Initial Inputs'!$E$33,IF($H14="W3",'Initial Inputs'!$F$33,IF($H14="S1",'Initial Inputs'!$C$33,'Initial Inputs'!$D$33))) -> 0.15 | P14: =IF($H14="W1",'Initial Inputs'!$E$37,IF($H14="W3",'Initial Inputs'!$F$37,IF($H14="S1",'Initial Inputs'!$C$37,'Initial Inputs'!$D$37))) -> 0.15 | R14: =IF($H14="W1",'Initial Inputs'!$E$41,IF($H14="W3",'Initial Inputs'!$F$41,IF($H14="S1",'Initial Inputs'!$C$41,'Initial Inputs'!$D$41))) -> 0.08 | T14: =IF($H14="W1",'Initial Inputs'!$E$45,IF($H14="W3",'Initial Inputs'!$F$45,IF($H14="S1",'Initial Inputs'!$C$45,'Initial Inputs'!$D$45))) -> 0.08 | V14: =IF($H14="W1",'Initial Inputs'!$E$49,IF($H14="W3",'Initial Inputs'!$F$49,IF($H14="S1",'Initial Inputs'!$C$49,'Initial Inputs'!$D$49))) -> 0.08
D15: 2017-01-01T12:00:00 | E15: 1 | F15: 7 | G15: 0 | H15: W3 | I15: =IF(OR($G15>0,$F15>$B$12),OFFSET('TOU Definitions'!$K$5,HOUR($D15),MATCH(J15,'TOU Definitions'!$H$4:$J$4)-1),OFFSET('TOU Definitions'!$H$5,HOUR($D15),MATCH(J15,'TOU Definitions'!$H$4:$J$4)-1)) -> 3 | J15: =OFFSET('TOU Definitions'!$B$4,$E15,0) -> W | L15: =IF($H15="W1",'Initial Inputs'!$F$94,IF($H15="W3",'Initial Inputs'!$G$94,IF($H15="S1",'Initial Inputs'!$D$94,'Initial Inputs'!$E$94))) -> 70 | N15: =IF($H15="W1",'Initial Inputs'!$E$33,IF($H15="W3",'Initial Inputs'!$F$33,IF($H15="S1",'Initial Inputs'!$C$33,'Initial Inputs'!$D$33))) -> 0.15 | P15: =IF($H15="W1",'Initial Inputs'!$E$37,IF($H15="W3",'Initial Inputs'!$F$37,IF($H15="S1",'Initial Inputs'!$C$37,'Initial Inputs'!$D$37))) -> 0.15 | R15: =IF($H15="W1",'Initial Inputs'!$E$41,IF($H15="W3",'Initial Inputs'!$F$41,IF($H15="S1",'Initial Inputs'!$C$41,'Initial Inputs'!$D$41))) -> 0.08 | T15: =IF($H15="W1",'Initial Inputs'!$E$45,IF($H15="W3",'Initial Inputs'!$F$45,IF($H15="S1",'Initial Inputs'!$C$45,'Initial Inputs'!$D$45))) -> 0.08 | V15: =IF($H15="W1",'Initial Inputs'!$E$49,IF($H15="W3",'Initial Inputs'!$F$49,IF($H15="S1",'Initial Inputs'!$C$49,'Initial Inputs'!$D$49))) -> 0.08
D16: 2017-01-01T13:00:00 | E16: 1 | F16: 7 | G16: 0 | H16: W3 | I16: =IF(OR($G16>0,$F16>$B$12),OFFSET('TOU Definitions'!$K$5,HOUR($D16),MATCH(J16,'TOU Definitions'!$H$4:$J$4)-1),OFFSET('TOU Definitions'!$H$5,HOUR($D16),MATCH(J16,'TOU Definitions'!$H$4:$J$4)-1)) -> 3 | J16: =OFFSET('TOU Definitions'!$B$4,$E16,0) -> W | L16: =IF($H16="W1",'Initial Inputs'!$F$94,IF($H16="W3",'Initial Inputs'!$G$94,IF($H16="S1",'Initial Inputs'!$D$94,'Initial Inputs'!$E$94))) -> 70 | N16: =IF($H16="W1",'Initial Inputs'!$E$33,IF($H16="W3",'Initial Inputs'!$F$33,IF($H16="S1",'Initial Inputs'!$C$33,'Initial Inputs'!$D$33))) -> 0.15 | P16: =IF($H16="W1",'Initial Inputs'!$E$37,IF($H16="W3",'Initial Inputs'!$F$37,IF($H16="S1",'Initial Inputs'!$C$37,'Initial Inputs'!$D$37))) -> 0.15 | R16: =IF($H16="W1",'Initial Inputs'!$E$41,IF($H16="W3",'Initial Inputs'!$F$41,IF($H16="S1",'Initial Inputs'!$C$41,'Initial Inputs'!$D$41))) -> 0.08 | T16: =IF($H16="W1",'Initial Inputs'!$E$45,IF($H16="W3",'Initial Inputs'!$F$45,IF($H16="S1",'Initial Inputs'!$C$45,'Initial Inputs'!$D$45))) -> 0.08 | V16: =IF($H16="W1",'Initial Inputs'!$E$49,IF($H16="W3",'Initial Inputs'!$F$49,IF($H16="S1",'Initial Inputs'!$C$49,'Initial Inputs'!$D$49))) -> 0.08
D17: 2017-01-01T14:00:00 | E17: 1 | F17: 7 | G17: 0 | H17: W3 | I17: =IF(OR($G17>0,$F17>$B$12),OFFSET('TOU Definitions'!$K$5,HOUR($D17),MATCH(J17,'TOU Definitions'!$H$4:$J$4)-1),OFFSET('TOU Definitions'!$H$5,HOUR($D17),MATCH(J17,'TOU Definitions'!$H$4:$J$4)-1)) -> 3 | J17: =OFFSET('TOU Definitions'!$B$4,$E17,0) -> W | L17: =IF($H17="W1",'Initial Inputs'!$F$94,IF($H17="W3",'Initial Inputs'!$G$94,IF($H17="S1",'Initial Inputs'!$D$94,'Initial Inputs'!$E$94))) -> 70 | N17: =IF($H17="W1",'Initial Inputs'!$E$33,IF($H17="W3",'Initial Inputs'!$F$33,IF($H17="S1",'Initial Inputs'!$C$33,'Initial Inputs'!$D$33))) -> 0.15 | P17: =IF($H17="W1",'Initial Inputs'!$E$37,IF($H17="W3",'Initial Inputs'!$F$37,IF($H17="S1",'Initial Inputs'!$C$37,'Initial Inputs'!$D$37))) -> 0.15 | R17: =IF($H17="W1",'Initial Inputs'!$E$41,IF($H17="W3",'Initial Inputs'!$F$41,IF($H17="S1",'Initial Inputs'!$C$41,'Initial Inputs'!$D$41))) -> 0.08 | T17: =IF($H17="W1",'Initial Inputs'!$E$45,IF($H17="W3",'Initial Inputs'!$F$45,IF($H17="S1",'Initial Inputs'!$C$45,'Initial Inputs'!$D$45))) -> 0.08 | V17: =IF($H17="W1",'Initial Inputs'!$E$49,IF($H17="W3",'Initial Inputs'!$F$49,IF($H17="S1",'Initial Inputs'!$C$49,'Initial Inputs'!$D$49))) -> 0.08
D18: 2017-01-01T15:00:00 | E18: 1 | F18: 7 | G18: 0 | H18: W3 | I18: =IF(OR($G18>0,$F18>$B$12),OFFSET('TOU Definitions'!$K$5,HOUR($D18),MATCH(J18,'TOU Definitions'!$H$4:$J$4)-1),OFFSET('TOU Definitions'!$H$5,HOUR($D18),MATCH(J18,'TOU Definitions'!$H$4:$J$4)-1)) -> 3 | J18: =OFFSET('TOU Definitions'!$B$4,$E18,0) -> W | L18: =IF($H18="W1",'Initial Inputs'!$F$94,IF($H18="W3",'Initial Inputs'!$G$94,IF($H18="S1",'Initial Inputs'!$D$94,'Initial Inputs'!$E$94))) -> 70 | N18: =IF($H18="W1",'Initial Inputs'!$E$33,IF($H18="W3",'Initial Inputs'!$F$33,IF($H18="S1",'Initial Inputs'!$C$33,'Initial Inputs'!$D$33))) -> 0.15 | P18: =IF($H18="W1",'Initial Inputs'!$E$37,IF($H18="W3",'Initial Inputs'!$F$37,IF($H18="S1",'Initial Inputs'!$C$37,'Initial Inputs'!$D$37))) -> 0.15 | R18: =IF($H18="W1",'Initial Inputs'!$E$41,IF($H18="W3",'Initial Inputs'!$F$41,IF($H18="S1",'Initial Inputs'!$C$41,'Initial Inputs'!$D$41))) -> 0.08 | T18: =IF($H18="W1",'Initial Inputs'!$E$45,IF($H18="W3",'Initial Inputs'!$F$45,IF($H18="S1",'Initial Inputs'!$C$45,'Initial Inputs'!$D$45))) -> 0.08 | V18: =IF($H18="W1",'Initial Inputs'!$E$49,IF($H18="W3",'Initial Inputs'!$F$49,IF($H18="S1",'Initial Inputs'!$C$49,'Initial Inputs'!$D$49))) -> 0.08
D19: 2017-01-01T16:00:00 | E19: 1 | F19: 7 | G19: 0 | H19: W3 | I19: =IF(OR($G19>0,$F19>$B$12),OFFSET('TOU Definitions'!$K$5,HOUR($D19),MATCH(J19,'TOU Definitions'!$H$4:$J$4)-1),OFFSET('TOU Definitions'!$H$5,HOUR($D19),MATCH(J19,'TOU Definitions'!$H$4:$J$4)-1)) -> 3 | J19: =OFFSET('TOU Definitions'!$B$4,$E19,0) -> W | L19: =IF($H19="W1",'Initial Inputs'!$F$94,IF($H19="W3",'Initial Inputs'!$G$94,IF($H19="S1",'Initial Inputs'!$D$94,'Initial Inputs'!$E$94))) -> 70 | N19: =IF($H19="W1",'Initial Inputs'!$E$33,IF($H19="W3",'Initial Inputs'!$F$33,IF($H19="S1",'Initial Inputs'!$C$33,'Initial Inputs'!$D$33))) -> 0.15 | P19: =IF($H19="W1",'Initial Inputs'!$E$37,IF($H19="W3",'Initial Inputs'!$F$37,IF($H19="S1",'Initial Inputs'!$C$37,'Initial Inputs'!$D$37))) -> 0.15 | R19: =IF($H19="W1",'Initial Inputs'!$E$41,IF($H19="W3",'Initial Inputs'!$F$41,IF($H19="S1",'Initial Inputs'!$C$41,'Initial Inputs'!$D$41))) -> 0.08 | T19: =IF($H19="W1",'Initial Inputs'!$E$45,IF($H19="W3",'Initial Inputs'!$F$45,IF($H19="S1",'Initial Inputs'!$C$45,'Initial Inputs'!$D$45))) -> 0.08 | V19: =IF($H19="W1",'Initial Inputs'!$E$49,IF($H19="W3",'Initial Inputs'!$F$49,IF($H19="S1",'Initial Inputs'!$C$49,'Initial Inputs'!$D$49))) -> 0.08
D20: 2017-01-01T17:00:00 | E20: 1 | F20: 7 | G20: 0 | H20: W3 | I20: =IF(OR($G20>0,$F20>$B$12),OFFSET('TOU Definitions'!$K$5,HOUR($D20),MATCH(J20,'TOU Definitions'!$H$4:$J$4)-1),OFFSET('TOU Definitions'!$H$5,HOUR($D20),MATCH(J20,'TOU Definitions'!$H$4:$J$4)-1)) -> 3 | J20: =OFFSET('TOU Definitions'!$B$4,$E20,0) -> W | L20: =IF($H20="W1",'Initial Inputs'!$F$94,IF($H20="W3",'Initial Inputs'!$G$94,IF($H20="S1",'Initial Inputs'!$D$94,'Initial Inputs'!$E$94))) -> 70 | N20: =IF($H20="W1",'Initial Inputs'!$E$33,IF($H20="W3",'Initial Inputs'!$F$33,IF($H20="S1",'Initial Inputs'!$C$33,'Initial Inputs'!$D$33))) -> 0.15 | P20: =IF($H20="W1",'Initial Inputs'!$E$37,IF($H20="W3",'Initial Inputs'!$F$37,IF($H20="S1",'Initial Inputs'!$C$37,'Initial Inputs'!$D$37))) -> 0.15 | R20: =IF($H20="W1",'Initial Inputs'!$E$41,IF($H20="W3",'Initial Inputs'!$F$41,IF($H20="S1",'Initial Inputs'!$C$41,'Initial Inputs'!$D$41))) -> 0.08 | T20: =IF($H20="W1",'Initial Inputs'!$E$45,IF($H20="W3",'Initial Inputs'!$F$45,IF($H20="S1",'Initial Inputs'!$C$45,'Initial Inputs'!$D$45))) -> 0.08 | V20: =IF($H20="W1",'Initial Inputs'!$E$49,IF($H20="W3",'Initial Inputs'!$F$49,IF($H20="S1",'Initial Inputs'!$C$49,'Initial Inputs'!$D$49))) -> 0.08
D21: 2017-01-01T18:00:00 | E21: 1 | F21: 7 | G21: 0 | H21: W3 | I21: =IF(OR($G21>0,$F21>$B$12),OFFSET('TOU Definitions'!$K$5,HOUR($D21),MATCH(J21,'TOU Definitions'!$H$4:$J$4)-1),OFFSET('TOU Definitions'!$H$5,HOUR($D21),MATCH(J21,'TOU Definitions'!$H$4:$J$4)-1)) -> 3 | J21: =OFFSET('TOU Definitions'!$B$4,$E21,0) -> W | L21: =IF($H21="W1",'Initial Inputs'!$F$94,IF($H21="W3",'Initial Inputs'!$G$94,IF($H21="S1",'Initial Inputs'!$D$94,'Initial Inputs'!$E$94))) -> 70 | N21: =IF($H21="W1",'Initial Inputs'!$E$33,IF($H21="W3",'Initial Inputs'!$F$33,IF($H21="S1",'Initial Inputs'!$C$33,'Initial Inputs'!$D$33))) -> 0.15 | P21: =IF($H21="W1",'Initial Inputs'!$E$37,IF($H21="W3",'Initial Inputs'!$F$37,IF($H21="S1",'Initial Inputs'!$C$37,'Initial Inputs'!$D$37))) -> 0.15 | R21: =IF($H21="W1",'Initial Inputs'!$E$41,IF($H21="W3",'Initial Inputs'!$F$41,IF($H21="S1",'Initial Inputs'!$C$41,'Initial Inputs'!$D$41))) -> 0.08 | T21: =IF($H21="W1",'Initial Inputs'!$E$45,IF($H21="W3",'Initial Inputs'!$F$45,IF($H21="S1",'Initial Inputs'!$C$45,'Initial Inputs'!$D$45))) -> 0.08 | V21: =IF($H21="W1",'Initial Inputs'!$E$49,IF($H21="W3",'Initial Inputs'!$F$49,IF($H21="S1",'Initial Inputs'!$C$49,'Initial Inputs'!$D$49))) -> 0.08
